Workbook

Sheet AVISO LEGAL
H2: Fecha de actualización: | J2: 2017-07-05
J23: www.ree.es

Sheet Estructura mensual nacional
O1: 11
M4: Sistema eléctrico
M5: Horizonte temporal
M6: Periodo
C8: Ene. | D8: Feb. | E8: Mar. | F8: Abr. | G8: May. | H8: Jun. | I8: Jul. | J8: Ago. | K8: Sep. | L8: Oct. | M8: Nov. | N8: Dic. | O8: =OFFSET(Año!B19,($O$1-1),0) -> 2017
B10: Hidráulica | C10: =OFFSET(Estructura!C62,0,($O$1-1)*12) -> 8.1 | D10: =OFFSET(Estructura!D62,0,($O$1-1)*12) -> 8.9 | E10: =OFFSET(Estructura!E62,0,($O$1-1)*12) -> 12.9 | F10: =OFFSET(Estructura!F62,0,($O$1-1)*12) -> 8.8 | G10: =OFFSET(Estructura!G62,0,($O$1-1)*12) -> 9.5 | H10: =OFFSET(Estructura!H62,0,($O$1-1)*12) -> 7 | I10: =OFFSET(Estructura!I62,0,($O$1-1)*12) -> - | J10: =OFFSET(Estructura!J62,0,($O$1-1)*12) -> - | K10: =OFFSET(Estructura!K62,0,($O$1-1)*12) -> - | L10: =OFFSET(Estructura!L62,0,($O$1-1)*12) -> - | M10: =OFFSET(Estructura!M62,0,($O$1-1)*12) -> - | N10: =OFFSET(Estructura!N62,0,($O$1-1)*12) -> - | O10: =OFFSET(Estructura!C137,0,($O$1-1)) -> 9.2
B11: Nuclear | C11: =OFFSET(Estructura!C63,0,($O$1-1)*12) -> 21.1 | D11: =OFFSET(Estructura!D63,0,($O$1-1)*12) -> 23.1 | E11: =OFFSET(Estructura!E63,0,($O$1-1)*12) -> 25.2 | F11: =OFFSET(Estructura!F63,0,($O$1-1)*12) -> 25.9 | G11: =OFFSET(Estructura!G63,0,($O$1-1)*12) -> 20.5 | H11: =OFFSET(Estructura!H63,0,($O$1-1)*12) -> 18.5 | I11: =OFFSET(Estructura!I63,0,($O$1-1)*12) -> - | J11: =OFFSET(Estructura!J63,0,($O$1-1)*12) -> - | K11: =OFFSET(Estructura!K63,0,($O$1-1)*12) -> - | L11: =OFFSET(Estructura!L63,0,($O$1-1)*12) -> - | M11: =OFFSET(Estructura!M63,0,($O$1-1)*12) -> - | N11: =OFFSET(Estructura!N63,0,($O$1-1)*12) -> - | O11: =OFFSET(Estructura!C138,0,($O$1-1)) -> 22.3
B12: Carbón | C12: =OFFSET(Estructura!C64,0,($O$1-1)*12) -> 21.5 | D12: =OFFSET(Estructura!D64,0,($O$1-1)*12) -> 17 | E12: =OFFSET(Estructura!E64,0,($O$1-1)*12) -> 9.4 | F12: =OFFSET(Estructura!F64,0,($O$1-1)*12) -> 11 | G12: =OFFSET(Estructura!G64,0,($O$1-1)*12) -> 18.6 | H12: =OFFSET(Estructura!H64,0,($O$1-1)*12) -> 20.6 | I12: =OFFSET(Estructura!I64,0,($O$1-1)*12) -> - | J12: =OFFSET(Estructura!J64,0,($O$1-1)*12) -> - | K12: =OFFSET(Estructura!K64,0,($O$1-1)*12) -> - | L12: =OFFSET(Estructura!L64,0,($O$1-1)*12) -> - | M12: =OFFSET(Estructura!M64,0,($O$1-1)*12) -> - | N12: =OFFSET(Estructura!N64,0,($O$1-1)*12) -> - | O12: =OFFSET(Estructura!C139,0,($O$1-1)) -> 16.6
B13: Fuel + Gas (2) | C13: =OFFSET(Estructura!C65,0,($O$1-1)*12) -> 2.3 | D13: =OFFSET(Estructura!D65,0,($O$1-1)*12) -> 2.4 | E13: =OFFSET(Estructura!E65,0,($O$1-1)*12) -> 2.6 | F13: =OFFSET(Estructura!F65,0,($O$1-1)*12) -> 2.9 | G13: =OFFSET(Estructura!G65,0,($O$1-1)*12) -> 2.8 | H13: =OFFSET(Estructura!H65,0,($O$1-1)*12) -> 2.8 | I13: =OFFSET(Estructura!I65,0,($O$1-1)*12) -> - | J13: =OFFSET(Estructura!J65,0,($O$1-1)*12) -> - | K13: =OFFSET(Estructura!K65,0,($O$1-1)*12) -> - | L13: =OFFSET(Estructura!L65,0,($O$1-1)*12) -> - | M13: =OFFSET(Estructura!M65,0,($O$1-1)*12) -> - | N13: =OFFSET(Estructura!N65,0,($O$1-1)*12) -> - | O13: =OFFSET(Estructura!C140,0,($O$1-1)) -> 2.6
B14: Ciclo combinado (3) | C14: =OFFSET(Estructura!C66,0,($O$1-1)*12) -> 13 | D14: =OFFSET(Estructura!D66,0,($O$1-1)*12) -> 8.7 | E14: =OFFSET(Estructura!E66,0,($O$1-1)*12) -> 8.3 | F14: =OFFSET(Estructura!F66,0,($O$1-1)*12) -> 7.9 | G14: =OFFSET(Estructura!G66,0,($O$1-1)*12) -> 10.1 | H14: =OFFSET(Estructura!H66,0,($O$1-1)*12) -> 15.6 | I14: =OFFSET(Estructura!I66,0,($O$1-1)*12) -> - | J14: =OFFSET(Estructura!J66,0,($O$1-1)*12) -> - | K14: =OFFSET(Estructura!K66,0,($O$1-1)*12) -> - | L14: =OFFSET(Estructura!L66,0,($O$1-1)*12) -> - | M14: =OFFSET(Estructura!M66,0,($O$1-1)*12) -> - | N14: =OFFSET(Estructura!N66,0,($O$1-1)*12) -> - | O14: =OFFSET(Estructura!C141,0,($O$1-1)) -> 10.8
B15: Hidroeólica | C15: =OFFSET(Estructura!C67,0,($O$1-1)*12) -> 0 | D15: =OFFSET(Estructura!D67,0,($O$1-1)*12) -> 0 | E15: =OFFSET(Estructura!E67,0,($O$1-1)*12) -> 0 | F15: =OFFSET(Estructura!F67,0,($O$1-1)*12) -> 0 | G15: =OFFSET(Estructura!G67,0,($O$1-1)*12) -> 0 | H15: =OFFSET(Estructura!H67,0,($O$1-1)*12) -> 0 | I15: =OFFSET(Estructura!I67,0,($O$1-1)*12) -> - | J15: =OFFSET(Estructura!J67,0,($O$1-1)*12) -> - | K15: =OFFSET(Estructura!K67,0,($O$1-1)*12) -> - | L15: =OFFSET(Estructura!L67,0,($O$1-1)*12) -> - | M15: =OFFSET(Estructura!M67,0,($O$1-1)*12) -> - | N15: =OFFSET(Estructura!N67,0,($O$1-1)*12) -> - | O15: =OFFSET(Estructura!C142,0,($O$1-1)) -> 0
B16: Eólica | C16: =OFFSET(Estructura!C68,0,($O$1-1)*12) -> 19.3 | D16: =OFFSET(Estructura!D68,0,($O$1-1)*12) -> 24 | E16: =OFFSET(Estructura!E68,0,($O$1-1)*12) -> 22.5 | F16: =OFFSET(Estructura!F68,0,($O$1-1)*12) -> 22 | G16: =OFFSET(Estructura!G68,0,($O$1-1)*12) -> 17.1 | H16: =OFFSET(Estructura!H68,0,($O$1-1)*12) -> 14.5 | I16: =OFFSET(Estructura!I68,0,($O$1-1)*12) -> - | J16: =OFFSET(Estructura!J68,0,($O$1-1)*12) -> - | K16: =OFFSET(Estructura!K68,0,($O$1-1)*12) -> - | L16: =OFFSET(Estructura!L68,0,($O$1-1)*12) -> - | M16: =OFFSET(Estructura!M68,0,($O$1-1)*12) -> - | N16: =OFFSET(Estructura!N68,0,($O$1-1)*12) -> - | O16: =OFFSET(Estructura!C143,0,($O$1-1)) -> 19.8
B17: Solar fotovoltaica | C17: =OFFSET(Estructura!C69,0,($O$1-1)*12) -> 1.9 | D17: =OFFSET(Estructura!D69,0,($O$1-1)*12) -> 2.1 | E17: =OFFSET(Estructura!E69,0,($O$1-1)*12) -> 3.4 | F17: =OFFSET(Estructura!F69,0,($O$1-1)*12) -> 4.4 | G17: =OFFSET(Estructura!G69,0,($O$1-1)*12) -> 4.3 | H17: =OFFSET(Estructura!H69,0,($O$1-1)*12) -> 4 | I17: =OFFSET(Estructura!I69,0,($O$1-1)*12) -> - | J17: =OFFSET(Estructura!J69,0,($O$1-1)*12) -> - | K17: =OFFSET(Estructura!K69,0,($O$1-1)*12) -> - | L17: =OFFSET(Estructura!L69,0,($O$1-1)*12) -> - | M17: =OFFSET(Estructura!M69,0,($O$1-1)*12) -> - | N17: =OFFSET(Estructura!N69,0,($O$1-1)*12) -> - | O17: =OFFSET(Estructura!C144,0,($O$1-1)) -> 3.3
B18: Solar térmica | C18: =OFFSET(Estructura!C70,0,($O$1-1)*12) -> 0.6 | D18: =OFFSET(Estructura!D70,0,($O$1-1)*12) -> 0.4 | E18: =OFFSET(Estructura!E70,0,($O$1-1)*12) -> 1.6 | F18: =OFFSET(Estructura!F70,0,($O$1-1)*12) -> 2.8 | G18: =OFFSET(Estructura!G70,0,($O$1-1)*12) -> 3 | H18: =OFFSET(Estructura!H70,0,($O$1-1)*12) -> 3.6 | I18: =OFFSET(Estructura!I70,0,($O$1-1)*12) -> - | J18: =OFFSET(Estructura!J70,0,($O$1-1)*12) -> - | K18: =OFFSET(Estructura!K70,0,($O$1-1)*12) -> - | L18: =OFFSET(Estructura!L70,0,($O$1-1)*12) -> - | M18: =OFFSET(Estructura!M70,0,($O$1-1)*12) -> - | N18: =OFFSET(Estructura!N70,0,($O$1-1)*12) -> - | O18: =OFFSET(Estructura!C145,0,($O$1-1)) -> 2
B19: Térmica renovable (4)/Otras renovables (5) | C19: =OFFSET(Estructura!C71,0,($O$1-1)*12) -> 1.3 | D19: =OFFSET(Estructura!D71,0,($O$1-1)*12) -> 1.4 | E19: =OFFSET(Estructura!E71,0,($O$1-1)*12) -> 1.3 | F19: =OFFSET(Estructura!F71,0,($O$1-1)*12) -> 1.2 | G19: =OFFSET(Estructura!G71,0,($O$1-1)*12) -> 1.5 | H19: =OFFSET(Estructura!H71,0,($O$1-1)*12) -> 1.4 | I19: =OFFSET(Estructura!I71,0,($O$1-1)*12) -> - | J19: =OFFSET(Estructura!J71,0,($O$1-1)*12) -> - | K19: =OFFSET(Estructura!K71,0,($O$1-1)*12) -> - | L19: =OFFSET(Estructura!L71,0,($O$1-1)*12) -> - | M19: =OFFSET(Estructura!M71,0,($O$1-1)*12) -> - | N19: =OFFSET(Estructura!N71,0,($O$1-1)*12) -> - | O19: =OFFSET(Estructura!C146,0,($O$1-1)) -> 1.4
B20: Cogeneración y resto (4)/Cogeneración | C20: =OFFSET(Estructura!C72,0,($O$1-1)*12) -> 9.7 | D20: =OFFSET(Estructura!D72,0,($O$1-1)*12) -> 10.7 | E20: =OFFSET(Estructura!E72,0,($O$1-1)*12) -> 11.4 | F20: =OFFSET(Estructura!F72,0,($O$1-1)*12) -> 11.8 | G20: =OFFSET(Estructura!G72,0,($O$1-1)*12) -> 11.4 | H20: =OFFSET(Estructura!H72,0,($O$1-1)*12) -> 10.6 | I20: =OFFSET(Estructura!I72,0,($O$1-1)*12) -> - | J20: =OFFSET(Estructura!J72,0,($O$1-1)*12) -> - | K20: =OFFSET(Estructura!K72,0,($O$1-1)*12) -> - | L20: =OFFSET(Estructura!L72,0,($O$1-1)*12) -> - | M20: =OFFSET(Estructura!M72,0,($O$1-1)*12) -> - | N20: =OFFSET(Estructura!N72,0,($O$1-1)*12) -> - | O20: =OFFSET(Estructura!C147,0,($O$1-1)) -> 10.7
B21: Residuos (6) | C21: =OFFSET(Estructura!C73,0,($O$1-1)*12) -> 1.2 | D21: =OFFSET(Estructura!D73,0,($O$1-1)*12) -> 1.3 | E21: =OFFSET(Estructura!E73,0,($O$1-1)*12) -> 1.4 | F21: =OFFSET(Estructura!F73,0,($O$1-1)*12) -> 1.3 | G21: =OFFSET(Estructura!G73,0,($O$1-1)*12) -> 1.2 | H21: =OFFSET(Estructura!H73,0,($O$1-1)*12) -> 1.4 | I21: =OFFSET(Estructura!I73,0,($O$1-1)*12) -> - | J21: =OFFSET(Estructura!J73,0,($O$1-1)*12) -> - | K21: =OFFSET(Estructura!K73,0,($O$1-1)*12) -> - | L21: =OFFSET(Estructura!L73,0,($O$1-1)*12) -> - | M21: =OFFSET(Estructura!M73,0,($O$1-1)*12) -> - | N21: =OFFSET(Estructura!N73,0,($O$1-1)*12) -> - | O21: =OFFSET(Estructura!C148,0,($O$1-1)) -> 1.3
B22: Generación renovable (7) | C22: =OFFSET(Estructura!C74,0,($O$1-1)*12) -> 31.5 | D22: =OFFSET(Estructura!D74,0,($O$1-1)*12) -> 37.1 | E22: =OFFSET(Estructura!E74,0,($O$1-1)*12) -> 42 | F22: =OFFSET(Estructura!F74,0,($O$1-1)*12) -> 39.5 | G22: =OFFSET(Estructura!G74,0,($O$1-1)*12) -> 35.6 | H22: =OFFSET(Estructura!H74,0,($O$1-1)*12) -> 30.9 | I22: =OFFSET(Estructura!I74,0,($O$1-1)*12) -> - | J22: =OFFSET(Estructura!J74,0,($O$1-1)*12) -> - | K22: =OFFSET(Estructura!K74,0,($O$1-1)*12) -> - | L22: =OFFSET(Estructura!L74,0,($O$1-1)*12) -> - | M22: =OFFSET(Estructura!M74,0,($O$1-1)*12) -> - | N22: =OFFSET(Estructura!N74,0,($O$1-1)*12) -> - | O22: =OFFSET(Estructura!C149,0,($O$1-1)) -> 36
B23: Generación no renovable | C23: =OFFSET(Estructura!C75,0,($O$1-1)*12) -> 68.5 | D23: =OFFSET(Estructura!D75,0,($O$1-1)*12) -> 62.9 | E23: =OFFSET(Estructura!E75,0,($O$1-1)*12) -> 58 | F23: =OFFSET(Estructura!F75,0,($O$1-1)*12) -> 60.5 | G23: =OFFSET(Estructura!G75,0,($O$1-1)*12) -> 64.4 | H23: =OFFSET(Estructura!H75,0,($O$1-1)*12) -> 69.1 | I23: =OFFSET(Estructura!I75,0,($O$1-1)*12) -> - | J23: =OFFSET(Estructura!J75,0,($O$1-1)*12) -> - | K23: =OFFSET(Estructura!K75,0,($O$1-1)*12) -> - | L23: =OFFSET(Estructura!L75,0,($O$1-1)*12) -> - | M23: =OFFSET(Estructura!M75,0,($O$1-1)*12) -> - | N23: =OFFSET(Estructura!N75,0,($O$1-1)*12) -> - | O23: =OFFSET(Estructura!C150,0,($O$1-1)) -> 64
B24: (1) Asignación de unidades de producción según combustible principal.
B25: (2) En el sistema eléctrico de Baleares y Canarias se incluye la generación con grupos auxiliares.
B26: (3) Incluye funcionamiento en ciclo abierto. En el sistema eléctrico de Canarias utiliza gasoil como combustible principal.
B27: (4) Incluye residuos hasta el 31/12/2014.
B28: (5) Otras renovables incluyen biogás, biomasa, hidráulica marina y geotérmica.
B29: (6) Generación incluida en otras renovables y cogeneración hasta el 31/12/2014. El 50% de la generación procedente de residuos sólidos urbanos se considera renovable.
B30: (7) Incluye hidráulica, hidroeólica, eólica, solar fotovoltaica, solar térmica y térmica renovable/otras renovables y el 50% de los residuos sólidos urbanos. No incluye la generación bombeo.

Sheet Estructura anual nacional
I1: 2
G4: Sistema eléctrico
G5: Horizonte temporal
G6: Periodo
C8: =OFFSET(Estructura!C136,0,($I$1-1)*7) -> 2014 | D8: =OFFSET(Estructura!D136,0,($I$1-1)*7) -> 2015 | E8: =OFFSET(Estructura!E136,0,($I$1-1)*7) -> 2016 | F8: =OFFSET(Estructura!F136,0,($I$1-1)*7) -> 2017 | G8: =OFFSET(Estructura!G136,0,($I$1-1)*7) -> 2018 | H8: =OFFSET(Estructura!H136,0,($I$1-1)*7) -> 2019 | I8: =OFFSET(Estructura!I136,0,($I$1-1)*7) -> 2020
B10: Hidráulica | C10: =OFFSET(Estructura!C137,0,($I$1-1)*7) -> 14.7 | D10: =OFFSET(Estructura!D137,0,($I$1-1)*7) -> 10.6 | E10: =OFFSET(Estructura!E137,0,($I$1-1)*7) -> 13.8 | F10: =OFFSET(Estructura!F137,0,($I$1-1)*7) -> 9.2 | G10: =OFFSET(Estructura!G137,0,($I$1-1)*7) -> - | H10: =OFFSET(Estructura!H137,0,($I$1-1)*7) -> - | I10: =OFFSET(Estructura!I137,0,($I$1-1)*7) -> -
B11: Nuclear | C11: =OFFSET(Estructura!C138,0,($I$1-1)*7) -> 20.9 | D11: =OFFSET(Estructura!D138,0,($I$1-1)*7) -> 20.7 | E11: =OFFSET(Estructura!E138,0,($I$1-1)*7) -> 21.7 | F11: =OFFSET(Estructura!F138,0,($I$1-1)*7) -> 22.3 | G11: =OFFSET(Estructura!G138,0,($I$1-1)*7) -> - | H11: =OFFSET(Estructura!H138,0,($I$1-1)*7) -> - | I11: =OFFSET(Estructura!I138,0,($I$1-1)*7) -> -
B12: Carbón | C12: =OFFSET(Estructura!C139,0,($I$1-1)*7) -> 16.5 | D12: =OFFSET(Estructura!D139,0,($I$1-1)*7) -> 19.9 | E12: =OFFSET(Estructura!E139,0,($I$1-1)*7) -> 14.5 | F12: =OFFSET(Estructura!F139,0,($I$1-1)*7) -> 16.6 | G12: =OFFSET(Estructura!G139,0,($I$1-1)*7) -> - | H12: =OFFSET(Estructura!H139,0,($I$1-1)*7) -> - | I12: =OFFSET(Estructura!I139,0,($I$1-1)*7) -> -
B13: Fuel + Gas (2) | C13: =OFFSET(Estructura!C140,0,($I$1-1)*7) -> 2.4 | D13: =OFFSET(Estructura!D140,0,($I$1-1)*7) -> 2.5 | E13: =OFFSET(Estructura!E140,0,($I$1-1)*7) -> 2.6 | F13: =OFFSET(Estructura!F140,0,($I$1-1)*7) -> 2.6 | G13: =OFFSET(Estructura!G140,0,($I$1-1)*7) -> - | H13: =OFFSET(Estructura!H140,0,($I$1-1)*7) -> - | I13: =OFFSET(Estructura!I140,0,($I$1-1)*7) -> -
B14: Ciclo combinado (3) | C14: =OFFSET(Estructura!C141,0,($I$1-1)*7) -> 9.5 | D14: =OFFSET(Estructura!D141,0,($I$1-1)*7) -> 11.1 | E14: =OFFSET(Estructura!E141,0,($I$1-1)*7) -> 11.3 | F14: =OFFSET(Estructura!F141,0,($I$1-1)*7) -> 10.8 | G14: =OFFSET(Estructura!G141,0,($I$1-1)*7) -> - | H14: =OFFSET(Estructura!H141,0,($I$1-1)*7) -> - | I14: =OFFSET(Estructura!I141,0,($I$1-1)*7) -> -
B15: Hidroeólica | C15: =OFFSET(Estructura!C142,0,($I$1-1)*7) -> 0 | D15: =OFFSET(Estructura!D142,0,($I$1-1)*7) -> 0 | E15: =OFFSET(Estructura!E142,0,($I$1-1)*7) -> 0 | F15: =OFFSET(Estructura!F142,0,($I$1-1)*7) -> 0 | G15: =OFFSET(Estructura!G142,0,($I$1-1)*7) -> - | H15: =OFFSET(Estructura!H142,0,($I$1-1)*7) -> - | I15: =OFFSET(Estructura!I142,0,($I$1-1)*7) -> -
B16: Eólica | C16: =OFFSET(Estructura!C143,0,($I$1-1)*7) -> 19.4 | D16: =OFFSET(Estructura!D143,0,($I$1-1)*7) -> 18.2 | E16: =OFFSET(Estructura!E143,0,($I$1-1)*7) -> 18.4 | F16: =OFFSET(Estructura!F143,0,($I$1-1)*7) -> 19.8 | G16: =OFFSET(Estructura!G143,0,($I$1-1)*7) -> - | H16: =OFFSET(Estructura!H143,0,($I$1-1)*7) -> - | I16: =OFFSET(Estructura!I143,0,($I$1-1)*7) -> -
B17: Solar fotovoltaica | C17: =OFFSET(Estructura!C144,0,($I$1-1)*7) -> 3.1 | D17: =OFFSET(Estructura!D144,0,($I$1-1)*7) -> 3.1 | E17: =OFFSET(Estructura!E144,0,($I$1-1)*7) -> 3.1 | F17: =OFFSET(Estructura!F144,0,($I$1-1)*7) -> 3.3 | G17: =OFFSET(Estructura!G144,0,($I$1-1)*7) -> - | H17: =OFFSET(Estructura!H144,0,($I$1-1)*7) -> - | I17: =OFFSET(Estructura!I144,0,($I$1-1)*7) -> -
B18: Solar térmica | C18: =OFFSET(Estructura!C145,0,($I$1-1)*7) -> 1.9 | D18: =OFFSET(Estructura!D145,0,($I$1-1)*7) -> 1.9 | E18: =OFFSET(Estructura!E145,0,($I$1-1)*7) -> 2 | F18: =OFFSET(Estructura!F145,0,($I$1-1)*7) -> 2 | G18: =OFFSET(Estructura!G145,0,($I$1-1)*7) -> - | H18: =OFFSET(Estructura!H145,0,($I$1-1)*7) -> - | I18: =OFFSET(Estructura!I145,0,($I$1-1)*7) -> -
B19: Térmica renovable (4)/Otras renovables (5) | C19: =OFFSET(Estructura!C146,0,($I$1-1)*7) -> 1.8 | D19: =OFFSET(Estructura!D146,0,($I$1-1)*7) -> 1.2 | E19: =OFFSET(Estructura!E146,0,($I$1-1)*7) -> 1.3 | F19: =OFFSET(Estructura!F146,0,($I$1-1)*7) -> 1.4 | G19: =OFFSET(Estructura!G146,0,($I$1-1)*7) -> - | H19: =OFFSET(Estructura!H146,0,($I$1-1)*7) -> - | I19: =OFFSET(Estructura!I146,0,($I$1-1)*7) -> -
B20: Cogeneración y resto (4)/Cogeneración | C20: =OFFSET(Estructura!C147,0,($I$1-1)*7) -> 9.8 | D20: =OFFSET(Estructura!D147,0,($I$1-1)*7) -> 9.6 | E20: =OFFSET(Estructura!E147,0,($I$1-1)*7) -> 10 | F20: =OFFSET(Estructura!F147,0,($I$1-1)*7) -> 10.7 | G20: =OFFSET(Estructura!G147,0,($I$1-1)*7) -> - | H20: =OFFSET(Estructura!H147,0,($I$1-1)*7) -> - | I20: =OFFSET(Estructura!I147,0,($I$1-1)*7) -> -
B21: Residuos (6) | C21: =OFFSET(Estructura!C148,0,($I$1-1)*7) -> - | D21: =OFFSET(Estructura!D148,0,($I$1-1)*7) -> 1.2 | E21: =OFFSET(Estructura!E148,0,($I$1-1)*7) -> 1.3 | F21: =OFFSET(Estructura!F148,0,($I$1-1)*7) -> 1.3 | G21: =OFFSET(Estructura!G148,0,($I$1-1)*7) -> - | H21: =OFFSET(Estructura!H148,0,($I$1-1)*7) -> - | I21: =OFFSET(Estructura!I148,0,($I$1-1)*7) -> -
B22: Generación renovable (7) | C22: =OFFSET(Estructura!C149,0,($I$1-1)*7) -> 40.9 | D22: =OFFSET(Estructura!D149,0,($I$1-1)*7) -> 35.3 | E22: =OFFSET(Estructura!E149,0,($I$1-1)*7) -> 38.9 | F22: =OFFSET(Estructura!F149,0,($I$1-1)*7) -> 36 | G22: =OFFSET(Estructura!G149,0,($I$1-1)*7) -> - | H22: =OFFSET(Estructura!H149,0,($I$1-1)*7) -> - | I22: =OFFSET(Estructura!I149,0,($I$1-1)*7) -> -
B23: Generación no renovable | C23: =OFFSET(Estructura!C150,0,($I$1-1)*7) -> 59.1 | D23: =OFFSET(Estructura!D150,0,($I$1-1)*7) -> 64.7 | E23: =OFFSET(Estructura!E150,0,($I$1-1)*7) -> 61.1 | F23: =OFFSET(Estructura!F150,0,($I$1-1)*7) -> 64 | G23: =OFFSET(Estructura!G150,0,($I$1-1)*7) -> - | H23: =OFFSET(Estructura!H150,0,($I$1-1)*7) -> - | I23: =OFFSET(Estructura!I150,0,($I$1-1)*7) -> -
B24: (1) Asignación de unidades de producción según combustible principal.
B25: (2) En el sistema eléctrico de Baleares y Canarias se incluye la generación con grupos auxiliares.
B26: (3) Incluye funcionamiento en ciclo abierto. En el sistema eléctrico de Canarias utiliza gasoil como combustible principal.
B27: (4) Incluye residuos hasta el 31/12/2014.
B28: (5) Otras renovables incluyen biogás, biomasa, hidráulica marina y geotérmica.
B29: (6) Generación incluida en otras renovables y cogeneración hasta el 31/12/2014. El 50% de la generación procedente de residuos sólidos urbanos se considera renovable.
B30: (7) Incluye hidráulica, hidroeólica, eólica, solar fotovoltaica, solar térmica y térmica renovable/otras renovables y el 50% de los residuos sólidos urbanos. No incluye la generación bombeo.
B31: =IF(I1<2,"",IF(MONTH(FACT)=1,"",CONCATENATE(" Para el año ",YEAR(FACT)," valores acumulados hasta ",TEXT(FACT-30,"mmmm")," de ",YEAR(FACT),"."))) -> Para el año 2017 valores acumulados hasta junio de 2017.

Sheet Estructura mensual Peninsular
O1: 28
M4: Sistema eléctrico
M5: Horizonte temporal
M6: Periodo
C8: Ene. | D8: Feb. | E8: Mar. | F8: Abr. | G8: May. | H8: Jun. | I8: Jul. | J8: Ago. | K8: Sep. | L8: Oct. | M8: Nov. | N8: Dic. | O8: =OFFSET(Año!B2,($O$1-1),0) -> 2017
B10: Hidráulica | C10: =OFFSET(Estructura!C3,0,($O$1-1)*12) -> 8.5 | D10: =OFFSET(Estructura!D3,0,($O$1-1)*12) -> 9.3 | E10: =OFFSET(Estructura!E3,0,($O$1-1)*12) -> 13.6 | F10: =OFFSET(Estructura!F3,0,($O$1-1)*12) -> 9.4 | G10: =OFFSET(Estructura!G3,0,($O$1-1)*12) -> 10.1 | H10: =OFFSET(Estructura!H3,0,($O$1-1)*12) -> 7.5 | I10: =OFFSET(Estructura!I3,0,($O$1-1)*12) -> - | J10: =OFFSET(Estructura!J3,0,($O$1-1)*12) -> - | K10: =OFFSET(Estructura!K3,0,($O$1-1)*12) -> - | L10: =OFFSET(Estructura!L3,0,($O$1-1)*12) -> - | M10: =OFFSET(Estructura!M3,0,($O$1-1)*12) -> - | N10: =OFFSET(Estructura!N3,0,($O$1-1)*12) -> - | O10: =OFFSET(Estructura!C78,0,($O$1-1)) -> 9.7
B11: Nuclear | C11: =OFFSET(Estructura!C4,0,($O$1-1)*12) -> 22.1 | D11: =OFFSET(Estructura!D4,0,($O$1-1)*12) -> 24.3 | E11: =OFFSET(Estructura!E4,0,($O$1-1)*12) -> 26.6 | F11: =OFFSET(Estructura!F4,0,($O$1-1)*12) -> 27.5 | G11: =OFFSET(Estructura!G4,0,($O$1-1)*12) -> 21.7 | H11: =OFFSET(Estructura!H4,0,($O$1-1)*12) -> 19.6 | I11: =OFFSET(Estructura!I4,0,($O$1-1)*12) -> - | J11: =OFFSET(Estructura!J4,0,($O$1-1)*12) -> - | K11: =OFFSET(Estructura!K4,0,($O$1-1)*12) -> - | L11: =OFFSET(Estructura!L4,0,($O$1-1)*12) -> - | M11: =OFFSET(Estructura!M4,0,($O$1-1)*12) -> - | N11: =OFFSET(Estructura!N4,0,($O$1-1)*12) -> - | O11: =OFFSET(Estructura!C79,0,($O$1-1)) -> 23.5
B12: Carbón | C12: =OFFSET(Estructura!C5,0,($O$1-1)*12) -> 21.6 | D12: =OFFSET(Estructura!D5,0,($O$1-1)*12) -> 17 | E12: =OFFSET(Estructura!E5,0,($O$1-1)*12) -> 9 | F12: =OFFSET(Estructura!F5,0,($O$1-1)*12) -> 10.6 | G12: =OFFSET(Estructura!G5,0,($O$1-1)*12) -> 18.6 | H12: =OFFSET(Estructura!H5,0,($O$1-1)*12) -> 20.6 | I12: =OFFSET(Estructura!I5,0,($O$1-1)*12) -> - | J12: =OFFSET(Estructura!J5,0,($O$1-1)*12) -> - | K12: =OFFSET(Estructura!K5,0,($O$1-1)*12) -> - | L12: =OFFSET(Estructura!L5,0,($O$1-1)*12) -> - | M12: =OFFSET(Estructura!M5,0,($O$1-1)*12) -> - | N12: =OFFSET(Estructura!N5,0,($O$1-1)*12) -> - | O12: =OFFSET(Estructura!C80,0,($O$1-1)) -> 16.5
B13: Fuel + Gas | C13: =OFFSET(Estructura!C6,0,($O$1-1)*12) -> 0 | D13: =OFFSET(Estructura!D6,0,($O$1-1)*12) -> 0 | E13: =OFFSET(Estructura!E6,0,($O$1-1)*12) -> 0 | F13: =OFFSET(Estructura!F6,0,($O$1-1)*12) -> 0 | G13: =OFFSET(Estructura!G6,0,($O$1-1)*12) -> 0 | H13: =OFFSET(Estructura!H6,0,($O$1-1)*12) -> 0 | I13: =OFFSET(Estructura!I6,0,($O$1-1)*12) -> - | J13: =OFFSET(Estructura!J6,0,($O$1-1)*12) -> - | K13: =OFFSET(Estructura!K6,0,($O$1-1)*12) -> - | L13: =OFFSET(Estructura!L6,0,($O$1-1)*12) -> - | M13: =OFFSET(Estructura!M6,0,($O$1-1)*12) -> - | N13: =OFFSET(Estructura!N6,0,($O$1-1)*12) -> - | O13: =OFFSET(Estructura!C81,0,($O$1-1)) -> -
B14: Ciclo combinado (2) | C14: =OFFSET(Estructura!C7,0,($O$1-1)*12) -> 12.3 | D14: =OFFSET(Estructura!D7,0,($O$1-1)*12) -> 7.8 | E14: =OFFSET(Estructura!E7,0,($O$1-1)*12) -> 7.3 | F14: =OFFSET(Estructura!F7,0,($O$1-1)*12) -> 7 | G14: =OFFSET(Estructura!G7,0,($O$1-1)*12) -> 9.2 | H14: =OFFSET(Estructura!H7,0,($O$1-1)*12) -> 15.5 | I14: =OFFSET(Estructura!I7,0,($O$1-1)*12) -> - | J14: =OFFSET(Estructura!J7,0,($O$1-1)*12) -> - | K14: =OFFSET(Estructura!K7,0,($O$1-1)*12) -> - | L14: =OFFSET(Estructura!L7,0,($O$1-1)*12) -> - | M14: =OFFSET(Estructura!M7,0,($O$1-1)*12) -> - | N14: =OFFSET(Estructura!N7,0,($O$1-1)*12) -> - | O14: =OFFSET(Estructura!C82,0,($O$1-1)) -> 10
B15: Eólica | C15: =OFFSET(Estructura!C8,0,($O$1-1)*12) -> 20.2 | D15: =OFFSET(Estructura!D8,0,($O$1-1)*12) -> 25.1 | E15: =OFFSET(Estructura!E8,0,($O$1-1)*12) -> 23.6 | F15: =OFFSET(Estructura!F8,0,($O$1-1)*12) -> 23.3 | G15: =OFFSET(Estructura!G8,0,($O$1-1)*12) -> 18 | H15: =OFFSET(Estructura!H8,0,($O$1-1)*12) -> 15.2 | I15: =OFFSET(Estructura!I8,0,($O$1-1)*12) -> - | J15: =OFFSET(Estructura!J8,0,($O$1-1)*12) -> - | K15: =OFFSET(Estructura!K8,0,($O$1-1)*12) -> - | L15: =OFFSET(Estructura!L8,0,($O$1-1)*12) -> - | M15: =OFFSET(Estructura!M8,0,($O$1-1)*12) -> - | N15: =OFFSET(Estructura!N8,0,($O$1-1)*12) -> - | O15: =OFFSET(Estructura!C83,0,($O$1-1)) -> 20.8
B16: Solar fotovoltaica | C16: =OFFSET(Estructura!C9,0,($O$1-1)*12) -> 1.9 | D16: =OFFSET(Estructura!D9,0,($O$1-1)*12) -> 2.1 | E16: =OFFSET(Estructura!E9,0,($O$1-1)*12) -> 3.4 | F16: =OFFSET(Estructura!F9,0,($O$1-1)*12) -> 4.4 | G16: =OFFSET(Estructura!G9,0,($O$1-1)*12) -> 4.3 | H16: =OFFSET(Estructura!H9,0,($O$1-1)*12) -> 4.1 | I16: =OFFSET(Estructura!I9,0,($O$1-1)*12) -> - | J16: =OFFSET(Estructura!J9,0,($O$1-1)*12) -> - | K16: =OFFSET(Estructura!K9,0,($O$1-1)*12) -> - | L16: =OFFSET(Estructura!L9,0,($O$1-1)*12) -> - | M16: =OFFSET(Estructura!M9,0,($O$1-1)*12) -> - | N16: =OFFSET(Estructura!N9,0,($O$1-1)*12) -> - | O16: =OFFSET(Estructura!C84,0,($O$1-1)) -> 3.3
B17: Solar térmica | C17: =OFFSET(Estructura!C10,0,($O$1-1)*12) -> 0.6 | D17: =OFFSET(Estructura!D10,0,($O$1-1)*12) -> 0.5 | E17: =OFFSET(Estructura!E10,0,($O$1-1)*12) -> 1.7 | F17: =OFFSET(Estructura!F10,0,($O$1-1)*12) -> 3 | G17: =OFFSET(Estructura!G10,0,($O$1-1)*12) -> 3.2 | H17: =OFFSET(Estructura!H10,0,($O$1-1)*12) -> 3.8 | I17: =OFFSET(Estructura!I10,0,($O$1-1)*12) -> - | J17: =OFFSET(Estructura!J10,0,($O$1-1)*12) -> - | K17: =OFFSET(Estructura!K10,0,($O$1-1)*12) -> - | L17: =OFFSET(Estructura!L10,0,($O$1-1)*12) -> - | M17: =OFFSET(Estructura!M10,0,($O$1-1)*12) -> - | N17: =OFFSET(Estructura!N10,0,($O$1-1)*12) -> - | O17: =OFFSET(Estructura!C85,0,($O$1-1)) -> 2.1
B18: Térmica renovable (3)/Otras renovables (4) | C18: =OFFSET(Estructura!C11,0,($O$1-1)*12) -> 1.4 | D18: =OFFSET(Estructura!D11,0,($O$1-1)*12) -> 1.5 | E18: =OFFSET(Estructura!E11,0,($O$1-1)*12) -> 1.4 | F18: =OFFSET(Estructura!F11,0,($O$1-1)*12) -> 1.3 | G18: =OFFSET(Estructura!G11,0,($O$1-1)*12) -> 1.6 | H18: =OFFSET(Estructura!H11,0,($O$1-1)*12) -> 1.5 | I18: =OFFSET(Estructura!I11,0,($O$1-1)*12) -> - | J18: =OFFSET(Estructura!J11,0,($O$1-1)*12) -> - | K18: =OFFSET(Estructura!K11,0,($O$1-1)*12) -> - | L18: =OFFSET(Estructura!L11,0,($O$1-1)*12) -> - | M18: =OFFSET(Estructura!M11,0,($O$1-1)*12) -> - | N18: =OFFSET(Estructura!N11,0,($O$1-1)*12) -> - | O18: =OFFSET(Estructura!C86,0,($O$1-1)) -> 1.4
B19: Cogeneración y resto (3)/Cogeneración | C19: =OFFSET(Estructura!C12,0,($O$1-1)*12) -> 10.2 | D19: =OFFSET(Estructura!D12,0,($O$1-1)*12) -> 11.1 | E19: =OFFSET(Estructura!E12,0,($O$1-1)*12) -> 12 | F19: =OFFSET(Estructura!F12,0,($O$1-1)*12) -> 12.3 | G19: =OFFSET(Estructura!G12,0,($O$1-1)*12) -> 12.2 | H19: =OFFSET(Estructura!H12,0,($O$1-1)*12) -> 10.8 | I19: =OFFSET(Estructura!I12,0,($O$1-1)*12) -> - | J19: =OFFSET(Estructura!J12,0,($O$1-1)*12) -> - | K19: =OFFSET(Estructura!K12,0,($O$1-1)*12) -> - | L19: =OFFSET(Estructura!L12,0,($O$1-1)*12) -> - | M19: =OFFSET(Estructura!M12,0,($O$1-1)*12) -> - | N19: =OFFSET(Estructura!N12,0,($O$1-1)*12) -> - | O19: =OFFSET(Estructura!C87,0,($O$1-1)) -> 11.5
B20: Residuos (5) | C20: =OFFSET(Estructura!C13,0,($O$1-1)*12) -> 1.2 | D20: =OFFSET(Estructura!D13,0,($O$1-1)*12) -> 1.3 | E20: =OFFSET(Estructura!E13,0,($O$1-1)*12) -> 1.4 | F20: =OFFSET(Estructura!F13,0,($O$1-1)*12) -> 1.2 | G20: =OFFSET(Estructura!G13,0,($O$1-1)*12) -> 1.1 | H20: =OFFSET(Estructura!H13,0,($O$1-1)*12) -> 1.4 | I20: =OFFSET(Estructura!I13,0,($O$1-1)*12) -> - | J20: =OFFSET(Estructura!J13,0,($O$1-1)*12) -> - | K20: =OFFSET(Estructura!K13,0,($O$1-1)*12) -> - | L20: =OFFSET(Estructura!L13,0,($O$1-1)*12) -> - | M20: =OFFSET(Estructura!M13,0,($O$1-1)*12) -> - | N20: =OFFSET(Estructura!N13,0,($O$1-1)*12) -> - | O20: =OFFSET(Estructura!C88,0,($O$1-1)) -> 1.2
B21: Generación renovable (6) | C21: =OFFSET(Estructura!C14,0,($O$1-1)*12) -> 32.9 | D21: =OFFSET(Estructura!D14,0,($O$1-1)*12) -> 38.8 | E21: =OFFSET(Estructura!E14,0,($O$1-1)*12) -> 44 | F21: =OFFSET(Estructura!F14,0,($O$1-1)*12) -> 41.7 | G21: =OFFSET(Estructura!G14,0,($O$1-1)*12) -> 37.4 | H21: =OFFSET(Estructura!H14,0,($O$1-1)*12) -> 32.4 | I21: =OFFSET(Estructura!I14,0,($O$1-1)*12) -> - | J21: =OFFSET(Estructura!J14,0,($O$1-1)*12) -> - | K21: =OFFSET(Estructura!K14,0,($O$1-1)*12) -> - | L21: =OFFSET(Estructura!L14,0,($O$1-1)*12) -> - | M21: =OFFSET(Estructura!M14,0,($O$1-1)*12) -> - | N21: =OFFSET(Estructura!N14,0,($O$1-1)*12) -> - | O21: =OFFSET(Estructura!C89,0,($O$1-1)) -> 37.6
B22: Generación no renovable | C22: =OFFSET(Estructura!C15,0,($O$1-1)*12) -> 67.1 | D22: =OFFSET(Estructura!D15,0,($O$1-1)*12) -> 61.2 | E22: =OFFSET(Estructura!E15,0,($O$1-1)*12) -> 56 | F22: =OFFSET(Estructura!F15,0,($O$1-1)*12) -> 58.3 | G22: =OFFSET(Estructura!G15,0,($O$1-1)*12) -> 62.6 | H22: =OFFSET(Estructura!H15,0,($O$1-1)*12) -> 67.6 | I22: =OFFSET(Estructura!I15,0,($O$1-1)*12) -> - | J22: =OFFSET(Estructura!J15,0,($O$1-1)*12) -> - | K22: =OFFSET(Estructura!K15,0,($O$1-1)*12) -> - | L22: =OFFSET(Estructura!L15,0,($O$1-1)*12) -> - | M22: =OFFSET(Estructura!M15,0,($O$1-1)*12) -> - | N22: =OFFSET(Estructura!N15,0,($O$1-1)*12) -> - | O22: =OFFSET(Estructura!C90,0,($O$1-1)) -> 62.4
B23: (1) Asignación de unidades de producción según combustible principal.
B24: (2) Incluye funcionamiento en ciclo abierto.
B25: (3) Incluye residuos hasta el 31/12/2014.
B26: (4) Otras renovables incluyen biogás, biomasa, hidráulica marina y geotérmica.
B27: (5) Generación incluida en otras renovables y cogeneración hasta el 31/12/2014. El 50% de la generación procedente de residuos sólidos urbanos se considera renovable.
B28: (6) Incluye hidráulica, eólica, solar fotovoltaica, solar térmica y térmica renovable/otras renovables y el 50% de los residuos sólidos urbanos. No incluye la generación bombeo.

Sheet Estructura anual Peninsular
J1: 4
H4: Sistema eléctrico
H5: Horizonte temporal
H6: Periodo
C8: =OFFSET(Estructura!C77,0,($J$1-1)*8) -> 2014 | D8: =OFFSET(Estructura!D77,0,($J$1-1)*8) -> 2015 | E8: =OFFSET(Estructura!E77,0,($J$1-1)*8) -> 2016 | F8: =OFFSET(Estructura!F77,0,($J$1-1)*8) -> 2017 | G8: =OFFSET(Estructura!G77,0,($J$1-1)*8) -> 2018 | H8: =OFFSET(Estructura!H77,0,($J$1-1)*8) -> 2019 | I8: =OFFSET(Estructura!I77,0,($J$1-1)*8) -> 2020 | J8: =OFFSET(Estructura!J77,0,($J$1-1)*8) -> 2021
B10: Hidráulica | C10: =OFFSET(Estructura!C78,0,($J$1-1)*8) -> 15.5 | D10: =OFFSET(Estructura!D78,0,($J$1-1)*8) -> 11.2 | E10: =OFFSET(Estructura!E78,0,($J$1-1)*8) -> 14.6 | F10: =OFFSET(Estructura!F78,0,($J$1-1)*8) -> 9.7 | G10: =OFFSET(Estructura!G78,0,($J$1-1)*8) -> - | H10: =OFFSET(Estructura!H78,0,($J$1-1)*8) -> - | I10: =OFFSET(Estructura!I78,0,($J$1-1)*8) -> - | J10: =OFFSET(Estructura!J78,0,($J$1-1)*8) -> -
B11: Nuclear | C11: =OFFSET(Estructura!C79,0,($J$1-1)*8) -> 22 | D11: =OFFSET(Estructura!D79,0,($J$1-1)*8) -> 21.8 | E11: =OFFSET(Estructura!E79,0,($J$1-1)*8) -> 22.9 | F11: =OFFSET(Estructura!F79,0,($J$1-1)*8) -> 23.5 | G11: =OFFSET(Estructura!G79,0,($J$1-1)*8) -> - | H11: =OFFSET(Estructura!H79,0,($J$1-1)*8) -> - | I11: =OFFSET(Estructura!I79,0,($J$1-1)*8) -> - | J11: =OFFSET(Estructura!J79,0,($J$1-1)*8) -> -
B12: Carbón | C12: =OFFSET(Estructura!C80,0,($J$1-1)*8) -> 16.5 | D12: =OFFSET(Estructura!D80,0,($J$1-1)*8) -> 20.3 | E12: =OFFSET(Estructura!E80,0,($J$1-1)*8) -> 14.4 | F12: =OFFSET(Estructura!F80,0,($J$1-1)*8) -> 16.5 | G12: =OFFSET(Estructura!G80,0,($J$1-1)*8) -> - | H12: =OFFSET(Estructura!H80,0,($J$1-1)*8) -> - | I12: =OFFSET(Estructura!I80,0,($J$1-1)*8) -> - | J12: =OFFSET(Estructura!J80,0,($J$1-1)*8) -> -
B13: Fuel + Gas | C13: =OFFSET(Estructura!C81,0,($J$1-1)*8) -> - | D13: =OFFSET(Estructura!D81,0,($J$1-1)*8) -> - | E13: =OFFSET(Estructura!E81,0,($J$1-1)*8) -> - | F13: =OFFSET(Estructura!F81,0,($J$1-1)*8) -> - | G13: =OFFSET(Estructura!G81,0,($J$1-1)*8) -> - | H13: =OFFSET(Estructura!H81,0,($J$1-1)*8) -> - | I13: =OFFSET(Estructura!I81,0,($J$1-1)*8) -> - | J13: =OFFSET(Estructura!J81,0,($J$1-1)*8) -> -
B14: Ciclo combinado (2) | C14: =OFFSET(Estructura!C82,0,($J$1-1)*8) -> 8.5 | D14: =OFFSET(Estructura!D82,0,($J$1-1)*8) -> 10.1 | E14: =OFFSET(Estructura!E82,0,($J$1-1)*8) -> 10.5 | F14: =OFFSET(Estructura!F82,0,($J$1-1)*8) -> 10 | G14: =OFFSET(Estructura!G82,0,($J$1-1)*8) -> - | H14: =OFFSET(Estructura!H82,0,($J$1-1)*8) -> - | I14: =OFFSET(Estructura!I82,0,($J$1-1)*8) -> - | J14: =OFFSET(Estructura!J82,0,($J$1-1)*8) -> -
B15: Eólica | C15: =OFFSET(Estructura!C83,0,($J$1-1)*8) -> 20.3 | D15: =OFFSET(Estructura!D83,0,($J$1-1)*8) -> 19 | E15: =OFFSET(Estructura!E83,0,($J$1-1)*8) -> 19.3 | F15: =OFFSET(Estructura!F83,0,($J$1-1)*8) -> 20.8 | G15: =OFFSET(Estructura!G83,0,($J$1-1)*8) -> - | H15: =OFFSET(Estructura!H83,0,($J$1-1)*8) -> - | I15: =OFFSET(Estructura!I83,0,($J$1-1)*8) -> - | J15: =OFFSET(Estructura!J83,0,($J$1-1)*8) -> -
B16: Solar fotovoltaica | C16: =OFFSET(Estructura!C84,0,($J$1-1)*8) -> 3.1 | D16: =OFFSET(Estructura!D84,0,($J$1-1)*8) -> 3.1 | E16: =OFFSET(Estructura!E84,0,($J$1-1)*8) -> 3.1 | F16: =OFFSET(Estructura!F84,0,($J$1-1)*8) -> 3.3 | G16: =OFFSET(Estructura!G84,0,($J$1-1)*8) -> - | H16: =OFFSET(Estructura!H84,0,($J$1-1)*8) -> - | I16: =OFFSET(Estructura!I84,0,($J$1-1)*8) -> - | J16: =OFFSET(Estructura!J84,0,($J$1-1)*8) -> -
B17: Solar térmica | C17: =OFFSET(Estructura!C85,0,($J$1-1)*8) -> 2 | D17: =OFFSET(Estructura!D85,0,($J$1-1)*8) -> 2 | E17: =OFFSET(Estructura!E85,0,($J$1-1)*8) -> 2.1 | F17: =OFFSET(Estructura!F85,0,($J$1-1)*8) -> 2.1 | G17: =OFFSET(Estructura!G85,0,($J$1-1)*8) -> - | H17: =OFFSET(Estructura!H85,0,($J$1-1)*8) -> - | I17: =OFFSET(Estructura!I85,0,($J$1-1)*8) -> - | J17: =OFFSET(Estructura!J85,0,($J$1-1)*8) -> -
B18: Térmica renovable (3)/Otras renovables (4) | C18: =OFFSET(Estructura!C86,0,($J$1-1)*8) -> 1.9 | D18: =OFFSET(Estructura!D86,0,($J$1-1)*8) -> 1.3 | E18: =OFFSET(Estructura!E86,0,($J$1-1)*8) -> 1.4 | F18: =OFFSET(Estructura!F86,0,($J$1-1)*8) -> 1.4 | G18: =OFFSET(Estructura!G86,0,($J$1-1)*8) -> - | H18: =OFFSET(Estructura!H86,0,($J$1-1)*8) -> - | I18: =OFFSET(Estructura!I86,0,($J$1-1)*8) -> - | J18: =OFFSET(Estructura!J86,0,($J$1-1)*8) -> -
B19: Cogeneración y resto (3)/Cogeneración | C19: =OFFSET(Estructura!C87,0,($J$1-1)*8) -> 10.2 | D19: =OFFSET(Estructura!D87,0,($J$1-1)*8) -> 10 | E19: =OFFSET(Estructura!E87,0,($J$1-1)*8) -> 10.4 | F19: =OFFSET(Estructura!F87,0,($J$1-1)*8) -> 11.5 | G19: =OFFSET(Estructura!G87,0,($J$1-1)*8) -> - | H19: =OFFSET(Estructura!H87,0,($J$1-1)*8) -> - | I19: =OFFSET(Estructura!I87,0,($J$1-1)*8) -> - | J19: =OFFSET(Estructura!J87,0,($J$1-1)*8) -> -
B20: Residuos (5) | C20: =OFFSET(Estructura!C88,0,($J$1-1)*8) -> - | D20: =OFFSET(Estructura!D88,0,($J$1-1)*8) -> 1.2 | E20: =OFFSET(Estructura!E88,0,($J$1-1)*8) -> 1.3 | F20: =OFFSET(Estructura!F88,0,($J$1-1)*8) -> 1.2 | G20: =OFFSET(Estructura!G88,0,($J$1-1)*8) -> - | H20: =OFFSET(Estructura!H88,0,($J$1-1)*8) -> - | I20: =OFFSET(Estructura!I88,0,($J$1-1)*8) -> - | J20: =OFFSET(Estructura!J88,0,($J$1-1)*8) -> -
B21: Generación renovable (6) | C21: =OFFSET(Estructura!C89,0,($J$1-1)*8) -> 42.8 | D21: =OFFSET(Estructura!D89,0,($J$1-1)*8) -> 36.9 | E21: =OFFSET(Estructura!E89,0,($J$1-1)*8) -> 40.8 | F21: =OFFSET(Estructura!F89,0,($J$1-1)*8) -> 37.6 | G21: =OFFSET(Estructura!G89,0,($J$1-1)*8) -> - | H21: =OFFSET(Estructura!H89,0,($J$1-1)*8) -> - | I21: =OFFSET(Estructura!I89,0,($J$1-1)*8) -> - | J21: =OFFSET(Estructura!J89,0,($J$1-1)*8) -> -
B22: Generación no renovable | C22: =OFFSET(Estructura!C90,0,($J$1-1)*8) -> 57.2 | D22: =OFFSET(Estructura!D90,0,($J$1-1)*8) -> 63.1 | E22: =OFFSET(Estructura!E90,0,($J$1-1)*8) -> 59.2 | F22: =OFFSET(Estructura!F90,0,($J$1-1)*8) -> 62.4 | G22: =OFFSET(Estructura!G90,0,($J$1-1)*8) -> - | H22: =OFFSET(Estructura!H90,0,($J$1-1)*8) -> - | I22: =OFFSET(Estructura!I90,0,($J$1-1)*8) -> - | J22: =OFFSET(Estructura!J90,0,($J$1-1)*8) -> -
B23: (1) Asignación de unidades de producción según combustible principal.
B24: (2) Incluye funcionamiento en ciclo abierto.
B25: (3) Incluye residuos hasta el 31/12/2014.
B26: (4) Otras renovables incluyen biogás, biomasa, hidráulica marina y geotérmica.
B27: (5) Generación incluida en otras renovables y cogeneración hasta el 31/12/2014. El 50% de la generación procedente de residuos sólidos urbanos se considera renovable.
B28: (6) Incluye hidráulica, eólica, solar fotovoltaica, solar térmica y térmica renovable/otras renovables y el 50% de los residuos sólidos urbanos. No incluye la generación bombeo.
B29: =IF(J1<4,"",IF(MONTH(FACT)=1,"",CONCATENATE(" Para el año ",YEAR(FACT)," valores acumulados hasta ",TEXT(FACT-30,"mmmm")," de ",YEAR(FACT),"."))) -> Para el año 2017 valores acumulados hasta junio de 2017.

Sheet Estructura mensual Baleares
O1: 12
M4: Sistema eléctrico
M5: Horizonte temporal
M6: Periodo
C8: Ene. | D8: Feb. | E8: Mar. | F8: Abr. | G8: May. | H8: Jun. | I8: Jul. | J8: Ago. | K8: Sep. | L8: Oct. | M8: Nov. | N8: Dic. | O8: =OFFSET(Año!B18,($O$1-1),0) -> 2017
B10: Carbón | C10: =OFFSET(Estructura!C18,0,($O$1-1)*12) -> 58 | D10: =OFFSET(Estructura!D18,0,($O$1-1)*12) -> 57 | E10: =OFFSET(Estructura!E18,0,($O$1-1)*12) -> 53.5 | F10: =OFFSET(Estructura!F18,0,($O$1-1)*12) -> 52.9 | G10: =OFFSET(Estructura!G18,0,($O$1-1)*12) -> 54.9 | H10: =OFFSET(Estructura!H18,0,($O$1-1)*12) -> 58.4 | I10: =OFFSET(Estructura!I18,0,($O$1-1)*12) -> - | J10: =OFFSET(Estructura!J18,0,($O$1-1)*12) -> - | K10: =OFFSET(Estructura!K18,0,($O$1-1)*12) -> - | L10: =OFFSET(Estructura!L18,0,($O$1-1)*12) -> - | M10: =OFFSET(Estructura!M18,0,($O$1-1)*12) -> - | N10: =OFFSET(Estructura!N18,0,($O$1-1)*12) -> - | O10: =OFFSET(Estructura!C93,0,($O$1-1)) -> 56
B11: Motores diesel | C11: =OFFSET(Estructura!C19,0,($O$1-1)*12) -> 22.1 | D11: =OFFSET(Estructura!D19,0,($O$1-1)*12) -> 21.4 | E11: =OFFSET(Estructura!E19,0,($O$1-1)*12) -> 18.8 | F11: =OFFSET(Estructura!F19,0,($O$1-1)*12) -> 20.3 | G11: =OFFSET(Estructura!G19,0,($O$1-1)*12) -> 21.6 | H11: =OFFSET(Estructura!H19,0,($O$1-1)*12) -> 21.5 | I11: =OFFSET(Estructura!I19,0,($O$1-1)*12) -> - | J11: =OFFSET(Estructura!J19,0,($O$1-1)*12) -> - | K11: =OFFSET(Estructura!K19,0,($O$1-1)*12) -> - | L11: =OFFSET(Estructura!L19,0,($O$1-1)*12) -> - | M11: =OFFSET(Estructura!M19,0,($O$1-1)*12) -> - | N11: =OFFSET(Estructura!N19,0,($O$1-1)*12) -> - | O11: =OFFSET(Estructura!C94,0,($O$1-1)) -> 21
B12: Turbina de gas | C12: =OFFSET(Estructura!C20,0,($O$1-1)*12) -> 3.5 | D12: =OFFSET(Estructura!D20,0,($O$1-1)*12) -> 3.2 | E12: =OFFSET(Estructura!E20,0,($O$1-1)*12) -> 6.7 | F12: =OFFSET(Estructura!F20,0,($O$1-1)*12) -> 4 | G12: =OFFSET(Estructura!G20,0,($O$1-1)*12) -> 7.2 | H12: =OFFSET(Estructura!H20,0,($O$1-1)*12) -> 7.5 | I12: =OFFSET(Estructura!I20,0,($O$1-1)*12) -> - | J12: =OFFSET(Estructura!J20,0,($O$1-1)*12) -> - | K12: =OFFSET(Estructura!K20,0,($O$1-1)*12) -> - | L12: =OFFSET(Estructura!L20,0,($O$1-1)*12) -> - | M12: =OFFSET(Estructura!M20,0,($O$1-1)*12) -> - | N12: =OFFSET(Estructura!N20,0,($O$1-1)*12) -> - | O12: =OFFSET(Estructura!C95,0,($O$1-1)) -> 5.5
B13: Ciclo combinado (2) | C13: =OFFSET(Estructura!C21,0,($O$1-1)*12) -> 10 | D13: =OFFSET(Estructura!D21,0,($O$1-1)*12) -> 10.7 | E13: =OFFSET(Estructura!E21,0,($O$1-1)*12) -> 9.9 | F13: =OFFSET(Estructura!F21,0,($O$1-1)*12) -> 10.4 | G13: =OFFSET(Estructura!G21,0,($O$1-1)*12) -> 6.6 | H13: =OFFSET(Estructura!H21,0,($O$1-1)*12) -> 2.7 | I13: =OFFSET(Estructura!I21,0,($O$1-1)*12) -> - | J13: =OFFSET(Estructura!J21,0,($O$1-1)*12) -> - | K13: =OFFSET(Estructura!K21,0,($O$1-1)*12) -> - | L13: =OFFSET(Estructura!L21,0,($O$1-1)*12) -> - | M13: =OFFSET(Estructura!M21,0,($O$1-1)*12) -> - | N13: =OFFSET(Estructura!N21,0,($O$1-1)*12) -> - | O13: =OFFSET(Estructura!C96,0,($O$1-1)) -> 8
B14: Generación auxiliar (3) | C14: =OFFSET(Estructura!C22,0,($O$1-1)*12) -> - | D14: =OFFSET(Estructura!D22,0,($O$1-1)*12) -> - | E14: =OFFSET(Estructura!E22,0,($O$1-1)*12) -> - | F14: =OFFSET(Estructura!F22,0,($O$1-1)*12) -> - | G14: =OFFSET(Estructura!G22,0,($O$1-1)*12) -> 0.3 | H14: =OFFSET(Estructura!H22,0,($O$1-1)*12) -> 0.4 | I14: =OFFSET(Estructura!I22,0,($O$1-1)*12) -> - | J14: =OFFSET(Estructura!J22,0,($O$1-1)*12) -> - | K14: =OFFSET(Estructura!K22,0,($O$1-1)*12) -> - | L14: =OFFSET(Estructura!L22,0,($O$1-1)*12) -> - | M14: =OFFSET(Estructura!M22,0,($O$1-1)*12) -> - | N14: =OFFSET(Estructura!N22,0,($O$1-1)*12) -> - | O14: =OFFSET(Estructura!C97,0,($O$1-1)) -> 0.1
B15: Eólica | C15: =OFFSET(Estructura!C23,0,($O$1-1)*12) -> 0.1 | D15: =OFFSET(Estructura!D23,0,($O$1-1)*12) -> 0.1 | E15: =OFFSET(Estructura!E23,0,($O$1-1)*12) -> 0.1 | F15: =OFFSET(Estructura!F23,0,($O$1-1)*12) -> 0.1 | G15: =OFFSET(Estructura!G23,0,($O$1-1)*12) -> 0 | H15: =OFFSET(Estructura!H23,0,($O$1-1)*12) -> 0 | I15: =OFFSET(Estructura!I23,0,($O$1-1)*12) -> - | J15: =OFFSET(Estructura!J23,0,($O$1-1)*12) -> - | K15: =OFFSET(Estructura!K23,0,($O$1-1)*12) -> - | L15: =OFFSET(Estructura!L23,0,($O$1-1)*12) -> - | M15: =OFFSET(Estructura!M23,0,($O$1-1)*12) -> - | N15: =OFFSET(Estructura!N23,0,($O$1-1)*12) -> - | O15: =OFFSET(Estructura!C98,0,($O$1-1)) -> 0.1
B16: Solar fotovoltaica | C16: =OFFSET(Estructura!C24,0,($O$1-1)*12) -> 1.5 | D16: =OFFSET(Estructura!D24,0,($O$1-1)*12) -> 2.2 | E16: =OFFSET(Estructura!E24,0,($O$1-1)*12) -> 3.6 | F16: =OFFSET(Estructura!F24,0,($O$1-1)*12) -> 3.5 | G16: =OFFSET(Estructura!G24,0,($O$1-1)*12) -> 3.3 | H16: =OFFSET(Estructura!H24,0,($O$1-1)*12) -> 2.7 | I16: =OFFSET(Estructura!I24,0,($O$1-1)*12) -> - | J16: =OFFSET(Estructura!J24,0,($O$1-1)*12) -> - | K16: =OFFSET(Estructura!K24,0,($O$1-1)*12) -> - | L16: =OFFSET(Estructura!L24,0,($O$1-1)*12) -> - | M16: =OFFSET(Estructura!M24,0,($O$1-1)*12) -> - | N16: =OFFSET(Estructura!N24,0,($O$1-1)*12) -> - | O16: =OFFSET(Estructura!C99,0,($O$1-1)) -> 2.8
B17: Térmica renovable (4)/Otras renovables (5) | C17: =OFFSET(Estructura!C25,0,($O$1-1)*12) -> 0 | D17: =OFFSET(Estructura!D25,0,($O$1-1)*12) -> 0.1 | E17: =OFFSET(Estructura!E25,0,($O$1-1)*12) -> 0 | F17: =OFFSET(Estructura!F25,0,($O$1-1)*12) -> 0.1 | G17: =OFFSET(Estructura!G25,0,($O$1-1)*12) -> 0.1 | H17: =OFFSET(Estructura!H25,0,($O$1-1)*12) -> 0 | I17: =OFFSET(Estructura!I25,0,($O$1-1)*12) -> - | J17: =OFFSET(Estructura!J25,0,($O$1-1)*12) -> - | K17: =OFFSET(Estructura!K25,0,($O$1-1)*12) -> - | L17: =OFFSET(Estructura!L25,0,($O$1-1)*12) -> - | M17: =OFFSET(Estructura!M25,0,($O$1-1)*12) -> - | N17: =OFFSET(Estructura!N25,0,($O$1-1)*12) -> - | O17: =OFFSET(Estructura!C100,0,($O$1-1)) -> 0
B18: Cogeneración y resto (4)/Cogeneración | C18: =OFFSET(Estructura!C26,0,($O$1-1)*12) -> 0.8 | D18: =OFFSET(Estructura!D26,0,($O$1-1)*12) -> 0.9 | E18: =OFFSET(Estructura!E26,0,($O$1-1)*12) -> 1.1 | F18: =OFFSET(Estructura!F26,0,($O$1-1)*12) -> 0.5 | G18: =OFFSET(Estructura!G26,0,($O$1-1)*12) -> 0.5 | H18: =OFFSET(Estructura!H26,0,($O$1-1)*12) -> 0.6 | I18: =OFFSET(Estructura!I26,0,($O$1-1)*12) -> - | J18: =OFFSET(Estructura!J26,0,($O$1-1)*12) -> - | K18: =OFFSET(Estructura!K26,0,($O$1-1)*12) -> - | L18: =OFFSET(Estructura!L26,0,($O$1-1)*12) -> - | M18: =OFFSET(Estructura!M26,0,($O$1-1)*12) -> - | N18: =OFFSET(Estructura!N26,0,($O$1-1)*12) -> - | O18: =OFFSET(Estructura!C101,0,($O$1-1)) -> 0.7
B19: Residuos (6) | C19: =OFFSET(Estructura!C27,0,($O$1-1)*12) -> 4 | D19: =OFFSET(Estructura!D27,0,($O$1-1)*12) -> 4.4 | E19: =OFFSET(Estructura!E27,0,($O$1-1)*12) -> 6.3 | F19: =OFFSET(Estructura!F27,0,($O$1-1)*12) -> 8.2 | G19: =OFFSET(Estructura!G27,0,($O$1-1)*12) -> 5.5 | H19: =OFFSET(Estructura!H27,0,($O$1-1)*12) -> 6.2 | I19: =OFFSET(Estructura!I27,0,($O$1-1)*12) -> - | J19: =OFFSET(Estructura!J27,0,($O$1-1)*12) -> - | K19: =OFFSET(Estructura!K27,0,($O$1-1)*12) -> - | L19: =OFFSET(Estructura!L27,0,($O$1-1)*12) -> - | M19: =OFFSET(Estructura!M27,0,($O$1-1)*12) -> - | N19: =OFFSET(Estructura!N27,0,($O$1-1)*12) -> - | O19: =OFFSET(Estructura!C102,0,($O$1-1)) -> 5.8
B20: Generación renovable (7) | C20: =OFFSET(Estructura!C28,0,($O$1-1)*12) -> 3.6 | D20: =OFFSET(Estructura!D28,0,($O$1-1)*12) -> 4.6 | E20: =OFFSET(Estructura!E28,0,($O$1-1)*12) -> 6.9 | F20: =OFFSET(Estructura!F28,0,($O$1-1)*12) -> 7.8 | G20: =OFFSET(Estructura!G28,0,($O$1-1)*12) -> 6.1 | H20: =OFFSET(Estructura!H28,0,($O$1-1)*12) -> 5.8 | I20: =OFFSET(Estructura!I28,0,($O$1-1)*12) -> - | J20: =OFFSET(Estructura!J28,0,($O$1-1)*12) -> - | K20: =OFFSET(Estructura!K28,0,($O$1-1)*12) -> - | L20: =OFFSET(Estructura!L28,0,($O$1-1)*12) -> - | M20: =OFFSET(Estructura!M28,0,($O$1-1)*12) -> - | N20: =OFFSET(Estructura!N28,0,($O$1-1)*12) -> - | O20: =OFFSET(Estructura!C103,0,($O$1-1)) -> 5.8
B21: Generación no renovable | C21: =OFFSET(Estructura!C29,0,($O$1-1)*12) -> 96.4 | D21: =OFFSET(Estructura!D29,0,($O$1-1)*12) -> 95.4 | E21: =OFFSET(Estructura!E29,0,($O$1-1)*12) -> 93.1 | F21: =OFFSET(Estructura!F29,0,($O$1-1)*12) -> 92.2 | G21: =OFFSET(Estructura!G29,0,($O$1-1)*12) -> 93.9 | H21: =OFFSET(Estructura!H29,0,($O$1-1)*12) -> 94.2 | I21: =OFFSET(Estructura!I29,0,($O$1-1)*12) -> - | J21: =OFFSET(Estructura!J29,0,($O$1-1)*12) -> - | K21: =OFFSET(Estructura!K29,0,($O$1-1)*12) -> - | L21: =OFFSET(Estructura!L29,0,($O$1-1)*12) -> - | M21: =OFFSET(Estructura!M29,0,($O$1-1)*12) -> - | N21: =OFFSET(Estructura!N29,0,($O$1-1)*12) -> - | O21: =OFFSET(Estructura!C104,0,($O$1-1)) -> 94.2
B22: (1) Asignación de unidades de producción según combustible principal.
B23: (2) Incluye funcionamiento en ciclo abierto.
B24: (3) Grupos de emergencia que se instalan de forma transitoria en determinadas zonas para cubrir un déficit de generación.
B25: (4) Incluye residuos hasta el 31/12/2014.
B26: (5) Otras renovables incluyen biogás y biomasa.
B27: (6) Generación incluida en otras renovables y cogeneración hasta el 31/12/2014. El 50% de la generación procedente de residuos sólidos urbanos se considera renovable.
B28: (7) Incluye eólica, solar fotovoltaica y térmica renovable/otras renovables y el 50% de los residuos sólidos urbanos.

Sheet Estructura anual Baleares
J1: 2
H4: Sistema eléctrico
H5: Horizonte temporal
H6: Periodo
C8: =OFFSET(Estructura!C92,0,($J$1-1)*8) -> 2014 | D8: =OFFSET(Estructura!D92,0,($J$1-1)*8) -> 2015 | E8: =OFFSET(Estructura!E92,0,($J$1-1)*8) -> 2016 | F8: =OFFSET(Estructura!F92,0,($J$1-1)*8) -> 2017 | G8: =OFFSET(Estructura!G92,0,($J$1-1)*8) -> 2018 | H8: =OFFSET(Estructura!H92,0,($J$1-1)*8) -> 2019 | I8: =OFFSET(Estructura!I92,0,($J$1-1)*8) -> 2020 | J8: =OFFSET(Estructura!J92,0,($J$1-1)*8) -> 2021
B10: Carbón | C10: =OFFSET(Estructura!C93,0,($J$1-1)*8) -> 50.9 | D10: =OFFSET(Estructura!D93,0,($J$1-1)*8) -> 41.9 | E10: =OFFSET(Estructura!E93,0,($J$1-1)*8) -> 50.4 | F10: =OFFSET(Estructura!F93,0,($J$1-1)*8) -> 56 | G10: =OFFSET(Estructura!G93,0,($J$1-1)*8) -> - | H10: =OFFSET(Estructura!H93,0,($J$1-1)*8) -> - | I10: =OFFSET(Estructura!I93,0,($J$1-1)*8) -> - | J10: =OFFSET(Estructura!J93,0,($J$1-1)*8) -> -
B11: Motores diesel | C11: =OFFSET(Estructura!C94,0,($J$1-1)*8) -> 15.7 | D11: =OFFSET(Estructura!D94,0,($J$1-1)*8) -> 16.4 | E11: =OFFSET(Estructura!E94,0,($J$1-1)*8) -> 21 | F11: =OFFSET(Estructura!F94,0,($J$1-1)*8) -> 21 | G11: =OFFSET(Estructura!G94,0,($J$1-1)*8) -> - | H11: =OFFSET(Estructura!H94,0,($J$1-1)*8) -> - | I11: =OFFSET(Estructura!I94,0,($J$1-1)*8) -> - | J11: =OFFSET(Estructura!J94,0,($J$1-1)*8) -> -
B12: Turbina de gas | C12: =OFFSET(Estructura!C95,0,($J$1-1)*8) -> 13.6 | D12: =OFFSET(Estructura!D95,0,($J$1-1)*8) -> 13.1 | E12: =OFFSET(Estructura!E95,0,($J$1-1)*8) -> 7.4 | F12: =OFFSET(Estructura!F95,0,($J$1-1)*8) -> 5.5 | G12: =OFFSET(Estructura!G95,0,($J$1-1)*8) -> - | H12: =OFFSET(Estructura!H95,0,($J$1-1)*8) -> - | I12: =OFFSET(Estructura!I95,0,($J$1-1)*8) -> - | J12: =OFFSET(Estructura!J95,0,($J$1-1)*8) -> -
B13: Ciclo combinado (2) | C13: =OFFSET(Estructura!C96,0,($J$1-1)*8) -> 10 | D13: =OFFSET(Estructura!D96,0,($J$1-1)*8) -> 18.1 | E13: =OFFSET(Estructura!E96,0,($J$1-1)*8) -> 11.8 | F13: =OFFSET(Estructura!F96,0,($J$1-1)*8) -> 8 | G13: =OFFSET(Estructura!G96,0,($J$1-1)*8) -> - | H13: =OFFSET(Estructura!H96,0,($J$1-1)*8) -> - | I13: =OFFSET(Estructura!I96,0,($J$1-1)*8) -> - | J13: =OFFSET(Estructura!J96,0,($J$1-1)*8) -> -
B14: Generación auxiliar (3) | C14: =OFFSET(Estructura!C97,0,($J$1-1)*8) -> 0.2 | D14: =OFFSET(Estructura!D97,0,($J$1-1)*8) -> 0.2 | E14: =OFFSET(Estructura!E97,0,($J$1-1)*8) -> 0.2 | F14: =OFFSET(Estructura!F97,0,($J$1-1)*8) -> 0.1 | G14: =OFFSET(Estructura!G97,0,($J$1-1)*8) -> - | H14: =OFFSET(Estructura!H97,0,($J$1-1)*8) -> - | I14: =OFFSET(Estructura!I97,0,($J$1-1)*8) -> - | J14: =OFFSET(Estructura!J97,0,($J$1-1)*8) -> -
B15: Eólica | C15: =OFFSET(Estructura!C98,0,($J$1-1)*8) -> 0.1 | D15: =OFFSET(Estructura!D98,0,($J$1-1)*8) -> 0.1 | E15: =OFFSET(Estructura!E98,0,($J$1-1)*8) -> 0.1 | F15: =OFFSET(Estructura!F98,0,($J$1-1)*8) -> 0.1 | G15: =OFFSET(Estructura!G98,0,($J$1-1)*8) -> - | H15: =OFFSET(Estructura!H98,0,($J$1-1)*8) -> - | I15: =OFFSET(Estructura!I98,0,($J$1-1)*8) -> - | J15: =OFFSET(Estructura!J98,0,($J$1-1)*8) -> -
B16: Solar fotovoltaica | C16: =OFFSET(Estructura!C99,0,($J$1-1)*8) -> 2.9 | D16: =OFFSET(Estructura!D99,0,($J$1-1)*8) -> 2.7 | E16: =OFFSET(Estructura!E99,0,($J$1-1)*8) -> 2.6 | F16: =OFFSET(Estructura!F99,0,($J$1-1)*8) -> 2.8 | G16: =OFFSET(Estructura!G99,0,($J$1-1)*8) -> - | H16: =OFFSET(Estructura!H99,0,($J$1-1)*8) -> - | I16: =OFFSET(Estructura!I99,0,($J$1-1)*8) -> - | J16: =OFFSET(Estructura!J99,0,($J$1-1)*8) -> -
B17: Térmica renovable (4)/Otras renovables (5) | C17: =OFFSET(Estructura!C100,0,($J$1-1)*8) -> 0 | D17: =OFFSET(Estructura!D100,0,($J$1-1)*8) -> 0 | E17: =OFFSET(Estructura!E100,0,($J$1-1)*8) -> 0 | F17: =OFFSET(Estructura!F100,0,($J$1-1)*8) -> 0 | G17: =OFFSET(Estructura!G100,0,($J$1-1)*8) -> - | H17: =OFFSET(Estructura!H100,0,($J$1-1)*8) -> - | I17: =OFFSET(Estructura!I100,0,($J$1-1)*8) -> - | J17: =OFFSET(Estructura!J100,0,($J$1-1)*8) -> -
B18: Cogeneración y resto (4)/Cogeneración | C18: =OFFSET(Estructura!C101,0,($J$1-1)*8) -> 6.6 | D18: =OFFSET(Estructura!D101,0,($J$1-1)*8) -> 0.7 | E18: =OFFSET(Estructura!E101,0,($J$1-1)*8) -> 0.8 | F18: =OFFSET(Estructura!F101,0,($J$1-1)*8) -> 0.7 | G18: =OFFSET(Estructura!G101,0,($J$1-1)*8) -> - | H18: =OFFSET(Estructura!H101,0,($J$1-1)*8) -> - | I18: =OFFSET(Estructura!I101,0,($J$1-1)*8) -> - | J18: =OFFSET(Estructura!J101,0,($J$1-1)*8) -> -
B19: Residuos (6) | C19: =OFFSET(Estructura!C102,0,($J$1-1)*8) -> - | D19: =OFFSET(Estructura!D102,0,($J$1-1)*8) -> 6.8 | E19: =OFFSET(Estructura!E102,0,($J$1-1)*8) -> 5.7 | F19: =OFFSET(Estructura!F102,0,($J$1-1)*8) -> 5.8 | G19: =OFFSET(Estructura!G102,0,($J$1-1)*8) -> - | H19: =OFFSET(Estructura!H102,0,($J$1-1)*8) -> - | I19: =OFFSET(Estructura!I102,0,($J$1-1)*8) -> - | J19: =OFFSET(Estructura!J102,0,($J$1-1)*8) -> -
B20: Generación renovable (7) | C20: =OFFSET(Estructura!C103,0,($J$1-1)*8) -> 3 | D20: =OFFSET(Estructura!D103,0,($J$1-1)*8) -> 6.2 | E20: =OFFSET(Estructura!E103,0,($J$1-1)*8) -> 5.6 | F20: =OFFSET(Estructura!F103,0,($J$1-1)*8) -> 5.8 | G20: =OFFSET(Estructura!G103,0,($J$1-1)*8) -> - | H20: =OFFSET(Estructura!H103,0,($J$1-1)*8) -> - | I20: =OFFSET(Estructura!I103,0,($J$1-1)*8) -> - | J20: =OFFSET(Estructura!J103,0,($J$1-1)*8) -> -
B21: Generación no renovable | C21: =OFFSET(Estructura!C104,0,($J$1-1)*8) -> 97 | D21: =OFFSET(Estructura!D104,0,($J$1-1)*8) -> 93.8 | E21: =OFFSET(Estructura!E104,0,($J$1-1)*8) -> 94.4 | F21: =OFFSET(Estructura!F104,0,($J$1-1)*8) -> 94.2 | G21: =OFFSET(Estructura!G104,0,($J$1-1)*8) -> - | H21: =OFFSET(Estructura!H104,0,($J$1-1)*8) -> - | I21: =OFFSET(Estructura!I104,0,($J$1-1)*8) -> - | J21: =OFFSET(Estructura!J104,0,($J$1-1)*8) -> -
B22: (1) Asignación de unidades de producción según combustible principal.
B23: (2) Incluye funcionamiento en ciclo abierto.
B24: (3) Grupos de emergencia que se instalan de forma transitoria en determinadas zonas para cubrir un déficit de generación.
B25: (4) Incluye residuos hasta el 31/12/2014.
B26: (5) Otras renovables incluyen biogás y biomasa.
B27: (6) Generación incluida en otras renovables y cogeneración hasta el 31/12/2014. El 50% de la generación procedente de residuos sólidos urbanos se considera renovable.
B28: (7) Incluye eólica, solar fotovoltaica y térmica renovable/otras renovables y el 50% de los residuos sólidos urbanos.
B29: =IF(J1<2,"",IF(MONTH(FACT)=1,"",CONCATENATE(" Para el año ",YEAR(FACT)," valores acumulados hasta ",TEXT(FACT-30,"mmmm")," de ",YEAR(FACT),"."))) -> Para el año 2017 valores acumulados hasta junio de 2017.

Sheet Estructura mensual Canarias
O1: 12
M4: Sistema eléctrico
M5: Horizonte temporal
M6: Periodo
C8: Ene. | D8: Feb. | E8: Mar. | F8: Abr. | G8: May. | H8: Jun. | I8: Jul. | J8: Ago. | K8: Sep. | L8: Oct. | M8: Nov. | N8: Dic. | O8: =OFFSET(Año!B18,($O$1-1),0) -> 2017
B10: Hidráulica | C10: =OFFSET(Estructura!C32,0,($O$1-1)*12) -> 0 | D10: =OFFSET(Estructura!D32,0,($O$1-1)*12) -> 0 | E10: =OFFSET(Estructura!E32,0,($O$1-1)*12) -> 0 | F10: =OFFSET(Estructura!F32,0,($O$1-1)*12) -> 0 | G10: =OFFSET(Estructura!G32,0,($O$1-1)*12) -> 0 | H10: =OFFSET(Estructura!H32,0,($O$1-1)*12) -> - | I10: =OFFSET(Estructura!I32,0,($O$1-1)*12) -> - | J10: =OFFSET(Estructura!J32,0,($O$1-1)*12) -> - | K10: =OFFSET(Estructura!K32,0,($O$1-1)*12) -> - | L10: =OFFSET(Estructura!L32,0,($O$1-1)*12) -> - | M10: =OFFSET(Estructura!M32,0,($O$1-1)*12) -> - | N10: =OFFSET(Estructura!N32,0,($O$1-1)*12) -> - | O10: =OFFSET(Estructura!C107,0,($O$1-1)) -> 0
B11: Motores diesel | C11: =OFFSET(Estructura!C33,0,($O$1-1)*12) -> 25.2 | D11: =OFFSET(Estructura!D33,0,($O$1-1)*12) -> 25 | E11: =OFFSET(Estructura!E33,0,($O$1-1)*12) -> 27 | F11: =OFFSET(Estructura!F33,0,($O$1-1)*12) -> 29.7 | G11: =OFFSET(Estructura!G33,0,($O$1-1)*12) -> 29.3 | H11: =OFFSET(Estructura!H33,0,($O$1-1)*12) -> 24.8 | I11: =OFFSET(Estructura!I33,0,($O$1-1)*12) -> - | J11: =OFFSET(Estructura!J33,0,($O$1-1)*12) -> - | K11: =OFFSET(Estructura!K33,0,($O$1-1)*12) -> - | L11: =OFFSET(Estructura!L33,0,($O$1-1)*12) -> - | M11: =OFFSET(Estructura!M33,0,($O$1-1)*12) -> - | N11: =OFFSET(Estructura!N33,0,($O$1-1)*12) -> - | O11: =OFFSET(Estructura!C108,0,($O$1-1)) -> 26.8
B12: Turbina de gas | C12: =OFFSET(Estructura!C34,0,($O$1-1)*12) -> 4.2 | D12: =OFFSET(Estructura!D34,0,($O$1-1)*12) -> 3.5 | E12: =OFFSET(Estructura!E34,0,($O$1-1)*12) -> 2.6 | F12: =OFFSET(Estructura!F34,0,($O$1-1)*12) -> 1.8 | G12: =OFFSET(Estructura!G34,0,($O$1-1)*12) -> 2.3 | H12: =OFFSET(Estructura!H34,0,($O$1-1)*12) -> 2.7 | I12: =OFFSET(Estructura!I34,0,($O$1-1)*12) -> - | J12: =OFFSET(Estructura!J34,0,($O$1-1)*12) -> - | K12: =OFFSET(Estructura!K34,0,($O$1-1)*12) -> - | L12: =OFFSET(Estructura!L34,0,($O$1-1)*12) -> - | M12: =OFFSET(Estructura!M34,0,($O$1-1)*12) -> - | N12: =OFFSET(Estructura!N34,0,($O$1-1)*12) -> - | O12: =OFFSET(Estructura!C109,0,($O$1-1)) -> 2.8
B13: Turbina de vapor | C13: =OFFSET(Estructura!C35,0,($O$1-1)*12) -> 28.2 | D13: =OFFSET(Estructura!D35,0,($O$1-1)*12) -> 29.6 | E13: =OFFSET(Estructura!E35,0,($O$1-1)*12) -> 27.8 | F13: =OFFSET(Estructura!F35,0,($O$1-1)*12) -> 30.9 | G13: =OFFSET(Estructura!G35,0,($O$1-1)*12) -> 26.1 | H13: =OFFSET(Estructura!H35,0,($O$1-1)*12) -> 33.8 | I13: =OFFSET(Estructura!I35,0,($O$1-1)*12) -> - | J13: =OFFSET(Estructura!J35,0,($O$1-1)*12) -> - | K13: =OFFSET(Estructura!K35,0,($O$1-1)*12) -> - | L13: =OFFSET(Estructura!L35,0,($O$1-1)*12) -> - | M13: =OFFSET(Estructura!M35,0,($O$1-1)*12) -> - | N13: =OFFSET(Estructura!N35,0,($O$1-1)*12) -> - | O13: =OFFSET(Estructura!C110,0,($O$1-1)) -> 29.4
B14: Ciclo combinado (2) | C14: =OFFSET(Estructura!C36,0,($O$1-1)*12) -> 37.8 | D14: =OFFSET(Estructura!D36,0,($O$1-1)*12) -> 35.4 | E14: =OFFSET(Estructura!E36,0,($O$1-1)*12) -> 34 | F14: =OFFSET(Estructura!F36,0,($O$1-1)*12) -> 31.2 | G14: =OFFSET(Estructura!G36,0,($O$1-1)*12) -> 35 | H14: =OFFSET(Estructura!H36,0,($O$1-1)*12) -> 29.1 | I14: =OFFSET(Estructura!I36,0,($O$1-1)*12) -> - | J14: =OFFSET(Estructura!J36,0,($O$1-1)*12) -> - | K14: =OFFSET(Estructura!K36,0,($O$1-1)*12) -> - | L14: =OFFSET(Estructura!L36,0,($O$1-1)*12) -> - | M14: =OFFSET(Estructura!M36,0,($O$1-1)*12) -> - | N14: =OFFSET(Estructura!N36,0,($O$1-1)*12) -> - | O14: =OFFSET(Estructura!C111,0,($O$1-1)) -> 33.8
B15: Generación auxiliar (3) | C15: =OFFSET(Estructura!C37,0,($O$1-1)*12) -> - | D15: =OFFSET(Estructura!D37,0,($O$1-1)*12) -> - | E15: =OFFSET(Estructura!E37,0,($O$1-1)*12) -> - | F15: =OFFSET(Estructura!F37,0,($O$1-1)*12) -> - | G15: =OFFSET(Estructura!G37,0,($O$1-1)*12) -> - | H15: =OFFSET(Estructura!H37,0,($O$1-1)*12) -> - | I15: =OFFSET(Estructura!I37,0,($O$1-1)*12) -> - | J15: =OFFSET(Estructura!J37,0,($O$1-1)*12) -> - | K15: =OFFSET(Estructura!K37,0,($O$1-1)*12) -> - | L15: =OFFSET(Estructura!L37,0,($O$1-1)*12) -> - | M15: =OFFSET(Estructura!M37,0,($O$1-1)*12) -> - | N15: =OFFSET(Estructura!N37,0,($O$1-1)*12) -> - | O15: =OFFSET(Estructura!C112,0,($O$1-1)) -> -
B16: Hidroeólica | C16: =OFFSET(Estructura!C38,0,($O$1-1)*12) -> 0.1 | D16: =OFFSET(Estructura!D38,0,($O$1-1)*12) -> 0.2 | E16: =OFFSET(Estructura!E38,0,($O$1-1)*12) -> 0.3 | F16: =OFFSET(Estructura!F38,0,($O$1-1)*12) -> 0.1 | G16: =OFFSET(Estructura!G38,0,($O$1-1)*12) -> 0.2 | H16: =OFFSET(Estructura!H38,0,($O$1-1)*12) -> 0.3 | I16: =OFFSET(Estructura!I38,0,($O$1-1)*12) -> - | J16: =OFFSET(Estructura!J38,0,($O$1-1)*12) -> - | K16: =OFFSET(Estructura!K38,0,($O$1-1)*12) -> - | L16: =OFFSET(Estructura!L38,0,($O$1-1)*12) -> - | M16: =OFFSET(Estructura!M38,0,($O$1-1)*12) -> - | N16: =OFFSET(Estructura!N38,0,($O$1-1)*12) -> - | O16: =OFFSET(Estructura!C113,0,($O$1-1)) -> 0.2
B17: Eólica | C17: =OFFSET(Estructura!C39,0,($O$1-1)*12) -> 2 | D17: =OFFSET(Estructura!D39,0,($O$1-1)*12) -> 3.4 | E17: =OFFSET(Estructura!E39,0,($O$1-1)*12) -> 4.8 | F17: =OFFSET(Estructura!F39,0,($O$1-1)*12) -> 2.6 | G17: =OFFSET(Estructura!G39,0,($O$1-1)*12) -> 3.5 | H17: =OFFSET(Estructura!H39,0,($O$1-1)*12) -> 5.8 | I17: =OFFSET(Estructura!I39,0,($O$1-1)*12) -> - | J17: =OFFSET(Estructura!J39,0,($O$1-1)*12) -> - | K17: =OFFSET(Estructura!K39,0,($O$1-1)*12) -> - | L17: =OFFSET(Estructura!L39,0,($O$1-1)*12) -> - | M17: =OFFSET(Estructura!M39,0,($O$1-1)*12) -> - | N17: =OFFSET(Estructura!N39,0,($O$1-1)*12) -> - | O17: =OFFSET(Estructura!C114,0,($O$1-1)) -> 3.7
B18: Solar fotovoltaica | C18: =OFFSET(Estructura!C40,0,($O$1-1)*12) -> 2.4 | D18: =OFFSET(Estructura!D40,0,($O$1-1)*12) -> 2.8 | E18: =OFFSET(Estructura!E40,0,($O$1-1)*12) -> 3.4 | F18: =OFFSET(Estructura!F40,0,($O$1-1)*12) -> 3.6 | G18: =OFFSET(Estructura!G40,0,($O$1-1)*12) -> 3.5 | H18: =OFFSET(Estructura!H40,0,($O$1-1)*12) -> 3.5 | I18: =OFFSET(Estructura!I40,0,($O$1-1)*12) -> - | J18: =OFFSET(Estructura!J40,0,($O$1-1)*12) -> - | K18: =OFFSET(Estructura!K40,0,($O$1-1)*12) -> - | L18: =OFFSET(Estructura!L40,0,($O$1-1)*12) -> - | M18: =OFFSET(Estructura!M40,0,($O$1-1)*12) -> - | N18: =OFFSET(Estructura!N40,0,($O$1-1)*12) -> - | O18: =OFFSET(Estructura!C115,0,($O$1-1)) -> 3.2
B19: Térmica renovable/Otras renovables (4) | C19: =OFFSET(Estructura!C41,0,($O$1-1)*12) -> 0.1 | D19: =OFFSET(Estructura!D41,0,($O$1-1)*12) -> 0.1 | E19: =OFFSET(Estructura!E41,0,($O$1-1)*12) -> 0.1 | F19: =OFFSET(Estructura!F41,0,($O$1-1)*12) -> 0.1 | G19: =OFFSET(Estructura!G41,0,($O$1-1)*12) -> 0.1 | H19: =OFFSET(Estructura!H41,0,($O$1-1)*12) -> - | I19: =OFFSET(Estructura!I41,0,($O$1-1)*12) -> - | J19: =OFFSET(Estructura!J41,0,($O$1-1)*12) -> - | K19: =OFFSET(Estructura!K41,0,($O$1-1)*12) -> - | L19: =OFFSET(Estructura!L41,0,($O$1-1)*12) -> - | M19: =OFFSET(Estructura!M41,0,($O$1-1)*12) -> - | N19: =OFFSET(Estructura!N41,0,($O$1-1)*12) -> - | O19: =OFFSET(Estructura!C116,0,($O$1-1)) -> 0.1
B20: Cogeneración y resto/Cogeneración | C20: =OFFSET(Estructura!C42,0,($O$1-1)*12) -> - | D20: =OFFSET(Estructura!D42,0,($O$1-1)*12) -> - | E20: =OFFSET(Estructura!E42,0,($O$1-1)*12) -> - | F20: =OFFSET(Estructura!F42,0,($O$1-1)*12) -> - | G20: =OFFSET(Estructura!G42,0,($O$1-1)*12) -> - | H20: =OFFSET(Estructura!H42,0,($O$1-1)*12) -> - | I20: =OFFSET(Estructura!I42,0,($O$1-1)*12) -> - | J20: =OFFSET(Estructura!J42,0,($O$1-1)*12) -> - | K20: =OFFSET(Estructura!K42,0,($O$1-1)*12) -> - | L20: =OFFSET(Estructura!L42,0,($O$1-1)*12) -> - | M20: =OFFSET(Estructura!M42,0,($O$1-1)*12) -> - | N20: =OFFSET(Estructura!N42,0,($O$1-1)*12) -> - | O20: =OFFSET(Estructura!C117,0,($O$1-1)) -> -
B21: Generación renovable (5) | C21: =OFFSET(Estructura!C43,0,($O$1-1)*12) -> 4.6 | D21: =OFFSET(Estructura!D43,0,($O$1-1)*12) -> 6.5 | E21: =OFFSET(Estructura!E43,0,($O$1-1)*12) -> 8.6 | F21: =OFFSET(Estructura!F43,0,($O$1-1)*12) -> 6.4 | G21: =OFFSET(Estructura!G43,0,($O$1-1)*12) -> 7.3 | H21: =OFFSET(Estructura!H43,0,($O$1-1)*12) -> 9.6 | I21: =OFFSET(Estructura!I43,0,($O$1-1)*12) -> - | J21: =OFFSET(Estructura!J43,0,($O$1-1)*12) -> - | K21: =OFFSET(Estructura!K43,0,($O$1-1)*12) -> - | L21: =OFFSET(Estructura!L43,0,($O$1-1)*12) -> - | M21: =OFFSET(Estructura!M43,0,($O$1-1)*12) -> - | N21: =OFFSET(Estructura!N43,0,($O$1-1)*12) -> - | O21: =OFFSET(Estructura!C118,0,($O$1-1)) -> 7.2
B22: Generación no renovable | C22: =OFFSET(Estructura!C44,0,($O$1-1)*12) -> 95.4 | D22: =OFFSET(Estructura!D44,0,($O$1-1)*12) -> 93.5 | E22: =OFFSET(Estructura!E44,0,($O$1-1)*12) -> 91.4 | F22: =OFFSET(Estructura!F44,0,($O$1-1)*12) -> 93.6 | G22: =OFFSET(Estructura!G44,0,($O$1-1)*12) -> 92.7 | H22: =OFFSET(Estructura!H44,0,($O$1-1)*12) -> 90.4 | I22: =OFFSET(Estructura!I44,0,($O$1-1)*12) -> - | J22: =OFFSET(Estructura!J44,0,($O$1-1)*12) -> - | K22: =OFFSET(Estructura!K44,0,($O$1-1)*12) -> - | L22: =OFFSET(Estructura!L44,0,($O$1-1)*12) -> - | M22: =OFFSET(Estructura!M44,0,($O$1-1)*12) -> - | N22: =OFFSET(Estructura!N44,0,($O$1-1)*12) -> - | O22: =OFFSET(Estructura!C119,0,($O$1-1)) -> 92.8
B23: (1) Asignación de unidades de producción según combustible principal.
B24: (2) Utiliza gasoil como combustible principal. Incluye funcionamiento en ciclo abierto.
B25: (3) Grupos de emergencia que se instalan de forma transitoria en determinadas zonas para cubrir un déficit de generación.
B26: (4) Otras renovables incluyen biogás y biomasa.
B27: (5) Incluye hidráulica, hidroeólica, eólica, solar fotovoltaica y térmica renovable/otras renovables.

Sheet Estructura anual Canarias
J1: 2
H4: Sistema eléctrico
H5: Horizonte temporal
H6: Periodo
C8: =OFFSET(Estructura!C106,0,($J$1-1)*8) -> 2014 | D8: =OFFSET(Estructura!D106,0,($J$1-1)*8) -> 2015 | E8: =OFFSET(Estructura!E106,0,($J$1-1)*8) -> 2016 | F8: =OFFSET(Estructura!F106,0,($J$1-1)*8) -> 2017 | G8: =OFFSET(Estructura!G106,0,($J$1-1)*8) -> 2018 | H8: =OFFSET(Estructura!H106,0,($J$1-1)*8) -> 2019 | I8: =OFFSET(Estructura!I106,0,($J$1-1)*8) -> 2020 | J8: =OFFSET(Estructura!J106,0,($J$1-1)*8) -> 2021
B10: Hidráulica | C10: =OFFSET(Estructura!C107,0,($J$1-1)*8) -> 0 | D10: =OFFSET(Estructura!D107,0,($J$1-1)*8) -> 0 | E10: =OFFSET(Estructura!E107,0,($J$1-1)*8) -> 0 | F10: =OFFSET(Estructura!F107,0,($J$1-1)*8) -> 0 | G10: =OFFSET(Estructura!G107,0,($J$1-1)*8) -> - | H10: =OFFSET(Estructura!H107,0,($J$1-1)*8) -> - | I10: =OFFSET(Estructura!I107,0,($J$1-1)*8) -> - | J10: =OFFSET(Estructura!J107,0,($J$1-1)*8) -> -
B11: Motores diesel | C11: =OFFSET(Estructura!C108,0,($J$1-1)*8) -> 25 | D11: =OFFSET(Estructura!D108,0,($J$1-1)*8) -> 25.5 | E11: =OFFSET(Estructura!E108,0,($J$1-1)*8) -> 25.4 | F11: =OFFSET(Estructura!F108,0,($J$1-1)*8) -> 26.8 | G11: =OFFSET(Estructura!G108,0,($J$1-1)*8) -> - | H11: =OFFSET(Estructura!H108,0,($J$1-1)*8) -> - | I11: =OFFSET(Estructura!I108,0,($J$1-1)*8) -> - | J11: =OFFSET(Estructura!J108,0,($J$1-1)*8) -> -
B12: Turbina de gas | C12: =OFFSET(Estructura!C109,0,($J$1-1)*8) -> 4.2 | D12: =OFFSET(Estructura!D109,0,($J$1-1)*8) -> 3.8 | E12: =OFFSET(Estructura!E109,0,($J$1-1)*8) -> 3.2 | F12: =OFFSET(Estructura!F109,0,($J$1-1)*8) -> 2.8 | G12: =OFFSET(Estructura!G109,0,($J$1-1)*8) -> - | H12: =OFFSET(Estructura!H109,0,($J$1-1)*8) -> - | I12: =OFFSET(Estructura!I109,0,($J$1-1)*8) -> - | J12: =OFFSET(Estructura!J109,0,($J$1-1)*8) -> -
B13: Turbina de vapor | C13: =OFFSET(Estructura!C110,0,($J$1-1)*8) -> 24.2 | D13: =OFFSET(Estructura!D110,0,($J$1-1)*8) -> 25.7 | E13: =OFFSET(Estructura!E110,0,($J$1-1)*8) -> 28.9 | F13: =OFFSET(Estructura!F110,0,($J$1-1)*8) -> 29.4 | G13: =OFFSET(Estructura!G110,0,($J$1-1)*8) -> - | H13: =OFFSET(Estructura!H110,0,($J$1-1)*8) -> - | I13: =OFFSET(Estructura!I110,0,($J$1-1)*8) -> - | J13: =OFFSET(Estructura!J110,0,($J$1-1)*8) -> -
B14: Ciclo combinado (2) | C14: =OFFSET(Estructura!C111,0,($J$1-1)*8) -> 38.7 | D14: =OFFSET(Estructura!D111,0,($J$1-1)*8) -> 37 | E14: =OFFSET(Estructura!E111,0,($J$1-1)*8) -> 34.5 | F14: =OFFSET(Estructura!F111,0,($J$1-1)*8) -> 33.8 | G14: =OFFSET(Estructura!G111,0,($J$1-1)*8) -> - | H14: =OFFSET(Estructura!H111,0,($J$1-1)*8) -> - | I14: =OFFSET(Estructura!I111,0,($J$1-1)*8) -> - | J14: =OFFSET(Estructura!J111,0,($J$1-1)*8) -> -
B15: Generación auxiliar (3) | C15: =OFFSET(Estructura!C112,0,($J$1-1)*8) -> - | D15: =OFFSET(Estructura!D112,0,($J$1-1)*8) -> - | E15: =OFFSET(Estructura!E112,0,($J$1-1)*8) -> - | F15: =OFFSET(Estructura!F112,0,($J$1-1)*8) -> - | G15: =OFFSET(Estructura!G112,0,($J$1-1)*8) -> - | H15: =OFFSET(Estructura!H112,0,($J$1-1)*8) -> - | I15: =OFFSET(Estructura!I112,0,($J$1-1)*8) -> - | J15: =OFFSET(Estructura!J112,0,($J$1-1)*8) -> -
B16: Hidroeólica | C16: =OFFSET(Estructura!C113,0,($J$1-1)*8) -> 0 | D16: =OFFSET(Estructura!D113,0,($J$1-1)*8) -> 0.1 | E16: =OFFSET(Estructura!E113,0,($J$1-1)*8) -> 0.2 | F16: =OFFSET(Estructura!F113,0,($J$1-1)*8) -> 0.2 | G16: =OFFSET(Estructura!G113,0,($J$1-1)*8) -> - | H16: =OFFSET(Estructura!H113,0,($J$1-1)*8) -> - | I16: =OFFSET(Estructura!I113,0,($J$1-1)*8) -> - | J16: =OFFSET(Estructura!J113,0,($J$1-1)*8) -> -
B17: Eólica | C17: =OFFSET(Estructura!C114,0,($J$1-1)*8) -> 4.5 | D17: =OFFSET(Estructura!D114,0,($J$1-1)*8) -> 4.6 | E17: =OFFSET(Estructura!E114,0,($J$1-1)*8) -> 4.5 | F17: =OFFSET(Estructura!F114,0,($J$1-1)*8) -> 3.7 | G17: =OFFSET(Estructura!G114,0,($J$1-1)*8) -> - | H17: =OFFSET(Estructura!H114,0,($J$1-1)*8) -> - | I17: =OFFSET(Estructura!I114,0,($J$1-1)*8) -> - | J17: =OFFSET(Estructura!J114,0,($J$1-1)*8) -> -
B18: Solar fotovoltaica | C18: =OFFSET(Estructura!C115,0,($J$1-1)*8) -> 3.3 | D18: =OFFSET(Estructura!D115,0,($J$1-1)*8) -> 3.2 | E18: =OFFSET(Estructura!E115,0,($J$1-1)*8) -> 3.2 | F18: =OFFSET(Estructura!F115,0,($J$1-1)*8) -> 3.2 | G18: =OFFSET(Estructura!G115,0,($J$1-1)*8) -> - | H18: =OFFSET(Estructura!H115,0,($J$1-1)*8) -> - | I18: =OFFSET(Estructura!I115,0,($J$1-1)*8) -> - | J18: =OFFSET(Estructura!J115,0,($J$1-1)*8) -> -
B19: Térmica renovable/Otras renovables (4) | C19: =OFFSET(Estructura!C116,0,($J$1-1)*8) -> 0.1 | D19: =OFFSET(Estructura!D116,0,($J$1-1)*8) -> 0.1 | E19: =OFFSET(Estructura!E116,0,($J$1-1)*8) -> 0.1 | F19: =OFFSET(Estructura!F116,0,($J$1-1)*8) -> 0.1 | G19: =OFFSET(Estructura!G116,0,($J$1-1)*8) -> - | H19: =OFFSET(Estructura!H116,0,($J$1-1)*8) -> - | I19: =OFFSET(Estructura!I116,0,($J$1-1)*8) -> - | J19: =OFFSET(Estructura!J116,0,($J$1-1)*8) -> -
B20: Cogeneración y resto/Cogeneración | C20: =OFFSET(Estructura!C117,0,($J$1-1)*8) -> - | D20: =OFFSET(Estructura!D117,0,($J$1-1)*8) -> - | E20: =OFFSET(Estructura!E117,0,($J$1-1)*8) -> - | F20: =OFFSET(Estructura!F117,0,($J$1-1)*8) -> - | G20: =OFFSET(Estructura!G117,0,($J$1-1)*8) -> - | H20: =OFFSET(Estructura!H117,0,($J$1-1)*8) -> - | I20: =OFFSET(Estructura!I117,0,($J$1-1)*8) -> - | J20: =OFFSET(Estructura!J117,0,($J$1-1)*8) -> -
B21: Generación renovable (5) | C21: =OFFSET(Estructura!C118,0,($J$1-1)*8) -> 7.9 | D21: =OFFSET(Estructura!D118,0,($J$1-1)*8) -> 8 | E21: =OFFSET(Estructura!E118,0,($J$1-1)*8) -> 8 | F21: =OFFSET(Estructura!F118,0,($J$1-1)*8) -> 7.2 | G21: =OFFSET(Estructura!G118,0,($J$1-1)*8) -> - | H21: =OFFSET(Estructura!H118,0,($J$1-1)*8) -> - | I21: =OFFSET(Estructura!I118,0,($J$1-1)*8) -> - | J21: =OFFSET(Estructura!J118,0,($J$1-1)*8) -> -
B22: Generación no renovable | C22: =OFFSET(Estructura!C119,0,($J$1-1)*8) -> 92.1 | D22: =OFFSET(Estructura!D119,0,($J$1-1)*8) -> 92 | E22: =OFFSET(Estructura!E119,0,($J$1-1)*8) -> 92 | F22: =OFFSET(Estructura!F119,0,($J$1-1)*8) -> 92.8 | G22: =OFFSET(Estructura!G119,0,($J$1-1)*8) -> - | H22: =OFFSET(Estructura!H119,0,($J$1-1)*8) -> - | I22: =OFFSET(Estructura!I119,0,($J$1-1)*8) -> - | J22: =OFFSET(Estructura!J119,0,($J$1-1)*8) -> -
B23: (1) Asignación de unidades de producción según combustible principal.
B24: (2) Utiliza gasoil como combustible principal. Incluye funcionamiento en ciclo abierto.
B25: (3) Grupos de emergencia que se instalan de forma transitoria en determinadas zonas para cubrir un déficit de generación.
B26: (4) Otras renovables incluyen biogás y biomasa.
B27: (5) Incluye hidráulica, hidroeólica, eólica, solar fotovoltaica y térmica renovable/otras renovables.
B28: =IF(J1<2,"",IF(MONTH(FACT)=1,"",CONCATENATE(" Para el año ",YEAR(FACT)," valores acumulados hasta ",TEXT(FACT-30,"mmmm")," de ",YEAR(FACT),"."))) -> Para el año 2017 valores acumulados hasta junio de 2017.

Sheet Estructura mensual Ceuta
O1: 11
M4: Sistema eléctrico
M5: Horizonte temporal
M6: Periodo
C8: Ene. | D8: Feb. | E8: Mar. | F8: Abr. | G8: May. | H8: Jun. | I8: Jul. | J8: Ago. | K8: Sep. | L8: Oct. | M8: Nov. | N8: Dic. | O8: =OFFSET(Año!B19,($O$1-1),0) -> 2017
B10: Motores diesel | C10: =OFFSET(Estructura!C47,0,($O$1-1)*12) -> 100 | D10: =OFFSET(Estructura!D47,0,($O$1-1)*12) -> 99.9 | E10: =OFFSET(Estructura!E47,0,($O$1-1)*12) -> 100 | F10: =OFFSET(Estructura!F47,0,($O$1-1)*12) -> 100 | G10: =OFFSET(Estructura!G47,0,($O$1-1)*12) -> 100 | H10: =OFFSET(Estructura!H47,0,($O$1-1)*12) -> 100 | I10: =OFFSET(Estructura!I47,0,($O$1-1)*12) -> - | J10: =OFFSET(Estructura!J47,0,($O$1-1)*12) -> - | K10: =OFFSET(Estructura!K47,0,($O$1-1)*12) -> - | L10: =OFFSET(Estructura!L47,0,($O$1-1)*12) -> - | M10: =OFFSET(Estructura!M47,0,($O$1-1)*12) -> - | N10: =OFFSET(Estructura!N47,0,($O$1-1)*12) -> - | O10: =OFFSET(Estructura!C122,0,($O$1-1)) -> 100
B11: Turbina de gas | C11: =OFFSET(Estructura!C48,0,($O$1-1)*12) -> 0 | D11: =OFFSET(Estructura!D48,0,($O$1-1)*12) -> 0.1 | E11: =OFFSET(Estructura!E48,0,($O$1-1)*12) -> 0 | F11: =OFFSET(Estructura!F48,0,($O$1-1)*12) -> 0 | G11: =OFFSET(Estructura!G48,0,($O$1-1)*12) -> 0 | H11: =OFFSET(Estructura!H48,0,($O$1-1)*12) -> 0 | I11: =OFFSET(Estructura!I48,0,($O$1-1)*12) -> - | J11: =OFFSET(Estructura!J48,0,($O$1-1)*12) -> - | K11: =OFFSET(Estructura!K48,0,($O$1-1)*12) -> - | L11: =OFFSET(Estructura!L48,0,($O$1-1)*12) -> - | M11: =OFFSET(Estructura!M48,0,($O$1-1)*12) -> - | N11: =OFFSET(Estructura!N48,0,($O$1-1)*12) -> - | O11: =OFFSET(Estructura!C123,0,($O$1-1)) -> 0
B12: Generación renovable | C12: =OFFSET(Estructura!C49,0,($O$1-1)*12) -> - | D12: =OFFSET(Estructura!D49,0,($O$1-1)*12) -> - | E12: =OFFSET(Estructura!E49,0,($O$1-1)*12) -> - | F12: =OFFSET(Estructura!F49,0,($O$1-1)*12) -> - | G12: =OFFSET(Estructura!G49,0,($O$1-1)*12) -> - | H12: =OFFSET(Estructura!H49,0,($O$1-1)*12) -> - | I12: =OFFSET(Estructura!I49,0,($O$1-1)*12) -> - | J12: =OFFSET(Estructura!J49,0,($O$1-1)*12) -> - | K12: =OFFSET(Estructura!K49,0,($O$1-1)*12) -> - | L12: =OFFSET(Estructura!L49,0,($O$1-1)*12) -> - | M12: =OFFSET(Estructura!M49,0,($O$1-1)*12) -> - | N12: =OFFSET(Estructura!N49,0,($O$1-1)*12) -> - | O12: =OFFSET(Estructura!C124,0,($O$1-1)) -> -
B13: Generación no renovable | C13: =OFFSET(Estructura!C50,0,($O$1-1)*12) -> 100 | D13: =OFFSET(Estructura!D50,0,($O$1-1)*12) -> 100 | E13: =OFFSET(Estructura!E50,0,($O$1-1)*12) -> 100 | F13: =OFFSET(Estructura!F50,0,($O$1-1)*12) -> 100 | G13: =OFFSET(Estructura!G50,0,($O$1-1)*12) -> 100 | H13: =OFFSET(Estructura!H50,0,($O$1-1)*12) -> 100 | I13: =OFFSET(Estructura!I50,0,($O$1-1)*12) -> - | J13: =OFFSET(Estructura!J50,0,($O$1-1)*12) -> - | K13: =OFFSET(Estructura!K50,0,($O$1-1)*12) -> - | L13: =OFFSET(Estructura!L50,0,($O$1-1)*12) -> - | M13: =OFFSET(Estructura!M50,0,($O$1-1)*12) -> - | N13: =OFFSET(Estructura!N50,0,($O$1-1)*12) -> - | O13: =OFFSET(Estructura!C125,0,($O$1-1)) -> 100
B14: (1) Asignación de unidades de producción según combustible principal.

Sheet Estructura anual Ceuta
I1: 2
G4: Sistema eléctrico
G5: Horizonte temporal
G6: Periodo
C8: =OFFSET(Estructura!C127,0,($I$1-1)*7) -> 2014 | D8: =OFFSET(Estructura!D127,0,($I$1-1)*7) -> 2015 | E8: =OFFSET(Estructura!E127,0,($I$1-1)*7) -> 2016 | F8: =OFFSET(Estructura!F127,0,($I$1-1)*7) -> 2017 | G8: =OFFSET(Estructura!G127,0,($I$1-1)*7) -> 2018 | H8: =OFFSET(Estructura!H127,0,($I$1-1)*7) -> 2019 | I8: =OFFSET(Estructura!I127,0,($I$1-1)*7) -> 2020
B10: Motores diesel | C10: =OFFSET(Estructura!C122,0,($I$1-1)*7) -> 100 | D10: =OFFSET(Estructura!D122,0,($I$1-1)*7) -> 99.6 | E10: =OFFSET(Estructura!E122,0,($I$1-1)*7) -> 99.9 | F10: =OFFSET(Estructura!F122,0,($I$1-1)*7) -> 100 | G10: =OFFSET(Estructura!G122,0,($I$1-1)*7) -> - | H10: =OFFSET(Estructura!H122,0,($I$1-1)*7) -> - | I10: =OFFSET(Estructura!I122,0,($I$1-1)*7) -> -
B11: Turbina de gas | C11: =OFFSET(Estructura!C123,0,($I$1-1)*7) -> 0 | D11: =OFFSET(Estructura!D123,0,($I$1-1)*7) -> 0.4 | E11: =OFFSET(Estructura!E123,0,($I$1-1)*7) -> 0.1 | F11: =OFFSET(Estructura!F123,0,($I$1-1)*7) -> 0 | G11: =OFFSET(Estructura!G123,0,($I$1-1)*7) -> - | H11: =OFFSET(Estructura!H123,0,($I$1-1)*7) -> - | I11: =OFFSET(Estructura!I123,0,($I$1-1)*7) -> -
B12: Generación renovable | C12: =OFFSET(Estructura!C124,0,($I$1-1)*7) -> - | D12: =OFFSET(Estructura!D124,0,($I$1-1)*7) -> - | E12: =OFFSET(Estructura!E124,0,($I$1-1)*7) -> - | F12: =OFFSET(Estructura!F124,0,($I$1-1)*7) -> - | G12: =OFFSET(Estructura!G124,0,($I$1-1)*7) -> - | H12: =OFFSET(Estructura!H124,0,($I$1-1)*7) -> - | I12: =OFFSET(Estructura!I124,0,($I$1-1)*7) -> -
B13: Generación no renovable | C13: =OFFSET(Estructura!C125,0,($I$1-1)*7) -> 100 | D13: =OFFSET(Estructura!D125,0,($I$1-1)*7) -> 100 | E13: =OFFSET(Estructura!E125,0,($I$1-1)*7) -> 100 | F13: =OFFSET(Estructura!F125,0,($I$1-1)*7) -> 100 | G13: =OFFSET(Estructura!G125,0,($I$1-1)*7) -> - | H13: =OFFSET(Estructura!H125,0,($I$1-1)*7) -> - | I13: =OFFSET(Estructura!I125,0,($I$1-1)*7) -> -
B14: (1) Asignación de unidades de producción según combustible principal.
B15: =IF(I1<21,"",IF(MONTH(FACT)=1,"",CONCATENATE(" Para el año ",YEAR(FACT)," valores acumulados hasta ",TEXT(FACT-30,"mmmm")," de ",YEAR(FACT),"."))) -> 

Sheet Estructura mensual Melilla
O1: 11
M4: Sistema eléctrico
M5: Horizonte temporal
M6: Periodo
C8: Ene. | D8: Feb. | E8: Mar. | F8: Abr. | G8: May. | H8: Jun. | I8: Jul. | J8: Ago. | K8: Sep. | L8: Oct. | M8: Nov. | N8: Dic. | O8: =OFFSET(Año!B19,($O$1-1),0) -> 2017
B10: Motores diesel | C10: =OFFSET(Estructura!C53,0,($O$1-1)*12) -> 95.1 | D10: =OFFSET(Estructura!D53,0,($O$1-1)*12) -> 94.5 | E10: =OFFSET(Estructura!E53,0,($O$1-1)*12) -> 94.5 | F10: =OFFSET(Estructura!F53,0,($O$1-1)*12) -> 94.6 | G10: =OFFSET(Estructura!G53,0,($O$1-1)*12) -> 94.5 | H10: =OFFSET(Estructura!H53,0,($O$1-1)*12) -> 95.8 | I10: =OFFSET(Estructura!I53,0,($O$1-1)*12) -> - | J10: =OFFSET(Estructura!J53,0,($O$1-1)*12) -> - | K10: =OFFSET(Estructura!K53,0,($O$1-1)*12) -> - | L10: =OFFSET(Estructura!L53,0,($O$1-1)*12) -> - | M10: =OFFSET(Estructura!M53,0,($O$1-1)*12) -> - | N10: =OFFSET(Estructura!N53,0,($O$1-1)*12) -> - | O10: =OFFSET(Estructura!C128,0,($O$1-1)) -> 94.9
B11: Turbina de gas | C11: =OFFSET(Estructura!C54,0,($O$1-1)*12) -> - | D11: =OFFSET(Estructura!D54,0,($O$1-1)*12) -> 0 | E11: =OFFSET(Estructura!E54,0,($O$1-1)*12) -> 0 | F11: =OFFSET(Estructura!F54,0,($O$1-1)*12) -> - | G11: =OFFSET(Estructura!G54,0,($O$1-1)*12) -> - | H11: =OFFSET(Estructura!H54,0,($O$1-1)*12) -> 0 | I11: =OFFSET(Estructura!I54,0,($O$1-1)*12) -> - | J11: =OFFSET(Estructura!J54,0,($O$1-1)*12) -> - | K11: =OFFSET(Estructura!K54,0,($O$1-1)*12) -> - | L11: =OFFSET(Estructura!L54,0,($O$1-1)*12) -> - | M11: =OFFSET(Estructura!M54,0,($O$1-1)*12) -> - | N11: =OFFSET(Estructura!N54,0,($O$1-1)*12) -> - | O11: =OFFSET(Estructura!C129,0,($O$1-1)) -> 0
B12: Solar fotovoltaica | C12: =OFFSET(Estructura!C55,0,($O$1-1)*12) -> 0 | D12: =OFFSET(Estructura!D55,0,($O$1-1)*12) -> 0 | E12: =OFFSET(Estructura!E55,0,($O$1-1)*12) -> 0 | F12: =OFFSET(Estructura!F55,0,($O$1-1)*12) -> 0 | G12: =OFFSET(Estructura!G55,0,($O$1-1)*12) -> 0 | H12: =OFFSET(Estructura!H55,0,($O$1-1)*12) -> 0 | I12: =OFFSET(Estructura!I55,0,($O$1-1)*12) -> - | J12: =OFFSET(Estructura!J55,0,($O$1-1)*12) -> - | K12: =OFFSET(Estructura!K55,0,($O$1-1)*12) -> - | L12: =OFFSET(Estructura!L55,0,($O$1-1)*12) -> - | M12: =OFFSET(Estructura!M55,0,($O$1-1)*12) -> - | N12: =OFFSET(Estructura!N55,0,($O$1-1)*12) -> - | O12: =OFFSET(Estructura!C130,0,($O$1-1)) -> 0
B13: Cogeneración y resto/Cogeneración | C13: =OFFSET(Estructura!C56,0,($O$1-1)*12) -> - | D13: =OFFSET(Estructura!D56,0,($O$1-1)*12) -> - | E13: =OFFSET(Estructura!E56,0,($O$1-1)*12) -> - | F13: =OFFSET(Estructura!F56,0,($O$1-1)*12) -> - | G13: =OFFSET(Estructura!G56,0,($O$1-1)*12) -> - | H13: =OFFSET(Estructura!H56,0,($O$1-1)*12) -> - | I13: =OFFSET(Estructura!I56,0,($O$1-1)*12) -> - | J13: =OFFSET(Estructura!J56,0,($O$1-1)*12) -> - | K13: =OFFSET(Estructura!K56,0,($O$1-1)*12) -> - | L13: =OFFSET(Estructura!L56,0,($O$1-1)*12) -> - | M13: =OFFSET(Estructura!M56,0,($O$1-1)*12) -> - | N13: =OFFSET(Estructura!N56,0,($O$1-1)*12) -> - | O13: =OFFSET(Estructura!C131,0,($O$1-1)) -> -
B14: Residuos (2) | C14: =OFFSET(Estructura!C57,0,($O$1-1)*12) -> 4.9 | D14: =OFFSET(Estructura!D57,0,($O$1-1)*12) -> 5.5 | E14: =OFFSET(Estructura!E57,0,($O$1-1)*12) -> 5.5 | F14: =OFFSET(Estructura!F57,0,($O$1-1)*12) -> 5.4 | G14: =OFFSET(Estructura!G57,0,($O$1-1)*12) -> 5.5 | H14: =OFFSET(Estructura!H57,0,($O$1-1)*12) -> 4.2 | I14: =OFFSET(Estructura!I57,0,($O$1-1)*12) -> - | J14: =OFFSET(Estructura!J57,0,($O$1-1)*12) -> - | K14: =OFFSET(Estructura!K57,0,($O$1-1)*12) -> - | L14: =OFFSET(Estructura!L57,0,($O$1-1)*12) -> - | M14: =OFFSET(Estructura!M57,0,($O$1-1)*12) -> - | N14: =OFFSET(Estructura!N57,0,($O$1-1)*12) -> - | O14: =OFFSET(Estructura!C132,0,($O$1-1)) -> 5.1
B15: Generación renovable (3) | C15: =OFFSET(Estructura!C58,0,($O$1-1)*12) -> 2.4 | D15: =OFFSET(Estructura!D58,0,($O$1-1)*12) -> 2.7 | E15: =OFFSET(Estructura!E58,0,($O$1-1)*12) -> 2.7 | F15: =OFFSET(Estructura!F58,0,($O$1-1)*12) -> 2.7 | G15: =OFFSET(Estructura!G58,0,($O$1-1)*12) -> 2.7 | H15: =OFFSET(Estructura!H58,0,($O$1-1)*12) -> 2.1 | I15: =OFFSET(Estructura!I58,0,($O$1-1)*12) -> - | J15: =OFFSET(Estructura!J58,0,($O$1-1)*12) -> - | K15: =OFFSET(Estructura!K58,0,($O$1-1)*12) -> - | L15: =OFFSET(Estructura!L58,0,($O$1-1)*12) -> - | M15: =OFFSET(Estructura!M58,0,($O$1-1)*12) -> - | N15: =OFFSET(Estructura!N58,0,($O$1-1)*12) -> - | O15: =OFFSET(Estructura!C133,0,($O$1-1)) -> 2.6
B16: Generación no renovable | C16: =OFFSET(Estructura!C59,0,($O$1-1)*12) -> 97.6 | D16: =OFFSET(Estructura!D59,0,($O$1-1)*12) -> 97.3 | E16: =OFFSET(Estructura!E59,0,($O$1-1)*12) -> 97.3 | F16: =OFFSET(Estructura!F59,0,($O$1-1)*12) -> 97.3 | G16: =OFFSET(Estructura!G59,0,($O$1-1)*12) -> 97.3 | H16: =OFFSET(Estructura!H59,0,($O$1-1)*12) -> 97.9 | I16: =OFFSET(Estructura!I59,0,($O$1-1)*12) -> - | J16: =OFFSET(Estructura!J59,0,($O$1-1)*12) -> - | K16: =OFFSET(Estructura!K59,0,($O$1-1)*12) -> - | L16: =OFFSET(Estructura!L59,0,($O$1-1)*12) -> - | M16: =OFFSET(Estructura!M59,0,($O$1-1)*12) -> - | N16: =OFFSET(Estructura!N59,0,($O$1-1)*12) -> - | O16: =OFFSET(Estructura!C134,0,($O$1-1)) -> 97.4
B17: (1) Asignación de unidades de producción según combustible principal.
B18: (2) El 50% de la generación procedente de residuos sólidos urbanos se considera renovable.
B19: (3) Incluye solar fotovoltaica y el 50% de los residuos sólidos urbanos.

Sheet Estructura anual Melilla
I1: 2
G4: Sistema eléctrico
G5: Horizonte temporal
G6: Periodo
C8: =OFFSET(Estructura!C127,0,($I$1-1)*7) -> 2014 | D8: =OFFSET(Estructura!D127,0,($I$1-1)*7) -> 2015 | E8: =OFFSET(Estructura!E127,0,($I$1-1)*7) -> 2016 | F8: =OFFSET(Estructura!F127,0,($I$1-1)*7) -> 2017 | G8: =OFFSET(Estructura!G127,0,($I$1-1)*7) -> 2018 | H8: =OFFSET(Estructura!H127,0,($I$1-1)*7) -> 2019 | I8: =OFFSET(Estructura!I127,0,($I$1-1)*7) -> 2020
B10: Motores diesel | C10: =OFFSET(Estructura!C128,0,($I$1-1)*7) -> 95.5 | D10: =OFFSET(Estructura!D128,0,($I$1-1)*7) -> 95.7 | E10: =OFFSET(Estructura!E128,0,($I$1-1)*7) -> 95.2 | F10: =OFFSET(Estructura!F128,0,($I$1-1)*7) -> 94.9 | G10: =OFFSET(Estructura!G128,0,($I$1-1)*7) -> - | H10: =OFFSET(Estructura!H128,0,($I$1-1)*7) -> - | I10: =OFFSET(Estructura!I128,0,($I$1-1)*7) -> -
B11: Turbina de gas | C11: =OFFSET(Estructura!C129,0,($I$1-1)*7) -> 0.3 | D11: =OFFSET(Estructura!D129,0,($I$1-1)*7) -> 0.3 | E11: =OFFSET(Estructura!E129,0,($I$1-1)*7) -> 0.1 | F11: =OFFSET(Estructura!F129,0,($I$1-1)*7) -> 0 | G11: =OFFSET(Estructura!G129,0,($I$1-1)*7) -> - | H11: =OFFSET(Estructura!H129,0,($I$1-1)*7) -> - | I11: =OFFSET(Estructura!I129,0,($I$1-1)*7) -> -
B12: Solar fotovoltaica | C12: =OFFSET(Estructura!C130,0,($I$1-1)*7) -> 0 | D12: =OFFSET(Estructura!D130,0,($I$1-1)*7) -> 0 | E12: =OFFSET(Estructura!E130,0,($I$1-1)*7) -> 0 | F12: =OFFSET(Estructura!F130,0,($I$1-1)*7) -> 0 | G12: =OFFSET(Estructura!G130,0,($I$1-1)*7) -> - | H12: =OFFSET(Estructura!H130,0,($I$1-1)*7) -> - | I12: =OFFSET(Estructura!I130,0,($I$1-1)*7) -> -
B13: Cogeneración y resto/Cogeneración | C13: =OFFSET(Estructura!C131,0,($I$1-1)*7) -> 4.2 | D13: =OFFSET(Estructura!D131,0,($I$1-1)*7) -> - | E13: =OFFSET(Estructura!E131,0,($I$1-1)*7) -> - | F13: =OFFSET(Estructura!F131,0,($I$1-1)*7) -> - | G13: =OFFSET(Estructura!G131,0,($I$1-1)*7) -> - | H13: =OFFSET(Estructura!H131,0,($I$1-1)*7) -> - | I13: =OFFSET(Estructura!I131,0,($I$1-1)*7) -> -
B14: Residuos (2) | C14: =OFFSET(Estructura!C132,0,($I$1-1)*7) -> - | D14: =OFFSET(Estructura!D132,0,($I$1-1)*7) -> 4 | E14: =OFFSET(Estructura!E132,0,($I$1-1)*7) -> 4.7 | F14: =OFFSET(Estructura!F132,0,($I$1-1)*7) -> 5.1 | G14: =OFFSET(Estructura!G132,0,($I$1-1)*7) -> - | H14: =OFFSET(Estructura!H132,0,($I$1-1)*7) -> - | I14: =OFFSET(Estructura!I132,0,($I$1-1)*7) -> -
B15: Generación renovable (3) | C15: =OFFSET(Estructura!C133,0,($I$1-1)*7) -> 0 | D15: =OFFSET(Estructura!D133,0,($I$1-1)*7) -> 2 | E15: =OFFSET(Estructura!E133,0,($I$1-1)*7) -> 2.3 | F15: =OFFSET(Estructura!F133,0,($I$1-1)*7) -> 2.6 | G15: =IF(G12=0,"-",G12) -> - | H15: - | I15: -
B16: Generación no renovable | C16: =OFFSET(Estructura!C134,0,($I$1-1)*7) -> 100 | D16: =OFFSET(Estructura!D134,0,($I$1-1)*7) -> 98 | E16: =OFFSET(Estructura!E134,0,($I$1-1)*7) -> 97.7 | F16: =OFFSET(Estructura!F134,0,($I$1-1)*7) -> 97.4 | G16: =IF(SUM(G10:G11,G13:G14)=0,"-",SUM(G10:G11,G13:G14)) -> - | H16: - | I16: -
B17: (1) Asignación de unidades de producción según combustible principal.
B18: (2) El 50% de la generación procedente de residuos sólidos urbanos se considera renovable.
B19: (3) Incluye solar fotovoltaica y el 50% de los residuos sólidos urbanos.
B20: =IF(I1<2,"",IF(MONTH(FACT)=1,"",CONCATENATE(" Para el año ",YEAR(FACT)," valores acumulados hasta ",TEXT(FACT-30,"mmmm")," de ",YEAR(FACT),"."))) -> Para el año 2017 valores acumulados hasta junio de 2017.

Sheet Estructura (hidden)
B2: Estructura de generación mensual peninsular (%) | C2: 1990-01-01 | D2: 1990-02-01 | E2: 1990-03-01 | F2: 1990-04-01 | G2: 1990-05-01 | H2: 1990-06-01 | I2: 1990-07-01 | J2: 1990-08-01 | K2: 1990-09-01 | L2: 1990-10-01 | M2: 1990-11-01 | N2: 1990-12-01 | O2: 1991-01-01 | P2: 1991-02-01 | Q2: 1991-03-01 | R2: 1991-04-01 | S2: 1991-05-01 | T2: 1991-06-01 | U2: 1991-07-01 | V2: 1991-08-01 | W2: 1991-09-01 | X2: 1991-10-01 | Y2: 1991-11-01 | Z2: 1991-12-01 | AA2: 1992-01-01 | AB2: 1992-02-01 | AC2: 1992-03-01 | AD2: 1992-04-01 | AE2: 1992-05-01 | AF2: 1992-06-01 | AG2: 1992-07-01 | AH2: 1992-08-01 | AI2: 1992-09-01 | AJ2: 1992-10-01 | AK2: 1992-11-01 | AL2: 1992-12-01 | AM2: 1993-01-01 | AN2: 1993-02-01 | AO2: 1993-03-01 | AP2: 1993-04-01 | AQ2: 1993-05-01 | AR2: 1993-06-01 | AS2: 1993-07-01 | AT2: 1993-08-01 | AU2: 1993-09-01 | AV2: 1993-10-01 | AW2: 1993-11-01 | AX2: 1993-12-01 | AY2: 1994-01-01 | AZ2: 1994-02-01 | BA2: 1994-03-01 | BB2: 1994-04-01 | BC2: 1994-05-01 | BD2: 1994-06-01 | BE2: 1994-07-01 | BF2: 1994-08-01 | BG2: 1994-09-01 | BH2: 1994-10-01 | BI2: 1994-11-01 | BJ2: 1994-12-01 | BK2: 1995-01-01 | BL2: 1995-02-01 | BM2: 1995-03-01 | BN2: 1995-04-01 | BO2: 1995-05-01 | BP2: 1995-06-01 | BQ2: 1995-07-01 | BR2: 1995-08-01 | BS2: 1995-09-01 | BT2: 1995-10-01 | BU2: 1995-11-01 | BV2: 1995-12-01 | BW2: 1996-01-01 | BX2: 1996-02-01 | BY2: 1996-03-01 | BZ2: 1996-04-01 | CA2: 1996-05-01 | CB2: 1996-06-01 | CC2: 1996-07-01 | CD2: 1996-08-01 | CE2: 1996-09-01 | CF2: 1996-10-01 | CG2: 1996-11-01 | CH2: 1996-12-01 | CI2: 1997-01-01 | CJ2: 1997-02-01 | CK2: 1997-03-01 | CL2: 1997-04-01 | CM2: 1997-05-01 | CN2: 1997-06-01 | CO2: 1997-07-01 | CP2: 1997-08-01 | CQ2: 1997-09-01 | CR2: 1997-10-01 | CS2: 1997-11-01 | CT2: 1997-12-01 | CU2: 1998-01-01 | CV2: 1998-02-01 | CW2: 1998-03-01 | CX2: 1998-04-01 | CY2: 1998-05-01 | CZ2: 1998-06-01 | DA2: 1998-07-01 | DB2: 1998-08-01 | DC2: 1998-09-01 | DD2: 1998-10-01 | DE2: 1998-11-01 | DF2: 1998-12-01 | DG2: 1999-01-01 | DH2: 1999-02-01 | DI2: 1999-03-01 | DJ2: 1999-04-01 | DK2: 1999-05-01 | DL2: 1999-06-01 | DM2: 1999-07-01 | DN2: 1999-08-01 | DO2: 1999-09-01 | DP2: 1999-10-01 | DQ2: 1999-11-01 | DR2: 1999-12-01 | DS2: 2000-01-01 | DT2: 2000-02-01 | DU2: 2000-03-01 | DV2: 2000-04-01 | DW2: 2000-05-01 | DX2: 2000-06-01 | DY2: 2000-07-01 | DZ2: 2000-08-01 | EA2: 2000-09-01 | EB2: 2000-10-01 | EC2: 2000-11-01 | ED2: 2000-12-01 | EE2: 2001-01-01 | EF2: 2001-02-01 | EG2: 2001-03-01 | EH2: 2001-04-01 | EI2: 2001-05-01 | EJ2: 2001-06-01 | EK2: 2001-07-01 | EL2: 2001-08-01 | EM2: 2001-09-01 | EN2: 2001-10-01 | EO2: 2001-11-01 | EP2: 2001-12-01 | EQ2: 2002-01-01 | ER2: 2002-02-01 | ES2: 2002-03-01 | ET2: 2002-04-01 | EU2: 2002-05-01 | EV2: 2002-06-01 | EW2: 2002-07-01 | EX2: 2002-08-01 | EY2: 2002-09-01 | EZ2: 2002-10-01 | FA2: 2002-11-01 | FB2: 2002-12-01 | FC2: 2003-01-01 | FD2: 2003-02-01 | FE2: 2003-03-01 | FF2: 2003-04-01 | FG2: 2003-05-01 | FH2: 2003-06-01 | FI2: 2003-07-01 | FJ2: 2003-08-01 | FK2: 2003-09-01 | FL2: 2003-10-01 | FM2: 2003-11-01 | FN2: 2003-12-01 | FO2: 2004-01-01 | FP2: 2004-02-01 | FQ2: 2004-03-01 | FR2: 2004-04-01 | FS2: 2004-05-01 | FT2: 2004-06-01 | FU2: 2004-07-01 | FV2: 2004-08-01 | FW2: 2004-09-01 | FX2: 2004-10-01 | FY2: 2004-11-01 | FZ2: 2004-12-01 | GA2: 2005-01-01 | GB2: 2005-02-01 | GC2: 2005-03-01 | GD2: 2005-04-01 | GE2: 2005-05-01 | GF2: 2005-06-01 | GG2: 2005-07-01 | GH2: 2005-08-01 | GI2: 2005-09-01 | GJ2: 2005-10-01 | GK2: 2005-11-01 | GL2: 2005-12-01 | GM2: 2006-01-01 | GN2: 2006-02-01 | GO2: 2006-03-01 | GP2: 2006-04-01 | GQ2: 2006-05-01 | GR2: 2006-06-01 | GS2: 2006-07-01 | GT2: 2006-08-01 | GU2: 2006-09-01 | GV2: 2006-10-01 | GW2: 2006-11-01 | GX2: 2006-12-01 | GY2: 2007-01-01 | GZ2: 2007-02-01 | HA2: 2007-03-01 | HB2: 2007-04-01 | HC2: 2007-05-01 | HD2: 2007-06-01 | HE2: 2007-07-01 | HF2: 2007-08-01 | HG2: 2007-09-01 | HH2: 2007-10-01 | HI2: 2007-11-01 | HJ2: 2007-12-01 | HK2: 2008-01-01 | HL2: 2008-02-01 | HM2: 2008-03-01 | HN2: 2008-04-01 | HO2: 2008-05-01 | HP2: 2008-06-01 | HQ2: 2008-07-01 | HR2: 2008-08-01 | HS2: 2008-09-01 | HT2: 2008-10-01 | HU2: 2008-11-01 | HV2: 2008-12-01 | HW2: 2009-01-01 | HX2: 2009-02-01 | HY2: 2009-03-01 | HZ2: 2009-04-01 | IA2: 2009-05-01 | IB2: 2009-06-01 | IC2: 2009-07-01 | ID2: 2009-08-01 | IE2: 2009-09-01 | IF2: 2009-10-01 | IG2: 2009-11-01 | IH2: 2009-12-01 | II2: 2010-01-01 | IJ2: 2010-02-01 | IK2: 2010-03-01 | IL2: 2010-04-01 | IM2: 2010-05-01 | IN2: 2010-06-01 | IO2: 2010-07-01 | IP2: 2010-08-01 | IQ2: 2010-09-01 | IR2: 2010-10-01 | IS2: 2010-11-01 | IT2: 2010-12-01 | IU2: 2011-01-01 | IV2: 2011-02-01 | IW2: 2011-03-01 | IX2: 2011-04-01 | IY2: 2011-05-01 | IZ2: 2011-06-01 | JA2: 2011-07-01 | JB2: 2011-08-01 | JC2: 2011-09-01 | JD2: 2011-10-01 | JE2: 2011-11-01 | JF2: 2011-12-01 | JG2: 2012-01-01 | JH2: 2012-02-01 | JI2: 2012-03-01 | JJ2: 2012-04-01 | JK2: 2012-05-01 | JL2: 2012-06-01 | JM2: 2012-07-01 | JN2: 2012-08-01 | JO2: 2012-09-01 | JP2: 2012-10-01 | JQ2: 2012-11-01 | JR2: 2012-12-01 | JS2: 2013-01-01 | JT2: 2013-02-01 | JU2: 2013-03-01 | JV2: 2013-04-01 | JW2: 2013-05-01 | JX2: 2013-06-01 | JY2: 2013-07-01 | JZ2: 2013-08-01 | KA2: 2013-09-01 | KB2: 2013-10-01 | KC2: 2013-11-01 | KD2: 2013-12-01 | KE2: 2014-01-01 | KF2: 2014-02-01 | KG2: 2014-03-01 | KH2: 2014-04-01 | KI2: 2014-05-01 | KJ2: 2014-06-01 | KK2: 2014-07-01 | KL2: 2014-08-01 | KM2: 2014-09-01 | KN2: 2014-10-01 | KO2: 2014-11-01 | KP2: 2014-12-01 | KQ2: 2015-01-01 | KR2: 2015-02-01 | KS2: 2015-03-01 | KT2: 2015-04-01 | KU2: 2015-05-01 | KV2: 2015-06-01 | KW2: 2015-07-01 | KX2: 2015-08-01 | KY2: 2015-09-01 | KZ2: 2015-10-01 | LA2: 2015-11-01 | LB2: 2015-12-01 | LC2: 2016-01-01 | LD2: 2016-02-01 | LE2: 2016-03-01 | LF2: 2016-04-01 | LG2: 2016-05-01 | LH2: 2016-06-01 | LI2: 2016-07-01 | LJ2: 2016-08-01 | LK2: 2016-09-01 | LL2: 2016-10-01 | LM2: 2016-11-01 | LN2: 2016-12-01 | LO2: 2017-01-01 | LP2: 2017-02-01 | LQ2: 2017-03-01 | LR2: 2017-04-01 | LS2: 2017-05-01 | LT2: 2017-06-01 | LU2: 2017-07-01 | LV2: 2017-08-01 | LW2: 2017-09-01 | LX2: 2017-10-01 | LY2: 2017-11-01 | LZ2: 2017-12-01
B3: Hidráulica | C3: 30.4 | D3: 31.4 | E3: 21.3 | F3: 16.6 | G3: 17.4 | H3: 16.8 | I3: 13.8 | J3: 12.1 | K3: 11.2 | L3: 12.8 | M3: 16.8 | N3: 15.3 | O3: 19.9 | P3: 16.8 | Q3: 32.9 | R3: 31.1 | S3: 25.3 | T3: 19.3 | U3: 14.4 | V3: 10.9 | W3: 9.9 | X3: 13.2 | Y3: 16.5 | Z3: 15 | AA3: 9.8 | AB3: 6.3 | AC3: 6.5 | AD3: 14.3 | AE3: 13.5 | AF3: 15.2 | AG3: 13.9 | AH3: 10.8 | AI3: 10.8 | AJ3: 16 | AK3: 19 | AL3: 23.6 | AM3: 16.7 | AN3: 12.8 | AO3: 11.8 | AP3: 10.7 | AQ3: 17.2 | AR3: 20.1 | AS3: 16.2 | AT3: 11.5 | AU3: 10.7 | AV3: 24.1 | AW3: 28 | AX3: 21.3 | AY3: 29 | AZ3: 25.8 | BA3: 23.4 | BB3: 20.7 | BC3: 22.8 | BD3: 20.4 | BE3: 14.5 | BF3: 11.6 | BG3: 10.8 | BH3: 13.4 | BI3: 19.5 | BJ3: 14.6 | BK3: 20.9 | BL3: 23.1 | BM3: 24.9 | BN3: 16.5 | BO3: 14.5 | BP3: 14.5 | BQ3: 12.7 | BR3: 9.1 | BS3: 7.7 | BT3: 8 | BU3: 10.1 | BV3: 18.6 | BW3: 41.1 | BX3: 40.6 | BY3: 27.2 | BZ3: 32.3 | CA3: 31.8 | CB3: 23.7 | CC3: 17.6 | CD3: 13.4 | CE3: 14.8 | CF3: 14 | CG3: 17 | CH3: 30.8 | CI3: 37 | CJ3: 28.2 | CK3: 20.7 | CL3: 17.7 | CM3: 17.1 | CN3: 18.2 | CO3: 14.8 | CP3: 13.2 | CQ3: 12 | CR3: 11 | CS3: 25.1 | CT3: 35.8 | CU3: 40 | CV3: 30.4 | CW3: 19.7 | CX3: 26.5 | CY3: 30.7 | CZ3: 25.1 | DA3: 17.3 | DB3: 15.3 | DC3: 13.1 | DD3: 14.4 | DE3: 10.7 | DF3: 8.4 | DG3: 8.9 | DH3: 9.4 | DI3: 13.6 | DJ3: 16.5 | DK3: 21 | DL3: 17.4 | DM3: 12.6 | DN3: 10.3 | DO3: 10.4 | DP3: 11.9 | DQ3: 18.1 | DR3: 17.3 | DS3: 14.6 | DT3: 10.7 | DU3: 9.7 | DV3: 15.1 | DW3: 22.3 | DX3: 14.8 | DY3: 10.6 | DZ3: 11.3 | EA3: 11.7 | EB3: 11.1 | EC3: 15.1 | ED3: 26.7 | EE3: 34.6 | EF3: 35.4 | EG3: 38.4 | EH3: 29.4 | EI3: 21.3 | EJ3: 15.5 | EK3: 12.1 | EL3: 11.8 | EM3: 9.2 | EN3: 10.7 | EO3: 11.6 | EP3: 8.7 | EQ3: 7.1 | ER3: 7.2 | ES3: 11.2 | ET3: 11.5 | EU3: 11.7 | EV3: 11.2 | EW3: 7.6 | EX3: 6.4 | EY3: 6.2 | EZ3: 7 | FA3: 11.4 | FB3: 23 | FC3: 27.8 | FD3: 23.4 | FE3: 25.1 | FF3: 22.9 | FG3: 21 | FH3: 12.7 | FI3: 9.9 | FJ3: 7.8 | FK3: 9.1 | FL3: 10.7 | FM3: 17.3 | FN3: 24.5 | FO3: 18.2 | FP3: 17.1 | FQ3: 15.2 | FR3: 16 | FS3: 17.8 | FT3: 13.9 | FU3: 10.1 | FV3: 9 | FW3: 7.9 | FX3: 8.9 | FY3: 11.6 | FZ3: 8.6 | GA3: 7 | GB3: 7.4 | GC3: 8.6 | GD3: 11 | GE3: 11.4 | GF3: 8.9 | GG3: 6 | GH3: 5.7 | GI3: 4.1 | GJ3: 4.3 | GK3: 6.5 | GL3: 7.4 | GM3: 6.8 | GN3: 5.4 | GO3: 13.2 | GP3: 14.6 | GQ3: 10.4 | GR3: 7.1 | GS3: 6.4 | GT3: 5 | GU3: 5.2 | GV3: 7.8 | GW3: 14.1 | GX3: 21.2 | GY3: 9.4 | GZ3: 14 | HA3: 17.1 | HB3: 13.9 | HC3: 13.2 | HD3: 10.8 | HE3: 10.6 | HF3: 8.2 | HG3: 6.3 | HH3: 7.6 | HI3: 5.7 | HJ3: 5 | HK3: 5.6 | HL3: 4.1 | HM3: 4.6 | HN3: 12 | HO3: 15.5 | HP3: 14.3 | HQ3: 9 | HR3: 6.8 | HS3: 5.9 | HT3: 4.9 | HU3: 6.9 | HV3: 10.3 | HW3: 9.2 | HX3: 16.2 | HY3: 13.2 | HZ3: 11.1 | IA3: 12.8 | IB3: 10 | IC3: 7.5 | ID3: 6.6 | IE3: 4.7 | IF3: 5.9 | IG3: 9.4 | IH3: 13.8 | II3: 21.3 | IJ3: 18 | IK3: 24.7 | IL3: 22.7 | IM3: 18.4 | IN3: 16.7 | IO3: 12 | IP3: 9.1 | IQ3: 7 | IR3: 7.3 | IS3: 11.5 | IT3: 16.6 | IU3: 20.9 | IV3: 13.6 | IW3: 16.2 | IX3: 17.3 | IY3: 13.5 | IZ3: 9.7 | JA3: 7.3 | JB3: 7 | JC3: 5.7 | JD3: 6 | JE3: 10.1 | JF3: 9.7 | JG3: 6.9 | JH3: 4.8 | JI3: 5.7 | JJ3: 7.9 | JK3: 11.8 | JL3: 9.7 | JM3: 7.4 | JN3: 6 | JO3: 4.7 | JP3: 6.5 | JQ3: 9.3 | JR3: 11.5 | JS3: 12.5 | JT3: 16.3 | JU3: 19.7 | JV3: 25.4 | JW3: 18.9 | JX3: 16 | JY3: 11.8 | JZ3: 10 | KA3: 8.8 | KB3: 9 | KC3: 13 | KD3: 10.6 | KE3: 18.3 | KF3: 26.9 | KG3: 24.7 | KH3: 25.2 | KI3: 14 | KJ3: 12.2 | KK3: 10.8 | KL3: 9.9 | KM3: 8.7 | KN3: 8 | KO3: 12.2 | KP3: 15 | KQ3: 11 | KR3: 15.9 | KS3: 17.6 | KT3: 13.6 | KU3: 14.6 | KV3: 12.2 | KW3: 8.6 | KX3: 7.6 | KY3: 8 | KZ3: 8.4 | LA3: 9.5 | LB3: 7 | LC3: 15.6 | LD3: 19.7 | LE3: 19.9 | LF3: 25.9 | LG3: 26.4 | LH3: 15.3 | LI3: 10.5 | LJ3: 9.9 | LK3: 8.4 | LL3: 8 | LM3: 7.4 | LN3: 9 | LO3: 8.5 | LP3: 9.3 | LQ3: 13.6 | LR3: 9.4 | LS3: 10.1 | LT3: 7.5 | LU3: - | LV3: - | LW3: - | LX3: - | LY3: - | LZ3: -
B4: Nuclear | C4: 40.2 | D4: 40.8 | E4: 37 | F4: 43.2 | G4: 36.8 | H4: 30.6 | I4: 36.7 | J4: 47.1 | K4: 36.2 | L4: 33.8 | M4: 38.3 | N4: 40 | O4: 38.3 | P4: 36.1 | Q4: 35 | R4: 35.4 | S4: 39.8 | T4: 38.5 | U4: 37.1 | V4: 47.3 | W4: 37.5 | X4: 38 | Y4: 35 | Z4: 36 | AA4: 37.2 | AB4: 34 | AC4: 32.1 | AD4: 31.2 | AE4: 36.9 | AF4: 41 | AG4: 39.6 | AH4: 46.9 | AI4: 35.8 | AJ4: 41.2 | AK4: 36.2 | AL4: 42.5 | AM4: 39.9 | AN4: 35.4 | AO4: 37.9 | AP4: 37.3 | AQ4: 35.8 | AR4: 38.1 | AS4: 40.6 | AT4: 44.7 | AU4: 39 | AV4: 38.1 | AW4: 32.9 | AX4: 39.1 | AY4: 36.9 | AZ4: 32.5 | BA4: 32.4 | BB4: 36.1 | BC4: 39 | BD4: 33.2 | BE4: 36 | BF4: 43.5 | BG4: 41.6 | BH4: 35.2 | BI4: 33.4 | BJ4: 39.6 | BK4: 37.6 | BL4: 37.4 | BM4: 34.3 | BN4: 35.9 | BO4: 39.4 | BP4: 37.2 | BQ4: 32.3 | BR4: 35.3 | BS4: 32.1 | BT4: 35.1 | BU4: 35 | BV4: 39.4 | BW4: 36.8 | BX4: 34.3 | BY4: 35.9 | BZ4: 37.8 | CA4: 41.5 | CB4: 30.2 | CC4: 27.8 | CD4: 30.7 | CE4: 31.7 | CF4: 37.4 | CG4: 34.6 | CH4: 38.3 | CI4: 32.8 | CJ4: 34.7 | CK4: 28 | CL4: 30.4 | CM4: 36.9 | CN4: 34.4 | CO4: 33.2 | CP4: 34.5 | CQ4: 30.3 | CR4: 29.6 | CS4: 30.3 | CT4: 28.9 | CU4: 32.5 | CV4: 36.3 | CW4: 31.8 | CX4: 31.6 | CY4: 34.7 | CZ4: 35.5 | DA4: 35.1 | DB4: 38.9 | DC4: 31.8 | DD4: 29.9 | DE4: 30.7 | DF4: 30.3 | DG4: 32.2 | DH4: 26.8 | DI4: 26.7 | DJ4: 26.3 | DK4: 34.7 | DL4: 31.1 | DM4: 29.6 | DN4: 36.7 | DO4: 31.7 | DP4: 34.6 | DQ4: 33.6 | DR4: 32.4 | DS4: 30.7 | DT4: 33.3 | DU4: 30.9 | DV4: 30.1 | DW4: 32.4 | DX4: 32.7 | DY4: 32.7 | DZ4: 32.3 | EA4: 25.6 | EB4: 28.2 | EC4: 30.6 | ED4: 32.5 | EE4: 29.8 | EF4: 28.9 | EG4: 26.8 | EH4: 30.2 | EI4: 34.1 | EJ4: 30.6 | EK4: 31.4 | EL4: 32.1 | EM4: 28.8 | EN4: 28.4 | EO4: 29.6 | EP4: 29.5 | EQ4: 29 | ER4: 28.9 | ES4: 24.7 | ET4: 25.6 | EU4: 27.9 | EV4: 29.1 | EW4: 30.2 | EX4: 32.3 | EY4: 27.4 | EZ4: 30.8 | FA4: 30.6 | FB4: 30.2 | FC4: 27.1 | FD4: 26.2 | FE4: 25.4 | FF4: 27.3 | FG4: 27.1 | FH4: 23.9 | FI4: 27.1 | FJ4: 28.4 | FK4: 22.7 | FL4: 24.2 | FM4: 27.9 | FN4: 27 | FO4: 26.3 | FP4: 25.8 | FQ4: 23.7 | FR4: 27 | FS4: 25.5 | FT4: 25.8 | FU4: 26.2 | FV4: 27.6 | FW4: 24.1 | FX4: 22.8 | FY4: 24.9 | FZ4: 24.4 | GA4: 25 | GB4: 23.5 | GC4: 20.8 | GD4: 19.7 | GE4: 18.8 | GF4: 18.4 | GG4: 17.9 | GH4: 22.8 | GI4: 25.4 | GJ4: 23.5 | GK4: 24.1 | GL4: 23.7 | GM4: 22.6 | GN4: 22.2 | GO4: 22.2 | GP4: 18.8 | GQ4: 21 | GR4: 22.8 | GS4: 20.3 | GT4: 25 | GU4: 20.2 | GV4: 22.2 | GW4: 24.1 | GX4: 23.2 | GY4: 22 | GZ4: 22.2 | HA4: 21.6 | HB4: 21.1 | HC4: 16.2 | HD4: 14.8 | HE4: 16.6 | HF4: 18.5 | HG4: 22.3 | HH4: 21.8 | HI4: 16.6 | HJ4: 20.6 | HK4: 21.3 | HL4: 21.9 | HM4: 22.7 | HN4: 17.7 | HO4: 21.5 | HP4: 20.6 | HQ4: 18.7 | HR4: 22.2 | HS4: 20.3 | HT4: 19.3 | HU4: 17.5 | HV4: 20.4 | HW4: 21.9 | HX4: 20.2 | HY4: 18.6 | HZ4: 20.5 | IA4: 18.3 | IB4: 16.5 | IC4: 17.1 | ID4: 23.9 | IE4: 20.7 | IF4: 18.5 | IG4: 18.3 | IH4: 16.9 | II4: 18.5 | IJ4: 20.5 | IK4: 20.7 | IL4: 23.6 | IM4: 21 | IN4: 22 | IO4: 22.3 | IP4: 24.3 | IQ4: 23.3 | IR4: 24.8 | IS4: 22.4 | IT4: 20.3 | IU4: 19.3 | IV4: 19.5 | IW4: 18.4 | IX4: 21.8 | IY4: 17.7 | IZ4: 22.2 | JA4: 21.4 | JB4: 24.1 | JC4: 23 | JD4: 21.6 | JE4: 21.4 | JF4: 21.6 | JG4: 21.8 | JH4: 21 | JI4: 24.5 | JJ4: 24.9 | JK4: 21.1 | JL4: 16.3 | JM4: 22.7 | JN4: 24.5 | JO4: 25.2 | JP4: 25.3 | JQ4: 19.2 | JR4: 19.2 | JS4: 19.7 | JT4: 20.6 | JU4: 23.6 | JV4: 22 | JW4: 20.2 | JX4: 22 | JY4: 22.4 | JZ4: 23.5 | KA4: 22.9 | KB4: 21 | KC4: 18.9 | KD4: 17.8 | KE4: 20.3 | KF4: 22.3 | KG4: 24.7 | KH4: 25.7 | KI4: 21.8 | KJ4: 17.1 | KK4: 19.5 | KL4: 20.5 | KM4: 23.1 | KN4: 25.4 | KO4: 22 | KP4: 21.4 | KQ4: 22.6 | KR4: 21.6 | KS4: 23.9 | KT4: 24.2 | KU4: 17.9 | KV4: 18.4 | KW4: 20.1 | KX4: 23.2 | KY4: 24.4 | KZ4: 21 | LA4: 20.2 | LB4: 24 | LC4: 22 | LD4: 19.7 | LE4: 24 | LF4: 24.9 | LG4: 20.3 | LH4: 24.9 | LI4: 24.1 | LJ4: 25 | LK4: 25.3 | LL4: 25 | LM4: 18.5 | LN4: 21.1 | LO4: 22.1 | LP4: 24.3 | LQ4: 26.6 | LR4: 27.5 | LS4: 21.7 | LT4: 19.6 | LU4: - | LV4: - | LW4: - | LX4: - | LY4: - | LZ4: -
B5: Carbón | C5: 27.5 | D5: 26.4 | E5: 40.4 | F5: 39.2 | G5: 43.5 | H5: 48.8 | I5: 45.4 | J5: 38.8 | K5: 49.7 | L5: 50.1 | M5: 41.8 | N5: 40.9 | O5: 39.2 | P5: 43.6 | Q5: 30 | R5: 30.9 | S5: 32.1 | T5: 38.8 | U5: 41.7 | V5: 39.1 | W5: 45.7 | X5: 44.8 | Y5: 44.3 | Z5: 44.1 | AA5: 42.5 | AB5: 44.5 | AC5: 48.7 | AD5: 46.9 | AE5: 42.7 | AF5: 41 | AG5: 41.8 | AH5: 38.7 | AI5: 47.2 | AJ5: 39.6 | AK5: 42.4 | AL5: 32 | AM5: 41 | AN5: 47 | AO5: 45.5 | AP5: 47.4 | AQ5: 43.9 | AR5: 38.4 | AS5: 40.4 | AT5: 40.8 | AU5: 46 | AV5: 34.2 | AW5: 35.1 | AX5: 35.7 | AY5: 30 | AZ5: 37.6 | BA5: 39.6 | BB5: 38.2 | BC5: 33.9 | BD5: 41.7 | BE5: 43 | BF5: 40.4 | BG5: 42.6 | BH5: 45.9 | BI5: 41.9 | BJ5: 40 | BK5: 36.3 | BL5: 34.8 | BM5: 35.1 | BN5: 41.4 | BO5: 40.2 | BP5: 41.2 | BQ5: 45.6 | BR5: 48.7 | BS5: 50 | BT5: 45.5 | BU5: 45.8 | BV5: 34 | BW5: 16.7 | BX5: 18.3 | BY5: 29 | BZ5: 21.8 | CA5: 20 | CB5: 38.4 | CC5: 46 | CD5: 47.9 | CE5: 44.7 | CF5: 40.7 | CG5: 39.4 | CH5: 21.7 | CI5: 22 | CJ5: 27 | CK5: 40 | CL5: 40.5 | CM5: 35.2 | CN5: 36.3 | CO5: 38.6 | CP5: 40.5 | CQ5: 44.8 | CR5: 44.7 | CS5: 32.2 | CT5: 23.9 | CU5: 18.7 | CV5: 23.7 | CW5: 37.8 | CX5: 31.8 | CY5: 24.7 | CZ5: 29.2 | DA5: 35.5 | DB5: 32.6 | DC5: 40.7 | DD5: 42.5 | DE5: 41.5 | DF5: 40.8 | DG5: 39.5 | DH5: 40.3 | DI5: 41 | DJ5: 41 | DK5: 31.3 | DL5: 36.4 | DM5: 40 | DN5: 37.1 | DO5: 42.8 | DP5: 40 | DQ5: 33.6 | DR5: 34.3 | DS5: 37.4 | DT5: 41.1 | DU5: 40.1 | DV5: 36.7 | DW5: 32.6 | DX5: 36.7 | DY5: 39.8 | DZ5: 40.4 | EA5: 42.4 | EB5: 42.2 | EC5: 37.6 | ED5: 25.2 | EE5: 20.9 | EF5: 20.6 | EG5: 19.5 | EH5: 25.1 | EI5: 30.1 | EJ5: 35 | EK5: 36.9 | EL5: 37.8 | EM5: 40.4 | EN5: 39.4 | EO5: 36.8 | EP5: 37.7 | EQ5: 36.6 | ER5: 38.8 | ES5: 40.2 | ET5: 39.3 | EU5: 37.6 | EV5: 34.9 | EW5: 34.8 | EX5: 37.2 | EY5: 38.3 | EZ5: 34 | FA5: 34.5 | FB5: 24.5 | FC5: 23.1 | FD5: 27.7 | FE5: 28.5 | FF5: 28.7 | FG5: 29.4 | FH5: 33 | FI5: 33.3 | FJ5: 35.5 | FK5: 36.1 | FL5: 34.4 | FM5: 29.3 | FN5: 24.4 | FO5: 27.2 | FP5: 29.6 | FQ5: 30.4 | FR5: 27.2 | FS5: 28.1 | FT5: 29.7 | FU5: 31.1 | FV5: 32.4 | FW5: 32 | FX5: 31.6 | FY5: 29.3 | FZ5: 31.3 | GA5: 30.5 | GB5: 29.3 | GC5: 29.2 | GD5: 28.8 | GE5: 29.5 | GF5: 28.1 | GG5: 28.8 | GH5: 29 | GI5: 29.4 | GJ5: 30.6 | GK5: 29.5 | GL5: 28.5 | GM5: 28.7 | GN5: 26.3 | GO5: 20.8 | GP5: 18.7 | GQ5: 24.8 | GR5: 26.2 | GS5: 27.6 | GT5: 25.6 | GU5: 25.4 | GV5: 23.1 | GW5: 20.2 | GX5: 18.5 | GY5: 25.2 | GZ5: 22.7 | HA5: 21.2 | HB5: 28.3 | HC5: 27.9 | HD5: 27 | HE5: 25.6 | HF5: 27.3 | HG5: 25.1 | HH5: 23.8 | HI5: 23.2 | HJ5: 24.7 | HK5: 19.9 | HL5: 19.7 | HM5: 15.5 | HN5: 13.6 | HO5: 10 | HP5: 9.2 | HQ5: 15.2 | HR5: 13.6 | HS5: 15.6 | HT5: 18.4 | HU5: 17.7 | HV5: 18.4 | HW5: 18.5 | HX5: 14 | HY5: 14 | HZ5: 9 | IA5: 11.1 | IB5: 11.5 | IC5: 13.7 | ID5: 8.1 | IE5: 12.7 | IF5: 14.3 | IG5: 9.2 | IH5: 7.9 | II5: 7 | IJ5: 6.1 | IK5: 3.6 | IL5: 3.1 | IM5: 3.9 | IN5: 6.2 | IO5: 10.1 | IP5: 12.7 | IQ5: 13.7 | IR5: 9.1 | IS5: 7.2 | IT5: 8.6 | IU5: 8.4 | IV5: 11.3 | IW5: 12.6 | IX5: 12 | IY5: 14.4 | IZ5: 12.9 | JA5: 18.6 | JB5: 18.6 | JC5: 21.6 | JD5: 20.6 | JE5: 18.2 | JF5: 16.9 | JG5: 21.7 | JH5: 21.6 | JI5: 19.9 | JJ5: 12.1 | JK5: 17.8 | JL5: 23.5 | JM5: 20.8 | JN5: 21.6 | JO5: 18.1 | JP5: 19 | JQ5: 18.4 | JR5: 15.9 | JS5: 12.4 | JT5: 11.3 | JU5: 5.7 | JV5: 4.5 | JW5: 9.6 | JX5: 12.5 | JY5: 22.8 | JZ5: 20.5 | KA5: 21.9 | KB5: 19.5 | KC5: 11.6 | KD5: 20.8 | KE5: 9.5 | KF5: 3.6 | KG5: 5.4 | KH5: 6.2 | KI5: 15.9 | KJ5: 24.9 | KK5: 24.6 | KL5: 24.5 | KM5: 27.3 | KN5: 21.7 | KO5: 15.9 | KP5: 18.5 | KQ5: 21.1 | KR5: 13.5 | KS5: 11.9 | KT5: 15.3 | KU5: 14.3 | KV5: 25.9 | KW5: 25.4 | KX5: 24.3 | KY5: 23 | KZ5: 22.1 | LA5: 23.3 | LB5: 22.9 | LC5: 12.2 | LD5: 8.9 | LE5: 7.8 | LF5: 4.5 | LG5: 5.4 | LH5: 10.6 | LI5: 17 | LJ5: 16.5 | LK5: 21.7 | LL5: 21 | LM5: 21.8 | LN5: 24.5 | LO5: 21.6 | LP5: 17 | LQ5: 9 | LR5: 10.6 | LS5: 18.6 | LT5: 20.6 | LU5: - | LV5: - | LW5: - | LX5: - | LY5: - | LZ5: -
B6: Fuel + Gas | C6: 1.6 | D6: 1 | E6: 0.9 | F6: 0.8 | G6: 1.9 | H6: 3.5 | I6: 3.6 | J6: 1.5 | K6: 2.2 | L6: 2.6 | M6: 2.3 | N6: 3.2 | O6: 1.9 | P6: 2.7 | Q6: 1.1 | R6: 1.6 | S6: 1.8 | T6: 2.5 | U6: 5.8 | V6: 1.7 | W6: 5.7 | X6: 2.6 | Y6: 3.1 | Z6: 3.8 | AA6: 9.3 | AB6: 13.9 | AC6: 11.4 | AD6: 6.3 | AE6: 5.6 | AF6: 1.4 | AG6: 3.5 | AH6: 2.1 | AI6: 4.7 | AJ6: 1.6 | AK6: 0.8 | AL6: 0.3 | AM6: 0.7 | AN6: 2.9 | AO6: 2.8 | AP6: 2.4 | AQ6: 0.9 | AR6: 1.1 | AS6: 0.3 | AT6: 0.8 | AU6: 1.6 | AV6: 0.4 | AW6: 0.6 | AX6: 0.6 | AY6: 0.8 | AZ6: 0.7 | BA6: 1 | BB6: 1.1 | BC6: 0.2 | BD6: 0.8 | BE6: 3 | BF6: 0.5 | BG6: 0.7 | BH6: 1 | BI6: 0.5 | BJ6: 1.3 | BK6: 1.1 | BL6: 0.3 | BM6: 1.1 | BN6: 1 | BO6: 0.9 | BP6: 2.4 | BQ6: 4.7 | BR6: 2 | BS6: 4.9 | BT6: 5.5 | BU6: 3.5 | BV6: 2.4 | BW6: 0.1 | BX6: 1.3 | BY6: 1.9 | BZ6: 1.2 | CA6: 0.2 | CB6: 1.3 | CC6: 2 | CD6: 1.2 | CE6: 1.9 | CF6: 0.7 | CG6: 1.8 | CH6: 2 | CI6: 1.7 | CJ6: 3 | CK6: 3.4 | CL6: 3.7 | CM6: 3.2 | CN6: 3.7 | CO6: 5.7 | CP6: 4.3 | CQ6: 5.3 | CR6: 6 | CS6: 3.9 | CT6: 3.5 | CU6: 0.5 | CV6: 0.8 | CW6: 1.1 | CX6: 0.4 | CY6: 0.3 | CZ6: 1.4 | DA6: 3.1 | DB6: 3.7 | DC6: 5 | DD6: 2.8 | DE6: 6.9 | DF6: 10.4 | DG6: 9.4 | DH6: 12.7 | DI6: 7.2 | DJ6: 4 | DK6: 1.2 | DL6: 3.7 | DM6: 7.1 | DN6: 4.8 | DO6: 4 | DP6: 1.1 | DQ6: 2.6 | DR6: 4.1 | DS6: 6.3 | DT6: 3.2 | DU6: 7.1 | DV6: 4.9 | DW6: 1.2 | DX6: 4.2 | DY6: 5.4 | DZ6: 4.8 | EA6: 9.2 | EB6: 6 | EC6: 4.6 | ED6: 2.9 | EE6: 2.7 | EF6: 2.5 | EG6: 2.4 | EH6: 1.1 | EI6: 2.1 | EJ6: 6.9 | EK6: 7.8 | EL6: 7.3 | EM6: 8 | EN6: 7.7 | EO6: 7.5 | EP6: 11.6 | EQ6: 14 | ER6: 9.8 | ES6: 8.3 | ET6: 8.4 | EU6: 6.4 | EV6: 9.4 | EW6: 10.5 | EX6: 5.4 | EY6: 7.2 | EZ6: 5 | FA6: 2.7 | FB6: 2 | FC6: 2.9 | FD6: 2.7 | FE6: 1.1 | FF6: 0.5 | FG6: 1.3 | FH6: 6.6 | FI6: 6 | FJ6: 5.7 | FK6: 5.2 | FL6: 3.5 | FM6: 1.8 | FN6: 2 | FO6: 2.1 | FP6: 1.7 | FQ6: 2.9 | FR6: 0.9 | FS6: 1.7 | FT6: 3.7 | FU6: 5.2 | FV6: 3.7 | FW6: 4.9 | FX6: 3 | FY6: 2.3 | FZ6: 3.2 | GA6: 4.1 | GB6: 5.3 | GC6: 6.5 | GD6: 1.9 | GE6: 2.7 | GF6: 5.7 | GG6: 6.2 | GH6: 2.1 | GI6: 2.6 | GJ6: 1.8 | GK6: 2 | GL6: 3.5 | GM6: 3.2 | GN6: 2.9 | GO6: 1.3 | GP6: 1.5 | GQ6: 1.1 | GR6: 2.5 | GS6: 4.3 | GT6: 1.6 | GU6: 3.6 | GV6: 1.6 | GW6: 0.6 | GX6: 0.5 | GY6: 0.4 | GZ6: 1 | HA6: 0.8 | HB6: 0.5 | HC6: 0.8 | HD6: 0.4 | HE6: 1.2 | HF6: 1 | HG6: 1.1 | HH6: 0.6 | HI6: 0.8 | HJ6: 0.7 | HK6: 0.6 | HL6: 0.5 | HM6: 0.3 | HN6: 0.6 | HO6: 0.7 | HP6: 1.1 | HQ6: 0.6 | HR6: 1.1 | HS6: 0.9 | HT6: 0.9 | HU6: 1 | HV6: 0.8 | HW6: 0.5 | HX6: 0.6 | HY6: 0.9 | HZ6: 0.7 | IA6: 0.5 | IB6: 0.7 | IC6: 0.9 | ID6: 0.8 | IE6: 0.7 | IF6: 0.5 | IG6: 0.8 | IH6: 0.7 | II6: 0.6 | IJ6: 0.6 | IK6: 0.1 | IL6: 0.5 | IM6: 0.8 | IN6: 0.8 | IO6: 0.6 | IP6: 0.5 | IQ6: 0.6 | IR6: 0.6 | IS6: 0.7 | IT6: 0.6 | IU6: 0 | IV6: 0 | IW6: 0 | IX6: 0 | IY6: 0 | IZ6: 0 | JA6: 0 | JB6: 0 | JC6: 0 | JD6: 0 | JE6: 0 | JF6: 0 | JG6: 0 | JH6: 0 | JI6: 0 | JJ6: 0 | JK6: 0 | JL6: 0 | JM6: 0 | JN6: 0 | JO6: 0 | JP6: 0 | JQ6: 0 | JR6: 0 | JS6: 0 | JT6: 0 | JU6: 0 | JV6: 0 | JW6: 0 | JX6: 0 | JY6: 0 | JZ6: 0 | KA6: 0 | KB6: 0 | KC6: 0 | KD6: 0 | KE6: 0 | KF6: 0 | KG6: 0 | KH6: 0 | KI6: 0 | KJ6: 0 | KK6: 0 | KL6: 0 | KM6: 0 | KN6: 0 | KO6: 0 | KP6: 0 | KQ6: 0 | KR6: 0 | KS6: 0 | KT6: 0 | KU6: 0 | KV6: 0 | KW6: 0 | KX6: 0 | KY6: 0 | KZ6: 0 | LA6: 0 | LB6: 0 | LC6: 0 | LD6: 0 | LE6: 0 | LF6: 0 | LG6: 0 | LH6: 0 | LI6: 0 | LJ6: 0 | LK6: 0 | LL6: 0 | LM6: 0 | LN6: 0 | LO6: 0 | LP6: 0 | LQ6: 0 | LR6: 0 | LS6: 0 | LT6: 0 | LU6: - | LV6: - | LW6: - | LX6: - | LY6: - | LZ6: -
B7: Ciclo combinado | C7: - | D7: - | E7: - | F7: - | G7: - | H7: - | I7: - | J7: - | K7: - | L7: - | M7: - | N7: - | O7: - | P7: - | Q7: - | R7: - | S7: - | T7: - | U7: - | V7: - | W7: - | X7: - | Y7: - | Z7: - | AA7: - | AB7: - | AC7: - | AD7: - | AE7: - | AF7: - | AG7: - | AH7: - | AI7: - | AJ7: - | AK7: - | AL7: - | AM7: 0 | AN7: - | AO7: - | AP7: - | AQ7: - | AR7: - | AS7: - | AT7: - | AU7: - | AV7: - | AW7: - | AX7: - | AY7: - | AZ7: - | BA7: - | BB7: - | BC7: - | BD7: - | BE7: - | BF7: - | BG7: - | BH7: - | BI7: - | BJ7: - | BK7: - | BL7: - | BM7: - | BN7: - | BO7: - | BP7: - | BQ7: - | BR7: - | BS7: - | BT7: - | BU7: - | BV7: - | BW7: - | BX7: - | BY7: - | BZ7: - | CA7: - | CB7: - | CC7: - | CD7: - | CE7: - | CF7: - | CG7: - | CH7: - | CI7: - | CJ7: - | CK7: - | CL7: - | CM7: - | CN7: - | CO7: - | CP7: - | CQ7: - | CR7: - | CS7: - | CT7: - | CU7: - | CV7: - | CW7: - | CX7: - | CY7: - | CZ7: - | DA7: - | DB7: - | DC7: - | DD7: - | DE7: - | DF7: - | DG7: - | DH7: - | DI7: - | DJ7: - | DK7: - | DL7: - | DM7: - | DN7: - | DO7: - | DP7: - | DQ7: - | DR7: - | DS7: - | DT7: - | DU7: - | DV7: - | DW7: - | DX7: - | DY7: - | DZ7: - | EA7: - | EB7: - | EC7: - | ED7: - | EE7: - | EF7: - | EG7: - | EH7: - | EI7: - | EJ7: - | EK7: - | EL7: - | EM7: - | EN7: - | EO7: - | EP7: - | EQ7: - | ER7: - | ES7: - | ET7: - | EU7: 0.7 | EV7: 1.8 | EW7: 2.9 | EX7: 4.6 | EY7: 7 | EZ7: 6.6 | FA7: 3.5 | FB7: 2.8 | FC7: 2.1 | FD7: 4.5 | FE7: 4.1 | FF7: 2.3 | FG7: 4.5 | FH7: 9.6 | FI7: 9.7 | FJ7: 9.6 | FK7: 11.2 | FL7: 9.6 | FM7: 6.4 | FN7: 4.2 | FO7: 7.4 | FP7: 9.8 | FQ7: 10.9 | FR7: 9.6 | FS7: 10.6 | FT7: 11.7 | FU7: 13 | FV7: 11.9 | FW7: 15 | FX7: 14.5 | FY7: 13.6 | FZ7: 13.4 | GA7: 15 | GB7: 16.1 | GC7: 15.8 | GD7: 16.9 | GE7: 18.2 | GF7: 22.6 | GG7: 23.9 | GH7: 22.3 | GI7: 22 | GJ7: 20.3 | GK7: 19.4 | GL7: 17.8 | GM7: 23.1 | GN7: 24.9 | GO7: 20.6 | GP7: 24.8 | GQ7: 24.1 | GR7: 25.8 | GS7: 28.3 | GT7: 23.4 | GU7: 29.7 | GV7: 24.2 | GW7: 20.2 | GX7: 18.2 | GY7: 25 | GZ7: 17.7 | HA7: 16.7 | HB7: 19.7 | HC7: 20.2 | HD7: 28.8 | HE7: 28.3 | HF7: 23.9 | HG7: 25.8 | HH7: 27.1 | HI7: 32.1 | HJ7: 29.5 | HK7: 32 | HL7: 34.3 | HM7: 28.7 | HN7: 30.2 | HO7: 33 | HP7: 34.2 | HQ7: 36.6 | HR7: 36.4 | HS7: 35.4 | HT7: 32.3 | HU7: 29.5 | HV7: 23.5 | HW7: 24.1 | HX7: 20.7 | HY7: 23.7 | HZ7: 27.4 | IA7: 27.8 | IB7: 35.6 | IC7: 36.2 | ID7: 37.1 | IE7: 34.9 | IF7: 30.7 | IG7: 25.5 | IH7: 26.3 | II7: 21.9 | IJ7: 21.1 | IK7: 17.4 | IL7: 21 | IM7: 21.6 | IN7: 25.7 | IO7: 28 | IP7: 25.7 | IQ7: 28.7 | IR7: 24.1 | IS7: 24.4 | IT7: 20.4 | IU7: 20.6 | IV7: 21.2 | IW7: 16.7 | IX7: 13.6 | IY7: 20.1 | IZ7: 22.8 | JA7: 20 | JB7: 21.5 | JC7: 20.7 | JD7: 17.8 | JE7: 15.7 | JF7: 14.9 | JG7: 17.8 | JH7: 15.8 | JI7: 13.7 | JJ7: 10.6 | JK7: 11.3 | JL7: 14.4 | JM7: 14.9 | JN7: 15.6 | JO7: 13.7 | JP7: 15.1 | JQ7: 13.9 | JR7: 12.3 | JS7: 11.2 | JT7: 9.1 | JU7: 6.8 | JV7: 5.5 | JW7: 8.3 | JX7: 7 | JY7: 9.7 | JZ7: 11.1 | KA7: 10.8 | KB7: 12.3 | KC7: 9.4 | KD7: 12.4 | KE7: 6.9 | KF7: 6 | KG7: 6 | KH7: 6.3 | KI7: 7.1 | KJ7: 8.8 | KK7: 8.5 | KL7: 10.8 | KM7: 12.8 | KN7: 10.6 | KO7: 9.7 | KP7: 9.1 | KQ7: 9.6 | KR7: 7.9 | KS7: 7.4 | KT7: 8.6 | KU7: 8.1 | KV7: 9.1 | KW7: 14.3 | KX7: 10.9 | KY7: 10 | KZ7: 10.7 | LA7: 10.7 | LB7: 13 | LC7: 9 | LD7: 6.5 | LE7: 6.2 | LF7: 5.8 | LG7: 7.8 | LH7: 9.8 | LI7: 11.1 | LJ7: 9.8 | LK7: 10.8 | LL7: 16.2 | LM7: 16.8 | LN7: 16.1 | LO7: 12.3 | LP7: 7.8 | LQ7: 7.3 | LR7: 7 | LS7: 9.2 | LT7: 15.5 | LU7: - | LV7: - | LW7: - | LX7: - | LY7: - | LZ7: -
B8: Eólica | C8: 0 | D8: 0 | E8: 0 | F8: 0 | G8: 0 | H8: 0 | I8: 0 | J8: 0 | K8: 0 | L8: 0 | M8: 0 | N8: 0 | O8: 0 | P8: 0 | Q8: 0 | R8: 0 | S8: 0 | T8: 0 | U8: 0 | V8: 0 | W8: 0 | X8: 0 | Y8: 0 | Z8: 0 | AA8: 0 | AB8: 0 | AC8: 0 | AD8: 0 | AE8: 0 | AF8: 0 | AG8: 0 | AH8: 0 | AI8: 0 | AJ8: 0 | AK8: 0 | AL8: 0.1 | AM8: 0.1 | AN8: 0.1 | AO8: 0.1 | AP8: 0.1 | AQ8: 0 | AR8: 0.1 | AS8: 0.1 | AT8: 0.1 | AU8: 0.1 | AV8: 0.1 | AW8: 0.1 | AX8: 0 | AY8: 0.1 | AZ8: 0 | BA8: 0.1 | BB8: 0.1 | BC8: 0 | BD8: 0.1 | BE8: 0 | BF8: 0 | BG8: 0 | BH8: 0.1 | BI8: 0.1 | BJ8: 0 | BK8: 0.1 | BL8: 0.1 | BM8: 0.1 | BN8: 0.1 | BO8: 0.1 | BP8: 0.1 | BQ8: 0.1 | BR8: 0.2 | BS8: 0.1 | BT8: 0.2 | BU8: 0.1 | BV8: 0.1 | BW8: 0.1 | BX8: 0.2 | BY8: 0.2 | BZ8: 0.2 | CA8: 0.2 | CB8: 0.2 | CC8: 0.2 | CD8: 0.1 | CE8: 0.2 | CF8: 0.2 | CG8: 0.2 | CH8: 0.3 | CI8: 0.3 | CJ8: 0.3 | CK8: 0.3 | CL8: 0.4 | CM8: 0.3 | CN8: 0.3 | CO8: 0.4 | CP8: 0.3 | CQ8: 0.3 | CR8: 0.5 | CS8: 0.5 | CT8: 0.5 | CU8: 0.6 | CV8: 0.5 | CW8: 0.7 | CX8: 0.7 | CY8: 0.7 | CZ8: 0.5 | DA8: 0.7 | DB8: 1 | DC8: 0.7 | DD8: 0.7 | DE8: 0.9 | DF8: 0.9 | DG8: 1 | DH8: 1.5 | DI8: 1.4 | DJ8: 1.4 | DK8: 1.2 | DL8: 1.5 | DM8: 1.1 | DN8: 1 | DO8: 1.2 | DP8: 1.4 | DQ8: 2 | DR8: 1.9 | DS8: 1.7 | DT8: 1.9 | DU8: 2.1 | DV8: 2.8 | DW8: 1.5 | DX8: 2.3 | DY8: 2.2 | DZ8: 2 | EA8: 1.8 | EB8: 2.6 | EC8: 3.3 | ED8: 3.6 | EE8: 3.2 | EF8: 3.5 | EG8: 3.8 | EH8: 4.3 | EI8: 2.6 | EJ8: 2.5 | EK8: 2.3 | EL8: 2.3 | EM8: 3.7 | EN8: 3.4 | EO8: 4.4 | EP8: 3 | EQ8: 3.5 | ER8: 4.7 | ES8: 4.7 | ET8: 3.8 | EU8: 4.8 | EV8: 3.7 | EW8: 3.8 | EX8: 3.6 | EY8: 3 | EZ8: 5 | FA8: 6 | FB8: 6.6 | FC8: 6.9 | FD8: 5.3 | FE8: 4.6 | FF8: 6.7 | FG8: 5.1 | FH8: 3.8 | FI8: 3.6 | FJ8: 2.9 | FK8: 4.3 | FL8: 5.8 | FM8: 6.2 | FN8: 7 | FO8: 8.1 | FP8: 5.4 | FQ8: 6.1 | FR8: 8 | FS8: 5.4 | FT8: 5.3 | FU8: 4.6 | FV8: 5.7 | FW8: 5.9 | FX8: 8.3 | FY8: 7.4 | FZ8: 8.3 | GA8: 8.4 | GB8: 8.4 | GC8: 8.3 | GD8: 10.1 | GE8: 7.8 | GF8: 6.1 | GG8: 7.4 | GH8: 8.3 | GI8: 6.3 | GJ8: 9.5 | GK8: 9.1 | GL8: 10.4 | GM8: 6.5 | GN8: 8.8 | GO8: 12.2 | GP8: 10.4 | GQ8: 8.2 | GR8: 6.4 | GS8: 5 | GT8: 10.5 | GU8: 6.9 | GV8: 11.2 | GW8: 10.8 | GX8: 9.4 | GY8: 8.9 | GZ8: 13.3 | HA8: 13.5 | HB8: 6.6 | HC8: 12.1 | HD8: 8.3 | HE8: 8.1 | HF8: 11.2 | HG8: 9.3 | HH8: 8.5 | HI8: 11.6 | HJ8: 9.7 | HK8: 10.6 | HL8: 8.7 | HM8: 17.3 | HN8: 14.7 | HO8: 8 | HP8: 9.4 | HQ8: 8.8 | HR8: 8.7 | HS8: 9.6 | HT8: 11.1 | HU8: 15 | HV8: 15.1 | HW8: 14.1 | HX8: 15 | HY8: 14.6 | HZ8: 15.4 | IA8: 13.4 | IB8: 10.9 | IC8: 10.3 | ID8: 10.1 | IE8: 11.6 | IF8: 14.6 | IG8: 22.1 | IH8: 21.1 | II8: 17.7 | IJ8: 20.5 | IK8: 19.3 | IL8: 12.7 | IM8: 17.2 | IN8: 12.1 | IO8: 11.6 | IP8: 13 | IQ8: 10.6 | IR8: 18.1 | IS8: 19.2 | IT8: 19.4 | IU8: 16.5 | IV8: 18.4 | IW8: 19.9 | IX8: 16.6 | IY8: 15.3 | IZ8: 13.9 | JA8: 14.5 | JB8: 12.5 | JC8: 10.7 | JD8: 15.1 | JE8: 17.9 | JF8: 20.4 | JG8: 15.3 | JH8: 20.5 | JI8: 17 | JJ8: 25.4 | JK8: 17.4 | JL8: 15.9 | JM8: 13.3 | JN8: 14 | JO8: 18.7 | JP8: 14.7 | JQ8: 21.7 | JR8: 24 | JS8: 27.1 | JT8: 24.9 | JU8: 26.1 | JV8: 21.7 | JW8: 19.9 | JX8: 19.4 | JY8: 12.4 | JZ8: 16 | KA8: 15.5 | KB8: 19.2 | KC8: 29.8 | KD8: 22 | KE8: 29.2 | KF8: 27.8 | KG8: 23.6 | KH8: 20.1 | KI8: 20.7 | KJ8: 16.3 | KK8: 16.5 | KL8: 13.8 | KM8: 10.2 | KN8: 16.7 | KO8: 25.6 | KP8: 21.7 | KQ8: 21.2 | KR8: 27.2 | KS8: 22.3 | KT8: 20.2 | KU8: 24.2 | KV8: 14 | KW8: 12.8 | KX8: 15.1 | KY8: 15 | KZ8: 19.9 | LA8: 18.8 | LB8: 17.4 | LC8: 26.7 | LD8: 30.1 | LE8: 25.1 | LF8: 21.8 | LG8: 20.3 | LH8: 16.7 | LI8: 16.1 | LJ8: 17.5 | LK8: 13.4 | LL8: 11.6 | LM8: 19 | LN8: 13 | LO8: 20.2 | LP8: 25.1 | LQ8: 23.6 | LR8: 23.3 | LS8: 18 | LT8: 15.2 | LU8: - | LV8: - | LW8: - | LX8: - | LY8: - | LZ8: -
B9: Solar fotovoltaica | C9: 0 | D9: 0 | E9: 0 | F9: 0 | G9: 0 | H9: 0 | I9: 0 | J9: 0 | K9: 0 | L9: 0 | M9: 0 | N9: 0 | O9: 0 | P9: 0 | Q9: 0 | R9: 0 | S9: 0 | T9: 0 | U9: 0 | V9: 0 | W9: 0 | X9: 0 | Y9: 0 | Z9: 0 | AA9: 0 | AB9: 0 | AC9: 0 | AD9: 0 | AE9: 0 | AF9: 0 | AG9: 0 | AH9: 0 | AI9: 0 | AJ9: 0 | AK9: 0 | AL9: 0 | AM9: 0 | AN9: 0 | AO9: 0 | AP9: 0 | AQ9: 0 | AR9: 0 | AS9: 0 | AT9: 0 | AU9: 0 | AV9: 0 | AW9: 0 | AX9: 0 | AY9: 0 | AZ9: 0 | BA9: 0 | BB9: 0 | BC9: 0 | BD9: 0 | BE9: 0 | BF9: 0 | BG9: 0 | BH9: 0 | BI9: 0 | BJ9: 0 | BK9: 0 | BL9: 0 | BM9: 0 | BN9: 0 | BO9: 0 | BP9: 0 | BQ9: 0 | BR9: 0 | BS9: 0 | BT9: 0 | BU9: 0 | BV9: 0 | BW9: 0 | BX9: 0 | BY9: 0 | BZ9: 0 | CA9: 0 | CB9: 0 | CC9: 0 | CD9: 0 | CE9: 0 | CF9: 0 | CG9: 0 | CH9: 0 | CI9: 0 | CJ9: 0 | CK9: 0 | CL9: 0 | CM9: 0 | CN9: 0 | CO9: 0 | CP9: 0 | CQ9: 0 | CR9: 0 | CS9: 0 | CT9: 0 | CU9: 0 | CV9: 0 | CW9: 0 | CX9: 0 | CY9: 0 | CZ9: 0 | DA9: 0 | DB9: 0 | DC9: 0 | DD9: 0 | DE9: 0 | DF9: 0 | DG9: 0 | DH9: 0 | DI9: 0 | DJ9: 0 | DK9: 0 | DL9: 0 | DM9: 0 | DN9: 0 | DO9: 0 | DP9: 0 | DQ9: 0 | DR9: 0 | DS9: 0 | DT9: 0 | DU9: 0 | DV9: 0 | DW9: 0 | DX9: 0 | DY9: 0 | DZ9: 0 | EA9: 0 | EB9: 0 | EC9: 0 | ED9: 0 | EE9: 0 | EF9: 0 | EG9: 0 | EH9: 0 | EI9: 0 | EJ9: 0 | EK9: 0 | EL9: 0 | EM9: 0 | EN9: 0 | EO9: 0 | EP9: 0 | EQ9: 0 | ER9: 0 | ES9: 0 | ET9: 0 | EU9: 0 | EV9: 0 | EW9: 0 | EX9: 0 | EY9: 0 | EZ9: 0 | FA9: 0 | FB9: 0 | FC9: 0 | FD9: 0 | FE9: 0 | FF9: 0 | FG9: 0 | FH9: 0 | FI9: 0 | FJ9: 0 | FK9: 0 | FL9: 0 | FM9: 0 | FN9: 0 | FO9: 0 | FP9: 0 | FQ9: 0 | FR9: 0 | FS9: 0 | FT9: 0 | FU9: 0 | FV9: 0 | FW9: 0 | FX9: 0 | FY9: 0 | FZ9: 0 | GA9: 0 | GB9: 0 | GC9: 0 | GD9: 0 | GE9: 0 | GF9: 0 | GG9: 0 | GH9: 0 | GI9: 0 | GJ9: 0 | GK9: 0 | GL9: 0 | GM9: 0 | GN9: 0 | GO9: 0 | GP9: 0 | GQ9: 0 | GR9: 0 | GS9: 0 | GT9: 0.1 | GU9: 0.1 | GV9: 0 | GW9: 0 | GX9: 0 | GY9: 0 | GZ9: 0.1 | HA9: 0.1 | HB9: 0.1 | HC9: 0.2 | HD9: 0.2 | HE9: 0.2 | HF9: 0.3 | HG9: 0.3 | HH9: 0.2 | HI9: 0.2 | HJ9: 0.2 | HK9: 0.2 | HL9: 0.3 | HM9: 0.4 | HN9: 0.6 | HO9: 0.6 | HP9: 0.9 | HQ9: 1 | HR9: 1.3 | HS9: 1.4 | HT9: 1.4 | HU9: 1.4 | HV9: 1 | HW9: 1 | HX9: 1.8 | HY9: 2.4 | HZ9: 2.8 | IA9: 3.2 | IB9: 2.9 | IC9: 2.9 | ID9: 2.9 | IE9: 2.3 | IF9: 2.3 | IG9: 1.6 | IH9: 1 | II9: 1 | IJ9: 1.3 | IK9: 1.9 | IL9: 2.7 | IM9: 3.2 | IN9: 3.1 | IO9: 3.1 | IP9: 3.1 | IQ9: 2.8 | IR9: 2.4 | IS9: 1.6 | IT9: 1.2 | IU9: 1.4 | IV9: 2.2 | IW9: 2.2 | IX9: 3.1 | IY9: 3.5 | IZ9: 3.7 | JA9: 3.6 | JB9: 3.5 | JC9: 3.2 | JD9: 2.9 | JE9: 1.6 | JF9: 1.8 | JG9: 2 | JH9: 2.6 | JI9: 3.3 | JJ9: 3 | JK9: 3.9 | JL9: 3.9 | JM9: 4 | JN9: 3.7 | JO9: 3.1 | JP9: 2.7 | JQ9: 1.6 | JR9: 1.7 | JS9: 1.8 | JT9: 2.3 | JU9: 2.4 | JV9: 3.6 | JW9: 4.2 | JX9: 4.5 | JY9: 4.1 | JZ9: 4 | KA9: 3.5 | KB9: 2.9 | KC9: 2.3 | KD9: 1.9 | KE9: 1.6 | KF9: 1.9 | KG9: 3.3 | KH9: 3.8 | KI9: 4.4 | KJ9: 4.3 | KK9: 4.2 | KL9: 4.2 | KM9: 3.1 | KN9: 3.1 | KO9: 1.8 | KP9: 2 | KQ9: 2.1 | KR9: 2.1 | KS9: 3.1 | KT9: 3.7 | KU9: 4.4 | KV9: 4.1 | KW9: 3.7 | KX9: 3.7 | KY9: 3.5 | KZ9: 2.6 | LA9: 2.6 | LB9: 1.8 | LC9: 1.6 | LD9: 2.2 | LE9: 3.1 | LF9: 3.4 | LG9: 4 | LH9: 4.6 | LI9: 4.1 | LJ9: 4.1 | LK9: 3.7 | LL9: 2.7 | LM9: 2 | LN9: 1.7 | LO9: 1.9 | LP9: 2.1 | LQ9: 3.4 | LR9: 4.4 | LS9: 4.3 | LT9: 4.1 | LU9: - | LV9: - | LW9: - | LX9: - | LY9: - | LZ9: -
B10: Solar térmica | C10: - | D10: - | E10: - | F10: - | G10: - | H10: - | I10: - | J10: - | K10: - | L10: - | M10: - | N10: - | O10: - | P10: - | Q10: - | R10: - | S10: - | T10: - | U10: - | V10: - | W10: - | X10: - | Y10: - | Z10: - | AA10: - | AB10: - | AC10: - | AD10: - | AE10: - | AF10: - | AG10: - | AH10: - | AI10: - | AJ10: - | AK10: - | AL10: - | AM10: - | AN10: - | AO10: - | AP10: - | AQ10: - | AR10: - | AS10: - | AT10: - | AU10: - | AV10: - | AW10: - | AX10: - | AY10: - | AZ10: - | BA10: - | BB10: - | BC10: - | BD10: - | BE10: - | BF10: - | BG10: - | BH10: - | BI10: - | BJ10: - | BK10: - | BL10: - | BM10: - | BN10: - | BO10: - | BP10: - | BQ10: - | BR10: - | BS10: - | BT10: - | BU10: - | BV10: - | BW10: - | BX10: - | BY10: - | BZ10: - | CA10: - | CB10: - | CC10: - | CD10: - | CE10: - | CF10: - | CG10: - | CH10: - | CI10: - | CJ10: - | CK10: - | CL10: - | CM10: - | CN10: - | CO10: - | CP10: - | CQ10: - | CR10: - | CS10: - | CT10: - | CU10: - | CV10: - | CW10: - | CX10: - | CY10: - | CZ10: - | DA10: - | DB10: - | DC10: - | DD10: - | DE10: - | DF10: - | DG10: - | DH10: - | DI10: - | DJ10: - | DK10: - | DL10: - | DM10: - | DN10: - | DO10: - | DP10: - | DQ10: - | DR10: - | DS10: - | DT10: - | DU10: - | DV10: - | DW10: - | DX10: - | DY10: - | DZ10: - | EA10: - | EB10: - | EC10: - | ED10: - | EE10: - | EF10: - | EG10: - | EH10: - | EI10: - | EJ10: - | EK10: - | EL10: - | EM10: - | EN10: - | EO10: - | EP10: - | EQ10: - | ER10: - | ES10: - | ET10: - | EU10: - | EV10: - | EW10: - | EX10: - | EY10: - | EZ10: - | FA10: - | FB10: - | FC10: - | FD10: - | FE10: - | FF10: - | FG10: - | FH10: - | FI10: - | FJ10: - | FK10: - | FL10: - | FM10: - | FN10: - | FO10: - | FP10: - | FQ10: - | FR10: - | FS10: - | FT10: - | FU10: - | FV10: - | FW10: - | FX10: - | FY10: - | FZ10: - | GA10: - | GB10: - | GC10: - | GD10: - | GE10: - | GF10: - | GG10: - | GH10: - | GI10: - | GJ10: - | GK10: - | GL10: - | GM10: 0 | GN10: 0 | GO10: 0 | GP10: 0 | GQ10: 0 | GR10: 0 | GS10: 0 | GT10: 0 | GU10: 0 | GV10: 0 | GW10: 0 | GX10: 0 | GY10: 0 | GZ10: 0 | HA10: 0 | HB10: 0 | HC10: 0 | HD10: 0 | HE10: 0 | HF10: 0 | HG10: 0 | HH10: 0 | HI10: 0 | HJ10: 0 | HK10: 0 | HL10: 0 | HM10: 0 | HN10: 0 | HO10: 0 | HP10: 0 | HQ10: 0 | HR10: 0 | HS10: 0 | HT10: 0 | HU10: 0 | HV10: 0 | HW10: 0 | HX10: 0 | HY10: 0 | HZ10: 0 | IA10: 0 | IB10: 0 | IC10: 0.1 | ID10: 0.1 | IE10: 0.1 | IF10: 0.1 | IG10: 0.1 | IH10: 0 | II10: 0.1 | IJ10: 0.1 | IK10: 0.1 | IL10: 0.2 | IM10: 0.3 | IN10: 0.3 | IO10: 0.4 | IP10: 0.5 | IQ10: 0.5 | IR10: 0.3 | IS10: 0.1 | IT10: 0.1 | IU10: 0.1 | IV10: 0.4 | IW10: 0.4 | IX10: 0.7 | IY10: 0.7 | IZ10: 1.1 | JA10: 1.3 | JB10: 1.1 | JC10: 1.1 | JD10: 0.8 | JE10: 0.4 | JF10: 0.4 | JG10: 0.5 | JH10: 0.8 | JI10: 1.1 | JJ10: 0.9 | JK10: 1.6 | JL10: 1.9 | JM10: 2.4 | JN10: 2.2 | JO10: 1.8 | JP10: 1.3 | JQ10: 0.6 | JR10: 0.6 | JS10: 0.5 | JT10: 1 | JU10: 0.6 | JV10: 1.5 | JW10: 2.5 | JX10: 3.3 | JY10: 3.3 | JZ10: 3.1 | KA10: 2.3 | KB10: 1.4 | KC10: 0.9 | KD10: 0.7 | KE10: 0.4 | KF10: 0.5 | KG10: 1.8 | KH10: 2.2 | KI10: 3.7 | KJ10: 3.4 | KK10: 3.7 | KL10: 4 | KM10: 1.9 | KN10: 1.4 | KO10: 0.5 | KP10: 0.6 | KQ10: 0.8 | KR10: 0.9 | KS10: 1.9 | KT10: 2 | KU10: 3.5 | KV10: 3.6 | KW10: 3.7 | KX10: 2.8 | KY10: 2.4 | KZ10: 1 | LA10: 1.2 | LB10: 0.4 | LC10: 0.3 | LD10: 0.7 | LE10: 1.8 | LF10: 2 | LG10: 2.6 | LH10: 4.2 | LI10: 3.8 | LJ10: 3.9 | LK10: 3 | LL10: 1.4 | LM10: 0.7 | LN10: 0.6 | LO10: 0.6 | LP10: 0.5 | LQ10: 1.7 | LR10: 3 | LS10: 3.2 | LT10: 3.8 | LU10: - | LV10: - | LW10: - | LX10: - | LY10: - | LZ10: -
B11: Térmica renovable/Otras renovables | C11: - | D11: - | E11: - | F11: - | G11: - | H11: - | I11: - | J11: - | K11: - | L11: - | M11: - | N11: - | O11: - | P11: - | Q11: - | R11: - | S11: - | T11: - | U11: - | V11: - | W11: - | X11: 0 | Y11: 0 | Z11: 0 | AA11: 0 | AB11: 0 | AC11: 0 | AD11: 0 | AE11: 0 | AF11: 0 | AG11: 0 | AH11: 0 | AI11: 0 | AJ11: 0 | AK11: 0 | AL11: 0 | AM11: 0 | AN11: 0 | AO11: 0 | AP11: 0 | AQ11: 0 | AR11: 0 | AS11: 0 | AT11: 0 | AU11: 0 | AV11: 0.1 | AW11: 0.1 | AX11: 0 | AY11: 0 | AZ11: 0 | BA11: 0.1 | BB11: 0.1 | BC11: 0.2 | BD11: 0.1 | BE11: 0.2 | BF11: 0.3 | BG11: 0.3 | BH11: 0.3 | BI11: 0.5 | BJ11: 0.5 | BK11: 0.4 | BL11: 0.5 | BM11: 0.5 | BN11: 0.5 | BO11: 0.5 | BP11: 0.3 | BQ11: 0.4 | BR11: 0.5 | BS11: 0.5 | BT11: 0.5 | BU11: 0.4 | BV11: 0.5 | BW11: 0.4 | BX11: 0.4 | BY11: 0.5 | BZ11: 0.6 | CA11: 0.5 | CB11: 0.6 | CC11: 0.6 | CD11: 0.6 | CE11: 0.6 | CF11: 0.5 | CG11: 0.4 | CH11: 0.4 | CI11: 0.4 | CJ11: 0.4 | CK11: 0.4 | CL11: 0.4 | CM11: 0.4 | CN11: 0.3 | CO11: 0.4 | CP11: 0.4 | CQ11: 0.4 | CR11: 0.4 | CS11: 0.4 | CT11: 0.4 | CU11: 0.2 | CV11: 0.4 | CW11: 0.4 | CX11: 0.5 | CY11: 0.5 | CZ11: 0.5 | DA11: 0.5 | DB11: 0.5 | DC11: 0.4 | DD11: 0.5 | DE11: 0.5 | DF11: 0.4 | DG11: 0.4 | DH11: 0.5 | DI11: 0.5 | DJ11: 0.5 | DK11: 0.5 | DL11: 0.4 | DM11: 0.5 | DN11: 0.6 | DO11: 0.6 | DP11: 0.6 | DQ11: 0.5 | DR11: 0.5 | DS11: 0.4 | DT11: 0.5 | DU11: 0.5 | DV11: 0.5 | DW11: 0.4 | DX11: 0.4 | DY11: 0.5 | DZ11: 0.5 | EA11: 0.5 | EB11: 0.6 | EC11: 0.6 | ED11: 0.6 | EE11: 0.6 | EF11: 0.6 | EG11: 0.7 | EH11: 0.7 | EI11: 0.7 | EJ11: 1 | EK11: 0.9 | EL11: 0.9 | EM11: 1.1 | EN11: 1.1 | EO11: 1 | EP11: 1 | EQ11: 0.5 | ER11: 0.6 | ES11: 0.7 | ET11: 0.7 | EU11: 0.7 | EV11: 0.6 | EW11: 0.7 | EX11: 0.8 | EY11: 0.8 | EZ11: 0.7 | FA11: 0.7 | FB11: 0.8 | FC11: 0.6 | FD11: 0.7 | FE11: 0.8 | FF11: 0.8 | FG11: 0.8 | FH11: 0.7 | FI11: 0.7 | FJ11: 0.8 | FK11: 0.9 | FL11: 0.9 | FM11: 0.8 | FN11: 0.8 | FO11: 0.8 | FP11: 0.7 | FQ11: 0.8 | FR11: 0.8 | FS11: 0.8 | FT11: 0.7 | FU11: 0.7 | FV11: 0.7 | FW11: 0.8 | FX11: 0.8 | FY11: 0.7 | FZ11: 0.8 | GA11: 0.8 | GB11: 0.7 | GC11: 0.8 | GD11: 0.8 | GE11: 0.9 | GF11: 0.8 | GG11: 0.8 | GH11: 0.9 | GI11: 0.8 | GJ11: 0.8 | GK11: 0.8 | GL11: 0.7 | GM11: 0.7 | GN11: 0.7 | GO11: 0.8 | GP11: 0.9 | GQ11: 0.9 | GR11: 0.9 | GS11: 0.8 | GT11: 0.9 | GU11: 0.9 | GV11: 0.9 | GW11: 0.8 | GX11: 0.8 | GY11: 0.8 | GZ11: 0.8 | HA11: 0.9 | HB11: 0.9 | HC11: 0.9 | HD11: 0.9 | HE11: 0.9 | HF11: 0.9 | HG11: 0.9 | HH11: 1 | HI11: 0.9 | HJ11: 0.9 | HK11: 0.9 | HL11: 0.9 | HM11: 0.9 | HN11: 1 | HO11: 1 | HP11: 1 | HQ11: 0.9 | HR11: 1 | HS11: 1 | HT11: 1 | HU11: 1 | HV11: 0.9 | HW11: 1 | HX11: 1.1 | HY11: 1.2 | HZ11: 1.4 | IA11: 1.2 | IB11: 1.1 | IC11: 1 | ID11: 1.1 | IE11: 1.2 | IF11: 1.5 | IG11: 1.1 | IH11: 1.1 | II11: 1 | IJ11: 1 | IK11: 1 | IL11: 1.2 | IM11: 1.3 | IN11: 1.3 | IO11: 1.1 | IP11: 1.3 | IQ11: 1.2 | IR11: 1.3 | IS11: 1.2 | IT11: 1.2 | IU11: 1.5 | IV11: 1.5 | IW11: 1.5 | IX11: 1.7 | IY11: 1.6 | IZ11: 1.6 | JA11: 1.6 | JB11: 1.6 | JC11: 1.7 | JD11: 1.8 | JE11: 1.8 | JF11: 1.7 | JG11: 1.7 | JH11: 1.5 | JI11: 1.8 | JJ11: 1.8 | JK11: 1.7 | JL11: 1.9 | JM11: 1.9 | JN11: 1.8 | JO11: 1.8 | JP11: 1.9 | JQ11: 1.9 | JR11: 1.9 | JS11: 1.9 | JT11: 1.9 | JU11: 2.1 | JV11: 2.1 | JW11: 2.2 | JX11: 2 | JY11: 1.9 | JZ11: 2 | KA11: 1.9 | KB11: 2 | KC11: 1.9 | KD11: 2 | KE11: 1.9 | KF11: 1.6 | KG11: 1.7 | KH11: 1.7 | KI11: 2.1 | KJ11: 2 | KK11: 1.9 | KL11: 2.2 | KM11: 2 | KN11: 1.9 | KO11: 1.9 | KP11: 1.8 | KQ11: 1 | KR11: 0.9 | KS11: 1.1 | KT11: 0.9 | KU11: 1.1 | KV11: 1.3 | KW11: 1.3 | KX11: 1.5 | KY11: 1.5 | KZ11: 1.6 | LA11: 1.5 | LB11: 1.4 | LC11: 1.3 | LD11: 1.3 | LE11: 1.2 | LF11: 1 | LG11: 1.4 | LH11: 1.5 | LI11: 1.4 | LJ11: 1.6 | LK11: 1.5 | LL11: 1.5 | LM11: 1.5 | LN11: 1.5 | LO11: 1.4 | LP11: 1.5 | LQ11: 1.4 | LR11: 1.3 | LS11: 1.6 | LT11: 1.5 | LU11: - | LV11: - | LW11: - | LX11: - | LY11: - | LZ11: -
B12: Térmica no renovable/Cogeneración y resto/Cogeneración | C12: 0.3 | D12: 0.4 | E12: 0.4 | F12: 0.2 | G12: 0.4 | H12: 0.3 | I12: 0.5 | J12: 0.5 | K12: 0.7 | L12: 0.7 | M12: 0.8 | N12: 0.6 | O12: 0.7 | P12: 0.8 | Q12: 1 | R12: 1 | S12: 1 | T12: 0.9 | U12: 1 | V12: 1 | W12: 1.2 | X12: 1.4 | Y12: 1.1 | Z12: 1.1 | AA12: 1.2 | AB12: 1.3 | AC12: 1.3 | AD12: 1.3 | AE12: 1.3 | AF12: 1.4 | AG12: 1.2 | AH12: 1.5 | AI12: 1.5 | AJ12: 1.6 | AK12: 1.6 | AL12: 1.5 | AM12: 1.6 | AN12: 1.8 | AO12: 1.9 | AP12: 2.1 | AQ12: 2.2 | AR12: 2.2 | AS12: 2.4 | AT12: 2.1 | AU12: 2.6 | AV12: 3 | AW12: 3.2 | AX12: 3.3 | AY12: 3.2 | AZ12: 3.4 | BA12: 3.4 | BB12: 3.7 | BC12: 3.9 | BD12: 3.7 | BE12: 3.3 | BF12: 3.7 | BG12: 4 | BH12: 4.1 | BI12: 4.1 | BJ12: 4 | BK12: 3.6 | BL12: 3.8 | BM12: 4 | BN12: 4.6 | BO12: 4.4 | BP12: 4.3 | BQ12: 4.2 | BR12: 4.2 | BS12: 4.7 | BT12: 5.2 | BU12: 5.1 | BV12: 5 | BW12: 4.8 | BX12: 4.9 | BY12: 5.3 | BZ12: 6.1 | CA12: 5.8 | CB12: 5.6 | CC12: 5.8 | CD12: 6.1 | CE12: 6.1 | CF12: 6.5 | CG12: 6.6 | CH12: 6.5 | CI12: 5.8 | CJ12: 6.4 | CK12: 7.2 | CL12: 6.9 | CM12: 6.9 | CN12: 6.8 | CO12: 6.9 | CP12: 6.8 | CQ12: 6.9 | CR12: 7.8 | CS12: 7.6 | CT12: 7 | CU12: 7.5 | CV12: 7.9 | CW12: 8.5 | CX12: 8.5 | CY12: 8.4 | CZ12: 7.8 | DA12: 7.8 | DB12: 8 | DC12: 8.3 | DD12: 9.2 | DE12: 8.8 | DF12: 8.8 | DG12: 8.6 | DH12: 8.8 | DI12: 9.6 | DJ12: 10.3 | DK12: 10.1 | DL12: 9.5 | DM12: 9.1 | DN12: 9.5 | DO12: 9.3 | DP12: 10.4 | DQ12: 9.6 | DR12: 9.5 | DS12: 8.9 | DT12: 9.3 | DU12: 9.6 | DV12: 9.9 | DW12: 9.6 | DX12: 8.9 | DY12: 8.8 | DZ12: 8.7 | EA12: 8.8 | EB12: 9.3 | EC12: 8.2 | ED12: 8.5 | EE12: 8.2 | EF12: 8.5 | EG12: 8.4 | EH12: 9.2 | EI12: 9.1 | EJ12: 8.5 | EK12: 8.6 | EL12: 7.8 | EM12: 8.8 | EN12: 9.3 | EO12: 9.1 | EP12: 8.5 | EQ12: 9.3 | ER12: 10 | ES12: 10.2 | ET12: 10.7 | EU12: 10.2 | EV12: 9.3 | EW12: 9.5 | EX12: 9.7 | EY12: 10.1 | EZ12: 10.9 | FA12: 10.6 | FB12: 10.1 | FC12: 9.5 | FD12: 9.5 | FE12: 10.4 | FF12: 10.8 | FG12: 10.8 | FH12: 9.7 | FI12: 9.7 | FJ12: 9.3 | FK12: 10.5 | FL12: 10.9 | FM12: 10.3 | FN12: 10.1 | FO12: 9.9 | FP12: 9.9 | FQ12: 10 | FR12: 10.5 | FS12: 10.1 | FT12: 9.2 | FU12: 9.1 | FV12: 9 | FW12: 9.4 | FX12: 10.1 | FY12: 10.2 | FZ12: 10 | GA12: 9.2 | GB12: 9.3 | GC12: 10 | GD12: 10.8 | GE12: 10.7 | GF12: 9.4 | GG12: 9 | GH12: 8.9 | GI12: 9.4 | GJ12: 9.2 | GK12: 8.6 | GL12: 8 | GM12: 8.4 | GN12: 8.8 | GO12: 8.9 | GP12: 10.3 | GQ12: 9.5 | GR12: 8.3 | GS12: 7.3 | GT12: 7.9 | GU12: 8 | GV12: 9 | GW12: 9.2 | GX12: 8.2 | GY12: 8.3 | GZ12: 8.2 | HA12: 8.1 | HB12: 8.9 | HC12: 8.5 | HD12: 8.8 | HE12: 8.5 | HF12: 8.7 | HG12: 8.9 | HH12: 9.4 | HI12: 8.9 | HJ12: 8.7 | HK12: 8.9 | HL12: 9.6 | HM12: 9.6 | HN12: 9.6 | HO12: 9.7 | HP12: 9.3 | HQ12: 9.2 | HR12: 8.9 | HS12: 9.9 | HT12: 10.7 | HU12: 10 | HV12: 9.6 | HW12: 9.7 | HX12: 10.4 | HY12: 11.4 | HZ12: 11.7 | IA12: 11.7 | IB12: 10.8 | IC12: 10.3 | ID12: 9.3 | IE12: 11.1 | IF12: 11.6 | IG12: 11.9 | IH12: 11.2 | II12: 10.9 | IJ12: 10.8 | IK12: 11.2 | IL12: 12.3 | IM12: 12.3 | IN12: 11.8 | IO12: 10.8 | IP12: 9.8 | IQ12: 11.6 | IR12: 12 | IS12: 11.7 | IT12: 11.6 | IU12: 11.3 | IV12: 11.9 | IW12: 12.1 | IX12: 13.2 | IY12: 13.2 | IZ12: 12.1 | JA12: 11.7 | JB12: 10.1 | JC12: 12.3 | JD12: 13.4 | JE12: 12.9 | JF12: 12.6 | JG12: 12.3 | JH12: 11.4 | JI12: 13 | JJ12: 13.4 | JK12: 13.4 | JL12: 12.5 | JM12: 12.6 | JN12: 10.6 | JO12: 12.9 | JP12: 13.5 | JQ12: 13.4 | JR12: 12.9 | JS12: 12.9 | JT12: 12.6 | JU12: 13 | JV12: 13.7 | JW12: 14.2 | JX12: 13.3 | JY12: 11.6 | JZ12: 9.8 | KA12: 12.4 | KB12: 12.7 | KC12: 12.2 | KD12: 11.8 | KE12: 11.9 | KF12: 9.4 | KG12: 8.8 | KH12: 8.8 | KI12: 10.3 | KJ12: 11 | KK12: 10.3 | KL12: 10.1 | KM12: 10.9 | KN12: 11.2 | KO12: 10.4 | KP12: 9.9 | KQ12: 9.6 | KR12: 9 | KS12: 9.6 | KT12: 10.5 | KU12: 10.7 | KV12: 10.2 | KW12: 9 | KX12: 9.6 | KY12: 10.9 | KZ12: 11.3 | LA12: 10.9 | LB12: 10.9 | LC12: 10.1 | LD12: 9.7 | LE12: 9.7 | LF12: 9.7 | LG12: 11 | LH12: 11.1 | LI12: 10.5 | LJ12: 10.2 | LK12: 10.7 | LL12: 11.2 | LM12: 11 | LN12: 11.2 | LO12: 10.2 | LP12: 11.1 | LQ12: 12 | LR12: 12.3 | LS12: 12.2 | LT12: 10.8 | LU12: - | LV12: - | LW12: - | LX12: - | LY12: - | LZ12: -
B13: Residuos | C13: - | D13: - | E13: - | F13: - | G13: - | H13: - | I13: - | J13: - | K13: - | L13: - | M13: - | N13: - | O13: - | P13: - | Q13: - | R13: - | S13: - | T13: - | U13: - | V13: - | W13: - | X13: - | Y13: - | Z13: - | AA13: - | AB13: - | AC13: - | AD13: - | AE13: - | AF13: - | AG13: - | AH13: - | AI13: - | AJ13: - | AK13: - | AL13: - | AM13: - | AN13: - | AO13: - | AP13: - | AQ13: - | AR13: - | AS13: - | AT13: - | AU13: - | AV13: - | AW13: - | AX13: - | AY13: - | AZ13: - | BA13: - | BB13: - | BC13: - | BD13: - | BE13: - | BF13: - | BG13: - | BH13: - | BI13: - | BJ13: - | BK13: - | BL13: - | BM13: - | BN13: - | BO13: - | BP13: - | BQ13: - | BR13: - | BS13: - | BT13: - | BU13: - | BV13: - | BW13: - | BX13: - | BY13: - | BZ13: - | CA13: - | CB13: - | CC13: - | CD13: - | CE13: - | CF13: - | CG13: - | CH13: - | CI13: - | CJ13: - | CK13: - | CL13: - | CM13: - | CN13: - | CO13: - | CP13: - | CQ13: - | CR13: - | CS13: - | CT13: - | CU13: - | CV13: - | CW13: - | CX13: - | CY13: - | CZ13: - | DA13: - | DB13: - | DC13: - | DD13: - | DE13: - | DF13: - | DG13: - | DH13: - | DI13: - | DJ13: - | DK13: - | DL13: - | DM13: - | DN13: - | DO13: - | DP13: - | DQ13: - | DR13: - | DS13: - | DT13: - | DU13: - | DV13: - | DW13: - | DX13: - | DY13: - | DZ13: - | EA13: - | EB13: - | EC13: - | ED13: - | EE13: - | EF13: - | EG13: - | EH13: - | EI13: - | EJ13: - | EK13: - | EL13: - | EM13: - | EN13: - | EO13: - | EP13: - | EQ13: - | ER13: - | ES13: - | ET13: - | EU13: - | EV13: - | EW13: - | EX13: - | EY13: - | EZ13: - | FA13: - | FB13: - | FC13: - | FD13: - | FE13: - | FF13: - | FG13: - | FH13: - | FI13: - | FJ13: - | FK13: - | FL13: - | FM13: - | FN13: - | FO13: - | FP13: - | FQ13: - | FR13: - | FS13: - | FT13: - | FU13: - | FV13: - | FW13: - | FX13: - | FY13: - | FZ13: - | GA13: - | GB13: - | GC13: - | GD13: - | GE13: - | GF13: - | GG13: - | GH13: - | GI13: - | GJ13: - | GK13: - | GL13: - | GM13: - | GN13: - | GO13: - | GP13: - | GQ13: - | GR13: - | GS13: - | GT13: - | GU13: - | GV13: - | GW13: - | GX13: - | GY13: - | GZ13: - | HA13: - | HB13: - | HC13: - | HD13: - | HE13: - | HF13: - | HG13: - | HH13: - | HI13: - | HJ13: - | HK13: - | HL13: - | HM13: - | HN13: - | HO13: - | HP13: - | HQ13: - | HR13: - | HS13: - | HT13: - | HU13: - | HV13: - | HW13: - | HX13: - | HY13: - | HZ13: - | IA13: - | IB13: - | IC13: - | ID13: - | IE13: - | IF13: - | IG13: - | IH13: - | II13: - | IJ13: - | IK13: - | IL13: - | IM13: - | IN13: - | IO13: - | IP13: - | IQ13: - | IR13: - | IS13: - | IT13: - | IU13: - | IV13: - | IW13: - | IX13: - | IY13: - | IZ13: - | JA13: - | JB13: - | JC13: - | JD13: - | JE13: - | JF13: - | JG13: - | JH13: - | JI13: - | JJ13: - | JK13: - | JL13: - | JM13: - | JN13: - | JO13: - | JP13: - | JQ13: - | JR13: - | JS13: - | JT13: - | JU13: - | JV13: - | JW13: - | JX13: - | JY13: - | JZ13: - | KA13: - | KB13: - | KC13: - | KD13: - | KE13: - | KF13: - | KG13: - | KH13: - | KI13: - | KJ13: - | KK13: - | KL13: - | KM13: - | KN13: - | KO13: - | KP13: - | KQ13: 1 | KR13: 1 | KS13: 1.2 | KT13: 1 | KU13: 1.2 | KV13: 1.2 | KW13: 1.1 | KX13: 1.3 | KY13: 1.3 | KZ13: 1.4 | LA13: 1.3 | LB13: 1.2 | LC13: 1.2 | LD13: 1.2 | LE13: 1.2 | LF13: 1 | LG13: 0.8 | LH13: 1.3 | LI13: 1.4 | LJ13: 1.5 | LK13: 1.5 | LL13: 1.4 | LM13: 1.3 | LN13: 1.3 | LO13: 1.2 | LP13: 1.3 | LQ13: 1.4 | LR13: 1.2 | LS13: 1.1 | LT13: 1.4 | LU13: - | LV13: - | LW13: - | LX13: - | LY13: - | LZ13: -
B14: Generación renovable | C14: 30.4 | D14: 31.4 | E14: 21.3 | F14: 16.6 | G14: 17.4 | H14: 16.8 | I14: 13.8 | J14: 12.1 | K14: 11.2 | L14: 12.8 | M14: 16.8 | N14: 15.3 | O14: 19.9 | P14: 16.8 | Q14: 32.9 | R14: 31.1 | S14: 25.3 | T14: 19.3 | U14: 14.4 | V14: 10.9 | W14: 9.9 | X14: 13.2 | Y14: 16.5 | Z14: 15 | AA14: 9.8 | AB14: 6.3 | AC14: 6.5 | AD14: 14.3 | AE14: 13.5 | AF14: 15.2 | AG14: 13.9 | AH14: 10.8 | AI14: 10.8 | AJ14: 16 | AK14: 19 | AL14: 23.7 | AM14: 16.8 | AN14: 12.9 | AO14: 11.9 | AP14: 10.8 | AQ14: 17.2 | AR14: 20.2 | AS14: 16.3 | AT14: 11.6 | AU14: 10.8 | AV14: 24.3 | AW14: 28.2 | AX14: 21.3 | AY14: 29.1 | AZ14: 25.8 | BA14: 23.6 | BB14: 20.9 | BC14: 23 | BD14: 20.6 | BE14: 14.7 | BF14: 11.9 | BG14: 11.1 | BH14: 13.8 | BI14: 20.1 | BJ14: 15.1 | BK14: 21.4 | BL14: 23.7 | BM14: 25.5 | BN14: 17.1 | BO14: 15.1 | BP14: 14.9 | BQ14: 13.2 | BR14: 9.8 | BS14: 8.3 | BT14: 8.7 | BU14: 10.6 | BV14: 19.2 | BW14: 41.6 | BX14: 41.2 | BY14: 27.9 | BZ14: 33.1 | CA14: 32.5 | CB14: 24.5 | CC14: 18.4 | CD14: 14.1 | CE14: 15.6 | CF14: 14.7 | CG14: 17.6 | CH14: 31.5 | CI14: 37.7 | CJ14: 28.9 | CK14: 21.4 | CL14: 18.5 | CM14: 17.8 | CN14: 18.8 | CO14: 15.6 | CP14: 13.9 | CQ14: 12.7 | CR14: 11.9 | CS14: 26 | CT14: 36.7 | CU14: 40.8 | CV14: 31.3 | CW14: 20.8 | CX14: 27.7 | CY14: 31.9 | CZ14: 26.1 | DA14: 18.5 | DB14: 16.8 | DC14: 14.2 | DD14: 15.6 | DE14: 12.1 | DF14: 9.7 | DG14: 10.3 | DH14: 11.4 | DI14: 15.5 | DJ14: 18.4 | DK14: 22.7 | DL14: 19.3 | DM14: 14.2 | DN14: 11.9 | DO14: 12.2 | DP14: 13.9 | DQ14: 20.6 | DR14: 19.7 | DS14: 16.7 | DT14: 13.1 | DU14: 12.3 | DV14: 18.4 | DW14: 24.2 | DX14: 17.5 | DY14: 13.3 | DZ14: 13.8 | EA14: 14 | EB14: 14.3 | EC14: 19 | ED14: 30.9 | EE14: 38.4 | EF14: 39.5 | EG14: 42.9 | EH14: 34.4 | EI14: 24.6 | EJ14: 19 | EK14: 15.3 | EL14: 15 | EM14: 14 | EN14: 15.2 | EO14: 17 | EP14: 12.7 | EQ14: 11.1 | ER14: 12.5 | ES14: 16.6 | ET14: 16 | EU14: 17.2 | EV14: 15.5 | EW14: 12.1 | EX14: 10.8 | EY14: 10 | EZ14: 12.7 | FA14: 18.1 | FB14: 30.4 | FC14: 35.3 | FD14: 29.4 | FE14: 30.5 | FF14: 30.4 | FG14: 26.9 | FH14: 17.2 | FI14: 14.2 | FJ14: 11.5 | FK14: 14.3 | FL14: 17.4 | FM14: 24.3 | FN14: 32.3 | FO14: 27.1 | FP14: 23.2 | FQ14: 22.1 | FR14: 24.8 | FS14: 24 | FT14: 19.9 | FU14: 15.4 | FV14: 15.4 | FW14: 14.6 | FX14: 18 | FY14: 19.7 | FZ14: 17.7 | GA14: 16.2 | GB14: 16.5 | GC14: 17.7 | GD14: 21.9 | GE14: 20.1 | GF14: 15.8 | GG14: 14.2 | GH14: 14.9 | GI14: 11.2 | GJ14: 14.6 | GK14: 16.4 | GL14: 18.5 | GM14: 14 | GN14: 14.9 | GO14: 26.2 | GP14: 25.9 | GQ14: 19.5 | GR14: 14.4 | GS14: 12.2 | GT14: 16.5 | GU14: 13.1 | GV14: 19.9 | GW14: 25.7 | GX14: 31.4 | GY14: 19.1 | GZ14: 28.2 | HA14: 31.6 | HB14: 21.5 | HC14: 26.4 | HD14: 20.2 | HE14: 19.8 | HF14: 20.6 | HG14: 16.8 | HH14: 17.3 | HI14: 18.4 | HJ14: 15.8 | HK14: 17.3 | HL14: 14 | HM14: 23.2 | HN14: 28.3 | HO14: 25.1 | HP14: 25.6 | HQ14: 19.7 | HR14: 17.8 | HS14: 17.9 | HT14: 18.4 | HU14: 24.3 | HV14: 27.3 | HW14: 25.3 | HX14: 34.1 | HY14: 31.4 | HZ14: 30.7 | IA14: 30.6 | IB14: 24.9 | IC14: 21.8 | ID14: 20.8 | IE14: 19.9 | IF14: 24.4 | IG14: 34.3 | IH14: 37 | II14: 41.1 | IJ14: 40.9 | IK14: 47 | IL14: 39.5 | IM14: 40.4 | IN14: 33.5 | IO14: 28.2 | IP14: 27 | IQ14: 22.1 | IR14: 29.4 | IS14: 33.6 | IT14: 38.5 | IU14: 40.4 | IV14: 36.1 | IW14: 40.2 | IX14: 39.4 | IY14: 34.6 | IZ14: 30 | JA14: 28.3 | JB14: 25.7 | JC14: 22.4 | JD14: 26.6 | JE14: 31.8 | JF14: 34 | JG14: 26.4 | JH14: 30.2 | JI14: 28.9 | JJ14: 39 | JK14: 36.4 | JL14: 33.3 | JM14: 29 | JN14: 27.7 | JO14: 30.1 | JP14: 27.1 | JQ14: 35.1 | JR14: 39.7 | JS14: 43.8 | JT14: 46.4 | JU14: 50.9 | JV14: 54.3 | JW14: 47.7 | JX14: 45.2 | JY14: 33.5 | JZ14: 35.1 | KA14: 32 | KB14: 34.5 | KC14: 47.9 | KD14: 37.2 | KE14: 51.4 | KF14: 58.7 | KG14: 55.1 | KH14: 53 | KI14: 44.9 | KJ14: 38.2 | KK14: 37.1 | KL14: 34.1 | KM14: 25.9 | KN14: 31.1 | KO14: 42 | KP14: 41.1 | KQ14: 36.3 | KR14: 47.2 | KS14: 46.3 | KT14: 40.6 | KU14: 48.1 | KV14: 35.5 | KW14: 30.4 | KX14: 31 | KY14: 30.7 | KZ14: 33.8 | LA14: 33.9 | LB14: 28.3 | LC14: 45.8 | LD14: 54.2 | LE14: 51.4 | LF14: 54.2 | LG14: 54.8 | LH14: 42.6 | LI14: 36.2 | LJ14: 37.3 | LK14: 30.3 | LL14: 25.5 | LM14: 30.9 | LN14: 26.1 | LO14: 32.9 | LP14: 38.8 | LQ14: 44 | LR14: 41.7 | LS14: 37.4 | LT14: 32.4 | LU14: - | LV14: - | LW14: - | LX14: - | LY14: - | LZ14: -
B15: Generación no renovable | C15: 69.6 | D15: 68.6 | E15: 78.7 | F15: 83.4 | G15: 82.6 | H15: 83.2 | I15: 86.2 | J15: 87.9 | K15: 88.8 | L15: 87.2 | M15: 83.2 | N15: 84.7 | O15: 80.1 | P15: 83.2 | Q15: 67.1 | R15: 68.9 | S15: 74.7 | T15: 80.7 | U15: 85.6 | V15: 89.1 | W15: 90.1 | X15: 86.8 | Y15: 83.5 | Z15: 85 | AA15: 90.2 | AB15: 93.7 | AC15: 93.5 | AD15: 85.7 | AE15: 86.5 | AF15: 84.8 | AG15: 86.1 | AH15: 89.2 | AI15: 89.2 | AJ15: 84 | AK15: 81 | AL15: 76.3 | AM15: 83.2 | AN15: 87.1 | AO15: 88.1 | AP15: 89.2 | AQ15: 82.8 | AR15: 79.8 | AS15: 83.7 | AT15: 88.4 | AU15: 89.2 | AV15: 75.7 | AW15: 71.8 | AX15: 78.7 | AY15: 70.9 | AZ15: 74.2 | BA15: 76.4 | BB15: 79.1 | BC15: 77 | BD15: 79.4 | BE15: 85.3 | BF15: 88.1 | BG15: 88.9 | BH15: 86.2 | BI15: 79.9 | BJ15: 84.9 | BK15: 78.6 | BL15: 76.3 | BM15: 74.5 | BN15: 82.9 | BO15: 84.9 | BP15: 85.1 | BQ15: 86.8 | BR15: 90.2 | BS15: 91.7 | BT15: 91.3 | BU15: 89.4 | BV15: 80.8 | BW15: 58.4 | BX15: 58.8 | BY15: 72.1 | BZ15: 66.9 | CA15: 67.5 | CB15: 75.5 | CC15: 81.6 | CD15: 85.9 | CE15: 84.4 | CF15: 85.3 | CG15: 82.4 | CH15: 68.5 | CI15: 62.3 | CJ15: 71.1 | CK15: 78.6 | CL15: 81.5 | CM15: 82.2 | CN15: 81.2 | CO15: 84.4 | CP15: 86.1 | CQ15: 87.3 | CR15: 88.1 | CS15: 74 | CT15: 63.3 | CU15: 59.2 | CV15: 68.7 | CW15: 79.2 | CX15: 72.3 | CY15: 68.1 | CZ15: 73.9 | DA15: 81.5 | DB15: 83.2 | DC15: 85.8 | DD15: 84.4 | DE15: 87.9 | DF15: 90.3 | DG15: 89.7 | DH15: 88.6 | DI15: 84.5 | DJ15: 81.6 | DK15: 77.3 | DL15: 80.7 | DM15: 85.8 | DN15: 88.1 | DO15: 87.8 | DP15: 86.1 | DQ15: 79.4 | DR15: 80.3 | DS15: 83.3 | DT15: 86.9 | DU15: 87.7 | DV15: 81.6 | DW15: 75.8 | DX15: 82.5 | DY15: 86.7 | DZ15: 86.2 | EA15: 86 | EB15: 85.7 | EC15: 81 | ED15: 69.1 | EE15: 61.6 | EF15: 60.5 | EG15: 57.1 | EH15: 65.6 | EI15: 75.4 | EJ15: 81 | EK15: 84.7 | EL15: 85 | EM15: 86 | EN15: 84.8 | EO15: 83 | EP15: 87.3 | EQ15: 88.9 | ER15: 87.5 | ES15: 83.4 | ET15: 84 | EU15: 82.8 | EV15: 84.5 | EW15: 87.9 | EX15: 89.2 | EY15: 90 | EZ15: 87.3 | FA15: 81.9 | FB15: 69.6 | FC15: 64.7 | FD15: 70.6 | FE15: 69.5 | FF15: 69.6 | FG15: 73.1 | FH15: 82.8 | FI15: 85.8 | FJ15: 88.5 | FK15: 85.7 | FL15: 82.6 | FM15: 75.7 | FN15: 67.7 | FO15: 72.9 | FP15: 76.8 | FQ15: 77.9 | FR15: 75.2 | FS15: 76 | FT15: 80.1 | FU15: 84.6 | FV15: 84.6 | FW15: 85.4 | FX15: 82 | FY15: 80.3 | FZ15: 82.3 | GA15: 83.8 | GB15: 83.5 | GC15: 82.3 | GD15: 78.1 | GE15: 79.9 | GF15: 84.2 | GG15: 85.8 | GH15: 85.1 | GI15: 88.8 | GJ15: 85.4 | GK15: 83.6 | GL15: 81.5 | GM15: 86 | GN15: 85.1 | GO15: 73.8 | GP15: 74.1 | GQ15: 80.5 | GR15: 85.6 | GS15: 87.8 | GT15: 83.5 | GU15: 86.9 | GV15: 80.1 | GW15: 74.3 | GX15: 68.6 | GY15: 80.9 | GZ15: 71.8 | HA15: 68.4 | HB15: 78.5 | HC15: 73.6 | HD15: 79.8 | HE15: 80.2 | HF15: 79.4 | HG15: 83.2 | HH15: 82.7 | HI15: 81.6 | HJ15: 84.2 | HK15: 82.7 | HL15: 86 | HM15: 76.8 | HN15: 71.7 | HO15: 74.9 | HP15: 74.4 | HQ15: 80.3 | HR15: 82.2 | HS15: 82.1 | HT15: 81.6 | HU15: 75.7 | HV15: 72.7 | HW15: 74.7 | HX15: 65.9 | HY15: 68.6 | HZ15: 69.3 | IA15: 69.4 | IB15: 75.1 | IC15: 78.2 | ID15: 79.2 | IE15: 80.1 | IF15: 75.6 | IG15: 65.7 | IH15: 63 | II15: 58.9 | IJ15: 59.1 | IK15: 53 | IL15: 60.5 | IM15: 59.6 | IN15: 66.5 | IO15: 71.8 | IP15: 73 | IQ15: 77.9 | IR15: 70.6 | IS15: 66.4 | IT15: 61.5 | IU15: 59.6 | IV15: 63.9 | IW15: 59.8 | IX15: 60.6 | IY15: 65.4 | IZ15: 70 | JA15: 71.7 | JB15: 74.3 | JC15: 77.6 | JD15: 73.4 | JE15: 68.2 | JF15: 66 | JG15: 73.6 | JH15: 69.8 | JI15: 71.1 | JJ15: 61 | JK15: 63.6 | JL15: 66.7 | JM15: 71 | JN15: 72.3 | JO15: 69.9 | JP15: 72.9 | JQ15: 64.9 | JR15: 60.3 | JS15: 56.2 | JT15: 53.6 | JU15: 49.1 | JV15: 45.7 | JW15: 52.3 | JX15: 54.8 | JY15: 66.5 | JZ15: 64.9 | KA15: 68 | KB15: 65.5 | KC15: 52.1 | KD15: 62.8 | KE15: 48.6 | KF15: 41.3 | KG15: 44.9 | KH15: 47 | KI15: 55.1 | KJ15: 61.8 | KK15: 62.9 | KL15: 65.9 | KM15: 74.1 | KN15: 68.9 | KO15: 58 | KP15: 58.9 | KQ15: 63.7 | KR15: 52.8 | KS15: 53.7 | KT15: 59.4 | KU15: 51.9 | KV15: 64.5 | KW15: 69.6 | KX15: 69 | KY15: 69.3 | KZ15: 66.2 | LA15: 66.1 | LB15: 71.7 | LC15: 54.2 | LD15: 45.8 | LE15: 48.6 | LF15: 45.8 | LG15: 45.2 | LH15: 57.4 | LI15: 63.8 | LJ15: 62.7 | LK15: 69.7 | LL15: 74.5 | LM15: 69.1 | LN15: 73.9 | LO15: 67.1 | LP15: 61.2 | LQ15: 56 | LR15: 58.3 | LS15: 62.6 | LT15: 67.6 | LU15: - | LV15: - | LW15: - | LX15: - | LY15: - | LZ15: -
B17: Estructura de generación mensual Islas Baleares (%) | C17: 2006-01-01 | D17: 2006-02-01 | E17: 2006-03-01 | F17: 2006-04-01 | G17: 2006-05-01 | H17: 2006-06-01 | I17: 2006-07-01 | J17: 2006-08-01 | K17: 2006-09-01 | L17: 2006-10-01 | M17: 2006-11-01 | N17: 2006-12-01 | O17: 2007-01-01 | P17: 2007-02-01 | Q17: 2007-03-01 | R17: 2007-04-01 | S17: 2007-05-01 | T17: 2007-06-01 | U17: 2007-07-01 | V17: 2007-08-01 | W17: 2007-09-01 | X17: 2007-10-01 | Y17: 2007-11-01 | Z17: 2007-12-01 | AA17: 2008-01-01 | AB17: 2008-02-01 | AC17: 2008-03-01 | AD17: 2008-04-01 | AE17: 2008-05-01 | AF17: 2008-06-01 | AG17: 2008-07-01 | AH17: 2008-08-01 | AI17: 2008-09-01 | AJ17: 2008-10-01 | AK17: 2008-11-01 | AL17: 2008-12-01 | AM17: 2009-01-01 | AN17: 2009-02-01 | AO17: 2009-03-01 | AP17: 2009-04-01 | AQ17: 2009-05-01 | AR17: 2009-06-01 | AS17: 2009-07-01 | AT17: 2009-08-01 | AU17: 2009-09-01 | AV17: 2009-10-01 | AW17: 2009-11-01 | AX17: 2009-12-01 | AY17: 2010-01-01 | AZ17: 2010-02-01 | BA17: 2010-03-01 | BB17: 2010-04-01 | BC17: 2010-05-01 | BD17: 2010-06-01 | BE17: 2010-07-01 | BF17: 2010-08-01 | BG17: 2010-09-01 | BH17: 2010-10-01 | BI17: 2010-11-01 | BJ17: 2010-12-01 | BK17: 2011-01-01 | BL17: 2011-02-01 | BM17: 2011-03-01 | BN17: 2011-04-01 | BO17: 2011-05-01 | BP17: 2011-06-01 | BQ17: 2011-07-01 | BR17: 2011-08-01 | BS17: 2011-09-01 | BT17: 2011-10-01 | BU17: 2011-11-01 | BV17: 2011-12-01 | BW17: 2012-01-01 | BX17: 2012-02-01 | BY17: 2012-03-01 | BZ17: 2012-04-01 | CA17: 2012-05-01 | CB17: 2012-06-01 | CC17: 2012-07-01 | CD17: 2012-08-01 | CE17: 2012-09-01 | CF17: 2012-10-01 | CG17: 2012-11-01 | CH17: 2012-12-01 | CI17: 2013-01-01 | CJ17: 2013-02-01 | CK17: 2013-03-01 | CL17: 2013-04-01 | CM17: 2013-05-01 | CN17: 2013-06-01 | CO17: 2013-07-01 | CP17: 2013-08-01 | CQ17: 2013-09-01 | CR17: 2013-10-01 | CS17: 2013-11-01 | CT17: 2013-12-01 | CU17: 2014-01-01 | CV17: 2014-02-01 | CW17: 2014-03-01 | CX17: 2014-04-01 | CY17: 2014-05-01 | CZ17: 2014-06-01 | DA17: 2014-07-01 | DB17: 2014-08-01 | DC17: 2014-09-01 | DD17: 2014-10-01 | DE17: 2014-11-01 | DF17: 2014-12-01 | DG17: 2015-01-01 | DH17: 2015-02-01 | DI17: 2015-03-01 | DJ17: 2015-04-01 | DK17: 2015-05-01 | DL17: 2015-06-01 | DM17: 2015-07-01 | DN17: 2015-08-01 | DO17: 2015-09-01 | DP17: 2015-10-01 | DQ17: 2015-11-01 | DR17: 2015-12-01 | DS17: 2016-01-01 | DT17: 2016-02-01 | DU17: 2016-03-01 | DV17: 2016-04-01 | DW17: 2016-05-01 | DX17: 2016-06-01 | DY17: 2016-07-01 | DZ17: 2016-08-01 | EA17: 2016-09-01 | EB17: 2016-10-01 | EC17: 2016-11-01 | ED17: 2016-12-01 | EE17: 2017-01-01 | EF17: 2017-02-01 | EG17: 2017-03-01 | EH17: 2017-04-01 | EI17: 2017-05-01 | EJ17: 2017-06-01 | EK17: 2017-07-01 | EL17: 2017-08-01 | EM17: 2017-09-01 | EN17: 2017-10-01 | EO17: 2017-11-01 | EP17: 2017-12-01
B18: Carbón | C18: 56.7 | D18: 54.6 | E18: 61.1 | F18: 61.7 | G18: 59.6 | H18: 55.2 | I18: 45.9 | J18: 46.4 | K18: 48.3 | L18: 38.2 | M18: 53.8 | N18: 59 | O18: 53.3 | P18: 53.7 | Q18: 47.7 | R18: 61.1 | S18: 48.5 | T18: 41.8 | U18: 44.9 | V18: 46.9 | W18: 49.3 | X18: 48.3 | Y18: 45.8 | Z18: 53.9 | AA18: 58.8 | AB18: 58.1 | AC18: 56.4 | AD18: 49.7 | AE18: 52.1 | AF18: 53.8 | AG18: 46 | AH18: 46.1 | AI18: 51.6 | AJ18: 51.8 | AK18: 49.9 | AL18: 37.2 | AM18: 36.3 | AN18: 59.1 | AO18: 49.8 | AP18: 55.4 | AQ18: 58.5 | AR18: 54.4 | AS18: 45.7 | AT18: 47 | AU18: 49.6 | AV18: 62.3 | AW18: 66.3 | AX18: 61.2 | AY18: 58.7 | AZ18: 55.6 | BA18: 60 | BB18: 65.5 | BC18: 52.5 | BD18: 58.6 | BE18: 46.3 | BF18: 45.8 | BG18: 54.8 | BH18: 48.8 | BI18: 47.7 | BJ18: 47.1 | BK18: 56.7 | BL18: 51.8 | BM18: 29.3 | BN18: 49.2 | BO18: 52.8 | BP18: 50.6 | BQ18: 48.9 | BR18: 44.5 | BS18: 48.7 | BT18: 44.3 | BU18: 45 | BV18: 56.6 | BW18: 57.9 | BX18: 45.7 | BY18: 56.2 | BZ18: 55.7 | CA18: 54.5 | CB18: 48.9 | CC18: 47.3 | CD18: 44.8 | CE18: 53.4 | CF18: 48.8 | CG18: 53 | CH18: 52.5 | CI18: 54 | CJ18: 51.9 | CK18: 54.6 | CL18: 56.8 | CM18: 52.5 | CN18: 54.7 | CO18: 51.9 | CP18: 52.3 | CQ18: 57.5 | CR18: 48.2 | CS18: 54.8 | CT18: 52.5 | CU18: 55.9 | CV18: 50.4 | CW18: 49.2 | CX18: 56.3 | CY18: 55.3 | CZ18: 53.8 | DA18: 52.5 | DB18: 51.5 | DC18: 53.7 | DD18: 44.2 | DE18: 31.5 | DF18: 53.3 | DG18: 53.1 | DH18: 53.5 | DI18: 51.5 | DJ18: 22.9 | DK18: 33.2 | DL18: 46.2 | DM18: 42.4 | DN18: 51.7 | DO18: 49.2 | DP18: 23.7 | DQ18: 34.7 | DR18: 31.6 | DS18: 35.7 | DT18: 31.9 | DU18: 31 | DV18: 46.4 | DW18: 53.9 | DX18: 55 | DY18: 57.4 | DZ18: 53.1 | EA18: 55.8 | EB18: 57.9 | EC18: 55.4 | ED18: 58.9 | EE18: 58 | EF18: 57 | EG18: 53.5 | EH18: 52.9 | EI18: 54.9 | EJ18: 58.4 | EK18: - | EL18: - | EM18: - | EN18: - | EO18: - | EP18: -
B19: Motores diesel | C19: 16 | D19: 15.2 | E19: 15.4 | F19: 16.6 | G19: 17.4 | H19: 16.3 | I19: 16.3 | J19: 16.7 | K19: 17.8 | L19: 17.3 | M19: 17 | N19: 16.7 | O19: 16.4 | P19: 15.6 | Q19: 16.2 | R19: 16.6 | S19: 17.9 | T19: 17.4 | U19: 16.5 | V19: 16.9 | W19: 18.1 | X19: 16.7 | Y19: 16.8 | Z19: 16.5 | AA19: 16.4 | AB19: 15.2 | AC19: 16 | AD19: 16.7 | AE19: 18.2 | AF19: 18.6 | AG19: 18.1 | AH19: 18.1 | AI19: 17.7 | AJ19: 16.6 | AK19: 16.6 | AL19: 16 | AM19: 16.5 | AN19: 15 | AO19: 15.4 | AP19: 17 | AQ19: 16.4 | AR19: 17.2 | AS19: 16.1 | AT19: 16.2 | AU19: 16.4 | AV19: 15.6 | AW19: 16.1 | AX19: 16.3 | AY19: 16.4 | AZ19: 15.6 | BA19: 16.5 | BB19: 17 | BC19: 19.1 | BD19: 19.9 | BE19: 17.9 | BF19: 18.2 | BG19: 18.8 | BH19: 17.3 | BI19: 16.6 | BJ19: 17.3 | BK19: 17 | BL19: 15.1 | BM19: 17 | BN19: 18.2 | BO19: 18.4 | BP19: 17.8 | BQ19: 16.1 | BR19: 15.4 | BS19: 14.7 | BT19: 12.4 | BU19: 13.4 | BV19: 17.9 | BW19: 17.6 | BX19: 15.6 | BY19: 18.5 | BZ19: 19.8 | CA19: 20 | CB19: 19 | CC19: 18.2 | CD19: 17.1 | CE19: 18.6 | CF19: 16.4 | CG19: 15.6 | CH19: 16.8 | CI19: 17.5 | CJ19: 16 | CK19: 15.5 | CL19: 17.8 | CM19: 18.8 | CN19: 19 | CO19: 19 | CP19: 18.2 | CQ19: 16.5 | CR19: 14.2 | CS19: 12.5 | CT19: 15.8 | CU19: 17.7 | CV19: 18.4 | CW19: 11.8 | CX19: 12.1 | CY19: 14.6 | CZ19: 15.9 | DA19: 15.6 | DB19: 16.6 | DC19: 16.5 | DD19: 14.4 | DE19: 18.6 | DF19: 15.6 | DG19: 16.6 | DH19: 17 | DI19: 15.2 | DJ19: 17.3 | DK19: 16.6 | DL19: 16.3 | DM19: 18.1 | DN19: 17.2 | DO19: 16.7 | DP19: 15.2 | DQ19: 12.7 | DR19: 15.9 | DS19: 11.9 | DT19: 20.2 | DU19: 22.9 | DV19: 23 | DW19: 23.8 | DX19: 22.6 | DY19: 21.6 | DZ19: 21.6 | EA19: 20.1 | EB19: 22.9 | EC19: 19.1 | ED19: 21.1 | EE19: 22.1 | EF19: 21.4 | EG19: 18.8 | EH19: 20.3 | EI19: 21.6 | EJ19: 21.5 | EK19: - | EL19: - | EM19: - | EN19: - | EO19: - | EP19: -
B20: Turbina de gas | C20: 1.4 | D20: 2.4 | E20: 5 | F20: 3.5 | G20: 3.4 | H20: 5.6 | I20: 8.8 | J20: 6.7 | K20: 6 | L20: 6.4 | M20: 4.9 | N20: 3.8 | O20: 5 | P20: 4.9 | Q20: 4.4 | R20: 3.9 | S20: 7.8 | T20: 6 | U20: 6.7 | V20: 6.1 | W20: 4 | X20: 4.4 | Y20: 4.7 | Z20: 3.7 | AA20: 3.6 | AB20: 4.3 | AC20: 4.2 | AD20: 2.9 | AE20: 2.8 | AF20: 4.4 | AG20: 5.4 | AH20: 5.8 | AI20: 5.7 | AJ20: 4.4 | AK20: 4.4 | AL20: 4.3 | AM20: 3.7 | AN20: 4.5 | AO20: 4.2 | AP20: 2.8 | AQ20: 5.3 | AR20: 6.3 | AS20: 8.1 | AT20: 8 | AU20: 7.1 | AV20: 5.4 | AW20: 5.5 | AX20: 4.6 | AY20: 4.7 | AZ20: 5.6 | BA20: 4.7 | BB20: 4.1 | BC20: 3.6 | BD20: 4.3 | BE20: 6.6 | BF20: 6.7 | BG20: 5.2 | BH20: 5.1 | BI20: 5.3 | BJ20: 4.6 | BK20: 3.6 | BL20: 4.8 | BM20: 3.9 | BN20: 3.4 | BO20: 3.8 | BP20: 5.6 | BQ20: 8.4 | BR20: 9.3 | BS20: 8.6 | BT20: 8.7 | BU20: 8.4 | BV20: 2.5 | BW20: 2.8 | BX20: 5.1 | BY20: 3.7 | BZ20: 2.2 | CA20: 3 | CB20: 6 | CC20: 7.5 | CD20: 10.2 | CE20: 8.9 | CF20: 9 | CG20: 9.6 | CH20: 9.6 | CI20: 9.1 | CJ20: 9.9 | CK20: 9.4 | CL20: 8.2 | CM20: 9 | CN20: 10.7 | CO20: 12.9 | CP20: 14.4 | CQ20: 14.4 | CR20: 14.3 | CS20: 13.6 | CT20: 10.8 | CU20: 8.7 | CV20: 8.2 | CW20: 13.1 | CX20: 14.3 | CY20: 13.4 | CZ20: 15.1 | DA20: 16.9 | DB20: 17.1 | DC20: 15.6 | DD20: 14.7 | DE20: 10.1 | DF20: 11 | DG20: 10.7 | DH20: 10.2 | DI20: 11.3 | DJ20: 10.3 | DK20: 11.3 | DL20: 14.7 | DM20: 15 | DN20: 16.5 | DO20: 14.3 | DP20: 13.6 | DQ20: 13.7 | DR20: 11.7 | DS20: 14.8 | DT20: 6.3 | DU20: 4 | DV20: 2.8 | DW20: 5 | DX20: 8.1 | DY20: 9.3 | DZ20: 11.1 | EA20: 9.4 | EB20: 4.7 | EC20: 6.2 | ED20: 4 | EE20: 3.5 | EF20: 3.2 | EG20: 6.7 | EH20: 4 | EI20: 7.2 | EJ20: 7.5 | EK20: - | EL20: - | EM20: - | EN20: - | EO20: - | EP20: -
B21: Ciclo combinado | C21: 23.2 | D21: 25.1 | E21: 15.6 | F21: 15 | G21: 17.5 | H21: 20.6 | I21: 27.2 | J21: 27.6 | K21: 25.2 | L21: 35.4 | M21: 21.4 | N21: 17.6 | O21: 23 | P21: 23 | Q21: 28.8 | R21: 15.5 | S21: 24 | T21: 32.8 | U21: 30 | V21: 27.1 | W21: 26.4 | X21: 30.3 | Y21: 30.7 | Z21: 23.2 | AA21: 18.9 | AB21: 19.7 | AC21: 20.6 | AD21: 27.7 | AE21: 24.2 | AF21: 20.6 | AG21: 27.9 | AH21: 27.1 | AI21: 21.9 | AJ21: 23.7 | AK21: 25.5 | AL21: 39.2 | AM21: 40.2 | AN21: 18 | AO21: 28.7 | AP21: 20.5 | AQ21: 15.1 | AR21: 18.2 | AS21: 26.8 | AT21: 25.4 | AU21: 23.1 | AV21: 12.7 | AW21: 7.6 | AX21: 14.2 | AY21: 17.1 | AZ21: 19.9 | BA21: 14.8 | BB21: 8.6 | BC21: 20.1 | BD21: 13 | BE21: 25.2 | BF21: 23.4 | BG21: 14.3 | BH21: 24.1 | BI21: 24.5 | BJ21: 25.5 | BK21: 18.3 | BL21: 23.5 | BM21: 44.9 | BN21: 22.1 | BO21: 19.7 | BP21: 18.8 | BQ21: 19.8 | BR21: 23.8 | BS21: 20.7 | BT21: 26.4 | BU21: 25.8 | BV21: 15.1 | BW21: 15.1 | BX21: 28 | BY21: 13.5 | BZ21: 14.2 | CA21: 13.5 | CB21: 19 | CC21: 19.1 | CD21: 20.4 | CE21: 10.8 | CF21: 18.8 | CG21: 14.3 | CH21: 10.6 | CI21: 11.2 | CJ21: 15.5 | CK21: 11.6 | CL21: 8.3 | CM21: 10.8 | CN21: 4.4 | CO21: 7.5 | CP21: 6.3 | CQ21: 1 | CR21: 15.1 | CS21: 11.3 | CT21: 13.4 | CU21: 10.2 | CV21: 15 | CW21: 15.9 | CX21: 5.2 | CY21: 9.5 | CZ21: 4.3 | DA21: 4.1 | DB21: 5.9 | DC21: 4 | DD21: 15 | DE21: 29.9 | DF21: 10.3 | DG21: 11 | DH21: 11.7 | DI21: 11.3 | DJ21: 35.9 | DK21: 26.9 | DL21: 12 | DM21: 15.4 | DN21: 5.5 | DO21: 8.8 | DP21: 35.4 | DQ21: 25.4 | DR21: 29.7 | DS21: 28.8 | DT21: 34.7 | DU21: 32.6 | DV21: 15.9 | DW21: 5.3 | DX21: 3.2 | DY21: 3.1 | DZ21: 5 | EA21: 5.9 | EB21: 4.3 | EC21: 10.8 | ED21: 8.1 | EE21: 10 | EF21: 10.7 | EG21: 9.9 | EH21: 10.4 | EI21: 6.6 | EJ21: 2.7 | EK21: - | EL21: - | EM21: - | EN21: - | EO21: - | EP21: -
B22: Generación auxiliar | C22: - | D22: - | E22: - | F22: - | G22: - | H22: - | I22: 0 | J22: 0.6 | K22: 0.5 | L22: 0 | M22: - | N22: 0 | O22: - | P22: - | Q22: - | R22: - | S22: - | T22: - | U22: 0.4 | V22: 1.4 | W22: 0.3 | X22: - | Y22: - | Z22: - | AA22: - | AB22: - | AC22: - | AD22: - | AE22: - | AF22: - | AG22: 0.3 | AH22: 0.4 | AI22: 0.2 | AJ22: 0 | AK22: - | AL22: - | AM22: - | AN22: - | AO22: - | AP22: - | AQ22: - | AR22: - | AS22: 0.2 | AT22: 0.5 | AU22: 0.2 | AV22: 0 | AW22: - | AX22: - | AY22: - | AZ22: - | BA22: - | BB22: - | BC22: - | BD22: 0 | BE22: 0.4 | BF22: 0.5 | BG22: 0.2 | BH22: 0 | BI22: - | BJ22: - | BK22: - | BL22: - | BM22: - | BN22: - | BO22: - | BP22: 0.2 | BQ22: 0.4 | BR22: 0.6 | BS22: 0.3 | BT22: - | BU22: - | BV22: - | BW22: - | BX22: - | BY22: - | BZ22: - | CA22: - | CB22: 0.2 | CC22: 0.4 | CD22: 0.7 | CE22: 0.3 | CF22: 0 | CG22: - | CH22: - | CI22: - | CJ22: - | CK22: - | CL22: - | CM22: 0 | CN22: 0.2 | CO22: 0.5 | CP22: 0.6 | CQ22: 0.2 | CR22: 0 | CS22: - | CT22: - | CU22: - | CV22: - | CW22: - | CX22: - | CY22: - | CZ22: - | DA22: 0.6 | DB22: 0.7 | DC22: 0.5 | DD22: 0 | DE22: - | DF22: - | DG22: - | DH22: - | DI22: - | DJ22: - | DK22: - | DL22: 0.1 | DM22: 0.7 | DN22: 0.9 | DO22: 0.6 | DP22: - | DQ22: - | DR22: - | DS22: - | DT22: - | DU22: - | DV22: - | DW22: - | DX22: 0.3 | DY22: 0.6 | DZ22: 0.7 | EA22: 0.5 | EB22: 0.1 | EC22: - | ED22: - | EE22: - | EF22: - | EG22: - | EH22: - | EI22: 0.3 | EJ22: 0.4 | EK22: - | EL22: - | EM22: - | EN22: - | EO22: - | EP22: -
B23: Eólica | C23: 0.1 | D23: 0.1 | E23: 0.1 | F23: 0.1 | G23: 0.1 | H23: 0.1 | I23: 0 | J23: 0.1 | K23: 0.1 | L23: 0.1 | M23: 0.1 | N23: 0.1 | O23: 0.1 | P23: 0.1 | Q23: 0.1 | R23: 0.1 | S23: 0.1 | T23: 0.1 | U23: 0.1 | V23: 0.1 | W23: 0.1 | X23: 0.1 | Y23: 0.2 | Z23: 0.2 | AA23: 0.1 | AB23: 0.1 | AC23: 0.1 | AD23: 0.2 | AE23: 0 | AF23: 0.1 | AG23: 0 | AH23: 0.1 | AI23: 0.1 | AJ23: 0.1 | AK23: 0.1 | AL23: 0.1 | AM23: 0.1 | AN23: 0.2 | AO23: 0.1 | AP23: 0.1 | AQ23: 0.1 | AR23: 0.1 | AS23: 0 | AT23: 0 | AU23: 0.1 | AV23: 0.1 | AW23: 0.1 | AX23: 0.2 | AY23: 0.1 | AZ23: 0.2 | BA23: 0.1 | BB23: 0.1 | BC23: 0.1 | BD23: 0.1 | BE23: 0.1 | BF23: 0.1 | BG23: 0.1 | BH23: 0.1 | BI23: 0.1 | BJ23: 0.1 | BK23: 0.1 | BL23: 0.1 | BM23: 0.1 | BN23: 0.1 | BO23: 0.1 | BP23: 0.1 | BQ23: 0.1 | BR23: 0.1 | BS23: 0 | BT23: 0.1 | BU23: 0.1 | BV23: 0.1 | BW23: 0.1 | BX23: 0.2 | BY23: 0.1 | BZ23: 0.2 | CA23: 0.1 | CB23: 0.1 | CC23: 0.1 | CD23: 0 | CE23: 0.2 | CF23: 0.1 | CG23: 0.2 | CH23: 0.2 | CI23: 0.2 | CJ23: 0.2 | CK23: 0.2 | CL23: 0.2 | CM23: 0.1 | CN23: 0.1 | CO23: 0 | CP23: 0.1 | CQ23: 0.1 | CR23: 0.1 | CS23: 0.3 | CT23: 0.1 | CU23: 0.2 | CV23: 0.2 | CW23: 0.2 | CX23: 0.1 | CY23: 0.1 | CZ23: 0.1 | DA23: 0.1 | DB23: 0.1 | DC23: 0.1 | DD23: 0.1 | DE23: 0.2 | DF23: 0.2 | DG23: 0.2 | DH23: 0.2 | DI23: 0.2 | DJ23: 0.1 | DK23: 0.2 | DL23: 0.1 | DM23: 0.1 | DN23: 0 | DO23: 0.1 | DP23: 0.2 | DQ23: 0.1 | DR23: 0 | DS23: 0.2 | DT23: 0.2 | DU23: 0.2 | DV23: 0.2 | DW23: 0.1 | DX23: 0.1 | DY23: 0.1 | DZ23: 0.1 | EA23: 0 | EB23: 0.1 | EC23: 0.1 | ED23: 0.1 | EE23: 0.1 | EF23: 0.1 | EG23: 0.1 | EH23: 0.1 | EI23: 0 | EJ23: 0 | EK23: - | EL23: - | EM23: - | EN23: - | EO23: - | EP23: -
B24: Solar fotovoltaica | C24: 0 | D24: 0 | E24: 0 | F24: 0 | G24: 0 | H24: 0 | I24: 0 | J24: 0 | K24: 0 | L24: 0 | M24: 0 | N24: 0 | O24: 0 | P24: 0 | Q24: 0 | R24: 0 | S24: 0 | T24: 0 | U24: 0 | V24: 0 | W24: 0 | X24: 0 | Y24: 0 | Z24: 0 | AA24: 0 | AB24: 0 | AC24: 0.1 | AD24: 0.2 | AE24: 0.2 | AF24: 0.3 | AG24: 0.4 | AH24: 0.7 | AI24: 0.9 | AJ24: 0.9 | AK24: 0.8 | AL24: 0.8 | AM24: 0.7 | AN24: 1.1 | AO24: 1.6 | AP24: 1.6 | AQ24: 1.9 | AR24: 1.7 | AS24: 1.4 | AT24: 1.3 | AU24: 1.3 | AV24: 1.4 | AW24: 1.3 | AX24: 0.8 | AY24: 0.8 | AZ24: 1.1 | BA24: 1.5 | BB24: 2 | BC24: 2.1 | BD24: 1.9 | BE24: 1.7 | BF24: 1.6 | BG24: 1.6 | BH24: 1.5 | BI24: 1.4 | BJ24: 1 | BK24: 1.1 | BL24: 1.5 | BM24: 1.8 | BN24: 2.5 | BO24: 2.4 | BP24: 2.1 | BQ24: 1.7 | BR24: 1.8 | BS24: 1.7 | BT24: 1.9 | BU24: 1.3 | BV24: 1.3 | BW24: 1.4 | BX24: 1.5 | BY24: 2.5 | BZ24: 2.8 | CA24: 2.9 | CB24: 2.3 | CC24: 2.2 | CD24: 2 | CE24: 2.5 | CF24: 2.5 | CG24: 2 | CH24: 2 | CI24: 2.2 | CJ24: 2.2 | CK24: 3.4 | CL24: 3.6 | CM24: 3.5 | CN24: 3.8 | CO24: 3 | CP24: 2.7 | CQ24: 2.7 | CR24: 2.5 | CS24: 1.8 | CT24: 1.7 | CU24: 1.8 | CV24: 2.8 | CW24: 3.4 | CX24: 4.1 | CY24: 3.6 | CZ24: 3.5 | DA24: 3 | DB24: 2.7 | DC24: 2.4 | DD24: 2.9 | DE24: 2.4 | DF24: 1.7 | DG24: 2 | DH24: 2.2 | DI24: 3 | DJ24: 4.1 | DK24: 3.5 | DL24: 3.4 | DM24: 2.7 | DN24: 2.5 | DO24: 2.4 | DP24: 2.6 | DQ24: 2.7 | DR24: 2 | DS24: 2.2 | DT24: 2.4 | DU24: 3.2 | DV24: 3.4 | DW24: 3.4 | DX24: 3.2 | DY24: 2.8 | DZ24: 2.7 | EA24: 2.2 | EB24: 2.2 | EC24: 2 | ED24: 1.7 | EE24: 1.5 | EF24: 2.2 | EG24: 3.6 | EH24: 3.5 | EI24: 3.3 | EJ24: 2.7 | EK24: - | EL24: - | EM24: - | EN24: - | EO24: - | EP24: -
B25: Térmica renovable/Otras renovables | C25: - | D25: - | E25: - | F25: - | G25: - | H25: - | I25: - | J25: - | K25: - | L25: - | M25: - | N25: - | O25: - | P25: - | Q25: - | R25: - | S25: - | T25: - | U25: - | V25: - | W25: - | X25: - | Y25: - | Z25: - | AA25: - | AB25: - | AC25: - | AD25: - | AE25: - | AF25: - | AG25: - | AH25: - | AI25: - | AJ25: - | AK25: - | AL25: - | AM25: - | AN25: - | AO25: - | AP25: - | AQ25: - | AR25: - | AS25: - | AT25: - | AU25: - | AV25: - | AW25: - | AX25: - | AY25: - | AZ25: - | BA25: - | BB25: - | BC25: - | BD25: - | BE25: - | BF25: - | BG25: - | BH25: - | BI25: - | BJ25: - | BK25: - | BL25: - | BM25: - | BN25: - | BO25: - | BP25: - | BQ25: - | BR25: - | BS25: - | BT25: - | BU25: - | BV25: - | BW25: 0 | BX25: 0 | BY25: 0 | BZ25: 0 | CA25: 0 | CB25: 0 | CC25: 0 | CD25: 0 | CE25: 0 | CF25: 0 | CG25: 0 | CH25: 0 | CI25: 0 | CJ25: 0 | CK25: 0 | CL25: 0 | CM25: 0 | CN25: 0 | CO25: 0 | CP25: 0 | CQ25: 0 | CR25: 0 | CS25: 0 | CT25: 0 | CU25: 0 | CV25: 0.1 | CW25: 0.1 | CX25: 0.1 | CY25: 0.1 | CZ25: 0 | DA25: 0 | DB25: 0 | DC25: 0 | DD25: 0 | DE25: 0.1 | DF25: 0.1 | DG25: 0.1 | DH25: 0.1 | DI25: 0 | DJ25: 0.1 | DK25: 0 | DL25: 0 | DM25: 0 | DN25: 0 | DO25: 0 | DP25: 0 | DQ25: 0 | DR25: 0.1 | DS25: 0.1 | DT25: 0.1 | DU25: 0.1 | DV25: 0 | DW25: 0 | DX25: 0 | DY25: 0 | DZ25: 0 | EA25: 0 | EB25: 0 | EC25: 0 | ED25: 0 | EE25: 0 | EF25: 0.1 | EG25: 0 | EH25: 0.1 | EI25: 0.1 | EJ25: 0 | EK25: - | EL25: - | EM25: - | EN25: - | EO25: - | EP25: -
B26: Térmica no renovable/Cogeneración y resto/Cogeneración | C26: 2.6 | D26: 2.6 | E26: 2.8 | F26: 3.1 | G26: 2 | H26: 2.2 | I26: 1.8 | J26: 1.9 | K26: 2.1 | L26: 2.6 | M26: 2.8 | N26: 2.8 | O26: 2.2 | P26: 2.7 | Q26: 2.8 | R26: 2.8 | S26: 1.7 | T26: 1.9 | U26: 1.4 | V26: 1.5 | W26: 1.8 | X26: 0.2 | Y26: 1.8 | Z26: 2.5 | AA26: 2.2 | AB26: 2.6 | AC26: 2.6 | AD26: 2.6 | AE26: 2.5 | AF26: 2.2 | AG26: 1.9 | AH26: 1.7 | AI26: 1.9 | AJ26: 2.5 | AK26: 2.7 | AL26: 2.4 | AM26: 2.5 | AN26: 2.1 | AO26: 0.2 | AP26: 2.6 | AQ26: 2.7 | AR26: 2.1 | AS26: 1.7 | AT26: 1.6 | AU26: 2.2 | AV26: 2.5 | AW26: 3.1 | AX26: 2.7 | AY26: 2.2 | AZ26: 2 | BA26: 2.4 | BB26: 2.7 | BC26: 2.5 | BD26: 2.2 | BE26: 1.8 | BF26: 3.7 | BG26: 5 | BH26: 3.1 | BI26: 4.4 | BJ26: 4.4 | BK26: 3.2 | BL26: 3.2 | BM26: 3 | BN26: 4.5 | BO26: 2.8 | BP26: 4.8 | BQ26: 4.6 | BR26: 4.5 | BS26: 5.3 | BT26: 6.2 | BU26: 6 | BV26: 6.5 | BW26: 5.1 | BX26: 3.9 | BY26: 5.5 | BZ26: 5.1 | CA26: 6 | CB26: 4.5 | CC26: 5.2 | CD26: 4.8 | CE26: 5.3 | CF26: 4.4 | CG26: 5.3 | CH26: 8.3 | CI26: 5.8 | CJ26: 4.3 | CK26: 5.3 | CL26: 5.1 | CM26: 5.3 | CN26: 7.1 | CO26: 5.2 | CP26: 5.4 | CQ26: 7.6 | CR26: 5.6 | CS26: 5.7 | CT26: 5.7 | CU26: 5.5 | CV26: 4.9 | CW26: 6.3 | CX26: 7.8 | CY26: 3.4 | CZ26: 7.3 | DA26: 7.2 | DB26: 5.4 | DC26: 7.2 | DD26: 8.7 | DE26: 7.2 | DF26: 7.8 | DG26: 0.9 | DH26: 0.8 | DI26: 0.8 | DJ26: 0.5 | DK26: 0.6 | DL26: 0.3 | DM26: 0.6 | DN26: 0.6 | DO26: 0.6 | DP26: 0.9 | DQ26: 1.1 | DR26: 1.1 | DS26: 1 | DT26: 1 | DU26: 0.9 | DV26: 0.9 | DW26: 0.6 | DX26: 0.8 | DY26: 0.6 | DZ26: 0.6 | EA26: 0.6 | EB26: 0.7 | EC26: 0.7 | ED26: 0.8 | EE26: 0.8 | EF26: 0.9 | EG26: 1.1 | EH26: 0.5 | EI26: 0.5 | EJ26: 0.6 | EK26: - | EL26: - | EM26: - | EN26: - | EO26: - | EP26: -
B27: Residuos | C27: - | D27: - | E27: - | F27: - | G27: - | H27: - | I27: - | J27: - | K27: - | L27: - | M27: - | N27: - | O27: - | P27: - | Q27: - | R27: - | S27: - | T27: - | U27: - | V27: - | W27: - | X27: - | Y27: - | Z27: - | AA27: - | AB27: - | AC27: - | AD27: - | AE27: - | AF27: - | AG27: - | AH27: - | AI27: - | AJ27: - | AK27: - | AL27: - | AM27: - | AN27: - | AO27: - | AP27: - | AQ27: - | AR27: - | AS27: - | AT27: - | AU27: - | AV27: - | AW27: - | AX27: - | AY27: - | AZ27: - | BA27: - | BB27: - | BC27: - | BD27: - | BE27: - | BF27: - | BG27: - | BH27: - | BI27: - | BJ27: - | BK27: - | BL27: - | BM27: - | BN27: - | BO27: - | BP27: - | BQ27: - | BR27: - | BS27: - | BT27: - | BU27: - | BV27: - | BW27: - | BX27: - | BY27: - | BZ27: - | CA27: - | CB27: - | CC27: - | CD27: - | CE27: - | CF27: - | CG27: - | CH27: - | CI27: - | CJ27: - | CK27: - | CL27: - | CM27: - | CN27: - | CO27: - | CP27: - | CQ27: - | CR27: - | CS27: - | CT27: - | CU27: - | CV27: - | CW27: - | CX27: - | CY27: - | CZ27: - | DA27: - | DB27: - | DC27: - | DD27: - | DE27: - | DF27: - | DG27: 5.4 | DH27: 4.3 | DI27: 6.7 | DJ27: 8.8 | DK27: 7.7 | DL27: 6.9 | DM27: 5 | DN27: 5.1 | DO27: 7.3 | DP27: 8.4 | DQ27: 9.6 | DR27: 7.9 | DS27: 5.3 | DT27: 3.2 | DU27: 5.1 | DV27: 7.4 | DW27: 7.9 | DX27: 6.7 | DY27: 4.5 | DZ27: 5.1 | EA27: 5.5 | EB27: 7.1 | EC27: 5.7 | ED27: 5.3 | EE27: 4 | EF27: 4.4 | EG27: 6.3 | EH27: 8.2 | EI27: 5.5 | EJ27: 6.2 | EK27: - | EL27: - | EM27: - | EN27: - | EO27: - | EP27: -
B28: Generación renovable | C28: 0.1 | D28: 0.1 | E28: 0.1 | F28: 0.1 | G28: 0.1 | H28: 0.1 | I28: 0 | J28: 0.1 | K28: 0.1 | L28: 0.1 | M28: 0.1 | N28: 0.1 | O28: 0.1 | P28: 0.1 | Q28: 0.1 | R28: 0.1 | S28: 0.1 | T28: 0.1 | U28: 0.1 | V28: 0.1 | W28: 0.1 | X28: 0.1 | Y28: 0.2 | Z28: 0.2 | AA28: 0.1 | AB28: 0.1 | AC28: 0.2 | AD28: 0.4 | AE28: 0.2 | AF28: 0.4 | AG28: 0.4 | AH28: 0.8 | AI28: 1 | AJ28: 1 | AK28: 0.9 | AL28: 0.9 | AM28: 0.8 | AN28: 1.3 | AO28: 1.7 | AP28: 1.7 | AQ28: 2 | AR28: 1.8 | AS28: 1.4 | AT28: 1.3 | AU28: 1.4 | AV28: 1.5 | AW28: 1.4 | AX28: 1 | AY28: 0.9 | AZ28: 1.3 | BA28: 1.6 | BB28: 2.1 | BC28: 2.2 | BD28: 2 | BE28: 1.8 | BF28: 1.7 | BG28: 1.7 | BH28: 1.6 | BI28: 1.5 | BJ28: 1.1 | BK28: 1.2 | BL28: 1.6 | BM28: 1.9 | BN28: 2.6 | BO28: 2.5 | BP28: 2.2 | BQ28: 1.8 | BR28: 1.9 | BS28: 1.7 | BT28: 2 | BU28: 1.4 | BV28: 1.4 | BW28: 1.5 | BX28: 1.7 | BY28: 2.6 | BZ28: 3 | CA28: 3 | CB28: 2.4 | CC28: 2.3 | CD28: 2 | CE28: 2.7 | CF28: 2.6 | CG28: 2.2 | CH28: 2.2 | CI28: 2.4 | CJ28: 2.4 | CK28: 3.6 | CL28: 3.8 | CM28: 3.6 | CN28: 3.9 | CO28: 3 | CP28: 2.8 | CQ28: 2.8 | CR28: 2.6 | CS28: 2.1 | CT28: 1.8 | CU28: 2 | CV28: 3.1 | CW28: 3.7 | CX28: 4.3 | CY28: 3.8 | CZ28: 3.6 | DA28: 3.1 | DB28: 2.8 | DC28: 2.5 | DD28: 3 | DE28: 2.7 | DF28: 2 | DG28: 5 | DH28: 4.7 | DI28: 6.6 | DJ28: 8.7 | DK28: 7.5 | DL28: 6.9 | DM28: 5.3 | DN28: 5.1 | DO28: 6.1 | DP28: 7 | DQ28: 7.6 | DR28: 6 | DS28: 5.2 | DT28: 4.3 | DU28: 6.1 | DV28: 7.3 | DW28: 7.5 | DX28: 6.6 | DY28: 5.2 | DZ28: 5.3 | EA28: 4.9 | EB28: 5.8 | EC28: 4.9 | ED28: 4.5 | EE28: 3.6 | EF28: 4.6 | EG28: 6.9 | EH28: 7.8 | EI28: 6.1 | EJ28: 5.8 | EK28: - | EL28: - | EM28: - | EN28: - | EO28: - | EP28: -
B29: Generación no renovable | C29: 99.9 | D29: 99.9 | E29: 99.9 | F29: 99.9 | G29: 99.9 | H29: 99.9 | I29: 100 | J29: 99.9 | K29: 99.9 | L29: 99.9 | M29: 99.9 | N29: 99.9 | O29: 99.9 | P29: 99.9 | Q29: 99.9 | R29: 99.9 | S29: 99.9 | T29: 99.9 | U29: 99.9 | V29: 99.9 | W29: 99.9 | X29: 99.9 | Y29: 99.8 | Z29: 99.8 | AA29: 99.9 | AB29: 99.9 | AC29: 99.8 | AD29: 99.6 | AE29: 99.8 | AF29: 99.6 | AG29: 99.6 | AH29: 99.2 | AI29: 99 | AJ29: 99 | AK29: 99.1 | AL29: 99.1 | AM29: 99.2 | AN29: 98.7 | AO29: 98.3 | AP29: 98.3 | AQ29: 98 | AR29: 98.2 | AS29: 98.6 | AT29: 98.7 | AU29: 98.6 | AV29: 98.5 | AW29: 98.6 | AX29: 99 | AY29: 99.1 | AZ29: 98.7 | BA29: 98.4 | BB29: 97.9 | BC29: 97.8 | BD29: 98 | BE29: 98.2 | BF29: 98.3 | BG29: 98.3 | BH29: 98.4 | BI29: 98.5 | BJ29: 98.9 | BK29: 98.8 | BL29: 98.4 | BM29: 98.1 | BN29: 97.4 | BO29: 97.5 | BP29: 97.8 | BQ29: 98.2 | BR29: 98.1 | BS29: 98.3 | BT29: 98 | BU29: 98.6 | BV29: 98.6 | BW29: 98.5 | BX29: 98.3 | BY29: 97.4 | BZ29: 97 | CA29: 97 | CB29: 97.6 | CC29: 97.7 | CD29: 98 | CE29: 97.3 | CF29: 97.4 | CG29: 97.8 | CH29: 97.8 | CI29: 97.6 | CJ29: 97.6 | CK29: 96.4 | CL29: 96.2 | CM29: 96.4 | CN29: 96.1 | CO29: 97 | CP29: 97.2 | CQ29: 97.2 | CR29: 97.4 | CS29: 97.9 | CT29: 98.2 | CU29: 98 | CV29: 96.9 | CW29: 96.3 | CX29: 95.7 | CY29: 96.2 | CZ29: 96.4 | DA29: 96.9 | DB29: 97.2 | DC29: 97.5 | DD29: 97 | DE29: 97.3 | DF29: 98 | DG29: 95 | DH29: 95.3 | DI29: 93.4 | DJ29: 91.3 | DK29: 92.5 | DL29: 93.1 | DM29: 94.7 | DN29: 94.9 | DO29: 93.9 | DP29: 93 | DQ29: 92.4 | DR29: 94 | DS29: 94.8 | DT29: 95.7 | DU29: 93.9 | DV29: 92.7 | DW29: 92.5 | DX29: 93.4 | DY29: 94.8 | DZ29: 94.7 | EA29: 95.1 | EB29: 94.2 | EC29: 95.1 | ED29: 95.5 | EE29: 96.4 | EF29: 95.4 | EG29: 93.1 | EH29: 92.2 | EI29: 93.9 | EJ29: 94.2 | EK29: - | EL29: - | EM29: - | EN29: - | EO29: - | EP29: -
B31: Estructura de generación mensual Islas Canarias (%) | C31: 2006-01-01 | D31: 2006-02-01 | E31: 2006-03-01 | F31: 2006-04-01 | G31: 2006-05-01 | H31: 2006-06-01 | I31: 2006-07-01 | J31: 2006-08-01 | K31: 2006-09-01 | L31: 2006-10-01 | M31: 2006-11-01 | N31: 2006-12-01 | O31: 2007-01-01 | P31: 2007-02-01 | Q31: 2007-03-01 | R31: 2007-04-01 | S31: 2007-05-01 | T31: 2007-06-01 | U31: 2007-07-01 | V31: 2007-08-01 | W31: 2007-09-01 | X31: 2007-10-01 | Y31: 2007-11-01 | Z31: 2007-12-01 | AA31: 2008-01-01 | AB31: 2008-02-01 | AC31: 2008-03-01 | AD31: 2008-04-01 | AE31: 2008-05-01 | AF31: 2008-06-01 | AG31: 2008-07-01 | AH31: 2008-08-01 | AI31: 2008-09-01 | AJ31: 2008-10-01 | AK31: 2008-11-01 | AL31: 2008-12-01 | AM31: 2009-01-01 | AN31: 2009-02-01 | AO31: 2009-03-01 | AP31: 2009-04-01 | AQ31: 2009-05-01 | AR31: 2009-06-01 | AS31: 2009-07-01 | AT31: 2009-08-01 | AU31: 2009-09-01 | AV31: 2009-10-01 | AW31: 2009-11-01 | AX31: 2009-12-01 | AY31: 2010-01-01 | AZ31: 2010-02-01 | BA31: 2010-03-01 | BB31: 2010-04-01 | BC31: 2010-05-01 | BD31: 2010-06-01 | BE31: 2010-07-01 | BF31: 2010-08-01 | BG31: 2010-09-01 | BH31: 2010-10-01 | BI31: 2010-11-01 | BJ31: 2010-12-01 | BK31: 2011-01-01 | BL31: 2011-02-01 | BM31: 2011-03-01 | BN31: 2011-04-01 | BO31: 2011-05-01 | BP31: 2011-06-01 | BQ31: 2011-07-01 | BR31: 2011-08-01 | BS31: 2011-09-01 | BT31: 2011-10-01 | BU31: 2011-11-01 | BV31: 2011-12-01 | BW31: 2012-01-01 | BX31: 2012-02-01 | BY31: 2012-03-01 | BZ31: 2012-04-01 | CA31: 2012-05-01 | CB31: 2012-06-01 | CC31: 2012-07-01 | CD31: 2012-08-01 | CE31: 2012-09-01 | CF31: 2012-10-01 | CG31: 2012-11-01 | CH31: 2012-12-01 | CI31: 2013-01-01 | CJ31: 2013-02-01 | CK31: 2013-03-01 | CL31: 2013-04-01 | CM31: 2013-05-01 | CN31: 2013-06-01 | CO31: 2013-07-01 | CP31: 2013-08-01 | CQ31: 2013-09-01 | CR31: 2013-10-01 | CS31: 2013-11-01 | CT31: 2013-12-01 | CU31: 2014-01-01 | CV31: 2014-02-01 | CW31: 2014-03-01 | CX31: 2014-04-01 | CY31: 2014-05-01 | CZ31: 2014-06-01 | DA31: 2014-07-01 | DB31: 2014-08-01 | DC31: 2014-09-01 | DD31: 2014-10-01 | DE31: 2014-11-01 | DF31: 2014-12-01 | DG31: 2015-01-01 | DH31: 2015-02-01 | DI31: 2015-03-01 | DJ31: 2015-04-01 | DK31: 2015-05-01 | DL31: 2015-06-01 | DM31: 2015-07-01 | DN31: 2015-08-01 | DO31: 2015-09-01 | DP31: 2015-10-01 | DQ31: 2015-11-01 | DR31: 2015-12-01 | DS31: 2016-01-01 | DT31: 2016-02-01 | DU31: 2016-03-01 | DV31: 2016-04-01 | DW31: 2016-05-01 | DX31: 2016-06-01 | DY31: 2016-07-01 | DZ31: 2016-08-01 | EA31: 2016-09-01 | EB31: 2016-10-01 | EC31: 2016-11-01 | ED31: 2016-12-01 | EE31: 2017-01-01 | EF31: 2017-02-01 | EG31: 2017-03-01 | EH31: 2017-04-01 | EI31: 2017-05-01 | EJ31: 2017-06-01 | EK31: 2017-07-01 | EL31: 2017-08-01 | EM31: 2017-09-01 | EN31: 2017-10-01 | EO31: 2017-11-01 | EP31: 2017-12-01
B32: Hidráulica | C32: - | D32: - | E32: - | F32: - | G32: - | H32: - | I32: - | J32: - | K32: - | L32: - | M32: - | N32: - | O32: - | P32: - | Q32: - | R32: - | S32: - | T32: - | U32: 0 | V32: 0 | W32: 0 | X32: 0 | Y32: 0 | Z32: 0 | AA32: 0 | AB32: 0 | AC32: 0 | AD32: - | AE32: 0 | AF32: 0 | AG32: 0 | AH32: 0 | AI32: - | AJ32: - | AK32: - | AL32: - | AM32: 0 | AN32: 0 | AO32: 0 | AP32: 0 | AQ32: - | AR32: - | AS32: - | AT32: - | AU32: - | AV32: - | AW32: - | AX32: - | AY32: - | AZ32: - | BA32: - | BB32: - | BC32: - | BD32: - | BE32: - | BF32: - | BG32: - | BH32: - | BI32: - | BJ32: - | BK32: - | BL32: - | BM32: 0 | BN32: 0 | BO32: 0 | BP32: 0 | BQ32: 0 | BR32: 0 | BS32: 0 | BT32: 0 | BU32: 0 | BV32: 0 | BW32: 0 | BX32: 0 | BY32: 0 | BZ32: 0 | CA32: 0 | CB32: 0 | CC32: 0 | CD32: 0 | CE32: 0 | CF32: 0 | CG32: 0 | CH32: 0 | CI32: 0 | CJ32: 0 | CK32: 0 | CL32: 0 | CM32: 0 | CN32: 0 | CO32: 0 | CP32: 0 | CQ32: 0 | CR32: 0 | CS32: 0 | CT32: 0 | CU32: 0 | CV32: 0 | CW32: 0 | CX32: 0 | CY32: 0 | CZ32: 0 | DA32: 0 | DB32: 0 | DC32: 0 | DD32: 0 | DE32: 0 | DF32: 0 | DG32: 0 | DH32: 0 | DI32: 0 | DJ32: 0 | DK32: 0 | DL32: 0 | DM32: 0 | DN32: 0 | DO32: 0 | DP32: 0 | DQ32: 0 | DR32: 0 | DS32: 0 | DT32: 0 | DU32: 0 | DV32: 0 | DW32: 0 | DX32: 0 | DY32: 0 | DZ32: 0 | EA32: 0 | EB32: 0 | EC32: 0 | ED32: 0 | EE32: 0 | EF32: 0 | EG32: 0 | EH32: 0 | EI32: 0 | EJ32: - | EK32: - | EL32: - | EM32: - | EN32: - | EO32: - | EP32: -
B33: Motores diesel | C33: 22.9 | D33: 22.8 | E33: 21.7 | F33: 20.8 | G33: 24 | H33: 24.8 | I33: 23.1 | J33: 23 | K33: 23.4 | L33: 23 | M33: 21.3 | N33: 22.4 | O33: 24.2 | P33: 22.3 | Q33: 22.2 | R33: 21.9 | S33: 21.4 | T33: 22.6 | U33: 22.8 | V33: 22.1 | W33: 21.9 | X33: 21.3 | Y33: 21.8 | Z33: 21.4 | AA33: 21.5 | AB33: 23.1 | AC33: 21.2 | AD33: 22.5 | AE33: 24 | AF33: 22.7 | AG33: 22.7 | AH33: 22.3 | AI33: 23.3 | AJ33: 22.3 | AK33: 22.4 | AL33: 22.7 | AM33: 22.7 | AN33: 23.4 | AO33: 22.3 | AP33: 22.7 | AQ33: 24.1 | AR33: 24.1 | AS33: 22.4 | AT33: 22.7 | AU33: 24.1 | AV33: 24.1 | AW33: 24.1 | AX33: 25.4 | AY33: 24.9 | AZ33: 24.9 | BA33: 25.1 | BB33: 24.4 | BC33: 22.5 | BD33: 22.9 | BE33: 24 | BF33: 25.3 | BG33: 24.7 | BH33: 26.1 | BI33: 25 | BJ33: 24.6 | BK33: 25.3 | BL33: 25.4 | BM33: 25.4 | BN33: 25.4 | BO33: 23.7 | BP33: 24.7 | BQ33: 24.5 | BR33: 23.9 | BS33: 24.7 | BT33: 22.8 | BU33: 23.5 | BV33: 23.6 | BW33: 23.7 | BX33: 24.9 | BY33: 24.2 | BZ33: 25.8 | CA33: 24.9 | CB33: 22.6 | CC33: 22.4 | CD33: 24.9 | CE33: 22.6 | CF33: 22.8 | CG33: 22.8 | CH33: 23.5 | CI33: 24.6 | CJ33: 25.2 | CK33: 25.2 | CL33: 22.5 | CM33: 23.7 | CN33: 23.6 | CO33: 22.3 | CP33: 23.8 | CQ33: 23.7 | CR33: 24 | CS33: 25.3 | CT33: 25.5 | CU33: 25.2 | CV33: 25.3 | CW33: 26 | CX33: 25.6 | CY33: 24.9 | CZ33: 25.5 | DA33: 24.3 | DB33: 25.8 | DC33: 24.4 | DD33: 23.9 | DE33: 23.4 | DF33: 25.9 | DG33: 25.1 | DH33: 25.3 | DI33: 25.9 | DJ33: 25.9 | DK33: 26.2 | DL33: 23.7 | DM33: 24 | DN33: 26 | DO33: 26.4 | DP33: 25.2 | DQ33: 25.3 | DR33: 26.4 | DS33: 26.3 | DT33: 25.1 | DU33: 26.3 | DV33: 25.9 | DW33: 25.9 | DX33: 24.7 | DY33: 25.6 | DZ33: 25.1 | EA33: 23 | EB33: 25.9 | EC33: 25.5 | ED33: 25.2 | EE33: 25.2 | EF33: 25 | EG33: 27 | EH33: 29.7 | EI33: 29.3 | EJ33: 24.8 | EK33: - | EL33: - | EM33: - | EN33: - | EO33: - | EP33: -
B34: Turbina de gas | C34: 7.3 | D34: 9 | E34: 12.6 | F34: 8.8 | G34: 8.1 | H34: 10.5 | I34: 8.8 | J34: 8.8 | K34: 9.8 | L34: 10.6 | M34: 10 | N34: 7.7 | O34: 8.3 | P34: 9.3 | Q34: 9 | R34: 8.8 | S34: 8.2 | T34: 6.8 | U34: 5.9 | V34: 6.9 | W34: 8.1 | X34: 7.1 | Y34: 7.1 | Z34: 6 | AA34: 6.2 | AB34: 5.3 | AC34: 3.7 | AD34: 4.3 | AE34: 5.2 | AF34: 6.3 | AG34: 5.9 | AH34: 5.2 | AI34: 6.4 | AJ34: 4.6 | AK34: 3.9 | AL34: 3.8 | AM34: 4.5 | AN34: 3.2 | AO34: 4 | AP34: 1.6 | AQ34: 5.3 | AR34: 5.1 | AS34: 3.1 | AT34: 3.6 | AU34: 5.2 | AV34: 3.9 | AW34: 3.3 | AX34: 2.2 | AY34: 1.8 | AZ34: 2.8 | BA34: 2.7 | BB34: 2 | BC34: 4.3 | BD34: 4.4 | BE34: 3.9 | BF34: 3.2 | BG34: 3.7 | BH34: 6.1 | BI34: 6.1 | BJ34: 5.3 | BK34: 4.6 | BL34: 5.5 | BM34: 6.6 | BN34: 4.3 | BO34: 4.7 | BP34: 4 | BQ34: 6 | BR34: 5.6 | BS34: 7.4 | BT34: 7.3 | BU34: 7.9 | BV34: 7.1 | BW34: 6.6 | BX34: 6.6 | BY34: 6.8 | BZ34: 6.2 | CA34: 6 | CB34: 5.7 | CC34: 5.4 | CD34: 6.2 | CE34: 7.8 | CF34: 8.2 | CG34: 6.7 | CH34: 7.4 | CI34: 4.6 | CJ34: 4.2 | CK34: 4.4 | CL34: 5.1 | CM34: 3.7 | CN34: 3.3 | CO34: 4.2 | CP34: 4.3 | CQ34: 3.9 | CR34: 4.7 | CS34: 4.6 | CT34: 4 | CU34: 3.7 | CV34: 5 | CW34: 2.8 | CX34: 3.2 | CY34: 3.6 | CZ34: 4.2 | DA34: 3.6 | DB34: 2.6 | DC34: 6.7 | DD34: 4.8 | DE34: 5.2 | DF34: 5.5 | DG34: 3.9 | DH34: 4.4 | DI34: 3.4 | DJ34: 3.5 | DK34: 5.3 | DL34: 5.2 | DM34: 3.7 | DN34: 3.3 | DO34: 4.4 | DP34: 3.2 | DQ34: 3.1 | DR34: 2.8 | DS34: 2.6 | DT34: 3.2 | DU34: 2.6 | DV34: 2.8 | DW34: 2.5 | DX34: 2 | DY34: 2.1 | DZ34: 4 | EA34: 5 | EB34: 3.6 | EC34: 3.6 | ED34: 4 | EE34: 4.2 | EF34: 3.5 | EG34: 2.6 | EH34: 1.8 | EI34: 2.3 | EJ34: 2.7 | EK34: - | EL34: - | EM34: - | EN34: - | EO34: - | EP34: -
B35: Turbina de vapor | C35: 48.3 | D35: 47 | E35: 48.7 | F35: 43.1 | G35: 38.5 | H35: 34.8 | I35: 33.4 | J35: 34.2 | K35: 36.5 | L35: 33.4 | M35: 36.6 | N35: 34.9 | O35: 34.6 | P35: 35.6 | Q35: 35.4 | R35: 40.6 | S35: 29.6 | T35: 37.8 | U35: 31.6 | V35: 37.1 | W35: 37.3 | X35: 36.8 | Y35: 36 | Z35: 38.4 | AA35: 41.1 | AB35: 42.3 | AC35: 37.2 | AD35: 35.7 | AE35: 37.1 | AF35: 30.4 | AG35: 34.5 | AH35: 33.5 | AI35: 36 | AJ35: 37.5 | AK35: 37.2 | AL35: 36.7 | AM35: 36.7 | AN35: 35.7 | AO35: 36.9 | AP35: 35.2 | AQ35: 39.9 | AR35: 34.6 | AS35: 32.8 | AT35: 34.8 | AU35: 36.6 | AV35: 37 | AW35: 32.8 | AX35: 34.5 | AY35: 36.6 | AZ35: 35.6 | BA35: 34.4 | BB35: 32.9 | BC35: 35.3 | BD35: 35.5 | BE35: 32.6 | BF35: 33.8 | BG35: 33.3 | BH35: 28.5 | BI35: 30 | BJ35: 33 | BK35: 32.1 | BL35: 33.6 | BM35: 35.9 | BN35: 32.7 | BO35: 30.8 | BP35: 24.8 | BQ35: 29.9 | BR35: 27.9 | BS35: 27.2 | BT35: 29.8 | BU35: 25 | BV35: 27.9 | BW35: 31 | BX35: 28.1 | BY35: 30.6 | BZ35: 29.7 | CA35: 27.4 | CB35: 30.5 | CC35: 30.9 | CD35: 29.3 | CE35: 29.1 | CF35: 30.8 | CG35: 34 | CH35: 31.1 | CI35: 26.6 | CJ35: 29.5 | CK35: 30.5 | CL35: 29.5 | CM35: 27.8 | CN35: 25.7 | CO35: 28.5 | CP35: 27.7 | CQ35: 28.1 | CR35: 29.8 | CS35: 29 | CT35: 30.4 | CU35: 30 | CV35: 26.9 | CW35: 21.3 | CX35: 22.6 | CY35: 21 | CZ35: 24.5 | DA35: 25 | DB35: 24.1 | DC35: 21.7 | DD35: 22.3 | DE35: 23.9 | DF35: 27.1 | DG35: 27.6 | DH35: 26.6 | DI35: 25.5 | DJ35: 23.7 | DK35: 21.4 | DL35: 27.1 | DM35: 26.6 | DN35: 26.9 | DO35: 28.9 | DP35: 21.5 | DQ35: 21.8 | DR35: 30.1 | DS35: 31.5 | DT35: 30.3 | DU35: 30.4 | DV35: 28 | DW35: 24.7 | DX35: 28.9 | DY35: 29.1 | DZ35: 29.8 | EA35: 29.8 | EB35: 27.3 | EC35: 23.8 | ED35: 32.9 | EE35: 28.2 | EF35: 29.6 | EG35: 27.8 | EH35: 30.9 | EI35: 26.1 | EJ35: 33.8 | EK35: - | EL35: - | EM35: - | EN35: - | EO35: - | EP35: -
B36: Ciclo combinado | C36: 17.5 | D36: 16.6 | E36: 11 | F36: 20.2 | G36: 21.8 | H36: 23.4 | I36: 24.5 | J36: 26.5 | K36: 25.6 | L36: 27.6 | M36: 27.5 | N36: 28.5 | O36: 26.2 | P36: 24.8 | Q36: 26.2 | R36: 20.9 | S36: 32.5 | T36: 24.9 | U36: 28.5 | V36: 23.5 | W36: 25 | X36: 28.4 | Y36: 29.2 | Z36: 27.6 | AA36: 25.2 | AB36: 22.7 | AC36: 28.3 | AD36: 28.4 | AE36: 25.3 | AF36: 31.7 | AG36: 27.7 | AH36: 27.2 | AI36: 28.9 | AJ36: 27.3 | AK36: 28.9 | AL36: 29.2 | AM36: 28.3 | AN36: 29.8 | AO36: 29.7 | AP36: 27.8 | AQ36: 20.5 | AR36: 27.5 | AS36: 28.9 | AT36: 26.2 | AU36: 26.2 | AV36: 28.8 | AW36: 31.8 | AX36: 30.8 | AY36: 30.5 | AZ36: 30.2 | BA36: 30.3 | BB36: 30.5 | BC36: 26.7 | BD36: 26.4 | BE36: 28.9 | BF36: 28.7 | BG36: 30.6 | BH36: 34.7 | BI36: 34.3 | BJ36: 32.9 | BK36: 34.1 | BL36: 28.5 | BM36: 25.5 | BN36: 30.6 | BO36: 34.2 | BP36: 37.9 | BQ36: 29.1 | BR36: 32.6 | BS36: 33.8 | BT36: 34.4 | BU36: 39.4 | BV36: 34.8 | BW36: 34 | BX36: 33 | BY36: 30.7 | BZ36: 30.9 | CA36: 34.4 | CB36: 31.6 | CC36: 30.3 | CD36: 29.3 | CE36: 35.7 | CF36: 33.4 | CG36: 31.9 | CH36: 33.3 | CI36: 37.9 | CJ36: 33.8 | CK36: 34.6 | CL36: 34.9 | CM36: 35.4 | CN36: 35.7 | CO36: 35.3 | CP36: 35.1 | CQ36: 37.5 | CR36: 35.2 | CS36: 34.6 | CT36: 34.7 | CU36: 34.3 | CV36: 34.6 | CW36: 39.5 | CX36: 40.6 | CY36: 40.1 | CZ36: 36.6 | DA36: 37 | DB36: 35.5 | DC36: 42.5 | DD36: 44.1 | DE36: 42.1 | DF36: 35.8 | DG36: 35 | DH36: 34.2 | DI36: 35.7 | DJ36: 38.8 | DK36: 37.1 | DL36: 35.4 | DM36: 33.5 | DN36: 33.5 | DO36: 35 | DP36: 46.1 | DQ36: 43.6 | DR36: 36.8 | DS36: 34.1 | DT36: 32.1 | DU36: 32.4 | DV36: 35.7 | DW36: 38.7 | DX36: 33.6 | DY36: 31.6 | DZ36: 31.2 | EA36: 32.2 | EB36: 38.6 | EC36: 42.2 | ED36: 33.5 | EE36: 37.8 | EF36: 35.4 | EG36: 34 | EH36: 31.2 | EI36: 35 | EJ36: 29.1 | EK36: - | EL36: - | EM36: - | EN36: - | EO36: - | EP36: -
B37: Generación auxiliar | C37: - | D37: - | E37: - | F37: - | G37: - | H37: - | I37: - | J37: - | K37: - | L37: - | M37: - | N37: - | O37: 1.6 | P37: 1.7 | Q37: 1.5 | R37: 1.6 | S37: 1.4 | T37: 1.3 | U37: 1.3 | V37: 1.5 | W37: 1.5 | X37: 1.5 | Y37: 1.3 | Z37: 1.1 | AA37: 1.3 | AB37: 1.3 | AC37: 1.4 | AD37: 1.3 | AE37: 0.9 | AF37: 0.9 | AG37: 1 | AH37: 1 | AI37: 0.6 | AJ37: 0.6 | AK37: 0.7 | AL37: 0.6 | AM37: 0.6 | AN37: 0.6 | AO37: 0.6 | AP37: 0.4 | AQ37: 0.4 | AR37: 0.4 | AS37: 0.7 | AT37: 0.4 | AU37: 0.2 | AV37: 0.1 | AW37: 0.1 | AX37: 0 | AY37: - | AZ37: - | BA37: - | BB37: - | BC37: - | BD37: - | BE37: - | BF37: - | BG37: - | BH37: - | BI37: - | BJ37: - | BK37: - | BL37: - | BM37: - | BN37: - | BO37: - | BP37: - | BQ37: - | BR37: - | BS37: - | BT37: - | BU37: - | BV37: - | BW37: - | BX37: - | BY37: - | BZ37: - | CA37: - | CB37: - | CC37: - | CD37: - | CE37: - | CF37: - | CG37: - | CH37: - | CI37: - | CJ37: - | CK37: - | CL37: - | CM37: - | CN37: - | CO37: - | CP37: - | CQ37: - | CR37: - | CS37: - | CT37: - | CU37: - | CV37: - | CW37: - | CX37: - | CY37: - | CZ37: - | DA37: - | DB37: - | DC37: - | DD37: - | DE37: - | DF37: - | DG37: - | DH37: - | DI37: - | DJ37: - | DK37: - | DL37: - | DM37: - | DN37: - | DO37: - | DP37: - | DQ37: - | DR37: - | DS37: - | DT37: - | DU37: - | DV37: - | DW37: - | DX37: - | DY37: - | DZ37: - | EA37: - | EB37: - | EC37: - | ED37: - | EE37: - | EF37: - | EG37: - | EH37: - | EI37: - | EJ37: - | EK37: - | EL37: - | EM37: - | EN37: - | EO37: - | EP37: -
B38: Hidroeólica | C38: - | D38: - | E38: - | F38: - | G38: - | H38: - | I38: - | J38: - | K38: - | L38: - | M38: - | N38: - | O38: - | P38: - | Q38: - | R38: - | S38: - | T38: - | U38: - | V38: - | W38: - | X38: - | Y38: - | Z38: - | AA38: - | AB38: - | AC38: - | AD38: - | AE38: - | AF38: - | AG38: - | AH38: - | AI38: - | AJ38: - | AK38: - | AL38: - | AM38: - | AN38: - | AO38: - | AP38: - | AQ38: - | AR38: - | AS38: - | AT38: - | AU38: - | AV38: - | AW38: - | AX38: - | AY38: - | AZ38: - | BA38: - | BB38: - | BC38: - | BD38: - | BE38: - | BF38: - | BG38: - | BH38: - | BI38: - | BJ38: - | BK38: - | BL38: - | BM38: - | BN38: - | BO38: - | BP38: - | BQ38: - | BR38: - | BS38: - | BT38: - | BU38: - | BV38: - | BW38: - | BX38: - | BY38: - | BZ38: - | CA38: - | CB38: - | CC38: - | CD38: - | CE38: - | CF38: - | CG38: - | CH38: - | CI38: - | CJ38: - | CK38: - | CL38: - | CM38: - | CN38: - | CO38: - | CP38: - | CQ38: - | CR38: - | CS38: - | CT38: - | CU38: - | CV38: - | CW38: - | CX38: - | CY38: - | CZ38: - | DA38: 0 | DB38: 0 | DC38: 0 | DD38: 0 | DE38: 0 | DF38: 0 | DG38: 0.1 | DH38: 0.1 | DI38: 0 | DJ38: 0 | DK38: 0 | DL38: 0.1 | DM38: 0.3 | DN38: 0.3 | DO38: 0.1 | DP38: 0.1 | DQ38: 0.1 | DR38: 0.1 | DS38: 0.1 | DT38: 0.3 | DU38: 0.2 | DV38: 0.2 | DW38: 0.1 | DX38: 0.3 | DY38: 0.3 | DZ38: 0.3 | EA38: 0.3 | EB38: 0.1 | EC38: 0.1 | ED38: 0.1 | EE38: 0.1 | EF38: 0.2 | EG38: 0.3 | EH38: 0.1 | EI38: 0.2 | EJ38: 0.3 | EK38: - | EL38: - | EM38: - | EN38: - | EO38: - | EP38: -
B39: Eólica | C39: 2.4 | D39: 2.9 | E39: 3.1 | F39: 4.1 | G39: 4.9 | H39: 3.6 | I39: 7.4 | J39: 4.9 | K39: 2.9 | L39: 2.5 | M39: 2.1 | N39: 3.4 | O39: 2.3 | P39: 3.3 | Q39: 4.8 | R39: 3.6 | S39: 4.6 | T39: 4.3 | U39: 7.2 | V39: 6 | W39: 3.4 | X39: 2.4 | Y39: 2.1 | Z39: 2.4 | AA39: 1.6 | AB39: 2.2 | AC39: 5.1 | AD39: 4.7 | AE39: 4.1 | AF39: 5.3 | AG39: 7.5 | AH39: 7.5 | AI39: 2.2 | AJ39: 4.3 | AK39: 2.9 | AL39: 3.2 | AM39: 3.1 | AN39: 2.5 | AO39: 3.2 | AP39: 6.5 | AQ39: 4.4 | AR39: 2.8 | AS39: 6.9 | AT39: 7.1 | AU39: 3 | AV39: 1.6 | AW39: 3.3 | AX39: 2.7 | AY39: 1.6 | AZ39: 2.2 | BA39: 3.1 | BB39: 4.5 | BC39: 5 | BD39: 5.4 | BE39: 6.3 | BF39: 5.4 | BG39: 4.7 | BH39: 1.8 | BI39: 2.4 | BJ39: 2.2 | BK39: 1.5 | BL39: 3.6 | BM39: 3.1 | BN39: 3.4 | BO39: 2.7 | BP39: 5.2 | BQ39: 7.3 | BR39: 6.7 | BS39: 4.1 | BT39: 3.3 | BU39: 2.1 | BV39: 4.5 | BW39: 2.5 | BX39: 4.8 | BY39: 4.5 | BZ39: 4.3 | CA39: 3.7 | CB39: 6.1 | CC39: 7.5 | CD39: 6.9 | CE39: 1.7 | CF39: 2.2 | CG39: 2.3 | CH39: 2.1 | CI39: 3.4 | CJ39: 4.3 | CK39: 1.9 | CL39: 4 | CM39: 5.4 | CN39: 7.1 | CO39: 5.5 | CP39: 5.5 | CQ39: 3.4 | CR39: 3.2 | CS39: 3.9 | CT39: 3.1 | CU39: 4.1 | CV39: 5 | CW39: 6.5 | CX39: 4.1 | CY39: 6.1 | CZ39: 5.1 | DA39: 6.2 | DB39: 7.9 | DC39: 1.7 | DD39: 2.1 | DE39: 2.9 | DF39: 3.3 | DG39: 5.7 | DH39: 6.6 | DI39: 5.8 | DJ39: 4.3 | DK39: 5.7 | DL39: 4.4 | DM39: 7.8 | DN39: 6.5 | DO39: 2.3 | DP39: 1.4 | DQ39: 3.4 | DR39: 1.2 | DS39: 2.6 | DT39: 6 | DU39: 4.7 | DV39: 3.8 | DW39: 4.4 | DX39: 6.3 | DY39: 7.4 | DZ39: 6.1 | EA39: 6.2 | EB39: 1.8 | EC39: 2.4 | ED39: 2.1 | EE39: 2 | EF39: 3.4 | EG39: 4.8 | EH39: 2.6 | EI39: 3.5 | EJ39: 5.8 | EK39: - | EL39: - | EM39: - | EN39: - | EO39: - | EP39: -
B40: Solar fotovoltaica | C40: 0 | D40: 0 | E40: 0 | F40: 0 | G40: 0 | H40: 0 | I40: 0 | J40: 0.1 | K40: 0.1 | L40: 0.1 | M40: 0.1 | N40: 0.1 | O40: 0.1 | P40: 0.1 | Q40: 0.2 | R40: 0.2 | S40: 0.2 | T40: 0.2 | U40: 0.3 | V40: 0.3 | W40: 0.3 | X40: 0.2 | Y40: 0.2 | Z40: 0.2 | AA40: 0.3 | AB40: 0.4 | AC40: 0.5 | AD40: 0.5 | AE40: 0.6 | AF40: 0.7 | AG40: 0.7 | AH40: 0.7 | AI40: 0.8 | AJ40: 1.2 | AK40: 1 | AL40: 0.9 | AM40: 1.1 | AN40: 1.6 | AO40: 1.7 | AP40: 2.3 | AQ40: 2.2 | AR40: 2.2 | AS40: 2.2 | AT40: 2.2 | AU40: 1.6 | AV40: 1.7 | AW40: 1.5 | AX40: 1.2 | AY40: 1.4 | AZ40: 1.5 | BA40: 2.2 | BB40: 2.3 | BC40: 2.7 | BD40: 2.7 | BE40: 3 | BF40: 2.8 | BG40: 2.3 | BH40: 2.1 | BI40: 1.7 | BJ40: 1.7 | BK40: 2 | BL40: 2.5 | BM40: 2.7 | BN40: 2.8 | BO40: 2.9 | BP40: 3.2 | BQ40: 3.1 | BR40: 3.2 | BS40: 2.7 | BT40: 2.3 | BU40: 2 | BV40: 2 | BW40: 2.1 | BX40: 2.5 | BY40: 3.1 | BZ40: 3 | CA40: 3.5 | CB40: 3.4 | CC40: 3.4 | CD40: 3.3 | CE40: 3 | CF40: 2.5 | CG40: 2.2 | CH40: 2.5 | CI40: 2.8 | CJ40: 2.9 | CK40: 3.3 | CL40: 3.9 | CM40: 3.9 | CN40: 4.5 | CO40: 4.1 | CP40: 3.5 | CQ40: 3.3 | CR40: 3 | CS40: 2.5 | CT40: 2.2 | CU40: 2.6 | CV40: 3.1 | CW40: 3.8 | CX40: 3.8 | CY40: 4.2 | CZ40: 4 | DA40: 3.8 | DB40: 4 | DC40: 2.9 | DD40: 2.7 | DE40: 2.4 | DF40: 2.3 | DG40: 2.5 | DH40: 2.7 | DI40: 3.6 | DJ40: 3.7 | DK40: 4.2 | DL40: 4 | DM40: 4 | DN40: 3.4 | DO40: 2.8 | DP40: 2.4 | DQ40: 2.6 | DR40: 2.5 | DS40: 2.7 | DT40: 2.9 | DU40: 3.3 | DV40: 3.5 | DW40: 3.6 | DX40: 4.1 | DY40: 3.8 | DZ40: 3.4 | EA40: 3.4 | EB40: 2.6 | EC40: 2.3 | ED40: 2.1 | EE40: 2.4 | EF40: 2.8 | EG40: 3.4 | EH40: 3.6 | EI40: 3.5 | EJ40: 3.5 | EK40: - | EL40: - | EM40: - | EN40: - | EO40: - | EP40: -
B41: Térmica renovable/Otras renovables | C41: 1.2 | D41: 1.7 | E41: 2.9 | F41: 3 | G41: 2.7 | H41: 2.9 | I41: 2.8 | J41: 2.5 | K41: 1.7 | L41: 2.8 | M41: 2.4 | N41: 3 | O41: 2.7 | P41: 2.9 | Q41: 0.7 | R41: 2.4 | S41: 2.1 | T41: 2.1 | U41: 2.4 | V41: 2.6 | W41: 2.5 | X41: 2.3 | Y41: 2.3 | Z41: 2.9 | AA41: 2.8 | AB41: 2.7 | AC41: 2.6 | AD41: 2.6 | AE41: 2.8 | AF41: 2 | AG41: 0 | AH41: 2.6 | AI41: 1.8 | AJ41: 2.2 | AK41: 3 | AL41: 2.9 | AM41: 3 | AN41: 3.2 | AO41: 1.6 | AP41: 3.5 | AQ41: 3.2 | AR41: 3.3 | AS41: 3 | AT41: 3 | AU41: 3.1 | AV41: 2.8 | AW41: 3.1 | AX41: 3.2 | AY41: 3.2 | AZ41: 2.8 | BA41: 2.2 | BB41: 3.4 | BC41: 3.5 | BD41: 2.7 | BE41: 1.3 | BF41: 0.8 | BG41: 0.7 | BH41: 0.7 | BI41: 0.5 | BJ41: 0.3 | BK41: 0.4 | BL41: 0.9 | BM41: 0.8 | BN41: 0.8 | BO41: 1 | BP41: 0.2 | BQ41: 0.1 | BR41: 0.1 | BS41: 0.1 | BT41: 0.1 | BU41: 0.1 | BV41: 0.1 | BW41: 0.1 | BX41: 0.1 | BY41: 0.1 | BZ41: 0.1 | CA41: 0.1 | CB41: 0.1 | CC41: 0.1 | CD41: 0.1 | CE41: 0.1 | CF41: 0.1 | CG41: 0.1 | CH41: 0.1 | CI41: 0.1 | CJ41: 0.1 | CK41: 0.1 | CL41: 0.1 | CM41: 0.1 | CN41: 0.1 | CO41: 0.1 | CP41: 0.1 | CQ41: 0.1 | CR41: 0.1 | CS41: 0.1 | CT41: 0.1 | CU41: 0.1 | CV41: 0.1 | CW41: 0.1 | CX41: 0.1 | CY41: 0.1 | CZ41: 0.1 | DA41: 0.1 | DB41: 0.1 | DC41: 0.1 | DD41: 0.1 | DE41: 0.1 | DF41: 0.1 | DG41: 0.1 | DH41: 0.1 | DI41: 0.1 | DJ41: 0.1 | DK41: 0.1 | DL41: 0.1 | DM41: 0.1 | DN41: 0.1 | DO41: 0.1 | DP41: 0.1 | DQ41: 0.1 | DR41: 0.1 | DS41: 0.1 | DT41: 0.1 | DU41: 0.1 | DV41: 0.1 | DW41: 0.1 | DX41: 0.1 | DY41: 0.1 | DZ41: 0.1 | EA41: 0.1 | EB41: 0.1 | EC41: 0.1 | ED41: 0.1 | EE41: 0.1 | EF41: 0.1 | EG41: 0.1 | EH41: 0.1 | EI41: 0.1 | EJ41: - | EK41: - | EL41: - | EM41: - | EN41: - | EO41: - | EP41: -
B42: Térmica no renovable/Cogeneración y resto/Cogeneración | C42: 0.4 | D42: - | E42: - | F42: - | G42: - | H42: - | I42: - | J42: - | K42: - | L42: - | M42: - | N42: - | O42: - | P42: - | Q42: - | R42: - | S42: - | T42: - | U42: - | V42: - | W42: - | X42: - | Y42: - | Z42: - | AA42: - | AB42: - | AC42: - | AD42: - | AE42: - | AF42: - | AG42: - | AH42: - | AI42: - | AJ42: - | AK42: - | AL42: - | AM42: - | AN42: - | AO42: - | AP42: - | AQ42: 0 | AR42: 0 | AS42: - | AT42: - | AU42: - | AV42: - | AW42: - | AX42: - | AY42: - | AZ42: - | BA42: - | BB42: - | BC42: - | BD42: - | BE42: - | BF42: - | BG42: - | BH42: - | BI42: - | BJ42: - | BK42: - | BL42: - | BM42: - | BN42: - | BO42: - | BP42: - | BQ42: - | BR42: - | BS42: - | BT42: - | BU42: - | BV42: - | BW42: - | BX42: - | BY42: - | BZ42: - | CA42: - | CB42: - | CC42: - | CD42: - | CE42: - | CF42: - | CG42: - | CH42: - | CI42: - | CJ42: - | CK42: - | CL42: - | CM42: - | CN42: - | CO42: - | CP42: - | CQ42: - | CR42: - | CS42: - | CT42: - | CU42: - | CV42: - | CW42: - | CX42: - | CY42: - | CZ42: - | DA42: - | DB42: - | DC42: - | DD42: - | DE42: - | DF42: - | DG42: - | DH42: - | DI42: - | DJ42: - | DK42: - | DL42: - | DM42: - | DN42: - | DO42: - | DP42: - | DQ42: - | DR42: - | DS42: - | DT42: - | DU42: - | DV42: - | DW42: - | DX42: - | DY42: - | DZ42: - | EA42: - | EB42: - | EC42: - | ED42: - | EE42: - | EF42: - | EG42: - | EH42: - | EI42: - | EJ42: - | EK42: - | EL42: - | EM42: - | EN42: - | EO42: - | EP42: -
B43: Generación renovable | C43: 3.6 | D43: 4.6 | E43: 6 | F43: 7.1 | G43: 7.6 | H43: 6.5 | I43: 10.2 | J43: 7.5 | K43: 4.7 | L43: 5.4 | M43: 4.6 | N43: 6.5 | O43: 5.1 | P43: 6.3 | Q43: 5.7 | R43: 6.2 | S43: 6.9 | T43: 6.6 | U43: 9.9 | V43: 8.9 | W43: 6.2 | X43: 4.9 | Y43: 4.6 | Z43: 5.5 | AA43: 4.7 | AB43: 5.3 | AC43: 8.2 | AD43: 7.8 | AE43: 7.5 | AF43: 8 | AG43: 8.2 | AH43: 10.8 | AI43: 4.8 | AJ43: 7.7 | AK43: 6.9 | AL43: 7 | AM43: 7.2 | AN43: 7.3 | AO43: 6.5 | AP43: 12.3 | AQ43: 9.8 | AR43: 8.3 | AS43: 12.1 | AT43: 12.3 | AU43: 7.7 | AV43: 6.1 | AW43: 7.9 | AX43: 7.1 | AY43: 6.2 | AZ43: 6.5 | BA43: 7.5 | BB43: 10.2 | BC43: 11.2 | BD43: 10.8 | BE43: 10.6 | BF43: 9 | BG43: 7.7 | BH43: 4.6 | BI43: 4.6 | BJ43: 4.2 | BK43: 3.9 | BL43: 7 | BM43: 6.6 | BN43: 7 | BO43: 6.6 | BP43: 8.6 | BQ43: 10.5 | BR43: 10 | BS43: 6.9 | BT43: 5.7 | BU43: 4.2 | BV43: 6.6 | BW43: 4.7 | BX43: 7.4 | BY43: 7.7 | BZ43: 7.4 | CA43: 7.3 | CB43: 9.6 | CC43: 11 | CD43: 10.3 | CE43: 4.8 | CF43: 4.8 | CG43: 4.6 | CH43: 4.7 | CI43: 6.3 | CJ43: 7.3 | CK43: 5.3 | CL43: 8 | CM43: 9.4 | CN43: 11.7 | CO43: 9.7 | CP43: 9.1 | CQ43: 6.8 | CR43: 6.3 | CS43: 6.5 | CT43: 5.4 | CU43: 6.8 | CV43: 8.2 | CW43: 10.4 | CX43: 8 | CY43: 10.4 | CZ43: 9.2 | DA43: 10.1 | DB43: 12 | DC43: 4.7 | DD43: 4.9 | DE43: 5.4 | DF43: 5.7 | DG43: 8.4 | DH43: 9.5 | DI43: 9.5 | DJ43: 8.1 | DK43: 10 | DL43: 8.6 | DM43: 12.2 | DN43: 10.3 | DO43: 5.3 | DP43: 4 | DQ43: 6.2 | DR43: 3.9 | DS43: 5.5 | DT43: 9.3 | DU43: 8.3 | DV43: 7.6 | DW43: 8.2 | DX43: 10.8 | DY43: 11.6 | DZ43: 9.9 | EA43: 10 | EB43: 4.6 | EC43: 4.9 | ED43: 4.4 | EE43: 4.6 | EF43: 6.5 | EG43: 8.6 | EH43: 6.4 | EI43: 7.3 | EJ43: 9.6 | EK43: - | EL43: - | EM43: - | EN43: - | EO43: - | EP43: -
B44: Generación no renovable | C44: 96.4 | D44: 95.4 | E44: 94 | F44: 92.9 | G44: 92.4 | H44: 93.5 | I44: 89.8 | J44: 92.5 | K44: 95.3 | L44: 94.6 | M44: 95.4 | N44: 93.5 | O44: 94.9 | P44: 93.7 | Q44: 94.3 | R44: 93.8 | S44: 93.1 | T44: 93.4 | U44: 90.1 | V44: 91.1 | W44: 93.8 | X44: 95.1 | Y44: 95.4 | Z44: 94.5 | AA44: 95.3 | AB44: 94.7 | AC44: 91.8 | AD44: 92.2 | AE44: 92.5 | AF44: 92 | AG44: 91.8 | AH44: 89.2 | AI44: 95.2 | AJ44: 92.3 | AK44: 93.1 | AL44: 93 | AM44: 92.8 | AN44: 92.7 | AO44: 93.5 | AP44: 87.7 | AQ44: 90.2 | AR44: 91.7 | AS44: 87.9 | AT44: 87.7 | AU44: 92.3 | AV44: 93.9 | AW44: 92.1 | AX44: 92.9 | AY44: 93.8 | AZ44: 93.5 | BA44: 92.5 | BB44: 89.8 | BC44: 88.8 | BD44: 89.2 | BE44: 89.4 | BF44: 91 | BG44: 92.3 | BH44: 95.4 | BI44: 95.4 | BJ44: 95.8 | BK44: 96.1 | BL44: 93 | BM44: 93.4 | BN44: 93 | BO44: 93.4 | BP44: 91.4 | BQ44: 89.5 | BR44: 90 | BS44: 93.1 | BT44: 94.3 | BU44: 95.8 | BV44: 93.4 | BW44: 95.3 | BX44: 92.6 | BY44: 92.3 | BZ44: 92.6 | CA44: 92.7 | CB44: 90.4 | CC44: 89 | CD44: 89.7 | CE44: 95.2 | CF44: 95.2 | CG44: 95.4 | CH44: 95.3 | CI44: 93.7 | CJ44: 92.7 | CK44: 94.7 | CL44: 92 | CM44: 90.6 | CN44: 88.3 | CO44: 90.3 | CP44: 90.9 | CQ44: 93.2 | CR44: 93.7 | CS44: 93.5 | CT44: 94.6 | CU44: 93.2 | CV44: 91.8 | CW44: 89.6 | CX44: 92 | CY44: 89.6 | CZ44: 90.8 | DA44: 89.9 | DB44: 88 | DC44: 95.3 | DD44: 95.1 | DE44: 94.6 | DF44: 94.3 | DG44: 91.6 | DH44: 90.5 | DI44: 90.5 | DJ44: 91.9 | DK44: 90 | DL44: 91.4 | DM44: 87.8 | DN44: 89.7 | DO44: 94.7 | DP44: 96 | DQ44: 93.8 | DR44: 96.1 | DS44: 94.5 | DT44: 90.7 | DU44: 91.7 | DV44: 92.4 | DW44: 91.8 | DX44: 89.2 | DY44: 88.4 | DZ44: 90.1 | EA44: 90 | EB44: 95.4 | EC44: 95.1 | ED44: 95.6 | EE44: 95.4 | EF44: 93.5 | EG44: 91.4 | EH44: 93.6 | EI44: 92.7 | EJ44: 90.4 | EK44: - | EL44: - | EM44: - | EN44: - | EO44: - | EP44: -
B46: Estructura de generación mensual Ceuta (%) | C46: 2007-01-01 | D46: 2007-02-01 | E46: 2007-03-01 | F46: 2007-04-01 | G46: 2007-05-01 | H46: 2007-06-01 | I46: 2007-07-01 | J46: 2007-08-01 | K46: 2007-09-01 | L46: 2007-10-01 | M46: 2007-11-01 | N46: 2007-12-01 | O46: 2008-01-01 | P46: 2008-02-01 | Q46: 2008-03-01 | R46: 2008-04-01 | S46: 2008-05-01 | T46: 2008-06-01 | U46: 2008-07-01 | V46: 2008-08-01 | W46: 2008-09-01 | X46: 2008-10-01 | Y46: 2008-11-01 | Z46: 2008-12-01 | AA46: 2009-01-01 | AB46: 2009-02-01 | AC46: 2009-03-01 | AD46: 2009-04-01 | AE46: 2009-05-01 | AF46: 2009-06-01 | AG46: 2009-07-01 | AH46: 2009-08-01 | AI46: 2009-09-01 | AJ46: 2009-10-01 | AK46: 2009-11-01 | AL46: 2009-12-01 | AM46: 2010-01-01 | AN46: 2010-02-01 | AO46: 2010-03-01 | AP46: 2010-04-01 | AQ46: 2010-05-01 | AR46: 2010-06-01 | AS46: 2010-07-01 | AT46: 2010-08-01 | AU46: 2010-09-01 | AV46: 2010-10-01 | AW46: 2010-11-01 | AX46: 2010-12-01 | AY46: 2011-01-01 | AZ46: 2011-02-01 | BA46: 2011-03-01 | BB46: 2011-04-01 | BC46: 2011-05-01 | BD46: 2011-06-01 | BE46: 2011-07-01 | BF46: 2011-08-01 | BG46: 2011-09-01 | BH46: 2011-10-01 | BI46: 2011-11-01 | BJ46: 2011-12-01 | BK46: 2012-01-01 | BL46: 2012-02-01 | BM46: 2012-03-01 | BN46: 2012-04-01 | BO46: 2012-05-01 | BP46: 2012-06-01 | BQ46: 2012-07-01 | BR46: 2012-08-01 | BS46: 2012-09-01 | BT46: 2012-10-01 | BU46: 2012-11-01 | BV46: 2012-12-01 | BW46: 2013-01-01 | BX46: 2013-02-01 | BY46: 2013-03-01 | BZ46: 2013-04-01 | CA46: 2013-05-01 | CB46: 2013-06-01 | CC46: 2013-07-01 | CD46: 2013-08-01 | CE46: 2013-09-01 | CF46: 2013-10-01 | CG46: 2013-11-01 | CH46: 2013-12-01 | CI46: 2014-01-01 | CJ46: 2014-02-01 | CK46: 2014-03-01 | CL46: 2014-04-01 | CM46: 2014-05-01 | CN46: 2014-06-01 | CO46: 2014-07-01 | CP46: 2014-08-01 | CQ46: 2014-09-01 | CR46: 2014-10-01 | CS46: 2014-11-01 | CT46: 2014-12-01 | CU46: 2015-01-01 | CV46: 2015-02-01 | CW46: 2015-03-01 | CX46: 2015-04-01 | CY46: 2015-05-01 | CZ46: 2015-06-01 | DA46: 2015-07-01 | DB46: 2015-08-01 | DC46: 2015-09-01 | DD46: 2015-10-01 | DE46: 2015-11-01 | DF46: 2015-12-01 | DG46: 2016-01-01 | DH46: 2016-02-01 | DI46: 2016-03-01 | DJ46: 2016-04-01 | DK46: 2016-05-01 | DL46: 2016-06-01 | DM46: 2016-07-01 | DN46: 2016-08-01 | DO46: 2016-09-01 | DP46: 2016-10-01 | DQ46: 2016-11-01 | DR46: 2016-12-01 | DS46: 2017-01-01 | DT46: 2017-02-01 | DU46: 2017-03-01 | DV46: 2017-04-01 | DW46: 2017-05-01 | DX46: 2017-06-01 | DY46: 2017-07-01 | DZ46: 2017-08-01 | EA46: 2017-09-01 | EB46: 2017-10-01 | EC46: 2017-11-01 | ED46: 2017-12-01
B47: Motores diesel | C47: 100 | D47: 100 | E47: 100 | F47: 100 | G47: 100 | H47: 100 | I47: 100 | J47: 100 | K47: 100 | L47: 100 | M47: 100 | N47: 100 | O47: 100 | P47: 100 | Q47: 100 | R47: 100 | S47: 100 | T47: 100 | U47: 100 | V47: 100 | W47: 100 | X47: 100 | Y47: 100 | Z47: 100 | AA47: 100 | AB47: 100 | AC47: 100 | AD47: 100 | AE47: 100 | AF47: 100 | AG47: 99.2 | AH47: 90 | AI47: 100 | AJ47: 100 | AK47: 94 | AL47: 98.9 | AM47: 89.2 | AN47: 96.8 | AO47: 100 | AP47: 99.1 | AQ47: 99.3 | AR47: 100 | AS47: 100 | AT47: 100 | AU47: 100 | AV47: 100 | AW47: 100 | AX47: 100 | AY47: 99.8 | AZ47: 99.8 | BA47: 100 | BB47: 100 | BC47: 98.9 | BD47: 99.8 | BE47: 99.9 | BF47: 100 | BG47: 100 | BH47: 100 | BI47: 100 | BJ47: 100 | BK47: 100 | BL47: 99.2 | BM47: 99.4 | BN47: 99.9 | BO47: 99.2 | BP47: 99.9 | BQ47: 99.9 | BR47: 99.8 | BS47: 100 | BT47: 99.7 | BU47: 99.9 | BV47: 100 | BW47: 99.8 | BX47: 99.7 | BY47: 100 | BZ47: 99.8 | CA47: 99.3 | CB47: 99.9 | CC47: 100 | CD47: 100 | CE47: 100 | CF47: 100 | CG47: 99.9 | CH47: 99.9 | CI47: 100 | CJ47: 100 | CK47: 99.6 | CL47: 100 | CM47: 100 | CN47: 100 | CO47: 100 | CP47: 100 | CQ47: 100 | CR47: 100 | CS47: 99.9 | CT47: 100 | CU47: 100 | CV47: 98.6 | CW47: 100 | CX47: 100 | CY47: 99.6 | CZ47: 99.9 | DA47: 99.3 | DB47: 100 | DC47: 100 | DD47: 100 | DE47: 98.2 | DF47: 100 | DG47: 100 | DH47: 100 | DI47: 100 | DJ47: 100 | DK47: 100 | DL47: 100 | DM47: 100 | DN47: 100 | DO47: 99.5 | DP47: 100 | DQ47: 99.9 | DR47: 100 | DS47: 100 | DT47: 99.9 | DU47: 100 | DV47: 100 | DW47: 100 | DX47: 100 | DY47: - | DZ47: - | EA47: - | EB47: - | EC47: - | ED47: -
B48: Turbina de gas | C48: - | D48: - | E48: - | F48: - | G48: - | H48: - | I48: - | J48: - | K48: - | L48: - | M48: - | N48: - | O48: - | P48: - | Q48: - | R48: - | S48: - | T48: - | U48: - | V48: - | W48: - | X48: - | Y48: - | Z48: - | AA48: - | AB48: - | AC48: - | AD48: - | AE48: - | AF48: - | AG48: 0.8 | AH48: 10 | AI48: - | AJ48: - | AK48: 6 | AL48: 1.1 | AM48: 10.8 | AN48: 3.2 | AO48: - | AP48: 0.9 | AQ48: 0.7 | AR48: - | AS48: - | AT48: - | AU48: - | AV48: - | AW48: - | AX48: 0 | AY48: 0.2 | AZ48: 0.2 | BA48: - | BB48: - | BC48: 1.1 | BD48: 0.2 | BE48: 0.1 | BF48: 0 | BG48: - | BH48: 0 | BI48: 0 | BJ48: 0 | BK48: - | BL48: 0.8 | BM48: 0.6 | BN48: 0.1 | BO48: 0.8 | BP48: 0.1 | BQ48: 0.1 | BR48: 0.2 | BS48: 0 | BT48: 0.3 | BU48: 0.1 | BV48: - | BW48: 0.2 | BX48: 0.3 | BY48: 0 | BZ48: 0.2 | CA48: 0.7 | CB48: 0.1 | CC48: - | CD48: - | CE48: - | CF48: - | CG48: 0.1 | CH48: 0.1 | CI48: 0 | CJ48: - | CK48: 0.4 | CL48: - | CM48: 0 | CN48: 0 | CO48: - | CP48: 0 | CQ48: 0 | CR48: 0 | CS48: 0.1 | CT48: - | CU48: 0 | CV48: 1.4 | CW48: 0 | CX48: 0 | CY48: 0.4 | CZ48: 0.1 | DA48: 0.7 | DB48: 0 | DC48: 0 | DD48: - | DE48: 1.8 | DF48: 0 | DG48: 0 | DH48: 0 | DI48: 0 | DJ48: 0 | DK48: 0 | DL48: 0 | DM48: 0 | DN48: 0 | DO48: 0.5 | DP48: 0 | DQ48: 0.1 | DR48: 0 | DS48: 0 | DT48: 0.1 | DU48: 0 | DV48: 0 | DW48: 0 | DX48: 0 | DY48: - | DZ48: - | EA48: - | EB48: - | EC48: - | ED48: -
B49: Generación renovable | C49: - | D49: - | E49: - | F49: - | G49: - | H49: - | I49: - | J49: - | K49: - | L49: - | M49: - | N49: - | O49: - | P49: - | Q49: - | R49: - | S49: - | T49: - | U49: - | V49: - | W49: - | X49: - | Y49: - | Z49: - | AA49: - | AB49: - | AC49: - | AD49: - | AE49: - | AF49: - | AG49: - | AH49: - | AI49: - | AJ49: - | AK49: - | AL49: - | AM49: - | AN49: - | AO49: - | AP49: - | AQ49: - | AR49: - | AS49: - | AT49: - | AU49: - | AV49: - | AW49: - | AX49: - | AY49: - | AZ49: - | BA49: - | BB49: - | BC49: - | BD49: - | BE49: - | BF49: - | BG49: - | BH49: - | BI49: - | BJ49: - | BK49: - | BL49: - | BM49: - | BN49: - | BO49: - | BP49: - | BQ49: - | BR49: - | BS49: - | BT49: - | BU49: - | BV49: - | BW49: - | BX49: - | BY49: - | BZ49: - | CA49: - | CB49: - | CC49: - | CD49: - | CE49: - | CF49: - | CG49: - | CH49: - | CI49: - | CJ49: - | CK49: - | CL49: - | CM49: - | CN49: - | CO49: - | CP49: - | CQ49: - | CR49: - | CS49: - | CT49: - | CU49: - | CV49: - | CW49: - | CX49: - | CY49: - | CZ49: - | DA49: - | DB49: - | DC49: - | DD49: - | DE49: - | DF49: - | DG49: - | DH49: - | DI49: - | DJ49: - | DK49: - | DL49: - | DM49: - | DN49: - | DO49: - | DP49: - | DQ49: - | DR49: - | DS49: - | DT49: - | DU49: - | DV49: - | DW49: - | DX49: - | DY49: - | DZ49: - | EA49: - | EB49: - | EC49: - | ED49: -
B50: Generación no renovable | C50: 100 | D50: 100 | E50: 100 | F50: 100 | G50: 100 | H50: 100 | I50: 100 | J50: 100 | K50: 100 | L50: 100 | M50: 100 | N50: 100 | O50: 100 | P50: 100 | Q50: 100 | R50: 100 | S50: 100 | T50: 100 | U50: 100 | V50: 100 | W50: 100 | X50: 100 | Y50: 100 | Z50: 100 | AA50: 100 | AB50: 100 | AC50: 100 | AD50: 100 | AE50: 100 | AF50: 100 | AG50: 100 | AH50: 100 | AI50: 100 | AJ50: 100 | AK50: 100 | AL50: 100 | AM50: 100 | AN50: 100 | AO50: 100 | AP50: 100 | AQ50: 100 | AR50: 100 | AS50: 100 | AT50: 100 | AU50: 100 | AV50: 100 | AW50: 100 | AX50: 100 | AY50: 100 | AZ50: 100 | BA50: 100 | BB50: 100 | BC50: 100 | BD50: 100 | BE50: 100 | BF50: 100 | BG50: 100 | BH50: 100 | BI50: 100 | BJ50: 100 | BK50: 100 | BL50: 100 | BM50: 100 | BN50: 100 | BO50: 100 | BP50: 100 | BQ50: 100 | BR50: 100 | BS50: 100 | BT50: 100 | BU50: 100 | BV50: 100 | BW50: 100 | BX50: 100 | BY50: 100 | BZ50: 100 | CA50: 100 | CB50: 100 | CC50: 100 | CD50: 100 | CE50: 100 | CF50: 100 | CG50: 100 | CH50: 100 | CI50: 100 | CJ50: 100 | CK50: 100 | CL50: 100 | CM50: 100 | CN50: 100 | CO50: 100 | CP50: 100 | CQ50: 100 | CR50: 100 | CS50: 100 | CT50: 100 | CU50: 100 | CV50: 100 | CW50: 100 | CX50: 100 | CY50: 100 | CZ50: 100 | DA50: 100 | DB50: 100 | DC50: 100 | DD50: 100 | DE50: 100 | DF50: 100 | DG50: 100 | DH50: 100 | DI50: 100 | DJ50: 100 | DK50: 100 | DL50: 100 | DM50: 100 | DN50: 100 | DO50: 100 | DP50: 100 | DQ50: 100 | DR50: 100 | DS50: 100 | DT50: 100 | DU50: 100 | DV50: 100 | DW50: 100 | DX50: 100 | DY50: - | DZ50: - | EA50: - | EB50: - | EC50: - | ED50: -
B52: Estructura de generación mensual Melilla (%) | C52: 2007-01-01 | D52: 2007-02-01 | E52: 2007-03-01 | F52: 2007-04-01 | G52: 2007-05-01 | H52: 2007-06-01 | I52: 2007-07-01 | J52: 2007-08-01 | K52: 2007-09-01 | L52: 2007-10-01 | M52: 2007-11-01 | N52: 2007-12-01 | O52: 2008-01-01 | P52: 2008-02-01 | Q52: 2008-03-01 | R52: 2008-04-01 | S52: 2008-05-01 | T52: 2008-06-01 | U52: 2008-07-01 | V52: 2008-08-01 | W52: 2008-09-01 | X52: 2008-10-01 | Y52: 2008-11-01 | Z52: 2008-12-01 | AA52: 2009-01-01 | AB52: 2009-02-01 | AC52: 2009-03-01 | AD52: 2009-04-01 | AE52: 2009-05-01 | AF52: 2009-06-01 | AG52: 2009-07-01 | AH52: 2009-08-01 | AI52: 2009-09-01 | AJ52: 2009-10-01 | AK52: 2009-11-01 | AL52: 2009-12-01 | AM52: 2010-01-01 | AN52: 2010-02-01 | AO52: 2010-03-01 | AP52: 2010-04-01 | AQ52: 2010-05-01 | AR52: 2010-06-01 | AS52: 2010-07-01 | AT52: 2010-08-01 | AU52: 2010-09-01 | AV52: 2010-10-01 | AW52: 2010-11-01 | AX52: 2010-12-01 | AY52: 2011-01-01 | AZ52: 2011-02-01 | BA52: 2011-03-01 | BB52: 2011-04-01 | BC52: 2011-05-01 | BD52: 2011-06-01 | BE52: 2011-07-01 | BF52: 2011-08-01 | BG52: 2011-09-01 | BH52: 2011-10-01 | BI52: 2011-11-01 | BJ52: 2011-12-01 | BK52: 2012-01-01 | BL52: 2012-02-01 | BM52: 2012-03-01 | BN52: 2012-04-01 | BO52: 2012-05-01 | BP52: 2012-06-01 | BQ52: 2012-07-01 | BR52: 2012-08-01 | BS52: 2012-09-01 | BT52: 2012-10-01 | BU52: 2012-11-01 | BV52: 2012-12-01 | BW52: 2013-01-01 | BX52: 2013-02-01 | BY52: 2013-03-01 | BZ52: 2013-04-01 | CA52: 2013-05-01 | CB52: 2013-06-01 | CC52: 2013-07-01 | CD52: 2013-08-01 | CE52: 2013-09-01 | CF52: 2013-10-01 | CG52: 2013-11-01 | CH52: 2013-12-01 | CI52: 2014-01-01 | CJ52: 2014-02-01 | CK52: 2014-03-01 | CL52: 2014-04-01 | CM52: 2014-05-01 | CN52: 2014-06-01 | CO52: 2014-07-01 | CP52: 2014-08-01 | CQ52: 2014-09-01 | CR52: 2014-10-01 | CS52: 2014-11-01 | CT52: 2014-12-01 | CU52: 2015-01-01 | CV52: 2015-02-01 | CW52: 2015-03-01 | CX52: 2015-04-01 | CY52: 2015-05-01 | CZ52: 2015-06-01 | DA52: 2015-07-01 | DB52: 2015-08-01 | DC52: 2015-09-01 | DD52: 2015-10-01 | DE52: 2015-11-01 | DF52: 2015-12-01 | DG52: 2016-01-01 | DH52: 2016-02-01 | DI52: 2016-03-01 | DJ52: 2016-04-01 | DK52: 2016-05-01 | DL52: 2016-06-01 | DM52: 2016-07-01 | DN52: 2016-08-01 | DO52: 2016-09-01 | DP52: 2016-10-01 | DQ52: 2016-11-01 | DR52: 2016-12-01 | DS52: 2017-01-01 | DT52: 2017-02-01 | DU52: 2017-03-01 | DV52: 2017-04-01 | DW52: 2017-05-01 | DX52: 2017-06-01 | DY52: 2017-07-01 | DZ52: 2017-08-01 | EA52: 2017-09-01 | EB52: 2017-10-01 | EC52: 2017-11-01 | ED52: 2017-12-01
B53: Motores diesel | C53: 92.6 | D53: 93.4 | E53: 92.5 | F53: 94.8 | G53: 94.1 | H53: 94.9 | I53: 95.4 | J53: 94.2 | K53: 98.1 | L53: 96.1 | M53: 91.7 | N53: 92.3 | O53: 89.8 | P53: 92.3 | Q53: 91.5 | R53: 93.7 | S53: 94.9 | T53: 95.1 | U53: 98.9 | V53: 99.6 | W53: 98.8 | X53: 98.4 | Y53: 98.6 | Z53: 99.9 | AA53: 95.5 | AB53: 95.2 | AC53: 94.6 | AD53: 93.6 | AE53: 94.8 | AF53: 95.2 | AG53: 96 | AH53: 96.1 | AI53: 95.4 | AJ53: 100 | AK53: 99.2 | AL53: 95.4 | AM53: 95.9 | AN53: 96.1 | AO53: 95.5 | AP53: 94.7 | AQ53: 94.2 | AR53: 95.5 | AS53: 95.6 | AT53: 96.1 | AU53: 95 | AV53: 97 | AW53: 99.7 | AX53: 96.8 | AY53: 94.7 | AZ53: 95.2 | BA53: 95 | BB53: 94.9 | BC53: 95.9 | BD53: 96.1 | BE53: 95.4 | BF53: 96.6 | BG53: 96.2 | BH53: 98.1 | BI53: 99.6 | BJ53: 99.9 | BK53: 100 | BL53: 100 | BM53: 100 | BN53: 99.5 | BO53: 99.9 | BP53: 100 | BQ53: 99.9 | BR53: 99.2 | BS53: 96.6 | BT53: 99.7 | BU53: 95.9 | BV53: 95.4 | BW53: 95.6 | BX53: 96 | BY53: 96.3 | BZ53: 95.4 | CA53: 96.1 | CB53: 95.1 | CC53: 96.4 | CD53: 96.8 | CE53: 96.7 | CF53: 94.6 | CG53: 99 | CH53: 95.1 | CI53: 95.1 | CJ53: 94.4 | CK53: 94.6 | CL53: 94.9 | CM53: 95.8 | CN53: 95.7 | CO53: 95.7 | CP53: 96.5 | CQ53: 95.9 | CR53: 95 | CS53: 97.7 | CT53: 93.2 | CU53: 93.9 | CV53: 95.4 | CW53: 94.9 | CX53: 95.1 | CY53: 95.2 | CZ53: 95.8 | DA53: 96.6 | DB53: 96.9 | DC53: 96.1 | DD53: 95.1 | DE53: 98.1 | DF53: 94.9 | DG53: 94.3 | DH53: 94.9 | DI53: 95 | DJ53: 93.6 | DK53: 95.3 | DL53: 95.1 | DM53: 95.5 | DN53: 96 | DO53: 95.5 | DP53: 94.3 | DQ53: 98.7 | DR53: 94.1 | DS53: 95.1 | DT53: 94.5 | DU53: 94.5 | DV53: 94.6 | DW53: 94.5 | DX53: 95.8 | DY53: - | DZ53: - | EA53: - | EB53: - | EC53: - | ED53: -
B54: Turbina de gas | C54: 2.5 | D54: 1.5 | E54: 1.8 | F54: 0.7 | G54: 0.4 | H54: 0 | I54: 0.7 | J54: 1.3 | K54: 0.2 | L54: 0.3 | M54: 3.1 | N54: 2.7 | O54: 4.8 | P54: 2.7 | Q54: 3.1 | R54: 1.1 | S54: 0.3 | T54: 0.8 | U54: 1.1 | V54: 0.4 | W54: 1.2 | X54: 1.6 | Y54: 1.4 | Z54: 0.1 | AA54: 0.1 | AB54: 0.1 | AC54: 0.5 | AD54: 0.3 | AE54: 0 | AF54: 0.4 | AG54: - | AH54: 0.3 | AI54: 0.5 | AJ54: 0 | AK54: 0.8 | AL54: 0.3 | AM54: 0.1 | AN54: 0.1 | AO54: 0 | AP54: 0.2 | AQ54: 0.2 | AR54: 0.5 | AS54: 0.5 | AT54: 0.2 | AU54: 0.2 | AV54: 0.2 | AW54: 0.3 | AX54: 0.2 | AY54: 0.2 | AZ54: 0 | BA54: 0 | BB54: 0.3 | BC54: 0.1 | BD54: 0.2 | BE54: 0.7 | BF54: 0.2 | BG54: 0.1 | BH54: 0.7 | BI54: 0.3 | BJ54: 0.1 | BK54: 0 | BL54: - | BM54: - | BN54: 0 | BO54: 0 | BP54: 0 | BQ54: 0.1 | BR54: - | BS54: 0.4 | BT54: - | BU54: 0 | BV54: - | BW54: - | BX54: 0 | BY54: - | BZ54: - | CA54: 0 | CB54: 0 | CC54: 0 | CD54: - | CE54: - | CF54: 0.4 | CG54: - | CH54: 0.1 | CI54: 0 | CJ54: 0.3 | CK54: 0.1 | CL54: - | CM54: - | CN54: 0.4 | CO54: 0.2 | CP54: - | CQ54: 0.3 | CR54: 0.5 | CS54: 1.2 | CT54: 1.3 | CU54: 1.7 | CV54: - | CW54: 0.3 | CX54: - | CY54: - | CZ54: 0 | DA54: 0.6 | DB54: 0 | DC54: - | DD54: - | DE54: 0.6 | DF54: 0 | DG54: - | DH54: 0 | DI54: 0 | DJ54: 0.7 | DK54: 0.1 | DL54: 0.2 | DM54: 0.3 | DN54: 0.1 | DO54: 0.1 | DP54: - | DQ54: - | DR54: 0 | DS54: - | DT54: 0 | DU54: 0 | DV54: - | DW54: - | DX54: 0 | DY54: - | DZ54: - | EA54: - | EB54: - | EC54: - | ED54: -
B55: Solar fotovoltaica | C55: - | D55: - | E55: - | F55: - | G55: - | H55: - | I55: - | J55: - | K55: - | L55: - | M55: - | N55: - | O55: 0 | P55: - | Q55: - | R55: - | S55: - | T55: 0 | U55: 0 | V55: 0 | W55: 0 | X55: - | Y55: 0 | Z55: - | AA55: 0 | AB55: 0.1 | AC55: 0.1 | AD55: 0.2 | AE55: 0.1 | AF55: 0 | AG55: 0 | AH55: 0 | AI55: 0 | AJ55: 0 | AK55: - | AL55: 0 | AM55: 0 | AN55: 0 | AO55: 0 | AP55: 0 | AQ55: 0.1 | AR55: 0 | AS55: 0 | AT55: 0 | AU55: 0 | AV55: 0 | AW55: 0 | AX55: 0 | AY55: 0 | AZ55: 0 | BA55: 0 | BB55: 0 | BC55: 0 | BD55: 0 | BE55: 0 | BF55: 0 | BG55: 0 | BH55: 0 | BI55: 0 | BJ55: 0 | BK55: 0 | BL55: 0 | BM55: 0 | BN55: 0.1 | BO55: 0.1 | BP55: 0 | BQ55: 0 | BR55: 0 | BS55: 0 | BT55: 0 | BU55: 0 | BV55: 0 | BW55: 0 | BX55: 0 | BY55: 0 | BZ55: 0 | CA55: 0.1 | CB55: 0.1 | CC55: 0 | CD55: 0 | CE55: 0 | CF55: 0 | CG55: 0 | CH55: 0 | CI55: 0 | CJ55: 0 | CK55: 0 | CL55: 0.1 | CM55: 0.1 | CN55: 0.1 | CO55: 0 | CP55: 0 | CQ55: 0 | CR55: 0 | CS55: 0 | CT55: 0 | CU55: 0 | CV55: 0 | CW55: 0 | CX55: 0 | CY55: 0 | CZ55: 0 | DA55: 0 | DB55: 0 | DC55: 0 | DD55: 0 | DE55: 0 | DF55: 0 | DG55: 0 | DH55: 0 | DI55: 0.1 | DJ55: 0.1 | DK55: 0.1 | DL55: 0 | DM55: 0 | DN55: 0 | DO55: 0 | DP55: 0 | DQ55: 0 | DR55: 0 | DS55: 0 | DT55: 0 | DU55: 0 | DV55: 0 | DW55: 0 | DX55: 0 | DY55: - | DZ55: - | EA55: - | EB55: - | EC55: - | ED55: -
B56: Térmica no renovable/Cogeneración y resto/Cogeneración | C56: 4.9 | D56: 5.1 | E56: 5.7 | F56: 4.5 | G56: 5.5 | H56: 5.1 | I56: 3.9 | J56: 4.5 | K56: 1.7 | L56: 3.6 | M56: 5.2 | N56: 5 | O56: 5.4 | P56: 5 | Q56: 5.4 | R56: 5.2 | S56: 4.8 | T56: 4.1 | U56: - | V56: - | W56: - | X56: - | Y56: - | Z56: - | AA56: 4.4 | AB56: 4.6 | AC56: 4.8 | AD56: 5.9 | AE56: 5.1 | AF56: 4.4 | AG56: 4 | AH56: 3.6 | AI56: 4.1 | AJ56: 0 | AK56: - | AL56: 4.3 | AM56: 4 | AN56: 3.8 | AO56: 4.5 | AP56: 5.1 | AQ56: 5.5 | AR56: 4 | AS56: 3.9 | AT56: 3.7 | AU56: 4.8 | AV56: 2.8 | AW56: - | AX56: 3 | AY56: 5.1 | AZ56: 4.8 | BA56: 5 | BB56: 4.8 | BC56: 4 | BD56: 3.7 | BE56: 3.9 | BF56: 3.2 | BG56: 3.7 | BH56: 1.2 | BI56: 0.1 | BJ56: - | BK56: - | BL56: - | BM56: - | BN56: 0.4 | BO56: - | BP56: - | BQ56: - | BR56: 0.8 | BS56: 3 | BT56: 0.3 | BU56: 4.1 | BV56: 4.6 | BW56: 4.4 | BX56: 4 | BY56: 3.7 | BZ56: 4.6 | CA56: 3.8 | CB56: 4.8 | CC56: 3.6 | CD56: 3.2 | CE56: 3.3 | CF56: 5 | CG56: 1 | CH56: 4.8 | CI56: 4.9 | CJ56: 5.3 | CK56: 5.3 | CL56: 5 | CM56: 4.1 | CN56: 3.8 | CO56: 4.1 | CP56: 3.5 | CQ56: 3.8 | CR56: 4.5 | CS56: 1.1 | CT56: 5.5 | CU56: - | CV56: - | CW56: - | CX56: - | CY56: - | CZ56: - | DA56: - | DB56: - | DC56: - | DD56: - | DE56: - | DF56: - | DG56: - | DH56: - | DI56: - | DJ56: - | DK56: - | DL56: - | DM56: - | DN56: - | DO56: - | DP56: - | DQ56: - | DR56: - | DS56: - | DT56: - | DU56: - | DV56: - | DW56: - | DX56: - | DY56: - | DZ56: - | EA56: - | EB56: - | EC56: - | ED56: -
B57: Residuos | C57: - | D57: - | E57: - | F57: - | G57: - | H57: - | I57: - | J57: - | K57: - | L57: - | M57: - | N57: - | O57: - | P57: - | Q57: - | R57: - | S57: - | T57: - | U57: - | V57: - | W57: - | X57: - | Y57: - | Z57: - | AA57: - | AB57: - | AC57: - | AD57: - | AE57: - | AF57: - | AG57: - | AH57: - | AI57: - | AJ57: - | AK57: - | AL57: - | AM57: - | AN57: - | AO57: - | AP57: - | AQ57: - | AR57: - | AS57: - | AT57: - | AU57: - | AV57: - | AW57: - | AX57: - | AY57: - | AZ57: - | BA57: - | BB57: - | BC57: - | BD57: - | BE57: - | BF57: - | BG57: - | BH57: - | BI57: - | BJ57: - | BK57: - | BL57: - | BM57: - | BN57: - | BO57: - | BP57: - | BQ57: - | BR57: - | BS57: - | BT57: - | BU57: - | BV57: - | BW57: - | BX57: - | BY57: - | BZ57: - | CA57: - | CB57: - | CC57: - | CD57: - | CE57: - | CF57: - | CG57: - | CH57: - | CI57: - | CJ57: - | CK57: - | CL57: - | CM57: - | CN57: - | CO57: - | CP57: - | CQ57: - | CR57: - | CS57: - | CT57: - | CU57: 4.4 | CV57: 4.6 | CW57: 4.8 | CX57: 4.9 | CY57: 4.8 | CZ57: 4.2 | DA57: 2.8 | DB57: 3.1 | DC57: 3.9 | DD57: 4.9 | DE57: 1.3 | DF57: 5.1 | DG57: 5.7 | DH57: 5.1 | DI57: 4.9 | DJ57: 5.6 | DK57: 4.5 | DL57: 4.7 | DM57: 4.2 | DN57: 3.9 | DO57: 4.4 | DP57: 5.7 | DQ57: 1.3 | DR57: 5.9 | DS57: 4.9 | DT57: 5.5 | DU57: 5.5 | DV57: 5.4 | DW57: 5.5 | DX57: 4.2 | DY57: - | DZ57: - | EA57: - | EB57: - | EC57: - | ED57: -
B58: Generación renovable | C58: - | D58: - | E58: - | F58: - | G58: - | H58: - | I58: - | J58: - | K58: - | L58: - | M58: - | N58: - | O58: 0 | P58: - | Q58: - | R58: - | S58: - | T58: 0 | U58: 0 | V58: 0 | W58: 0 | X58: - | Y58: 0 | Z58: - | AA58: 0 | AB58: 0.1 | AC58: 0.1 | AD58: 0.2 | AE58: 0.1 | AF58: 0 | AG58: 0 | AH58: 0 | AI58: 0 | AJ58: 0 | AK58: - | AL58: 0 | AM58: 0 | AN58: 0 | AO58: 0 | AP58: 0 | AQ58: 0.1 | AR58: 0 | AS58: 0 | AT58: 0 | AU58: 0 | AV58: 0 | AW58: 0 | AX58: 0 | AY58: 0 | AZ58: 0 | BA58: 0 | BB58: 0 | BC58: 0 | BD58: 0 | BE58: 0 | BF58: 0 | BG58: 0 | BH58: 0 | BI58: 0 | BJ58: 0 | BK58: 0 | BL58: 0 | BM58: 0 | BN58: 0.1 | BO58: 0.1 | BP58: 0 | BQ58: 0 | BR58: 0 | BS58: 0 | BT58: 0 | BU58: 0 | BV58: 0 | BW58: 0 | BX58: 0 | BY58: 0 | BZ58: 0 | CA58: 0.1 | CB58: 0.1 | CC58: 0 | CD58: 0 | CE58: 0 | CF58: 0 | CG58: 0 | CH58: 0 | CI58: 0 | CJ58: 0 | CK58: 0 | CL58: 0.1 | CM58: 0.1 | CN58: 0.1 | CO58: 0 | CP58: 0 | CQ58: 0 | CR58: 0 | CS58: 0 | CT58: 0 | CU58: 2.2 | CV58: 2.3 | CW58: 2.4 | CX58: 2.4 | CY58: 2.4 | CZ58: 2.1 | DA58: 1.4 | DB58: 1.6 | DC58: 2 | DD58: 2.4 | DE58: 0.7 | DF58: 2.5 | DG58: 2.9 | DH58: 2.6 | DI58: 2.5 | DJ58: 2.9 | DK58: 2.4 | DL58: 2.3 | DM58: 2.1 | DN58: 2 | DO58: 2.2 | DP58: 2.9 | DQ58: 0.7 | DR58: 2.9 | DS58: 2.4 | DT58: 2.7 | DU58: 2.7 | DV58: 2.7 | DW58: 2.7 | DX58: 2.1 | DY58: - | DZ58: - | EA58: - | EB58: - | EC58: - | ED58: -
B59: Generación no renovable | C59: 100 | D59: 100 | E59: 100 | F59: 100 | G59: 100 | H59: 100 | I59: 100 | J59: 100 | K59: 100 | L59: 100 | M59: 100 | N59: 100 | O59: 100 | P59: 100 | Q59: 100 | R59: 100 | S59: 100 | T59: 100 | U59: 100 | V59: 100 | W59: 100 | X59: 100 | Y59: 100 | Z59: 100 | AA59: 100 | AB59: 99.9 | AC59: 99.9 | AD59: 99.8 | AE59: 99.9 | AF59: 100 | AG59: 100 | AH59: 100 | AI59: 100 | AJ59: 100 | AK59: 100 | AL59: 100 | AM59: 100 | AN59: 100 | AO59: 100 | AP59: 100 | AQ59: 99.9 | AR59: 100 | AS59: 100 | AT59: 100 | AU59: 100 | AV59: 100 | AW59: 100 | AX59: 100 | AY59: 100 | AZ59: 100 | BA59: 100 | BB59: 100 | BC59: 100 | BD59: 100 | BE59: 100 | BF59: 100 | BG59: 100 | BH59: 100 | BI59: 100 | BJ59: 100 | BK59: 100 | BL59: 100 | BM59: 100 | BN59: 99.9 | BO59: 99.9 | BP59: 100 | BQ59: 100 | BR59: 100 | BS59: 100 | BT59: 100 | BU59: 100 | BV59: 100 | BW59: 100 | BX59: 100 | BY59: 100 | BZ59: 100 | CA59: 99.9 | CB59: 99.9 | CC59: 100 | CD59: 100 | CE59: 100 | CF59: 100 | CG59: 100 | CH59: 100 | CI59: 100 | CJ59: 100 | CK59: 100 | CL59: 99.9 | CM59: 99.9 | CN59: 99.9 | CO59: 100 | CP59: 100 | CQ59: 100 | CR59: 100 | CS59: 100 | CT59: 100 | CU59: 97.8 | CV59: 97.7 | CW59: 97.6 | CX59: 97.6 | CY59: 97.6 | CZ59: 97.9 | DA59: 98.6 | DB59: 98.4 | DC59: 98 | DD59: 97.6 | DE59: 99.3 | DF59: 97.5 | DG59: 97.1 | DH59: 97.4 | DI59: 97.5 | DJ59: 97.1 | DK59: 97.6 | DL59: 97.7 | DM59: 97.9 | DN59: 98 | DO59: 97.8 | DP59: 97.1 | DQ59: 99.3 | DR59: 97.1 | DS59: 97.6 | DT59: 97.3 | DU59: 97.3 | DV59: 97.3 | DW59: 97.3 | DX59: 97.9 | DY59: - | DZ59: - | EA59: - | EB59: - | EC59: - | ED59: -
B61: Estructura de generación mensual nacional (%) | C61: 2007-01-01 | D61: 2007-02-01 | E61: 2007-03-01 | F61: 2007-04-01 | G61: 2007-05-01 | H61: 2007-06-01 | I61: 2007-07-01 | J61: 2007-08-01 | K61: 2007-09-01 | L61: 2007-10-01 | M61: 2007-11-01 | N61: 2007-12-01 | O61: 2008-01-01 | P61: 2008-02-01 | Q61: 2008-03-01 | R61: 2008-04-01 | S61: 2008-05-01 | T61: 2008-06-01 | U61: 2008-07-01 | V61: 2008-08-01 | W61: 2008-09-01 | X61: 2008-10-01 | Y61: 2008-11-01 | Z61: 2008-12-01 | AA61: 2009-01-01 | AB61: 2009-02-01 | AC61: 2009-03-01 | AD61: 2009-04-01 | AE61: 2009-05-01 | AF61: 2009-06-01 | AG61: 2009-07-01 | AH61: 2009-08-01 | AI61: 2009-09-01 | AJ61: 2009-10-01 | AK61: 2009-11-01 | AL61: 2009-12-01 | AM61: 2010-01-01 | AN61: 2010-02-01 | AO61: 2010-03-01 | AP61: 2010-04-01 | AQ61: 2010-05-01 | AR61: 2010-06-01 | AS61: 2010-07-01 | AT61: 2010-08-01 | AU61: 2010-09-01 | AV61: 2010-10-01 | AW61: 2010-11-01 | AX61: 2010-12-01 | AY61: 2011-01-01 | AZ61: 2011-02-01 | BA61: 2011-03-01 | BB61: 2011-04-01 | BC61: 2011-05-01 | BD61: 2011-06-01 | BE61: 2011-07-01 | BF61: 2011-08-01 | BG61: 2011-09-01 | BH61: 2011-10-01 | BI61: 2011-11-01 | BJ61: 2011-12-01 | BK61: 2012-01-01 | BL61: 2012-02-01 | BM61: 2012-03-01 | BN61: 2012-04-01 | BO61: 2012-05-01 | BP61: 2012-06-01 | BQ61: 2012-07-01 | BR61: 2012-08-01 | BS61: 2012-09-01 | BT61: 2012-10-01 | BU61: 2012-11-01 | BV61: 2012-12-01 | BW61: 2013-01-01 | BX61: 2013-02-01 | BY61: 2013-03-01 | BZ61: 2013-04-01 | CA61: 2013-05-01 | CB61: 2013-06-01 | CC61: 2013-07-01 | CD61: 2013-08-01 | CE61: 2013-09-01 | CF61: 2013-10-01 | CG61: 2013-11-01 | CH61: 2013-12-01 | CI61: 2014-01-01 | CJ61: 2014-02-01 | CK61: 2014-03-01 | CL61: 2014-04-01 | CM61: 2014-05-01 | CN61: 2014-06-01 | CO61: 2014-07-01 | CP61: 2014-08-01 | CQ61: 2014-09-01 | CR61: 2014-10-01 | CS61: 2014-11-01 | CT61: 2014-12-01 | CU61: 2015-01-01 | CV61: 2015-02-01 | CW61: 2015-03-01 | CX61: 2015-04-01 | CY61: 2015-05-01 | CZ61: 2015-06-01 | DA61: 2015-07-01 | DB61: 2015-08-01 | DC61: 2015-09-01 | DD61: 2015-10-01 | DE61: 2015-11-01 | DF61: 2015-12-01 | DG61: 2016-01-01 | DH61: 2016-02-01 | DI61: 2016-03-01 | DJ61: 2016-04-01 | DK61: 2016-05-01 | DL61: 2016-06-01 | DM61: 2016-07-01 | DN61: 2016-08-01 | DO61: 2016-09-01 | DP61: 2016-10-01 | DQ61: 2016-11-01 | DR61: 2016-12-01 | DS61: 2017-01-01 | DT61: 2017-02-01 | DU61: 2017-03-01 | DV61: 2017-04-01 | DW61: 2017-05-01 | DX61: 2017-06-01 | DY61: 2017-07-01 | DZ61: 2017-08-01 | EA61: 2017-09-01 | EB61: 2017-10-01 | EC61: 2017-11-01 | ED61: 2017-12-01
B62: Hidráulica | C62: 8.9 | D62: 13.3 | E62: 16.2 | F62: 13.2 | G62: 12.5 | H62: 10.2 | I62: 9.9 | J62: 7.7 | K62: 5.9 | L62: 7.2 | M62: 5.4 | N62: 4.7 | O62: 5.3 | P62: 3.9 | Q62: 4.3 | R62: 11.4 | S62: 14.6 | T62: 13.5 | U62: 8.5 | V62: 6.4 | W62: 5.6 | X62: 4.6 | Y62: 6.5 | Z62: 9.8 | AA62: 8.7 | AB62: 15.4 | AC62: 12.4 | AD62: 10.5 | AE62: 12.1 | AF62: 9.4 | AG62: 7 | AH62: 6.2 | AI62: 4.4 | AJ62: 5.6 | AK62: 8.9 | AL62: 13.1 | AM62: 20.3 | AN62: 17.1 | AO62: 23.5 | AP62: 21.5 | AQ62: 17.4 | AR62: 15.8 | AS62: 11.3 | AT62: 8.6 | AU62: 6.6 | AV62: 6.9 | AW62: 10.9 | AX62: 15.8 | AY62: 19.9 | AZ62: 12.9 | BA62: 15.4 | BB62: 16.4 | BC62: 12.8 | BD62: 9.2 | BE62: 6.9 | BF62: 6.5 | BG62: 5.4 | BH62: 5.7 | BI62: 9.6 | BJ62: 9.2 | BK62: 6.5 | BL62: 4.6 | BM62: 5.4 | BN62: 7.5 | BO62: 11.2 | BP62: 9.1 | BQ62: 7 | BR62: 5.6 | BS62: 4.4 | BT62: 6.2 | BU62: 8.9 | BV62: 11 | BW62: 11.9 | BX62: 15.6 | BY62: 18.8 | BZ62: 24.2 | CA62: 17.9 | CB62: 15.1 | CC62: 11.2 | CD62: 9.5 | CE62: 8.3 | CF62: 8.6 | CG62: 12.4 | CH62: 10.1 | CI62: 17.5 | CJ62: 25.7 | CK62: 23.5 | CL62: 24 | CM62: 13.3 | CN62: 11.6 | CO62: 10.2 | CP62: 9.3 | CQ62: 8.2 | CR62: 7.6 | CS62: 11.6 | CT62: 14.3 | CU62: 10.5 | CV62: 15.2 | CW62: 16.7 | CX62: 12.9 | CY62: 13.8 | CZ62: 11.6 | DA62: 8.1 | DB62: 7.2 | DC62: 7.5 | DD62: 7.9 | DE62: 9 | DF62: 6.6 | DG62: 14.8 | DH62: 18.8 | DI62: 19 | DJ62: 24.6 | DK62: 24.9 | DL62: 14.4 | DM62: 9.9 | DN62: 9.3 | DO62: 7.9 | DP62: 7.6 | DQ62: 7 | DR62: 8.6 | DS62: 8.1 | DT62: 8.9 | DU62: 12.9 | DV62: 8.8 | DW62: 9.5 | DX62: 7 | DY62: - | DZ62: - | EA62: - | EB62: - | EC62: - | ED62: -
B63: Nuclear | C63: 20.9 | D63: 21.1 | E63: 20.5 | F63: 19.9 | G63: 15.3 | H63: 13.9 | I63: 15.6 | J63: 17.3 | K63: 21 | L63: 20.6 | M63: 15.8 | N63: 19.6 | O63: 20.2 | P63: 20.8 | Q63: 21.5 | R63: 16.8 | S63: 20.3 | T63: 19.5 | U63: 17.7 | V63: 20.8 | W63: 19.1 | X63: 18.3 | Y63: 16.6 | Z63: 19.4 | AA63: 20.8 | AB63: 19.1 | AC63: 17.6 | AD63: 19.3 | AE63: 17.3 | AF63: 15.6 | AG63: 16 | AH63: 22.4 | AI63: 19.5 | AJ63: 17.5 | AK63: 17.4 | AL63: 16.1 | AM63: 17.5 | AN63: 19.5 | AO63: 19.7 | AP63: 22.3 | AQ63: 19.9 | AR63: 20.8 | AS63: 21.1 | AT63: 22.8 | AU63: 22 | AV63: 23.5 | AW63: 21.3 | AX63: 19.2 | AY63: 18.4 | AZ63: 18.6 | BA63: 17.4 | BB63: 20.7 | BC63: 16.7 | BD63: 20.9 | BE63: 20.2 | BF63: 22.6 | BG63: 21.7 | BH63: 20.4 | BI63: 20.3 | BJ63: 20.5 | BK63: 20.7 | BL63: 20 | BM63: 23.2 | BN63: 23.7 | BO63: 20 | BP63: 15.4 | BQ63: 21.4 | BR63: 23 | BS63: 23.8 | BT63: 23.9 | BU63: 18.2 | BV63: 18.4 | BW63: 18.8 | BX63: 19.7 | BY63: 22.5 | BZ63: 20.9 | CA63: 19.1 | CB63: 20.8 | CC63: 21.2 | CD63: 22.2 | CE63: 21.7 | CF63: 19.9 | CG63: 18 | CH63: 16.9 | CI63: 19.3 | CJ63: 21.3 | CK63: 23.5 | CL63: 24.5 | CM63: 20.6 | CN63: 16.2 | CO63: 18.5 | CP63: 19.3 | CQ63: 21.8 | CR63: 24 | CS63: 21 | CT63: 20.4 | CU63: 21.6 | CV63: 20.6 | CW63: 22.7 | CX63: 23 | CY63: 17 | CZ63: 17.4 | DA63: 19 | DB63: 21.9 | DC63: 23.1 | DD63: 19.8 | DE63: 19.2 | DF63: 22.8 | DG63: 20.9 | DH63: 18.7 | DI63: 22.9 | DJ63: 23.7 | DK63: 19.2 | DL63: 23.5 | DM63: 22.7 | DN63: 23.5 | DO63: 23.8 | DP63: 23.6 | DQ63: 17.5 | DR63: 20 | DS63: 21.1 | DT63: 23.1 | DU63: 25.2 | DV63: 25.9 | DW63: 20.5 | DX63: 18.5 | DY63: - | DZ63: - | EA63: - | EB63: - | EC63: - | ED63: -
B64: Carbón | C64: 25 | D64: 22.6 | E64: 21 | F64: 28 | G64: 27.4 | H64: 26.4 | I64: 25.2 | J64: 26.9 | K64: 24.8 | L64: 23.5 | M64: 22.8 | N64: 24.4 | O64: 20 | P64: 19.8 | Q64: 15.8 | R64: 13.8 | S64: 10.5 | T64: 9.9 | U64: 15.5 | V64: 14 | W64: 15.9 | X64: 18.4 | Y64: 17.7 | Z64: 18.2 | AA64: 18.3 | AB64: 14.5 | AC64: 14.2 | AD64: 9.6 | AE64: 11.7 | AF64: 12.1 | AG64: 14.1 | AH64: 8.9 | AI64: 13.1 | AJ64: 14.7 | AK64: 9.9 | AL64: 8.6 | AM64: 7.8 | AN64: 6.8 | AO64: 4.6 | AP64: 4.1 | AQ64: 4.7 | AR64: 7.1 | AS64: 10.7 | AT64: 13.2 | AU64: 14.1 | AV64: 9.5 | AW64: 7.6 | AX64: 9 | AY64: 9 | AZ64: 11.7 | BA64: 12.5 | BB64: 12.2 | BC64: 14.7 | BD64: 13.3 | BE64: 18.7 | BF64: 18.7 | BG64: 21.5 | BH64: 20.3 | BI64: 18 | BJ64: 17 | BK64: 21.7 | BL64: 21.4 | BM64: 19.9 | BN64: 12.4 | BO64: 17.9 | BP64: 23.3 | BQ64: 20.8 | BR64: 21.5 | BS64: 18.2 | BT64: 18.8 | BU64: 18.3 | BV64: 15.9 | BW64: 12.6 | BX64: 11.5 | BY64: 6.2 | BZ64: 5.1 | CA64: 10 | CB64: 12.8 | CC64: 22.6 | CD64: 20.4 | CE64: 21.8 | CF64: 19.3 | CG64: 11.8 | CH64: 20.6 | CI64: 9.8 | CJ64: 4.1 | CK64: 5.8 | CL64: 6.8 | CM64: 16 | CN64: 24.6 | CO64: 24.4 | CP64: 24.2 | CQ64: 26.8 | CR64: 21.3 | CS64: 15.5 | CT64: 18.4 | CU64: 20.9 | CV64: 13.6 | CW64: 12.1 | CX64: 14.9 | CY64: 14.1 | CZ64: 25.5 | DA64: 24.9 | DB64: 24 | DC64: 22.7 | DD64: 21.3 | DE64: 22.6 | DF64: 22.2 | DG64: 12.1 | DH64: 9 | DI64: 7.9 | DJ64: 4.9 | DK64: 6.1 | DL64: 11.1 | DM64: 17.3 | DN64: 16.7 | DO64: 21.6 | DP64: 20.9 | DQ64: 21.6 | DR64: 24.1 | DS64: 21.5 | DT64: 17 | DU64: 9.4 | DV64: 11 | DW64: 18.6 | DX64: 20.6 | DY64: - | DZ64: - | EA64: - | EB64: - | EC64: - | ED64: -
B65: Fuel + Gas | C65: 3 | D65: 3.6 | E65: 3.5 | F65: 3.5 | G65: 3.4 | H65: 3.3 | I65: 3.8 | J65: 4.1 | K65: 4 | L65: 3.4 | M65: 3.4 | N65: 3.2 | O65: 3.2 | P65: 3.2 | Q65: 2.8 | R65: 3.1 | S65: 3.5 | T65: 3.6 | U65: 3.3 | V65: 3.9 | W65: 3.8 | X65: 3.6 | Y65: 3.4 | Z65: 3.3 | AA65: 2.9 | AB65: 3 | AC65: 3.5 | AD65: 3.2 | AE65: 3.4 | AF65: 3.4 | AG65: 3.6 | AH65: 3.7 | AI65: 3.6 | AJ65: 3.3 | AK65: 3.2 | AL65: 3.1 | AM65: 3 | AN65: 2.9 | AO65: 2.5 | AP65: 2.9 | AQ65: 3.3 | AR65: 3.4 | AS65: 3.1 | AT65: 3.4 | AU65: 3.4 | AV65: 3.1 | AW65: 3.1 | AX65: 3 | AY65: 2.3 | AZ65: 2.4 | BA65: 2.5 | BB65: 2.6 | BC65: 2.6 | BD65: 2.4 | BE65: 2.7 | BF65: 2.8 | BG65: 2.7 | BH65: 2.7 | BI65: 2.4 | BJ65: 2.4 | BK65: 2.4 | BL65: 2.2 | BM65: 2.5 | BN65: 2.5 | BO65: 2.5 | BP65: 2.6 | BQ65: 2.7 | BR65: 2.9 | BS65: 2.7 | BT65: 2.7 | BU65: 2.5 | BV65: 2.4 | BW65: 2.2 | BX65: 2.3 | BY65: 2.4 | BZ65: 2.4 | CA65: 2.5 | CB65: 2.4 | CC65: 2.5 | CD65: 2.8 | CE65: 2.6 | CF65: 2.6 | CG65: 2.4 | CH65: 2.4 | CI65: 2.3 | CJ65: 2.2 | CK65: 2.1 | CL65: 2.2 | CM65: 2.3 | CN65: 2.5 | CO65: 2.5 | CP65: 2.7 | CQ65: 2.6 | CR65: 2.5 | CS65: 2.3 | CT65: 2.4 | CU65: 2.2 | CV65: 2.2 | CW65: 2.2 | CX65: 2.3 | CY65: 2.4 | CZ65: 2.5 | DA65: 2.5 | DB65: 2.8 | DC65: 2.9 | DD65: 2.5 | DE65: 2.3 | DF65: 2.6 | DG65: 2.5 | DH65: 2.4 | DI65: 2.4 | DJ65: 2.4 | DK65: 2.5 | DL65: 2.7 | DM65: 2.8 | DN65: 3.1 | DO65: 2.9 | DP65: 2.7 | DQ65: 2.3 | DR65: 2.7 | DS65: 2.3 | DT65: 2.4 | DU65: 2.6 | DV65: 2.9 | DW65: 2.8 | DX65: 2.8 | DY65: - | DZ65: - | EA65: - | EB65: - | EC65: - | ED65: -
B66: Ciclo combinado | C66: 25 | D66: 18 | E66: 17.2 | F66: 19.6 | G66: 20.6 | H66: 28.7 | I66: 28.3 | J66: 23.9 | K66: 25.8 | L66: 27.2 | M66: 32 | N66: 29.3 | O66: 31.5 | P66: 33.6 | Q66: 28.5 | R66: 30 | S66: 32.6 | T66: 33.8 | U66: 36 | V66: 35.8 | W66: 34.8 | X66: 31.9 | Y66: 29.4 | Z66: 23.9 | AA66: 24.5 | AB66: 20.9 | AC66: 24 | AD66: 27.2 | AE66: 27.2 | AF66: 34.9 | AG66: 35.7 | AH66: 36.3 | AI66: 34.2 | AJ66: 30.2 | AK66: 25.4 | AL66: 26.2 | AM66: 22 | AN66: 21.3 | AO66: 17.7 | AP66: 21.1 | AQ66: 21.7 | AR66: 25.4 | AS66: 27.9 | AT66: 25.7 | AU66: 28.4 | AV66: 24.4 | AW66: 24.6 | AX66: 20.8 | AY66: 20.9 | AZ66: 21.4 | BA66: 17.4 | BB66: 14.3 | BC66: 20.5 | BD66: 23.2 | BE66: 20.3 | BF66: 21.9 | BG66: 21.1 | BH66: 18.6 | BI66: 16.6 | BJ66: 15.5 | BK66: 18.2 | BL66: 16.5 | BM66: 14.2 | BN66: 11.3 | BO66: 12 | BP66: 15 | BQ66: 15.5 | BR66: 16.1 | BS66: 14.3 | BT66: 15.7 | BU66: 14.4 | BV66: 12.9 | BW66: 12 | BX66: 9.9 | BY66: 7.7 | BZ66: 6.5 | CA66: 9.2 | CB66: 7.9 | CC66: 10.4 | CD66: 11.8 | CE66: 11.5 | CF66: 13.1 | CG66: 10.2 | CH66: 13 | CI66: 7.8 | CJ66: 7 | CK66: 7.2 | CL66: 7.4 | CM66: 8.3 | CN66: 9.6 | CO66: 9.3 | CP66: 11.5 | CQ66: 13.6 | CR66: 11.8 | CS66: 11.1 | CT66: 10 | CU66: 10.4 | CV66: 8.7 | CW66: 8.4 | CX66: 10 | CY66: 9.4 | CZ66: 10 | DA66: 14.9 | DB66: 11.6 | DC66: 10.9 | DD66: 12.4 | DE66: 12 | DF66: 14.1 | DG66: 10.1 | DH66: 7.7 | DI66: 7.4 | DJ66: 6.9 | DK66: 8.8 | DL66: 10.4 | DM66: 11.6 | DN66: 10.5 | DO66: 11.4 | DP66: 16.7 | DQ66: 17.5 | DR66: 16.5 | DS66: 13 | DT66: 8.7 | DU66: 8.3 | DV66: 7.9 | DW66: 10.1 | DX66: 15.6 | DY66: - | DZ66: - | EA66: - | EB66: - | EC66: - | ED66: -
B67: Hidroeólica | C67: - | D67: - | E67: - | F67: - | G67: - | H67: - | I67: - | J67: - | K67: - | L67: - | M67: - | N67: - | O67: - | P67: - | Q67: - | R67: - | S67: - | T67: - | U67: - | V67: - | W67: - | X67: - | Y67: - | Z67: - | AA67: - | AB67: - | AC67: - | AD67: - | AE67: - | AF67: - | AG67: - | AH67: - | AI67: - | AJ67: - | AK67: - | AL67: - | AM67: - | AN67: - | AO67: - | AP67: - | AQ67: - | AR67: - | AS67: - | AT67: - | AU67: - | AV67: - | AW67: - | AX67: - | AY67: - | AZ67: - | BA67: - | BB67: - | BC67: - | BD67: - | BE67: - | BF67: - | BG67: - | BH67: - | BI67: - | BJ67: - | BK67: - | BL67: - | BM67: - | BN67: - | BO67: - | BP67: - | BQ67: - | BR67: - | BS67: - | BT67: - | BU67: - | BV67: - | BW67: - | BX67: - | BY67: - | BZ67: - | CA67: - | CB67: - | CC67: - | CD67: - | CE67: - | CF67: - | CG67: - | CH67: - | CI67: - | CJ67: - | CK67: - | CL67: - | CM67: - | CN67: - | CO67: - | CP67: 0 | CQ67: 0 | CR67: 0 | CS67: 0 | CT67: 0 | CU67: 0 | CV67: 0 | CW67: 0 | CX67: 0 | CY67: 0 | CZ67: 0 | DA67: 0 | DB67: 0 | DC67: 0 | DD67: 0 | DE67: 0 | DF67: 0 | DG67: 0 | DH67: 0 | DI67: 0 | DJ67: 0 | DK67: 0 | DL67: 0 | DM67: 0 | DN67: 0 | DO67: 0 | DP67: 0 | DQ67: 0 | DR67: 0 | DS67: 0 | DT67: 0 | DU67: 0 | DV67: 0 | DW67: 0 | DX67: 0 | DY67: - | DZ67: - | EA67: - | EB67: - | EC67: - | ED67: -
B68: Eólica | C68: 8.5 | D68: 12.8 | E68: 12.9 | F68: 6.3 | G68: 11.6 | H68: 8 | I68: 7.9 | J68: 10.7 | K68: 8.9 | L68: 8.1 | M68: 11.1 | N68: 9.3 | O68: 10.1 | P68: 8.3 | Q68: 16.6 | R68: 14.1 | S68: 7.7 | T68: 9 | U68: 8.5 | V68: 8.4 | W68: 9.2 | X68: 10.7 | Y68: 14.3 | Z68: 14.4 | AA68: 13.5 | AB68: 14.3 | AC68: 13.9 | AD68: 14.8 | AE68: 12.8 | AF68: 10.4 | AG68: 10 | AH68: 9.7 | AI68: 11.1 | AJ68: 13.9 | AK68: 21.1 | AL68: 20.1 | AM68: 16.8 | AN68: 19.5 | AO68: 18.4 | AP68: 12.2 | AQ68: 16.4 | AR68: 11.6 | AS68: 11.1 | AT68: 12.4 | AU68: 10.1 | AV68: 17.1 | AW68: 18.3 | AX68: 18.5 | AY68: 15.7 | AZ68: 17.6 | BA68: 19 | BB68: 15.9 | BC68: 14.6 | BD68: 13.3 | BE68: 13.8 | BF68: 11.9 | BG68: 10.2 | BH68: 14.4 | BI68: 17.1 | BJ68: 19.5 | BK68: 14.7 | BL68: 19.6 | BM68: 16.3 | BN68: 24.3 | BO68: 16.6 | BP68: 15.3 | BQ68: 12.8 | BR68: 13.4 | BS68: 17.7 | BT68: 14 | BU68: 20.7 | BV68: 23 | BW68: 26 | BX68: 23.9 | BY68: 24.9 | BZ68: 20.8 | CA68: 19 | CB68: 18.6 | CC68: 11.9 | CD68: 15.3 | CE68: 14.8 | CF68: 18.3 | CG68: 28.6 | CH68: 21.1 | CI68: 28 | CJ68: 26.7 | CK68: 22.7 | CL68: 19.2 | CM68: 19.9 | CN68: 15.6 | CO68: 15.8 | CP68: 13.3 | CQ68: 9.7 | CR68: 15.9 | CS68: 24.4 | CT68: 20.8 | CU68: 20.4 | CV68: 26.2 | CW68: 21.4 | CX68: 19.3 | CY68: 23.1 | CZ68: 13.4 | DA68: 12.4 | DB68: 14.5 | DC68: 14.3 | DD68: 18.9 | DE68: 18 | DF68: 16.6 | DG68: 25.5 | DH68: 28.8 | DI68: 24 | DJ68: 20.8 | DK68: 19.4 | DL68: 16 | DM68: 15.4 | DN68: 16.6 | DO68: 12.9 | DP68: 11.1 | DQ68: 18.1 | DR68: 12.4 | DS68: 19.3 | DT68: 24 | DU68: 22.5 | DV68: 22 | DW68: 17.1 | DX68: 14.5 | DY68: - | DZ68: - | EA68: - | EB68: - | EC68: - | ED68: -
B69: Solar fotovoltaica | C69: 0 | D69: 0.1 | E69: 0.1 | F69: 0.1 | G69: 0.2 | H69: 0.2 | I69: 0.2 | J69: 0.2 | K69: 0.3 | L69: 0.2 | M69: 0.2 | N69: 0.2 | O69: 0.2 | P69: 0.3 | Q69: 0.4 | R69: 0.5 | S69: 0.6 | T69: 0.8 | U69: 0.9 | V69: 1.2 | W69: 1.4 | X69: 1.4 | Y69: 1.4 | Z69: 1 | AA69: 1 | AB69: 1.7 | AC69: 2.4 | AD69: 2.7 | AE69: 3.1 | AF69: 2.8 | AG69: 2.9 | AH69: 2.8 | AI69: 2.3 | AJ69: 2.2 | AK69: 1.6 | AL69: 1 | AM69: 1 | AN69: 1.3 | AO69: 1.9 | AP69: 2.7 | AQ69: 3.2 | AR69: 3 | AS69: 3.1 | AT69: 3 | AU69: 2.7 | AV69: 2.4 | AW69: 1.6 | AX69: 1.3 | AY69: 1.4 | AZ69: 2.2 | BA69: 2.2 | BB69: 3.1 | BC69: 3.4 | BD69: 3.6 | BE69: 3.6 | BF69: 3.4 | BG69: 3.2 | BH69: 2.8 | BI69: 1.6 | BJ69: 1.8 | BK69: 2 | BL69: 2.6 | BM69: 3.3 | BN69: 3 | BO69: 3.8 | BP69: 3.8 | BQ69: 4 | BR69: 3.6 | BS69: 3.1 | BT69: 2.6 | BU69: 1.7 | BV69: 1.7 | BW69: 1.8 | BX69: 2.3 | BY69: 2.4 | BZ69: 3.6 | CA69: 4.2 | CB69: 4.5 | CC69: 4 | CD69: 4 | CE69: 3.5 | CF69: 2.9 | CG69: 2.3 | CH69: 1.9 | CI69: 1.6 | CJ69: 2 | CK69: 3.3 | CL69: 3.8 | CM69: 4.4 | CN69: 4.3 | CO69: 4.1 | CP69: 4.2 | CQ69: 3.1 | CR69: 3 | CS69: 1.8 | CT69: 2 | CU69: 2.1 | CV69: 2.2 | CW69: 3.1 | CX69: 3.7 | CY69: 4.4 | CZ69: 4.1 | DA69: 3.7 | DB69: 3.7 | DC69: 3.4 | DD69: 2.6 | DE69: 2.6 | DF69: 1.8 | DG69: 1.7 | DH69: 2.3 | DI69: 3.1 | DJ69: 3.4 | DK69: 4 | DL69: 4.5 | DM69: 4 | DN69: 4.1 | DO69: 3.6 | DP69: 2.7 | DQ69: 2 | DR69: 1.7 | DS69: 1.9 | DT69: 2.1 | DU69: 3.4 | DV69: 4.4 | DW69: 4.3 | DX69: 4 | DY69: - | DZ69: - | EA69: - | EB69: - | EC69: - | ED69: -
B70: Solar térmica | C70: - | D70: - | E70: 0 | F70: 0 | G70: 0 | H70: 0 | I70: 0 | J70: 0 | K70: 0 | L70: 0 | M70: 0 | N70: 0 | O70: 0 | P70: 0 | Q70: 0 | R70: 0 | S70: 0 | T70: 0 | U70: 0 | V70: 0 | W70: 0 | X70: 0 | Y70: 0 | Z70: 0 | AA70: 0 | AB70: 0 | AC70: 0 | AD70: 0 | AE70: 0 | AF70: 0 | AG70: 0 | AH70: 0.1 | AI70: 0.1 | AJ70: 0.1 | AK70: 0.1 | AL70: 0 | AM70: 0.1 | AN70: 0 | AO70: 0.1 | AP70: 0.2 | AQ70: 0.3 | AR70: 0.3 | AS70: 0.4 | AT70: 0.5 | AU70: 0.4 | AV70: 0.3 | AW70: 0.1 | AX70: 0.1 | AY70: 0.1 | AZ70: 0.4 | BA70: 0.4 | BB70: 0.6 | BC70: 0.7 | BD70: 1 | BE70: 1.2 | BF70: 1 | BG70: 1 | BH70: 0.8 | BI70: 0.4 | BJ70: 0.4 | BK70: 0.5 | BL70: 0.8 | BM70: 1 | BN70: 0.8 | BO70: 1.6 | BP70: 1.8 | BQ70: 2.3 | BR70: 2 | BS70: 1.7 | BT70: 1.3 | BU70: 0.6 | BV70: 0.6 | BW70: 0.5 | BX70: 0.9 | BY70: 0.5 | BZ70: 1.4 | CA70: 2.4 | CB70: 3.1 | CC70: 3.1 | CD70: 2.9 | CE70: 2.2 | CF70: 1.3 | CG70: 0.9 | CH70: 0.7 | CI70: 0.3 | CJ70: 0.5 | CK70: 1.7 | CL70: 2.1 | CM70: 3.5 | CN70: 3.2 | CO70: 3.5 | CP70: 3.8 | CQ70: 1.8 | CR70: 1.4 | CS70: 0.4 | CT70: 0.5 | CU70: 0.7 | CV70: 0.8 | CW70: 1.8 | CX70: 1.9 | CY70: 3.3 | CZ70: 3.4 | DA70: 3.5 | DB70: 2.7 | DC70: 2.3 | DD70: 0.9 | DE70: 1.1 | DF70: 0.4 | DG70: 0.3 | DH70: 0.6 | DI70: 1.7 | DJ70: 1.9 | DK70: 2.5 | DL70: 4 | DM70: 3.6 | DN70: 3.7 | DO70: 2.8 | DP70: 1.3 | DQ70: 0.6 | DR70: 0.5 | DS70: 0.6 | DT70: 0.4 | DU70: 1.6 | DV70: 2.8 | DW70: 3 | DX70: 3.6 | DY70: - | DZ70: - | EA70: - | EB70: - | EC70: - | ED70: -
B71: Térmica renovable/Otras renovables | C71: 0.9 | D71: 0.8 | E71: 0.8 | F71: 0.9 | G71: 0.9 | H71: 0.9 | I71: 0.9 | J71: 1 | K71: 0.9 | L71: 1 | M71: 0.9 | N71: 0.9 | O71: 0.9 | P71: 1 | Q71: 1 | R71: 1 | S71: 1 | T71: 1 | U71: 0.9 | V71: 1 | W71: 1 | X71: 1 | Y71: 1 | Z71: 1 | AA71: 1 | AB71: 1.1 | AC71: 1.2 | AD71: 1.4 | AE71: 1.3 | AF71: 1.1 | AG71: 1 | AH71: 1.1 | AI71: 1.3 | AJ71: 1.5 | AK71: 1.2 | AL71: 1.1 | AM71: 1.1 | AN71: 1 | AO71: 1.1 | AP71: 1.3 | AQ71: 1.3 | AR71: 1.3 | AS71: 1.1 | AT71: 1.2 | AU71: 1.2 | AV71: 1.2 | AW71: 1.1 | AX71: 1.2 | AY71: 1.4 | AZ71: 1.5 | BA71: 1.4 | BB71: 1.7 | BC71: 1.5 | BD71: 1.5 | BE71: 1.5 | BF71: 1.5 | BG71: 1.6 | BH71: 1.7 | BI71: 1.7 | BJ71: 1.6 | BK71: 1.6 | BL71: 1.5 | BM71: 1.7 | BN71: 1.7 | BO71: 1.6 | BP71: 1.8 | BQ71: 1.8 | BR71: 1.7 | BS71: 1.7 | BT71: 1.8 | BU71: 1.8 | BV71: 1.8 | BW71: 1.8 | BX71: 1.8 | BY71: 2 | BZ71: 2 | CA71: 2.1 | CB71: 1.9 | CC71: 1.8 | CD71: 1.8 | CE71: 1.8 | CF71: 1.9 | CG71: 1.8 | CH71: 1.9 | CI71: 1.8 | CJ71: 1.5 | CK71: 1.6 | CL71: 1.6 | CM71: 2 | CN71: 1.9 | CO71: 1.8 | CP71: 2 | CQ71: 1.9 | CR71: 1.8 | CS71: 1.8 | CT71: 1.8 | CU71: 1 | CV71: 0.9 | CW71: 1 | CX71: 0.9 | CY71: 1.1 | CZ71: 1.3 | DA71: 1.2 | DB71: 1.4 | DC71: 1.4 | DD71: 1.5 | DE71: 1.5 | DF71: 1.3 | DG71: 1.2 | DH71: 1.2 | DI71: 1.1 | DJ71: 1 | DK71: 1.4 | DL71: 1.4 | DM71: 1.4 | DN71: 1.5 | DO71: 1.5 | DP71: 1.4 | DQ71: 1.4 | DR71: 1.4 | DS71: 1.3 | DT71: 1.4 | DU71: 1.3 | DV71: 1.2 | DW71: 1.5 | DX71: 1.4 | DY71: - | DZ71: - | EA71: - | EB71: - | EC71: - | ED71: -
B72: Térmica no renovable/Cogeneración y resto/Cogeneración | C72: 7.8 | D72: 7.7 | E72: 7.8 | F72: 8.5 | G72: 8.1 | H72: 8.4 | I72: 8.2 | J72: 8.2 | K72: 8.4 | L72: 8.8 | M72: 8.4 | N72: 8.4 | O72: 8.6 | P72: 9.1 | Q72: 9.1 | R72: 9.3 | S72: 9.2 | T72: 8.9 | U72: 8.7 | V72: 8.5 | W72: 9.2 | X72: 10.1 | Y72: 9.7 | Z72: 9 | AA72: 9.3 | AB72: 10 | AC72: 10.8 | AD72: 11.3 | AE72: 11.1 | AF72: 10.3 | AG72: 9.7 | AH72: 8.8 | AI72: 10.4 | AJ72: 11 | AK72: 11.2 | AL72: 10.7 | AM72: 10.4 | AN72: 10.6 | AO72: 10.5 | AP72: 11.7 | AQ72: 11.8 | AR72: 11.3 | AS72: 10.2 | AT72: 9.2 | AU72: 11.1 | AV72: 11.6 | AW72: 11.4 | AX72: 11.1 | AY72: 10.9 | AZ72: 11.3 | BA72: 11.8 | BB72: 12.5 | BC72: 12.5 | BD72: 11.6 | BE72: 11.1 | BF72: 9.7 | BG72: 11.6 | BH72: 12.6 | BI72: 12.3 | BJ72: 12.1 | BK72: 11.7 | BL72: 10.8 | BM72: 12.5 | BN72: 12.8 | BO72: 12.8 | BP72: 11.9 | BQ72: 11.7 | BR72: 10.2 | BS72: 12.4 | BT72: 13 | BU72: 12.9 | BV72: 12.3 | BW72: 12.4 | BX72: 12.1 | BY72: 12.6 | BZ72: 13.1 | CA72: 13.6 | CB72: 12.9 | CC72: 11.3 | CD72: 9.3 | CE72: 11.8 | CF72: 12.1 | CG72: 11.6 | CH72: 11.4 | CI72: 11.6 | CJ72: 9 | CK72: 8.6 | CL72: 8.4 | CM72: 9.7 | CN72: 10.5 | CO72: 9.9 | CP72: 9.7 | CQ72: 10.5 | CR72: 10.7 | CS72: 10.1 | CT72: 9.4 | CU72: 9.1 | CV72: 8.6 | CW72: 9.4 | CX72: 10 | CY72: 10.1 | CZ72: 9.5 | DA72: 8.6 | DB72: 8.9 | DC72: 10.1 | DD72: 10.7 | DE72: 10.3 | DF72: 10.3 | DG72: 9.6 | DH72: 9.3 | DI72: 9.2 | DJ72: 9.3 | DK72: 10.3 | DL72: 10.6 | DM72: 9.9 | DN72: 9.5 | DO72: 10.1 | DP72: 10.5 | DQ72: 10.7 | DR72: 10.8 | DS72: 9.7 | DT72: 10.7 | DU72: 11.4 | DV72: 11.8 | DW72: 11.4 | DX72: 10.6 | DY72: - | DZ72: - | EA72: - | EB72: - | EC72: - | ED72: -
B73: Residuos | C73: - | D73: - | E73: - | F73: - | G73: - | H73: - | I73: - | J73: - | K73: - | L73: - | M73: - | N73: - | O73: - | P73: - | Q73: - | R73: - | S73: - | T73: - | U73: - | V73: - | W73: - | X73: - | Y73: - | Z73: - | AA73: - | AB73: - | AC73: - | AD73: - | AE73: - | AF73: - | AG73: - | AH73: - | AI73: - | AJ73: - | AK73: - | AL73: - | AM73: - | AN73: - | AO73: - | AP73: - | AQ73: - | AR73: - | AS73: - | AT73: - | AU73: - | AV73: - | AW73: - | AX73: - | AY73: - | AZ73: - | BA73: - | BB73: - | BC73: - | BD73: - | BE73: - | BF73: - | BG73: - | BH73: - | BI73: - | BJ73: - | BK73: - | BL73: - | BM73: - | BN73: - | BO73: - | BP73: - | BQ73: - | BR73: - | BS73: - | BT73: - | BU73: - | BV73: - | BW73: - | BX73: - | BY73: - | BZ73: - | CA73: - | CB73: - | CC73: - | CD73: - | CE73: - | CF73: - | CG73: - | CH73: - | CI73: - | CJ73: - | CK73: - | CL73: - | CM73: - | CN73: - | CO73: - | CP73: - | CQ73: - | CR73: - | CS73: - | CT73: - | CU73: 1.1 | CV73: 1 | CW73: 1.2 | CX73: 1.1 | CY73: 1.3 | CZ73: 1.3 | DA73: 1.2 | DB73: 1.3 | DC73: 1.4 | DD73: 1.5 | DE73: 1.4 | DF73: 1.3 | DG73: 1.3 | DH73: 1.2 | DI73: 1.3 | DJ73: 1.1 | DK73: 0.9 | DL73: 1.4 | DM73: 1.4 | DN73: 1.5 | DO73: 1.5 | DP73: 1.5 | DQ73: 1.3 | DR73: 1.3 | DS73: 1.2 | DT73: 1.3 | DU73: 1.4 | DV73: 1.3 | DW73: 1.2 | DX73: 1.4 | DY73: - | DZ73: - | EA73: - | EB73: - | EC73: - | ED73: -
B74: Generación renovable | C74: 18.3 | D74: 27 | E74: 30 | F74: 20.5 | G74: 25.2 | H74: 19.3 | I74: 18.9 | J74: 19.6 | K74: 16 | L74: 16.5 | M74: 17.6 | N74: 15.1 | O74: 16.5 | P74: 13.5 | Q74: 22.3 | R74: 27 | S74: 23.9 | T74: 24.3 | U74: 18.8 | V74: 17 | W74: 17.2 | X74: 17.7 | Y74: 23.2 | Z74: 26.2 | AA74: 24.2 | AB74: 32.5 | AC74: 29.9 | AD74: 29.4 | AE74: 29.3 | AF74: 23.7 | AG74: 20.9 | AH74: 19.9 | AI74: 19.2 | AJ74: 23.3 | AK74: 32.9 | AL74: 35.3 | AM74: 39.3 | AN74: 38.9 | AO74: 45 | AP74: 37.9 | AQ74: 38.6 | AR74: 32 | AS74: 27 | AT74: 25.7 | AU74: 21 | AV74: 27.9 | AW74: 32 | AX74: 36.9 | AY74: 38.5 | AZ74: 34.6 | BA74: 38.4 | BB74: 37.7 | BC74: 33 | BD74: 28.6 | BE74: 27 | BF74: 24.3 | BG74: 21.4 | BH74: 25.4 | BI74: 30.4 | BJ74: 32.5 | BK74: 25.3 | BL74: 29.1 | BM74: 27.7 | BN74: 37.3 | BO74: 34.8 | BP74: 31.8 | BQ74: 27.9 | BR74: 26.3 | BS74: 28.6 | BT74: 25.9 | BU74: 33.7 | BV74: 38.1 | BW74: 42 | BX74: 44.5 | BY74: 48.6 | BZ74: 52 | CA74: 45.6 | CB74: 43.2 | CC74: 32 | CD74: 33.5 | CE74: 30.6 | CF74: 33 | CG74: 46 | CH74: 35.7 | CI74: 49.2 | CJ74: 56.4 | CK74: 52.8 | CL74: 50.7 | CM74: 43.1 | CN74: 36.6 | CO74: 35.4 | CP74: 32.6 | CQ74: 24.7 | CR74: 29.7 | CS74: 40 | CT74: 39.4 | CU74: 35 | CV74: 45.6 | CW74: 44.3 | CX74: 38.9 | CY74: 46 | CZ74: 34.1 | DA74: 29.2 | DB74: 29.8 | DC74: 29.2 | DD74: 32.2 | DE74: 32.6 | DF74: 27 | DG74: 43.8 | DH74: 52 | DI74: 49.2 | DJ74: 51.9 | DK74: 52.4 | DL74: 40.6 | DM74: 34.6 | DN74: 35.5 | DO74: 29.1 | DP74: 24.4 | DQ74: 29.4 | DR74: 25 | DS74: 31.5 | DT74: 37.1 | DU74: 42 | DV74: 39.5 | DW74: 35.6 | DX74: 30.9 | DY74: - | DZ74: - | EA74: - | EB74: - | EC74: - | ED74: -
B75: Generación no renovable | C75: 81.7 | D75: 73 | E75: 70 | F75: 79.5 | G75: 74.8 | H75: 80.7 | I75: 81.1 | J75: 80.4 | K75: 84 | L75: 83.5 | M75: 82.4 | N75: 84.9 | O75: 83.5 | P75: 86.5 | Q75: 77.7 | R75: 73 | S75: 76.1 | T75: 75.7 | U75: 81.2 | V75: 83 | W75: 82.8 | X75: 82.3 | Y75: 76.8 | Z75: 73.8 | AA75: 75.8 | AB75: 67.5 | AC75: 70.1 | AD75: 70.6 | AE75: 70.7 | AF75: 76.3 | AG75: 79.1 | AH75: 80.1 | AI75: 80.8 | AJ75: 76.7 | AK75: 67.1 | AL75: 64.7 | AM75: 60.7 | AN75: 61.1 | AO75: 55 | AP75: 62.1 | AQ75: 61.4 | AR75: 68 | AS75: 73 | AT75: 74.3 | AU75: 79 | AV75: 72.1 | AW75: 68 | AX75: 63.1 | AY75: 61.5 | AZ75: 65.4 | BA75: 61.6 | BB75: 62.3 | BC75: 67 | BD75: 71.4 | BE75: 73 | BF75: 75.7 | BG75: 78.6 | BH75: 74.6 | BI75: 69.6 | BJ75: 67.5 | BK75: 74.7 | BL75: 70.9 | BM75: 72.3 | BN75: 62.7 | BO75: 65.2 | BP75: 68.2 | BQ75: 72.1 | BR75: 73.7 | BS75: 71.4 | BT75: 74.1 | BU75: 66.3 | BV75: 61.9 | BW75: 58 | BX75: 55.5 | BY75: 51.4 | BZ75: 48 | CA75: 54.4 | CB75: 56.8 | CC75: 68 | CD75: 66.5 | CE75: 69.4 | CF75: 67 | CG75: 54 | CH75: 64.3 | CI75: 50.8 | CJ75: 43.6 | CK75: 47.2 | CL75: 49.3 | CM75: 56.9 | CN75: 63.4 | CO75: 64.6 | CP75: 67.4 | CQ75: 75.3 | CR75: 70.3 | CS75: 60 | CT75: 60.6 | CU75: 65 | CV75: 54.4 | CW75: 55.7 | CX75: 61.1 | CY75: 54 | CZ75: 65.9 | DA75: 70.8 | DB75: 70.2 | DC75: 70.8 | DD75: 67.8 | DE75: 67.4 | DF75: 73 | DG75: 56.2 | DH75: 48 | DI75: 50.8 | DJ75: 48.1 | DK75: 47.6 | DL75: 59.4 | DM75: 65.4 | DN75: 64.5 | DO75: 70.9 | DP75: 75.6 | DQ75: 70.6 | DR75: 75 | DS75: 68.5 | DT75: 62.9 | DU75: 58 | DV75: 60.5 | DW75: 64.4 | DX75: 69.1 | DY75: - | DZ75: - | EA75: - | EB75: - | EC75: - | ED75: -
B77: Estructura de generación anual peninsular (%) | C77: 1990 | D77: 1991 | E77: 1992 | F77: 1993 | G77: 1994 | H77: 1995 | I77: 1996 | J77: 1997 | K77: 1998 | L77: 1999 | M77: 2000 | N77: 2001 | O77: 2002 | P77: 2003 | Q77: 2004 | R77: 2005 | S77: 2006 | T77: 2007 | U77: 2008 | V77: 2009 | W77: 2010 | X77: 2011 | Y77: 2012 | Z77: 2013 | AA77: 2014 | AB77: 2015 | AC77: 2016 | AD77: 2017 | AE77: 2018 | AF77: 2019 | AG77: 2020 | AH77: 2021
B78: Hidráulica | C78: 18.1 | D78: 18.8 | E78: 13.2 | F78: 16.9 | G78: 19 | H78: 15.2 | I78: 25.6 | J78: 21.2 | K78: 20.8 | L78: 13.9 | M78: 14.5 | N78: 19.9 | O78: 10.2 | P78: 17.7 | Q78: 12.8 | R78: 7.3 | S78: 9.8 | T78: 10.1 | U78: 8.3 | V78: 10 | W78: 15.5 | X78: 11.5 | Y78: 7.7 | Z78: 14.3 | AA78: 15.5 | AB78: 11.2 | AC78: 14.6 | AD78: 9.7 | AE78: - | AF78: - | AG78: - | AH78: -
B79: Nuclear | C79: 38.4 | D79: 37.7 | E79: 37.8 | F79: 38.2 | G79: 36.6 | H79: 35.9 | I79: 34.8 | J79: 32 | K79: 33.2 | L79: 31.4 | M79: 31 | N79: 30 | O79: 28.9 | P79: 26.2 | Q79: 25.3 | R79: 22 | S79: 22.1 | T79: 19.5 | U79: 20.4 | V79: 19.3 | W79: 21.9 | X79: 21 | Y79: 22.1 | Z79: 21.2 | AA79: 22 | AB79: 21.8 | AC79: 22.9 | AD79: 23.5 | AE79: - | AF79: - | AG79: - | AH79: -
B80: Carbón | C80: 40.9 | D80: 39.6 | E80: 42.4 | F80: 41.2 | G80: 39.5 | H80: 41.4 | I80: 31.8 | J80: 35.3 | K80: 33.4 | L80: 38.1 | M80: 37.6 | N80: 31.7 | O80: 35.8 | P80: 30.2 | Q80: 30 | R80: 29.3 | S80: 23.9 | T80: 25.1 | U80: 15.6 | V80: 12.1 | W80: 7.6 | X80: 15.4 | Y80: 19.3 | Z80: 14.5 | AA80: 16.5 | AB80: 20.3 | AC80: 14.4 | AD80: 16.5 | AE80: - | AF80: - | AG80: - | AH80: -
B81: Fuel + Gas | C81: 2.1 | D81: 2.9 | E81: 5.3 | F81: 1.3 | G81: 1 | H81: 2.5 | I81: 1.3 | J81: 3.9 | K81: 3.1 | L81: 5.2 | M81: 5 | N81: 5.7 | O81: 7.5 | P81: 3.3 | Q81: 2.9 | R81: 3.7 | S81: 2.1 | T81: 0.8 | U81: 0.7 | V81: 0.7 | W81: 0.6 | X81: - | Y81: - | Z81: - | AA81: - | AB81: - | AC81: - | AD81: - | AE81: - | AF81: - | AG81: - | AH81: -
B82: Ciclo combinado | C82: - | D82: - | E82: - | F82: 0 | G82: - | H82: - | I82: - | J82: - | K82: - | L82: - | M82: - | N82: - | O82: 2.5 | P82: 6.5 | Q82: 11.8 | R82: 19.2 | S82: 23.9 | T82: 24.7 | U82: 32.1 | V82: 29.2 | W82: 23.3 | X82: 18.8 | Y82: 14.1 | Z82: 9.5 | AA82: 8.5 | AB82: 10.1 | AC82: 10.5 | AD82: 10 | AE82: - | AF82: - | AG82: - | AH82: -
B83: Eólica | C83: 0 | D83: 0 | E83: 0 | F83: 0.1 | G83: 0.1 | H83: 0.1 | I83: 0.2 | J83: 0.4 | K83: 0.7 | L83: 1.4 | M83: 2.3 | N83: 3.2 | O83: 4.4 | P83: 5.2 | Q83: 6.6 | R83: 8.4 | S83: 8.8 | T83: 10.1 | U83: 11.4 | V83: 14.5 | W83: 16 | X83: 16 | Y83: 18.1 | Z83: 21.2 | AA83: 20.3 | AB83: 19 | AC83: 19.3 | AD83: 20.8 | AE83: - | AF83: - | AG83: - | AH83: -
B84: Solar fotovoltaica | C84: - | D84: - | E84: 0 | F84: 0 | G84: 0 | H84: 0 | I84: 0 | J84: 0 | K84: 0 | L84: 0 | M84: 0 | N84: 0 | O84: 0 | P84: 0 | Q84: 0 | R84: 0 | S84: 0 | T84: 0.2 | U84: 0.9 | V84: 2.2 | W84: 2.3 | X84: 2.7 | Y84: 3 | Z84: 3.1 | AA84: 3.1 | AB84: 3.1 | AC84: 3.1 | AD84: 3.3 | AE84: - | AF84: - | AG84: - | AH84: -
B85: Solar térmica | C85: - | D85: - | E85: - | F85: - | G85: - | H85: - | I85: - | J85: - | K85: - | L85: - | M85: - | N85: - | O85: - | P85: - | Q85: - | R85: - | S85: - | T85: 0 | U85: 0 | V85: 0 | W85: 0.3 | X85: 0.7 | Y85: 1.3 | Z85: 1.7 | AA85: 2 | AB85: 2 | AC85: 2.1 | AD85: 2.1 | AE85: - | AF85: - | AG85: - | AH85: -
B86: Térmica renovable/Otras renovables | C86: - | D86: 0 | E86: 0 | F86: 0 | G86: 0.2 | H86: 0.5 | I86: 0.5 | J86: 0.4 | K86: 0.4 | L86: 0.5 | M86: 0.5 | N86: 0.9 | O86: 0.7 | P86: 0.8 | Q86: 0.8 | R86: 0.8 | S86: 0.8 | T86: 0.9 | U86: 1 | V86: 1.2 | W86: 1.2 | X86: 1.6 | Y86: 1.8 | Z86: 2 | AA86: 1.9 | AB86: 1.3 | AC86: 1.4 | AD86: 1.4 | AE86: - | AF86: - | AG86: - | AH86: -
B87: Térmica no renovable/Cogeneración y resto/Cogeneración | C87: 0.5 | D87: 1 | E87: 1.3 | F87: 2.3 | G87: 3.6 | H87: 4.4 | I87: 5.8 | J87: 6.8 | K87: 8.4 | L87: 9.5 | M87: 9.1 | N87: 8.6 | O87: 10 | P87: 10.1 | Q87: 9.8 | R87: 9.3 | S87: 8.6 | T87: 8.6 | U87: 9.6 | V87: 10.8 | W87: 11.3 | X87: 12.3 | Y87: 12.6 | Z87: 12.5 | AA87: 10.2 | AB87: 10 | AC87: 10.4 | AD87: 11.5 | AE87: - | AF87: - | AG87: - | AH87: -
B88: Residuos | C88: - | D88: - | E88: - | F88: - | G88: - | H88: - | I88: - | J88: - | K88: - | L88: - | M88: - | N88: - | O88: - | P88: - | Q88: - | R88: - | S88: - | T88: - | U88: - | V88: - | W88: - | X88: - | Y88: - | Z88: - | AA88: - | AB88: 1.2 | AC88: 1.3 | AD88: 1.2 | AE88: - | AF88: - | AG88: - | AH88: -
B89: Generación renovable | C89: 18.1 | D89: 18.8 | E89: 13.2 | F89: 17 | G89: 19.3 | H89: 15.8 | I89: 26.3 | J89: 22 | K89: 21.9 | L89: 15.8 | M89: 17.3 | N89: 24 | O89: 15.3 | P89: 23.7 | Q89: 20.2 | R89: 16.5 | S89: 19.4 | T89: 21.3 | U89: 21.6 | V89: 27.9 | W89: 35.3 | X89: 32.5 | Y89: 31.9 | Z89: 42.3 | AA89: 42.8 | AB89: 36.9 | AC89: 40.8 | AD89: 37.6 | AE89: - | AF89: - | AG89: - | AH89: -
B90: Generación no renovable | C90: 81.9 | D90: 81.2 | E90: 86.8 | F90: 83 | G90: 80.7 | H90: 84.2 | I90: 73.7 | J90: 78 | K90: 78.1 | L90: 84.2 | M90: 82.7 | N90: 76 | O90: 84.7 | P90: 76.3 | Q90: 79.8 | R90: 83.5 | S90: 80.6 | T90: 78.7 | U90: 78.4 | V90: 72.1 | W90: 64.7 | X90: 67.5 | Y90: 68.1 | Z90: 57.7 | AA90: 57.2 | AB90: 63.1 | AC90: 59.2 | AD90: 62.4 | AE90: - | AF90: - | AG90: - | AH90: -
B92: Estructura de generación anual Islas Baleares (%) | C92: 2006 | D92: 2007 | E92: 2008 | F92: 2009 | G92: 2010 | H92: 2011 | I92: 2012 | J92: 2013 | K92: 2014 | L92: 2015 | M92: 2016 | N92: 2017 | O92: 2018 | P92: 2019 | Q92: 2020 | R92: 2021
B93: Carbón | C93: 52.8 | D93: 49.3 | E93: 50.5 | F93: 52.8 | G93: 53.2 | H93: 48.1 | I93: 51 | J93: 53.3 | K93: 50.9 | L93: 41.9 | M93: 50.4 | N93: 56 | O93: - | P93: - | Q93: - | R93: -
B94: Motores diesel | C94: 16.6 | D94: 16.8 | E94: 17.1 | F94: 16.2 | G94: 17.6 | H94: 16.1 | I94: 17.8 | J94: 16.9 | K94: 15.7 | L94: 16.4 | M94: 21 | N94: 21 | O94: - | P94: - | Q94: - | R94: -
B95: Turbina de gas | C95: 5 | D95: 5.2 | E95: 4.5 | F95: 5.7 | G95: 5.1 | H95: 6.1 | I95: 6.5 | J95: 11.6 | K95: 13.6 | L95: 13.1 | M95: 7.4 | N95: 5.5 | O95: - | P95: - | Q95: - | R95: -
B96: Ciclo combinado | C96: 23 | D96: 26.5 | E96: 24.9 | F96: 21.6 | G96: 19.4 | H96: 23.1 | I96: 17 | J96: 9.4 | K96: 10 | L96: 18.1 | M96: 11.8 | N96: 8 | O96: - | P96: - | Q96: - | R96: -
B97: Generación auxiliar | C97: 0.1 | D97: 0.2 | E97: 0.1 | F97: 0.1 | G97: 0.1 | H97: 0.2 | I97: 0.2 | J97: 0.2 | K97: 0.2 | L97: 0.2 | M97: 0.2 | N97: 0.1 | O97: - | P97: - | Q97: - | R97: -
B98: Eólica | C98: 0.1 | D98: 0.1 | E98: 0.1 | F98: 0.1 | G98: 0.1 | H98: 0.1 | I98: 0.1 | J98: 0.1 | K98: 0.1 | L98: 0.1 | M98: 0.1 | N98: 0.1 | O98: - | P98: - | Q98: - | R98: -
B99: Solar fotovoltaica | C99: 0 | D99: 0 | E99: 0.5 | F99: 1.4 | G99: 1.5 | H99: 1.8 | I99: 2.2 | J99: 2.8 | K99: 2.9 | L99: 2.7 | M99: 2.6 | N99: 2.8 | O99: - | P99: - | Q99: - | R99: -
B100: Térmica renovable/Otras renovables | C100: - | D100: - | E100: - | F100: - | G100: - | H100: - | I100: 0 | J100: 0 | K100: 0 | L100: 0 | M100: 0 | N100: 0 | O100: - | P100: - | Q100: - | R100: -
B101: Térmica no renovable/Cogeneración y resto/Cogeneración | C101: 2.4 | D101: 1.9 | E101: 2.3 | F101: 2.1 | G101: 3 | H101: 4.5 | I101: 5.2 | J101: 5.7 | K101: 6.6 | L101: 0.7 | M101: 0.8 | N101: 0.7 | O101: - | P101: - | Q101: - | R101: -
B102: Residuos | C102: - | D102: - | E102: - | F102: - | G102: - | H102: - | I102: - | J102: - | K102: - | L102: 6.8 | M102: 5.7 | N102: 5.8 | O102: - | P102: - | Q102: - | R102: -
B103: Generación renovable | C103: 0.1 | D103: 0.1 | E103: 0.6 | F103: 1.5 | G103: 1.6 | H103: 1.9 | I103: 2.3 | J103: 2.9 | K103: 3 | L103: 6.2 | M103: 5.6 | N103: 5.8 | O103: - | P103: - | Q103: - | R103: -
B104: Generación no renovable | C104: 99.9 | D104: 99.9 | E104: 99.4 | F104: 98.5 | G104: 98.4 | H104: 98.1 | I104: 97.7 | J104: 97.1 | K104: 97 | L104: 93.8 | M104: 94.4 | N104: 94.2 | O104: - | P104: - | Q104: - | R104: -
B106: Estructura de generación anual Islas Canarias (%) | C106: 2006 | D106: 2007 | E106: 2008 | F106: 2009 | G106: 2010 | H106: 2011 | I106: 2012 | J106: 2013 | K106: 2014 | L106: 2015 | M106: 2016 | N106: 2017 | O106: 2018 | P106: 2019 | Q106: 2020 | R106: 2021
B107: Hidráulica | C107: - | D107: 0 | E107: 0 | F107: 0 | G107: - | H107: 0 | I107: 0 | J107: 0 | K107: 0 | L107: 0 | M107: 0 | N107: 0 | O107: - | P107: - | Q107: - | R107: -
B108: Motores diesel | C108: 22.8 | D108: 22.2 | E108: 22.5 | F108: 23.5 | G108: 24.5 | H108: 24.4 | I108: 23.7 | J108: 24.1 | K108: 25 | L108: 25.5 | M108: 25.4 | N108: 26.8 | O108: - | P108: - | Q108: - | R108: -
B109: Turbina de gas | C109: 9.3 | D109: 7.6 | E109: 5.1 | F109: 3.8 | G109: 3.9 | H109: 6 | I109: 6.6 | J109: 4.3 | K109: 4.2 | L109: 3.8 | M109: 3.2 | N109: 2.8 | O109: - | P109: - | Q109: - | R109: -
B110: Turbina de vapor | C110: 38.9 | D110: 35.9 | E110: 36.6 | F110: 35.6 | G110: 33.4 | H110: 29.7 | I110: 30.2 | J110: 28.6 | K110: 24.2 | L110: 25.7 | M110: 28.9 | N110: 29.4 | O110: - | P110: - | Q110: - | R110: -
B111: Ciclo combinado | C111: 22.8 | D111: 26.5 | E111: 27.6 | F111: 28 | G111: 30.5 | H111: 32.9 | I111: 32.4 | J111: 35.4 | K111: 38.7 | L111: 37 | M111: 34.5 | N111: 33.8 | O111: - | P111: - | Q111: - | R111: -
B112: Generación auxiliar | C112: - | D112: 1.4 | E112: 1 | F112: 0.4 | G112: - | H112: - | I112: - | J112: - | K112: - | L112: - | M112: - | N112: - | O112: - | P112: - | Q112: - | R112: -
B113: Hidroeólica | C113: - | D113: - | E113: - | F113: - | G113: - | H113: - | I113: - | J113: - | K113: 0 | L113: 0.1 | M113: 0.2 | N113: 0.2 | O113: - | P113: - | Q113: - | R113: -
B114: Eólica | C114: 3.7 | D114: 3.9 | E114: 4.2 | F114: 3.9 | G114: 3.7 | H114: 4 | I114: 4.1 | J114: 4.2 | K114: 4.5 | L114: 4.6 | M114: 4.5 | N114: 3.7 | O114: - | P114: - | Q114: - | R114: -
B115: Solar fotovoltaica | C115: 0 | D115: 0.2 | E115: 0.7 | F115: 1.8 | G115: 2.2 | H115: 2.6 | I115: 2.9 | J115: 3.3 | K115: 3.3 | L115: 3.2 | M115: 3.2 | N115: 3.2 | O115: - | P115: - | Q115: - | R115: -
B116: Térmica renovable/Otras renovables | C116: 2.5 | D116: 2.3 | E116: 2.3 | F116: 3 | G116: 1.8 | H116: 0.4 | I116: 0.1 | J116: 0.1 | K116: 0.1 | L116: 0.1 | M116: 0.1 | N116: 0.1 | O116: - | P116: - | Q116: - | R116: -
B117: Térmica no renovable/Cogeneración y resto/Cogeneración | C117: 0 | D117: - | E117: - | F117: 0 | G117: - | H117: - | I117: - | J117: - | K117: - | L117: - | M117: - | N117: - | O117: - | P117: - | Q117: - | R117: -
B118: Generación renovable | C118: 6.2 | D118: 6.4 | E118: 7.2 | F118: 8.7 | G118: 7.7 | H118: 7 | I118: 7.1 | J118: 7.6 | K118: 7.9 | L118: 8 | M118: 8 | N118: 7.2 | O118: - | P118: - | Q118: - | R118: -
B119: Generación no renovable | C119: 93.8 | D119: 93.6 | E119: 92.8 | F119: 91.3 | G119: 92.3 | H119: 93 | I119: 92.9 | J119: 92.4 | K119: 92.1 | L119: 92 | M119: 92 | N119: 92.8 | O119: - | P119: - | Q119: - | R119: -
B121: Estructura de generación anual Ceuta (%) | C121: 2007 | D121: 2008 | E121: 2009 | F121: 2010 | G121: 2011 | H121: 2012 | I121: 2013 | J121: 2014 | K121: 2015 | L121: 2016 | M121: 2017 | N121: 2018 | O121: 2019 | P121: 2020
B122: Motores diesel | C122: 100 | D122: 100 | E122: 98.5 | F122: 98.7 | G122: 99.9 | H122: 99.7 | I122: 99.9 | J122: 100 | K122: 99.6 | L122: 99.9 | M122: 100 | N122: - | O122: - | P122: -
B123: Turbina de gas | C123: - | D123: - | E123: 1.5 | F123: 1.3 | G123: 0.1 | H123: 0.3 | I123: 0.1 | J123: 0 | K123: 0.4 | L123: 0.1 | M123: 0 | N123: - | O123: - | P123: -
B124: Generación renovable | C124: - | D124: - | E124: - | F124: - | G124: - | H124: - | I124: - | J124: - | K124: - | L124: - | M124: - | N124: - | O124: - | P124: -
B125: Generación no renovable | C125: 100 | D125: 100 | E125: 100 | F125: 100 | G125: 100 | H125: 100 | I125: 100 | J125: 100 | K125: 100 | L125: 100 | M125: 100 | N125: - | O125: - | P125: -
B127: Estructura de generación anual Melilla (%) | C127: 2007 | D127: 2008 | E127: 2009 | F127: 2010 | G127: 2011 | H127: 2012 | I127: 2013 | J127: 2014 | K127: 2015 | L127: 2016 | M127: 2017 | N127: 2018 | O127: 2019 | P127: 2020
B128: Motores diesel | C128: 94.3 | D128: 96.1 | E128: 95.8 | F128: 96 | G128: 96.5 | H128: 98.8 | I128: 96.2 | J128: 95.5 | K128: 95.7 | L128: 95.2 | M128: 94.9 | N128: - | O128: - | P128: -
B129: Turbina de gas | C129: 1.2 | D129: 1.5 | E129: 0.3 | F129: 0.2 | G129: 0.2 | H129: 0.1 | I129: 0 | J129: 0.3 | K129: 0.3 | L129: 0.1 | M129: 0 | N129: - | O129: - | P129: -
B130: Solar fotovoltaica | C130: - | D130: 0 | E130: 0.1 | F130: 0 | G130: 0 | H130: 0 | I130: 0 | J130: 0 | K130: 0 | L130: 0 | M130: 0 | N130: - | O130: - | P130: -
B131: Térmica no renovable/Cogeneración y resto/Cogeneración | C131: 4.5 | D131: 2.4 | E131: 3.8 | F131: 3.8 | G131: 3.3 | H131: 1.1 | I131: 3.8 | J131: 4.2 | K131: - | L131: - | M131: - | N131: - | O131: - | P131: -
B132: Residuos | C132: - | D132: - | E132: - | F132: - | G132: - | H132: - | I132: - | J132: - | K132: 4 | L132: 4.7 | M132: 5.1 | N132: - | O132: - | P132: -
B133: Generación renovable | C133: - | D133: 0 | E133: 0.1 | F133: 0 | G133: 0 | H133: 0 | I133: 0 | J133: 0 | K133: 2 | L133: 2.3 | M133: 2.6 | N133: - | O133: - | P133: -
B134: Generación no renovable | C134: 100 | D134: 100 | E134: 99.9 | F134: 100 | G134: 100 | H134: 100 | I134: 100 | J134: 100 | K134: 98 | L134: 97.7 | M134: 97.4 | N134: - | O134: - | P134: -
B136: Estructura de generación anual nacional (%) | C136: 2007 | D136: 2008 | E136: 2009 | F136: 2010 | G136: 2011 | H136: 2012 | I136: 2013 | J136: 2014 | K136: 2015 | L136: 2016 | M136: 2017 | N136: 2018 | O136: 2019 | P136: 2020
B137: Hidráulica | C137: 9.5 | D137: 7.8 | E137: 9.4 | F137: 14.7 | G137: 10.9 | H137: 7.3 | I137: 13.5 | J137: 14.7 | K137: 10.6 | L137: 13.8 | M137: 9.2 | N137: - | O137: - | P137: -
B138: Nuclear | C138: 18.5 | D138: 19.3 | E138: 18.2 | F138: 20.8 | G138: 19.8 | H138: 21 | I138: 20.1 | J138: 20.9 | K138: 20.7 | L138: 21.7 | M138: 22.3 | N138: - | O138: - | P138: -
B139: Carbón | C139: 24.8 | D139: 15.9 | E139: 12.5 | F139: 8.3 | G139: 15.6 | H139: 19.2 | I139: 14.7 | J139: 16.5 | K139: 19.9 | L139: 14.5 | M139: 16.6 | N139: - | O139: - | P139: -
B140: Fuel + Gas | C140: 3.5 | D140: 3.4 | E140: 3.3 | F140: 3.1 | G140: 2.5 | H140: 2.5 | I140: 2.4 | J140: 2.4 | K140: 2.5 | L140: 2.6 | M140: 2.6 | N140: - | O140: - | P140: -
B141: Ciclo combinado | C141: 24.8 | D141: 31.8 | E141: 28.9 | F141: 23.4 | G141: 19.3 | H141: 14.8 | I141: 10.3 | J141: 9.5 | K141: 11.1 | L141: 11.3 | M141: 10.8 | N141: - | O141: - | P141: -
B142: Hidroeólica | C142: - | D142: - | E142: - | F142: - | G142: - | H142: - | I142: - | J142: 0 | K142: 0 | L142: 0 | M142: 0 | N142: - | O142: - | P142: -
B143: Eólica | C143: 9.7 | D143: 11 | E143: 13.8 | F143: 15.3 | G143: 15.3 | H143: 17.3 | I143: 20.3 | J143: 19.4 | K143: 18.2 | L143: 18.4 | M143: 19.8 | N143: - | O143: - | P143: -
B144: Solar fotovoltaica | C144: 0.2 | D144: 0.9 | E144: 2.2 | F144: 2.3 | G144: 2.7 | H144: 2.9 | I144: 3.1 | J144: 3.1 | K144: 3.1 | L144: 3.1 | M144: 3.3 | N144: - | O144: - | P144: -
B145: Solar térmica | C145: 0 | D145: 0 | E145: 0 | F145: 0.2 | G145: 0.7 | H145: 1.2 | I145: 1.6 | J145: 1.9 | K145: 1.9 | L145: 2 | M145: 2 | N145: - | O145: - | P145: -
B146: Térmica renovable/Otras renovables | C146: 0.9 | D146: 1 | E146: 1.2 | F146: 1.2 | G146: 1.6 | H146: 1.7 | I146: 1.9 | J146: 1.8 | K146: 1.2 | L146: 1.3 | M146: 1.4 | N146: - | O146: - | P146: -
B147: Térmica no renovable/Cogeneración y resto/Cogeneración | C147: 8.1 | D147: 8.9 | E147: 10.5 | F147: 10.7 | G147: 11.6 | H147: 12.1 | I147: 12.1 | J147: 9.8 | K147: 9.6 | L147: 10 | M147: 10.7 | N147: - | O147: - | P147: -
B148: Residuos | C148: - | D148: - | E148: - | F148: - | G148: - | H148: - | I148: - | J148: - | K148: 1.2 | L148: 1.3 | M148: 1.3 | N148: - | O148: - | P148: -
B149: Generación renovable | C149: 20.3 | D149: 20.7 | E149: 26.6 | F149: 33.7 | G149: 31.2 | H149: 30.4 | I149: 40.4 | J149: 40.9 | K149: 35.3 | L149: 38.9 | M149: 36 | N149: - | O149: - | P149: -
B150: Generación no renovable | C150: 79.7 | D150: 79.3 | E150: 73.4 | F150: 66.3 | G150: 68.8 | H150: 69.6 | I150: 59.6 | J150: 59.1 | K150: 64.7 | L150: 61.1 | M150: 64 | N150: - | O150: - | P150: -

Sheet Año (hidden)
Y1: 1 | Z1: 1
B2: 1990 | C2: 1990-1997 | D2: 2006-2013 | E2: 2007-2013 | O2: Nacional | P2: Mensual
B3: 1991 | C3: 1998-2005 | D3: 2014-2021 | E3: 2014-2020 | O3: Peninsular | P3: Anual
B4: 1992 | C4: 2006-2013 | O4: Canarias
B5: 1993 | C5: 2014-2021 | O5: Baleares
B6: 1994 | O6: Ceuta
B7: 1995 | O7: Melilla
B8: 1996
B9: 1997
B10: 1998
B11: 1999
B12: 2000
B13: 2001
B14: 2002
B15: 2003
B16: 2004
B17: 2005
B18: 2006
B19: 2007
B20: 2008
B21: 2009
B22: 2010
B23: 2011
B24: 2012
B25: 2013
B26: 2014
B27: 2015
B28: 2016
B29: 2017
